Workbook

Sheet START

Sheet Instructions
D2: 2020
X4: Yes
X5: No
W7: Type of Entities Range:
X8: Parent Municipality
X9: Consolidated Information
F14: START
F15: Instructions
F16: Template names
F17: Lookup and lists | W17: MTREF Range: | X17: 2013
F18: Org structure | X18: 2014
F19: Contacts | X19: 2015
F20: A1-Sum | X20: 2016
F21: A2-FinPerf SC | X21: 2017
F22: A2A | X22: 2018
F23: A3-FinPerf V | X23: 2019
F24: A3A | X24: 2020
F25: A4-FinPerf RE | X25: 2021
F26: A5-Capex | X26: 2022
F27: A5A | X27: 2023
F28: A6-FinPos | X28: 2024
F29: A7-CFlow | X29: 2025
F30: A8-ResRecon | X30: 2026
F31: A9-Asset | X31: 2027
F32: A10-SerDel
F33: SA1 | W33: MTREF Linked: | X33: 12
F34: SA2 | W34: MTREF: | X34: =INDEX(X17:X31,X33,1) -> 2024
F35: SA3
F36: SA4 | W36: Fin Year: | X36: =MTREF&"/"&RIGHT(MTREF,2)+1 -> 2024/25
F37: SA5
F38: SA6
F39: SA7
F40: SA8
F41: SA9
F42: SA10
F43: SA11
F44: SA12a
F45: SA12b
F46: SA13a
F47: SA13b
F48: SA14
F49: SA15
F50: SA16
F51: SA17
F52: SA18
F53: SA19
F54: SA20
F55: SA21
F56: SA22
F57: SA23
F58: SA24
F59: SA25
F60: SA26
F61: SA27
F62: SA28
F63: SA29
F64: SA30
F65: SA31
F66: SA32
F67: SA33
F68: SA34a
F69: SA34b
F70: SA34c
F71: SA34d
F72: SA34e
F73: SA35
F74: SA36
F75: SA37
F76: SA38
F77: LGDB_EXPORT

Sheet Template names (hidden)
A1: Common sheet headings
A2: Head1 | B2: =HLOOKUP(MTREF,Headings,2) -> 2022/23 | C2: Prior year -1
A3: Head1A | B3: =HLOOKUP(MTREF,Headings,3) -> 2021/22 | C3: Prior year -2
A4: Head1B | B4: =HLOOKUP(MTREF,Headings,4) -> 2020/21 | C4: Prior year -3
A5: Head2 | B5: =HLOOKUP(MTREF,Headings,5) -> Current Year 2023/24 | C5: Year in which budget is being prepared
A6: Head2A | B6: =HLOOKUP(MTREF,Headings,6) -> 2023/24 | C6: Year in which budget is being prepared
A7: Head3 | B7: =HLOOKUP(MTREF,Headings,7) -> 2024/25 Medium Term Revenue & Expenditure Framework | C7: MTREF name
A8: Head4 | B8: LTFS | C8: Long term financial strategy
A9: Head5 | B9: Audited Outcome
A10: Head5A | B10: Outcome
A11: Head5B | B11: Pre-audit outcome
A12: Head6 | B12: Original Budget
A13: Head7 | B13: Adjusted Budget
A14: Head8 | B14: Full Year Forecast
A15: Head9 | B15: =HLOOKUP(MTREF,Headings,8) -> Budget Year 2024/25 | C15: 1st year of MTREF | D15: Year1
A16: Head10 | B16: =HLOOKUP(MTREF,Headings,9) -> Budget Year +1 2025/26 | C16: 2nd year of MTREF | D16: Year2
A17: Head11 | B17: =HLOOKUP(MTREF,Headings,10) -> Budget Year +2 2026/27 | C17: 3rd year of MTREF | D17: Year3
A18: Head12 | B18: =HLOOKUP(MTREF,Headings,11) -> Forecast 2027/28 | C18: 1st yr of long term forecast | D18: Year4
A19: Head13 | B19: =HLOOKUP(MTREF,Headings,12) -> Forecast 2028/29 | C19: Next yr of long term forecast | D19: Year5
A20: Head14 | B20: =HLOOKUP(MTREF,Headings,13) -> Forecast 2029/30 | C20: Next yr of long term forecast | D20: Year6
A21: Head15 | B21: =HLOOKUP(MTREF,Headings,14) -> Forecast 2030/31 | C21: Next yr of long term forecast | D21: Year7
A22: Head16 | B22: =HLOOKUP(MTREF,Headings,15) -> Forecast 2031/32 | C22: Next yr of long term forecast | D22: Year8
A23: Head17 | B23: =HLOOKUP(MTREF,Headings,16) -> Forecast 2032/33 | C23: Next yr of long term forecast | D23: Year9
A24: Head18 | B24: =HLOOKUP(MTREF,Headings,17) -> Forecast 2033/34 | C24: Next yr of long term forecast | D24: Year10
A25: Head19 | B25: =HLOOKUP(MTREF,Headings,18) -> Forecast 2034/35 | C25: Next yr of long term forecast | D25: Year11
A26: Head20 | B26: =HLOOKUP(MTREF,Headings,19) -> Forecast 2035/36 | C26: Next yr of long term forecast | D26: Year12
A27: Head21 | B27: =HLOOKUP(MTREF,Headings,20) -> Forecast 2036/37 | C27: Next yr of long term forecast | D27: Year13
A28: Head22 | B28: =HLOOKUP(MTREF,Headings,21) -> Forecast 2037/38 | C28: Next yr of long term forecast | D28: Year14
A29: Head23 | B29: =HLOOKUP(MTREF,Headings,22) -> Forecast 2038/39 | C29: Next yr of long term forecast | D29: Year15
A30: Head24 | B30: Description
A31: Head25
A32: Head26 | B32: Vote Description
A33: Head27 | B33: Ref
A34: Head27a | B34: References
A35: Head28 | B35: Surplus/(Deficit) for the year | D35: Result
A36: Head29 | B36: =HLOOKUP(MTREF,Headings,23) -> Annual target 2024/25
A37: Head30 | B37: =HLOOKUP(MTREF,Headings,24) -> Revised target 2024/25
A38: Head31 | B38: Quarter ended 30 September
A39: Head32 | B39: Quarter ended 31 December
A40: Head33 | B40: Quarter ended 31 March
A41: Head34 | B41: Quarter ended 30 June
A42: Head35 | B42: Variance explanation
A43: Head36 | B43: YTD Actual 31 Dec
A44: Head37 | B44: YTD Budget 31 Dec
A45: Head38 | B45: Monthly actual
A46: Head39 | B46: YTD actual
A47: Head40 | B47: YTD budget
A48: Head41 | B48: YTD variance
A49: Head42 | B49: Surplus/ (Deficit) for the yr/period
A50: Head43 | B50: =Head3&" Summary" -> 2024/25 Medium Term Revenue & Expenditure Framework Summary
A51: Head44 | B51: 2001 Census
A52: Head45 | B52: 2011 Census
A53: Head46 | B53: - Adjustments Budget - January 2007
A54: Head47 | B54: Previous target year to complete
A55: Head48 | B55: Present value
A56: Head49
A57: Head50 | B57: Other Adjusts.
A58: Head51 | B58: Accum. Funds
A59: Head52 | B59: Multi-year capital
A60: Head53 | B60: Unfore. Unavoid.
A61: Head54 | B61: Prior Adjusted
A62: Head55 | B62: Nat. or Prov. Govt
A63: Head56 | B63: Total Adjusts.
A64: SFPerf1 | B64: Budgeted Financial Performance
A65: SFPerf2 | B65: Forecast Financial Performance
A66: SFPos1 | B66: Budgeted Financial Position
A67: SFPos2 | B67: Forecast Financial Position
A68: Cash1 | B68: Budget Cash Flow
A69: Cash2 | B69: Forecast Cash Flow
A70: RandM | B70: Expenditure includes repairs & maintenance of R'000
A71: Depart1 | B71: Department 1 - | D71: DEP1
A72: Depart2 | B72: Department 2 - | D72: DEP2
A73: Depart3 | B73: Department 3 - | D73: DEP3
A74: Depart4 | B74: Department 4 - | D74: DEP4
A75: Depart5 | B75: Department 5 - | D75: DEP5
A76: Depart6 | B76: Department 6 - | D76: DEP6
A77: Depart7 | B77: Department 7 - | D77: DEP7
A78: Depart8 | B78: Department 8 - | D78: DEP8
A79: Depart9 | B79: Department 9 - | D79: DEP9
A80: Depart10 | B80: Department 10 - | D80: DEP10
A81: Depart11 | B81: Department 11 - | D81: DEP11
A82: Depart12 | B82: Department 12 - | D82: DEP12
A83: Depart13 | B83: Department 13 - | D83: DEP13
A84: Depart14 | B84: Department 14 - | D84: DEP14
A87: Base year of forecast column selection names
A88: Choose | B88: ACT
B89: APP
B90: ADJ
A92: Standard nomenclature
A93: Muni | B93: ='Lookup and lists'!B28 -> 0
A94: Municipal Entities | B94: 2 | C94: Type of report: | D94: 1
A95: =IF((MuniEntities=1)*(MuniType=2),"YES","NO") -> NO | B95: Does this municipality have entities (consolidated budget and entity budgets required)? YES/NO
A96: Entity 1 | B96: (Pty) Ltd Example 1 - Municipal entity - | D96: Ent1
A97: Entity 2 | B97: (Pty) Ltd Example 2 - Municipal entity - | D97: Ent2
A98: Entity 3 | B98: Municipal Entity Example 3 | D98: Ent3
A99: Budget approval tables | C99: Chart x-ref | D99: Sch/Tab/Ch | E99: Alternative for municipalities without entities | F99: Alternative for municipalities without entities
B100: =IF(Consolques="YES",E100,F100) -> Table A1 Budget Summary | D100: Table A1 | E100: =D100&"Consolidated Budget Summary" -> Table A1 Consolidated Budget Summary | F100: =D100&"Budget Summary" -> Table A1 Budget Summary
B101: Table A2 Budgeted Financial Performance (revenue and expenditure by functional classification) | C101: Charts 5, 6 | D101: Table A2 | E101: =D101&"Consolidated Budgeted Financial Performance (revenue and expenditure by functional classification)" -> Table A2 Consolidated Budgeted Financial Performance (revenue and expenditure by functional classification) | F101: =D101&"Budgeted Financial Performance (revenue and expenditure by functional classification)" -> Table A2 Budgeted Financial Performance (revenue and expenditure by functional classification)
B102: Table A3 Budgeted Financial Performance (revenue and expenditure by municipal vote) | D102: Table A3 | E102: =D102&"Consolidated Budgeted Financial Performance (revenue and expenditure by municipal vote)" -> Table A3 Consolidated Budgeted Financial Performance (revenue and expenditure by municipal vote) | F102: =D102&"Budgeted Financial Performance (revenue and expenditure by municipal vote)" -> Table A3 Budgeted Financial Performance (revenue and expenditure by municipal vote)
B103: Table A4 Budgeted Financial Performance (revenue and expenditure) | C103: Charts 1, 2, 3, 4 | D103: Table A4 | E103: =D103&"Consolidated Budgeted Financial Performance (revenue and expenditure)" -> Table A4 Consolidated Budgeted Financial Performance (revenue and expenditure) | F103: =D103&"Budgeted Financial Performance (revenue and expenditure)" -> Table A4 Budgeted Financial Performance (revenue and expenditure)
B104: Table A5 Budgeted Capital Expenditure by vote, functional classification and funding | C104: Charts 7, 8, 9, 10, 20 | D104: Table A5 | E104: =D104&"Consolidated Budgeted Capital Expenditure by vote, functional classification and funding" -> Table A5 Consolidated Budgeted Capital Expenditure by vote, functional classification and funding | F104: =D104&"Budgeted Capital Expenditure by vote, functional classification and funding" -> Table A5 Budgeted Capital Expenditure by vote, functional classification and funding
B105: Table A6 Budgeted Financial Position | D105: Table A6 | E105: =D105&"Consolidated Budgeted Financial Position" -> Table A6 Consolidated Budgeted Financial Position | F105: =D105&"Budgeted Financial Position" -> Table A6 Budgeted Financial Position
B106: Table A7 Budgeted Cash Flows | D106: Table A7 | E106: =D106&"Consolidated Budgeted Cash Flows" -> Table A7 Consolidated Budgeted Cash Flows | F106: =D106&"Budgeted Cash Flows" -> Table A7 Budgeted Cash Flows
B107: Table A8 Cash backed reserves/accumulated surplus reconciliation | D107: Table A8 | E107: =D107&"Consolidated Cash backed reserves/accumulated surplus reconciliation" -> Table A8 Consolidated Cash backed reserves/accumulated surplus reconciliation | F107: =D107&"Cash backed reserves/accumulated surplus reconciliation" -> Table A8 Cash backed reserves/accumulated surplus reconciliation
B108: Table A9 Asset Management | D108: Table A9 | E108: =D108&"Consolidated Asset Management" -> Table A9 Consolidated Asset Management | F108: =D108&"Asset Management" -> Table A9 Asset Management
B109: Table A10 Basic service delivery measurement | D109: Table A10 | E109: =D109&"Consolidated basic service delivery measurement" -> Table A10 Consolidated basic service delivery measurement | F109: =D109&"Basic service delivery measurement" -> Table A10 Basic service delivery measurement
A110: Supportinging Tables to the Budget Approval Tables | C110: =$C$99 -> Chart x-ref | D110: =$D$99 -> Sch/Tab/Ch
A111: Supporting Table SA1 | B111: =A111&" Supportinging detail to 'Budgeted Financial Performance'" -> Supporting Table SA1 Supportinging detail to 'Budgeted Financial Performance'
A112: Supporting Table SA2 | B112: =IF(Consolques="YES",E112,F112) -> Supporting Table SA2 Matrix Financial Performance Budget (revenue source/expenditure type and dept.) | E112: =A112&"Consolidated Matrix Financial Performance Budget (revenue source/expenditure type & dept.)" -> Supporting Table SA2 Consolidated Matrix Financial Performance Budget (revenue source/expenditure type & dept.) | F112: =A112&"Matrix Financial Performance Budget (revenue source/expenditure type and dept.)" -> Supporting Table SA2 Matrix Financial Performance Budget (revenue source/expenditure type and dept.)
A113: Supporting Table SA3 | B113: =A113&"Supportinging detail to 'Budgeted Financial Position'" -> Supporting Table SA3 Supportinging detail to 'Budgeted Financial Position'
A114: Supporting Table SA4 | B114: =A114&"Reconciliation of IDP strategic objectives and budget (revenue)" -> Supporting Table SA4 Reconciliation of IDP strategic objectives and budget (revenue) | C114: Chart 11
A115: Supporting Table SA5 | B115: =A115&"Reconciliation of IDP strategic objectives and budget (operating expenditure)" -> Supporting Table SA5 Reconciliation of IDP strategic objectives and budget (operating expenditure) | C115: Chart 12
A116: Supporting Table SA6 | B116: =A116&"Reconciliation of IDP strategic objectives and budget (capital expenditure)" -> Supporting Table SA6 Reconciliation of IDP strategic objectives and budget (capital expenditure) | C116: Chart 13
A117: Supporting Table SA7 | B117: =A117&" Measureable performance objectives" -> Supporting Table SA7 Measureable performance objectives
A118: Supporting Table SA8 | B118: =A118&" Performance indicators and benchmarks" -> Supporting Table SA8 Performance indicators and benchmarks | C118: Chts 15-19
A119: Supporting Table SA9 | B119: =A119&" Social, economic and demographic statistics and assumptions" -> Supporting Table SA9 Social, economic and demographic statistics and assumptions
A120: Supporting Table SA10 | B120: =A120&" Funding measurement" -> Supporting Table SA10 Funding measurement | C120: Chart 14
A121: Supporting Table SA11 | B121: =A121&" Property rates summary" -> Supporting Table SA11 Property rates summary
A122: Supporting Table SA12a | B122: =A122&" Property rates by category (current year)" -> Supporting Table SA12a Property rates by category (current year)
A123: Supporting Table SA12b | B123: =A123&" Property rates by category (budget year)" -> Supporting Table SA12b Property rates by category (budget year)
A124: Supporting Table SA13a | B124: =A124&" Service Tariffs by category" -> Supporting Table SA13a Service Tariffs by category
A125: Supporting Table SA13b | B125: =A125&" Service Tariffs by category - explanatory" -> Supporting Table SA13b Service Tariffs by category - explanatory
A126: Supporting Table SA14 | B126: =A126&" Household bills" -> Supporting Table SA14 Household bills
A127: Supporting Table SA15 | B127: =A127&" Investment particulars by type" -> Supporting Table SA15 Investment particulars by type
A128: Supporting Table SA16 | B128: =A128&" Investment particulars by maturity" -> Supporting Table SA16 Investment particulars by maturity
A129: Supporting Table SA17 | B129: =A129&" Borrowing" -> Supporting Table SA17 Borrowing
A130: Supporting Table SA18 | B130: =A130&" Transfers and grant receipts" -> Supporting Table SA18 Transfers and grant receipts
A131: Supporting Table SA19 | B131: =A131&" Expenditure on transfers and grant programme" -> Supporting Table SA19 Expenditure on transfers and grant programme
A132: Supporting Table SA20 | B132: =A132&" Reconciliation of transfers, grant receipts and unspent funds" -> Supporting Table SA20 Reconciliation of transfers, grant receipts and unspent funds
A133: Supporting Table SA21 | B133: =A133&" Transfers and grants made by the municipality" -> Supporting Table SA21 Transfers and grants made by the municipality
A134: Supporting Table SA22 | B134: =A134&" Summary councillor and staff benefits" -> Supporting Table SA22 Summary councillor and staff benefits
A135: Supporting Table SA23 | B135: =A135&" Salaries, allowances & benefits (political office bearers/councillors/senior managers)" -> Supporting Table SA23 Salaries, allowances & benefits (political office bearers/councillors/senior managers)
A136: Supporting Table SA24 | B136: =A136&" Summary of personnel numbers" -> Supporting Table SA24 Summary of personnel numbers
A137: Supporting Table SA25 | B137: =IF(Consolques="YES",E137,F137) -> Supporting Table SA25 Budgeted monthly revenue and expenditure | E137: =A137&" Consolidated budgeted monthly revenue and expenditure" -> Supporting Table SA25 Consolidated budgeted monthly revenue and expenditure | F137: =A137&" Budgeted monthly revenue and expenditure" -> Supporting Table SA25 Budgeted monthly revenue and expenditure
A138: Supporting Table SA26 | B138: Supporting Table SA26 Budgeted monthly revenue and expenditure (municipal vote) | E138: =A138&" Consolidated budgeted monthly revenue and expenditure (municipal vote)" -> Supporting Table SA26 Consolidated budgeted monthly revenue and expenditure (municipal vote) | F138: =A138&" Budgeted monthly revenue and expenditure (municipal vote)" -> Supporting Table SA26 Budgeted monthly revenue and expenditure (municipal vote)
A139: Supporting Table SA27 | B139: Supporting Table SA27 Budgeted monthly revenue and expenditure (functional classification) | E139: =A139&" Consolidated budgeted monthly revenue and expenditure (functional classification)" -> Supporting Table SA27 Consolidated budgeted monthly revenue and expenditure (functional classification) | F139: =A139&" Budgeted monthly revenue and expenditure (functional classification)" -> Supporting Table SA27 Budgeted monthly revenue and expenditure (functional classification)
A140: Supporting Table SA28 | B140: Supporting Table SA28 Budgeted monthly capital expenditure (municipal vote) | E140: =A140&" Consolidated budgeted monthly capital expenditure (municipal vote)" -> Supporting Table SA28 Consolidated budgeted monthly capital expenditure (municipal vote) | F140: =A140&" Budgeted monthly capital expenditure (municipal vote)" -> Supporting Table SA28 Budgeted monthly capital expenditure (municipal vote)
A141: Supporting Table SA29 | B141: Supporting Table SA29 Budgeted monthly capital expenditure (functional classification) | E141: =A141&" Consolidated budgeted monthly capital expenditure (functional classification)" -> Supporting Table SA29 Consolidated budgeted monthly capital expenditure (functional classification) | F141: =A141&" Budgeted monthly capital expenditure (functional classification)" -> Supporting Table SA29 Budgeted monthly capital expenditure (functional classification)
A142: Supporting Table SA30 | B142: Supporting Table SA30 Budgeted monthly cash flow | E142: =A142&" Consolidated budgeted monthly cash flow" -> Supporting Table SA30 Consolidated budgeted monthly cash flow | F142: =A142&" Budgeted monthly cash flow" -> Supporting Table SA30 Budgeted monthly cash flow
A143: Supporting Table SA31 | B143: NOT REQUIRED - municipality does not have entities | E143: =A143&" Aggregated entity budget" -> Supporting Table SA31 Aggregated entity budget | F143: NOT REQUIRED - municipality does not have entities
A144: Supporting Table SA32 | B144: =A144&" List of external mechanisms" -> Supporting Table SA32 List of external mechanisms
A145: Supporting Table SA33 | B145: =A145&" Contracts having future budgetary implications" -> Supporting Table SA33 Contracts having future budgetary implications
A146: Supporting Table SA34a | B146: =IF(Consolques="YES",E146,F146) -> Supporting Table SA34a Capital expenditure on new assets by asset class | E146: =A146&" Consolidated capital expenditure on new assets by asset class" -> Supporting Table SA34a Consolidated capital expenditure on new assets by asset class | F146: =A146&" Capital expenditure on new assets by asset class" -> Supporting Table SA34a Capital expenditure on new assets by asset class
A147: Supporting Table SA34b | B147: Supporting Table SA34b Capital expenditure on the renewal of existing assets by asset class | E147: =A147&" Consolidated capital expenditure on the renewal of existing assets by asset class" -> Supporting Table SA34b Consolidated capital expenditure on the renewal of existing assets by asset class | F147: =A147&" Capital expenditure on the renewal of existing assets by asset class" -> Supporting Table SA34b Capital expenditure on the renewal of existing assets by asset class
A148: Supporting Table SA34c | B148: Supporting Table SA34c Repairs and maintenance expenditure by asset class | E148: =A148&" Consolidated repairs and maintenance by asset class" -> Supporting Table SA34c Consolidated repairs and maintenance by asset class | F148: =A148&" Repairs and maintenance expenditure by asset class" -> Supporting Table SA34c Repairs and maintenance expenditure by asset class
A149: Supporting Table SA34d | B149: =IF(Consolques="YES",E149,F149) -> Supporting Table SA34d Depreciation by asset class | E149: =A149&" Consolidated Depreciation by asset class" -> Supporting Table SA34d Consolidated Depreciation by asset class | F149: =A149&" Depreciation by asset class" -> Supporting Table SA34d Depreciation by asset class
A150: Supporting Table SA34e | B150: =IF(Consolques="YES",E150,F150) -> Supporting Table SA34e Capital expenditure on the upgrading of existing assets by asset class | E150: =A150&" Consolidated capital expenditure on the upgrading of existing assets by asset class" -> Supporting Table SA34e Consolidated capital expenditure on the upgrading of existing assets by asset class | F150: =A150&" Capital expenditure on the upgrading of existing assets by asset class" -> Supporting Table SA34e Capital expenditure on the upgrading of existing assets by asset class
A151: Supporting Table SA35 | B151: Supporting Table SA35 Future financial implications of the capital budget | E151: =A151&" Consolidated future financial implications of the capital budget" -> Supporting Table SA35 Consolidated future financial implications of the capital budget | F151: =A151& " Future financial implications of the capital budget" -> Supporting Table SA35 Future financial implications of the capital budget
A152: Supporting Table SA36 | B152: Supporting Table SA36 Detailed capital budget | E152: =A152&" Consolidated detailed capital budget" -> Supporting Table SA36 Consolidated detailed capital budget | F152: =A152& " Detailed capital budget" -> Supporting Table SA36 Detailed capital budget
A153: Supporting Table SA37 | B153: Supporting Table SA37 Projects delayed from previous financial year/s | E153: =A153&" Consolidated projects delayed from previous financial year/s" -> Supporting Table SA37 Consolidated projects delayed from previous financial year/s | F153: =A153& " Projects delayed from previous financial year/s" -> Supporting Table SA37 Projects delayed from previous financial year/s
A154: Supporting Table SA38 | B154: =IF(Consolques="YES",E154,F154) -> Supporting Table SA38 Detailed operational projects | E154: =A154&" Consolidated detailed operational projects" -> Supporting Table SA38 Consolidated detailed operational projects | F154: =A154& " Detailed operational projects" -> Supporting Table SA38 Detailed operational projects
A156: Budget Charts | B156: Charts | C156: Cross reference
A157: Chart A1 | B157: =A157&"Revenue by Municipal Vote" -> Chart A1 Revenue by Municipal Vote
A158: Chart A2 | B158: =A158&"Expenditure by Municipal Vote" -> Chart A2 Expenditure by Municipal Vote
A159: Chart A3 | B159: =A159&"Revenue by Standard Classification" -> Chart A3 Revenue by Standard Classification | C159: A2
A160: Chart A4 | B160: =A160&"Expenditure by Standard Classification" -> Chart A4 Expenditure by Standard Classification | C160: A2
A161: Chart A5 | B161: =A161&"Revenue by Major Source (refer 'Minor' source for 'Other Revenue' allocation" -> Chart A5 Revenue by Major Source (refer 'Minor' source for 'Other Revenue' allocation | C161: A3
A162: Chart A6 | B162: =A162&"Revenue by Minor Source (Other)" -> Chart A6 Revenue by Minor Source (Other) | C162: A3
A163: Chart A7 | B163: =A163&"Expenditure by Major Type" -> Chart A7 Expenditure by Major Type | C163: A3
A164: Chart A8 | B164: =A164&"Expenditure by Minor Type (Other)" -> Chart A8 Expenditure by Minor Type (Other) | C164: A3
A165: Chart A9 | B165: =A165&"Capital Expenditure by Municipal Vote/Appropriation (Major)" -> Chart A9 Capital Expenditure by Municipal Vote/Appropriation (Major) | C165: A5
A166: Chart A10 | B166: =A166&"Capital Expenditure by Municipal Vote/Appropriation (Minor)" -> Chart A10 Capital Expenditure by Municipal Vote/Appropriation (Minor) | C166: A5
A167: Chart A11 | B167: =A166&"Capital Expenditure by Standard Classification" -> Chart A10 Capital Expenditure by Standard Classification | C167: A5
A168: Chart A12 | B168: =A168&"Capital expenditure performance trend" -> Chart A12 Capital expenditure performance trend | C168: A5
A169: Chart A13 | B169: =A169&"Capital funding by Source" -> Chart A13 Capital funding by Source | C169: A5
A170: Chart A14 | B170: =A170&"Cash flow trend" -> Chart A14 Cash flow trend | C170: A7
A171: Chart A15 | B171: =A171&"IDP Strategic Objective - Revenue" -> Chart A15 IDP Strategic Objective - Revenue | C171: Table A4
A172: Chart A16 | B172: =A172&"IDP Strategic Objective - Expenditure" -> Chart A16 IDP Strategic Objective - Expenditure | C172: Table A5
A173: Chart A17 | B173: =A173&"IDP Strategic Objective - Capital Expenditure" -> Chart A17 IDP Strategic Objective - Capital Expenditure | C173: Table A6
A174: Chart A18 | B174: =A174&"Debt (borrowing to Total Revenue)" -> Chart A18 Debt (borrowing to Total Revenue) | C174: Table A8
A175: Chart A19 | B175: =A175&"Debtors' trend analysis" -> Chart A19 Debtors' trend analysis | C175: Table A8
A176: Chart A20 | B176: =A176&"Distribution losses" -> Chart A20 Distribution losses | C176: Table A8
A177: Chart A21 | B177: =A177&"Borrowed funding of capital expenditure" -> Chart A21 Borrowed funding of capital expenditure | C177: Table A8
A178: Chart A22 | B178: =A178&"Expenditure analysis (% of Revenue)" -> Chart A22 Expenditure analysis (% of Revenue) | C178: Table A8
A179: Chart A23 | B179: =A179&"Increases in service charges" -> Chart A23 Increases in service charges | C179: Table A10

Sheet Lookup and lists (hidden)
A1: Description | B1: 2013 | C1: 2014 | D1: 2015 | E1: 2016 | F1: 2017 | G1: 2018 | H1: 2019 | I1: 2020 | J1: 2021 | K1: 2022 | L1: 2023 | M1: 2024 | N1: 2025 | O1: 2026 | Q1: Lists | Y1: Grants: | Z1: National - opex | AA1: Provincial - opex | AB1: National - capex | AC1: Provincial - capex
A2: ='Template names'!C2 -> Prior year -1 | B2: =B1-2&"/"&RIGHT(B1,2)-1 -> 2011/12 | C2: 2012/13 | D2: 2013/14 | E2: 2014/15 | F2: 2015/16 | G2: 2016/17 | H2: 2017/18 | I2: 2018/19 | J2: =J1-2&"/"&RIGHT(J1,2)-1 -> 2019/20 | K2: 2020/21 | L2: 2021/22 | M2: 2022/23 | N2: 2023/24 | O2: 2024/25 | Q2: Yes | R2: <1 | S2: <4 | T2: Market | U2: Land & impr. | V2: Yes | W2: Uniform | X2: Yrs | Z2: Local Government Equitable Share | AA2: Health subsidy | AB2: Municipal Infrastructure Grant (MIG) | AC2: Agriculture
A3: ='Template names'!C3 -> Prior year -2 | B3: =B1-3&"/"&RIGHT(B1,2)-2 -> 2010/11 | C3: 2011/12 | D3: 2012/13 | E3: 2013/14 | F3: 2014/15 | G3: 2015/16 | H3: 2016/17 | I3: 2017/18 | J3: =J1-3&"/"&RIGHT(J1,2)-2 -> 2018/19 | K3: 2019/20 | L3: 2020/21 | M3: 2021/22 | N3: 2022/23 | O3: 2023/24 | Q3: No | R3: 1 | S3: 4 | T3: Dep.Replace | U3: Land only | V3: No | W3: Variable | X3: Mths | Z3: RSC Levy Replacement | AA3: Ambulance subsidy | AB3: Public Transport and Systems | AC3: Education
A4: ='Template names'!C4 -> Prior year -3 | B4: =B1-4&"/"&RIGHT(B1,2)-3 -> 2009/10 | C4: 2010/11 | D4: 2011/12 | E4: 2012/13 | F4: 2013/14 | G4: 2014/15 | H4: 2015/16 | I4: 2016/17 | J4: =J1-4&"/"&RIGHT(J1,2)-3 -> 2017/18 | K4: 2018/19 | L4: 2019/20 | M4: 2020/21 | N4: 2021/22 | O4: 2022/23 | R4: 2 | S4: 5 | T4: Other | U4: Other | Z4: Finance Management | AA4: Housing | AB4: Rural Transport Services and Infrastructure | AC4: Health
A5: ='Template names'!C5 -> Year in which budget is being prepared | B5: ="Current Year "& B1-1&"/"&RIGHT(B1,2) -> Current Year 2012/13 | C5: Current Year 2013/14 | D5: Current Year 2014/15 | E5: Current Year 2015/16 | F5: Current Year 2016/17 | G5: Current Year 2017/18 | H5: Current Year 2018/19 | I5: Current Year 2019/20 | J5: ="Current Year "& J1-1&"/"&RIGHT(J1,2) -> Current Year 2020/21 | K5: Current Year 2021/22 | L5: Current Year 2022/23 | M5: Current Year 2023/24 | N5: Current Year 2024/25 | O5: Current Year 2025/26 | R5: 3 | S5: 6 | Z5: Municipal Systems Improvement | AA5: Sport and Recreation | AB5: Regional Bulk Infrastructure | AC5: Housing and Local Government
A6: ='Template names'!C6 -> Year in which budget is being prepared | B6: =B1-1&"/"&RIGHT(B1,2) -> 2012/13 | C6: 2013/14 | D6: 2014/15 | E6: 2015/16 | F6: 2016/17 | G6: 2017/18 | H6: 2018/19 | I6: 2019/20 | J6: =J1-1&"/"&RIGHT(J1,2) -> 2020/21 | K6: 2021/22 | L6: 2022/23 | M6: 2023/24 | N6: 2024/25 | O6: 2025/26 | R6: 4 | S6: 6-10 | Z6: Water Services Operating Subsidy | AB6: Rural Households Infrastructure | AC6: Other Departments
A7: ='Template names'!C7 -> MTREF name | B7: =B1&"/"&RIGHT(B1,2)+1&" Medium Term Revenue & Expenditure Framework" -> 2013/14 Medium Term Revenue & Expenditure Framework | C7: 2014/15 Medium Term Revenue & Expenditure Framework | D7: 2015/16 Medium Term Revenue & Expenditure Framework | E7: 2016/17 Medium Term Revenue & Expenditure Framework | F7: 2017/18 Medium Term Revenue & Expenditure Framework | G7: 2018/19 Medium Term Revenue & Expenditure Framework | H7: 2019/20 Medium Term Revenue & Expenditure Framework | I7: 2020/21 Medium Term Revenue & Expenditure Framework | J7: =J1&"/"&RIGHT(J1,2)+1&" Medium Term Revenue & Expenditure Framework" -> 2021/22 Medium Term Revenue & Expenditure Framework | K7: 2022/23 Medium Term Revenue & Expenditure Framework | L7: 2023/24 Medium Term Revenue & Expenditure Framework | M7: 2024/25 Medium Term Revenue & Expenditure Framework | N7: 2025/26 Medium Term Revenue & Expenditure Framework | O7: 2026/27 Medium Term Revenue & Expenditure Framework | R7: 5 | S7: >10 | Z7: Energy Efficiency and Demand Management | AB7: Neighbourhood Development Partnership | AC7: Public Works, Roads, Transport
A8: ='Template names'!C15 -> 1st year of MTREF | B8: ="Budget Year "&B1&"/"&RIGHT(B1,2)+1 -> Budget Year 2013/14 | C8: Budget Year 2014/15 | D8: Budget Year 2015/16 | E8: Budget Year 2016/17 | F8: Budget Year 2017/18 | G8: Budget Year 2018/19 | H8: Budget Year 2019/20 | I8: Budget Year 2020/21 | J8: ="Budget Year "&J1&"/"&RIGHT(J1,2)+1 -> Budget Year 2021/22 | K8: Budget Year 2022/23 | L8: Budget Year 2023/24 | M8: Budget Year 2024/25 | N8: Budget Year 2025/26 | O8: Budget Year 2026/27 | R8: >5 | Z8: Integrated National Electrification Programme | AB8: 2010 FIFA World Cup Stadiums Development | AC8: Sport and Recreation
A9: ='Template names'!C16 -> 2nd year of MTREF | B9: ="Budget Year +1 "&B1+1&"/"&RIGHT(B1,2)+2 -> Budget Year +1 2014/15 | C9: Budget Year +1 2015/16 | D9: Budget Year +1 2016/17 | E9: Budget Year +1 2017/18 | F9: Budget Year +1 2018/19 | G9: Budget Year +1 2019/20 | H9: Budget Year +1 2020/21 | I9: Budget Year +1 2021/22 | J9: ="Budget Year +1 "&J1+1&"/"&RIGHT(J1,2)+2 -> Budget Year +1 2022/23 | K9: Budget Year +1 2023/24 | L9: Budget Year +1 2024/25 | M9: Budget Year +1 2025/26 | N9: Budget Year +1 2026/27 | O9: Budget Year +1 2027/28 | Z9: Municipal Drought Relief
A10: ='Template names'!C17 -> 3rd year of MTREF | B10: ="Budget Year +2 "&B1+2&"/"&RIGHT(B1,2)+3 -> Budget Year +2 2015/16 | C10: Budget Year +2 2016/17 | D10: Budget Year +2 2017/18 | E10: Budget Year +2 2018/19 | F10: Budget Year +2 2019/20 | G10: Budget Year +2 2020/21 | H10: Budget Year +2 2021/22 | I10: Budget Year +2 2022/23 | J10: ="Budget Year +2 "&J1+2&"/"&RIGHT(J1,2)+3 -> Budget Year +2 2023/24 | K10: Budget Year +2 2024/25 | L10: Budget Year +2 2025/26 | M10: Budget Year +2 2026/27 | N10: Budget Year +2 2027/28 | O10: Budget Year +2 2028/29 | Z10: 2010 FIFA World Cup Operating
A11: ='Template names'!C18 -> 1st yr of long term forecast | B11: ="Forecast "&B1+3&"/"&RIGHT(B1,2)+4 -> Forecast 2016/17 | C11: Forecast 2017/18 | D11: Forecast 2018/19 | E11: Forecast 2019/20 | F11: Forecast 2020/21 | G11: Forecast 2021/22 | H11: Forecast 2022/23 | I11: Forecast 2023/24 | J11: ="Forecast "&J1+3&"/"&RIGHT(J1,2)+4 -> Forecast 2024/25 | K11: Forecast 2025/26 | L11: Forecast 2026/27 | M11: Forecast 2027/28 | N11: Forecast 2028/29 | O11: Forecast 2029/30 | Z11: Electricity Demand Side Management
A12: ='Template names'!C19 -> Next yr of long term forecast | B12: ="Forecast "&B1+4&"/"&RIGHT(B1,2)+5 -> Forecast 2017/18 | C12: Forecast 2018/19 | D12: Forecast 2019/20 | E12: Forecast 2020/21 | F12: Forecast 2021/22 | G12: Forecast 2022/23 | H12: Forecast 2023/24 | I12: Forecast 2024/25 | J12: ="Forecast "&J1+4&"/"&RIGHT(J1,2)+5 -> Forecast 2025/26 | K12: Forecast 2026/27 | L12: Forecast 2027/28 | M12: Forecast 2028/29 | N12: Forecast 2029/30 | O12: Forecast 2030/31 | Z12: EPWP Incentive
A13: ='Template names'!C20 -> Next yr of long term forecast | B13: ="Forecast "&B1+5&"/"&RIGHT(B1,2)+6 -> Forecast 2018/19 | C13: Forecast 2019/20 | D13: Forecast 2020/21 | E13: Forecast 2021/22 | F13: Forecast 2022/23 | G13: Forecast 2023/24 | H13: Forecast 2024/25 | I13: Forecast 2025/26 | J13: ="Forecast "&J1+5&"/"&RIGHT(J1,2)+6 -> Forecast 2026/27 | K13: Forecast 2027/28 | L13: Forecast 2028/29 | M13: Forecast 2029/30 | N13: Forecast 2030/31 | O13: Forecast 2031/32
A14: ='Template names'!C21 -> Next yr of long term forecast | B14: ="Forecast "&B1+6&"/"&RIGHT(B1,2)+7 -> Forecast 2019/20 | C14: Forecast 2020/21 | D14: Forecast 2021/22 | E14: Forecast 2022/23 | F14: Forecast 2023/24 | G14: Forecast 2024/25 | H14: Forecast 2025/26 | I14: Forecast 2026/27 | J14: ="Forecast "&J1+6&"/"&RIGHT(J1,2)+7 -> Forecast 2027/28 | K14: Forecast 2028/29 | L14: Forecast 2029/30 | M14: Forecast 2030/31 | N14: Forecast 2031/32 | O14: Forecast 2032/33 | Z14: Asset Class | AA14: Asset sub-class old | AB14: Asset sub-class | AC14: IUDF | AD14: MTSF
A15: ='Template names'!C22 -> Next yr of long term forecast | B15: ="Forecast "&B1+7&"/"&RIGHT(B1,2)+8 -> Forecast 2020/21 | C15: Forecast 2021/22 | D15: Forecast 2022/23 | E15: Forecast 2023/24 | F15: Forecast 2024/25 | G15: Forecast 2025/26 | H15: Forecast 2026/27 | I15: Forecast 2027/28 | J15: ="Forecast "&J1+7&"/"&RIGHT(J1,2)+8 -> Forecast 2028/29 | K15: Forecast 2029/30 | L15: Forecast 2030/31 | M15: Forecast 2031/32 | N15: Forecast 2032/33 | O15: Forecast 2033/34
A16: ='Template names'!C23 -> Next yr of long term forecast | B16: ="Forecast "&B1+8&"/"&RIGHT(B1,2)+9 -> Forecast 2021/22 | C16: Forecast 2022/23 | D16: Forecast 2023/24 | E16: Forecast 2024/25 | F16: Forecast 2025/26 | G16: Forecast 2026/27 | H16: Forecast 2027/28 | I16: Forecast 2028/29 | J16: ="Forecast "&J1+8&"/"&RIGHT(J1,2)+9 -> Forecast 2029/30 | K16: Forecast 2030/31 | L16: Forecast 2031/32 | M16: Forecast 2032/33 | N16: Forecast 2033/34 | O16: Forecast 2034/35 | Z16: Roads Infrastructure | AA16: Roads, Pavements & Bridges | AB16: Roads | AC16: Spatial integration | AD16: Quality basic education
A17: ='Template names'!C24 -> Next yr of long term forecast | B17: ="Forecast "&B1+9&"/"&RIGHT(B1,2)+10 -> Forecast 2022/23 | C17: Forecast 2023/24 | D17: Forecast 2024/25 | E17: Forecast 2025/26 | F17: Forecast 2026/27 | G17: Forecast 2027/28 | H17: Forecast 2028/29 | I17: Forecast 2029/30 | J17: ="Forecast "&J1+9&"/"&RIGHT(J1,2)+10 -> Forecast 2030/31 | K17: Forecast 2031/32 | L17: Forecast 2032/33 | M17: Forecast 2033/34 | N17: Forecast 2034/35 | O17: Forecast 2035/36 | Z17: Storm water Infrastructure | AA17: Storm water | AB17: Road Structures | AC17: Inclusion and access | AD17: A long and healthy life for all South Africans
A18: ='Template names'!C25 -> Next yr of long term forecast | B18: ="Forecast "&B1+10&"/"&RIGHT(B1,2)+11 -> Forecast 2023/24 | C18: Forecast 2024/25 | D18: Forecast 2025/26 | E18: Forecast 2026/27 | F18: Forecast 2027/28 | G18: Forecast 2028/29 | H18: Forecast 2029/30 | I18: Forecast 2030/31 | J18: ="Forecast "&J1+10&"/"&RIGHT(J1,2)+11 -> Forecast 2031/32 | K18: Forecast 2032/33 | L18: Forecast 2033/34 | M18: Forecast 2034/35 | N18: Forecast 2035/36 | O18: Forecast 2036/37 | Z18: Electrical Infrastructure | AA18: Generation | AB18: Road Furniture | AC18: Growth | AD18: All people in South Africa are and feel safe
A19: ='Template names'!C26 -> Next yr of long term forecast | B19: ="Forecast "&B1+11&"/"&RIGHT(B1,2)+12 -> Forecast 2024/25 | C19: Forecast 2025/26 | D19: Forecast 2026/27 | E19: Forecast 2027/28 | F19: Forecast 2028/29 | G19: Forecast 2029/30 | H19: Forecast 2030/31 | I19: Forecast 2031/32 | J19: ="Forecast "&J1+11&"/"&RIGHT(J1,2)+12 -> Forecast 2032/33 | K19: Forecast 2033/34 | L19: Forecast 2034/35 | M19: Forecast 2035/36 | N19: Forecast 2036/37 | O19: Forecast 2037/38 | Z19: Water Supply Infrastructure | AA19: Transmission & Reticulation | AB19: Capital Spares | AC19: Governance | AD19: Decent employment through inclusive growth
A20: ='Template names'!C27 -> Next yr of long term forecast | B20: ="Forecast "&B1+12&"/"&RIGHT(B1,2)+13 -> Forecast 2025/26 | C20: Forecast 2026/27 | D20: Forecast 2027/28 | E20: Forecast 2028/29 | F20: Forecast 2029/30 | G20: Forecast 2030/31 | H20: Forecast 2031/32 | I20: Forecast 2032/33 | J20: ="Forecast "&J1+12&"/"&RIGHT(J1,2)+13 -> Forecast 2033/34 | K20: Forecast 2034/35 | L20: Forecast 2035/36 | M20: Forecast 2036/37 | N20: Forecast 2037/38 | O20: Forecast 2038/39 | Z20: Sanitation Infrastructure | AA20: Street Lighting | AB20: Drainage Collection | AD20: A skilled and capable workforce to support an inclusive growth path
A21: ='Template names'!C28 -> Next yr of long term forecast | B21: ="Forecast "&B1+13&"/"&RIGHT(B1,2)+14 -> Forecast 2026/27 | C21: Forecast 2027/28 | D21: Forecast 2028/29 | E21: Forecast 2029/30 | F21: Forecast 2030/31 | G21: Forecast 2031/32 | H21: Forecast 2032/33 | I21: Forecast 2033/34 | J21: ="Forecast "&J1+13&"/"&RIGHT(J1,2)+14 -> Forecast 2034/35 | K21: Forecast 2035/36 | L21: Forecast 2036/37 | M21: Forecast 2037/38 | N21: Forecast 2038/39 | O21: Forecast 2039/40 | Z21: Solid Waste Infrastructure | AA21: Dams & Reservoirs | AB21: Storm water Conveyance | AD21: An efficient, competitive and responsive economic infrastructure network
A22: ='Template names'!C29 -> Next yr of long term forecast | B22: ="Forecast "&B1+14&"/"&RIGHT(B1,2)+15 -> Forecast 2027/28 | C22: Forecast 2028/29 | D22: Forecast 2029/30 | E22: Forecast 2030/31 | F22: Forecast 2031/32 | G22: Forecast 2032/33 | H22: Forecast 2033/34 | I22: Forecast 2034/35 | J22: ="Forecast "&J1+14&"/"&RIGHT(J1,2)+15 -> Forecast 2035/36 | K22: Forecast 2036/37 | L22: Forecast 2037/38 | M22: Forecast 2038/39 | N22: Forecast 2039/40 | O22: Forecast 2040/41 | Z22: Rail Infrastructure | AA22: Water purification | AB22: Attenuation | AD22: Vibrant, equitable, sustainable rural communities contributing towards food security for all
A23: Adjustments Budget | B23: ="Annual target " & B1&"/"&RIGHT(B1,2)+1 -> Annual target 2013/14 | C23: Annual target 2014/15 | D23: Annual target 2015/16 | E23: Annual target 2016/17 | F23: Annual target 2017/18 | G23: Annual target 2018/19 | H23: Annual target 2019/20 | I23: Annual target 2020/21 | J23: ="Annual target " & J1&"/"&RIGHT(J1,2)+1 -> Annual target 2021/22 | K23: Annual target 2022/23 | L23: Annual target 2023/24 | M23: Annual target 2024/25 | N23: Annual target 2025/26 | O23: Annual target 2026/27 | Z23: Coastal Infrastructure | AA23: Reticulation | AB23: Power Plants | AD23: Sustainable human settlements and improved quality of household life
A24: =A23 -> Adjustments Budget | B24: ="Revised target "& B1&"/"&RIGHT(B1,2)+1 -> Revised target 2013/14 | C24: Revised target 2014/15 | D24: Revised target 2015/16 | E24: Revised target 2016/17 | F24: Revised target 2017/18 | G24: Revised target 2018/19 | H24: Revised target 2019/20 | I24: Revised target 2020/21 | J24: ="Revised target "& J1&"/"&RIGHT(J1,2)+1 -> Revised target 2021/22 | K24: Revised target 2022/23 | L24: Revised target 2023/24 | M24: Revised target 2024/25 | N24: Revised target 2025/26 | O24: Revised target 2026/27 | Z24: Information and Communication Infrastructure | AA24: Sewerage purification | AB24: HV Substations | AD24: Responsive, accountable, effective and efficient local government
A25: NOTE: This sheet should not be directly amended - select headings from sheet 'S' | Z25: Community Facilities | AA25: Waste Management | AB25: HV Switching Station | AD25: Protect and enhance our environmental assets and natural resources
Z26: Sport and Recreation Facilities | AA26: Transportation | AB26: HV Transmission Conductors | AD26: Create a better South Africa and contribute to a better Africa and a better world
A27: Name link | B27: 278 | Z27: Heritage assets | AA27: Gas | AB27: MV Substations | AD27: An efficient, effective and development-oriented public service
A28: Name of Muni | B28: =INDEX(B29:B307,B27,1) -> 0 | Z28: Revenue Generating | AA28: Parks & gardens | AB28: MV Switching Stations | AD28: A comprehensive, responsive and sustainable social protection system
B29: Choose name from list | C29: Set name on 'Instructions' sheet | Z29: Non-revenue Generating | AA29: Sportsfields & stadia | AB29: MV Networks | AD29: A diverse, socially cohesive society with a common national identity
B30: BUF Buffalo City | C30: EC EASTERN CAPE | Z30: Operational Buildings | AA30: Swimming pools | AB30: LV Networks
B31: NMA Nelson Mandela Bay | C31: EC EASTERN CAPE | Z31: Housing | AA31: Community halls | AB31: Capital Spares
B32: EC101 Dr Beyers Naude | C32: EC EASTERN CAPE | Z32: Biological or Cultivated Assets | AA32: Libraries | AB32: Dams and Weirs
B33: EC102 Blue Crane Route | C33: EC EASTERN CAPE | Z33: Servitudes | AA33: Recreational facilities | AB33: Boreholes
B34: EC104 Makana | C34: EC EASTERN CAPE | Z34: Licences and Rights | AA34: Fire, safety & emergency | AB34: Reservoirs
B35: EC105 Ndlambe | C35: EC EASTERN CAPE | Z35: Computer Equipment | AA35: Security and policing | AB35: Pump Stations
B36: EC106 Sundays River Valley | C36: EC EASTERN CAPE | Z36: Furniture and Office Equipment | AA36: Buses | AB36: Water Treatment Works
B37: EC108 Kouga | C37: EC EASTERN CAPE | Z37: Machinery and Equipment | AA37: Clinics | AB37: Bulk Mains
B38: EC109 Kou-Kamma | C38: EC EASTERN CAPE | Z38: Transport Assets | AA38: Museums & Art Galleries | AB38: Distribution
B39: DC10 Sarah Baartman | C39: EC EASTERN CAPE | Z39: Land | AA39: Cemeteries | AB39: Distribution Points
B40: EC121 Mbhashe | C40: EC EASTERN CAPE | Z40: Zoo's, Marine and Non-biological Animals | AA40: Social rental housing | AB40: PRV Stations
B41: EC122 Mnquma | C41: EC EASTERN CAPE | AA41: Buildings | AB41: Capital Spares
B42: EC123 Great Kei | C42: EC EASTERN CAPE | AA42: Housing development | AB42: Pump Station
B43: EC124 Amahlathi | C43: EC EASTERN CAPE | AA43: General vehicles | AB43: Reticulation
B44: EC126 Ngqushwa | C44: EC EASTERN CAPE | AA44: Specialised vehicles - Refuse | AB44: Waste Water Treatment Works
B45: EC129 Raymond Mhlaba | C45: EC EASTERN CAPE | AA45: Specialised vehicles - Fire | AB45: Outfall Sewers
B46: DC12 Amathole | C46: EC EASTERN CAPE | AA46: Specialised vehicles - Conservancy | AB46: Toilet Facilities
B47: EC131 Inxuba Yethemba | C47: EC EASTERN CAPE | AA47: Specialised vehicles - Ambulances | AB47: Capital Spares
B48: EC135 Intsika Yethu | C48: EC EASTERN CAPE | AA48: Plant & equipment | AB48: Landfill Sites
B49: EC136 Emalahleni (Ec) | C49: EC EASTERN CAPE | AA49: Computers - hardware/equipment | AB49: Waste Transfer Stations
B50: EC137 Engcobo | C50: EC EASTERN CAPE | AA50: Furniture and other office equipment | AB50: Waste Processing Facilities
B51: EC138 Sakhisizwe | C51: EC EASTERN CAPE | AA51: Abattoirs | AB51: Waste Drop-off Points
B52: EC139 Enoch Mgijima | C52: EC EASTERN CAPE | AA52: Markets | AB52: Waste Separation Facilities
B53: DC13 Chris Hani | C53: EC EASTERN CAPE | AA53: Civic Land and Buildings | AB53: Electricity Generation Facilities
B54: EC141 Elundini | C54: EC EASTERN CAPE | AA54: Other Buildings | AB54: Capital Spares
B55: EC142 Senqu | C55: EC EASTERN CAPE | AA55: Other Land | AB55: Rail Lines
B56: EC145 Walter Sisulu | C56: EC EASTERN CAPE | AA56: Surplus Assets - (Investment or Inventory) | AB56: Rail Structures
B57: DC14 Joe Gqabi | C57: EC EASTERN CAPE | AA57: Computers - software & programming | AB57: Rail Furniture
B58: EC153 Ngquza Hills | C58: EC EASTERN CAPE | AA58: Other | AB58: Drainage Collection
B59: EC154 Port St Johns | C59: EC EASTERN CAPE | AB59: Storm water Conveyance
B60: EC155 Nyandeni | C60: EC EASTERN CAPE | Z60: SA16 - Investments | AB60: Attenuation
B61: EC156 Mhlontlo | C61: EC EASTERN CAPE | Z61: Security | AA61: Interest rate | AB61: MV Substations
B62: EC157 King Sabata Dalindyebo | C62: EC EASTERN CAPE | Z62: Yes | AA62: Fixed | AB62: LV Networks
B63: DC15 O .R. Tambo | C63: EC EASTERN CAPE | Z63: No | AA63: Variable | AB63: Capital Spares
B64: EC441 Matatiele | C64: EC EASTERN CAPE | AB64: Sand Pumps
B65: EC442 Umzimvubu | C65: EC EASTERN CAPE | AB65: Piers
B66: EC443 Winnie Madikizela Mandela | C66: EC EASTERN CAPE | Z66: SA36, SA37 - Capital projects | AB66: Revetments
B67: EC444 Ntabankulu | C67: EC EASTERN CAPE | Z67: Yes | AB67: Promenades
B68: DC44 Alfred Nzo | C68: EC EASTERN CAPE | Z68: No | AB68: Capital Spares
B69: MAN Mangaung | C69: FS FREE STATE | AB69: Data Centres
B70: FS161 Letsemeng | C70: FS FREE STATE | AB70: Core Layers
B71: FS162 Kopanong | C71: FS FREE STATE | AB71: Distribution Layers
B72: FS163 Mohokare | C72: FS FREE STATE | AB72: Capital Spares
B73: DC16 Xhariep | C73: FS FREE STATE | AB73: Halls
B74: FS181 Masilonyana | C74: FS FREE STATE | AB74: Centres
B75: FS182 Tokologo | C75: FS FREE STATE | AB75: Crèches
B76: FS183 Tswelopele | C76: FS FREE STATE | AB76: Clinics/Care Centres
B77: FS184 Matjhabeng | C77: FS FREE STATE | AB77: Fire/Ambulance Stations
B78: FS185 Nala | C78: FS FREE STATE | AB78: Testing Stations
B79: DC18 Lejweleputswa | C79: FS FREE STATE | AB79: Museums
B80: FS191 Setsoto | C80: FS FREE STATE | AB80: Galleries
B81: FS192 Dihlabeng | C81: FS FREE STATE | AB81: Theatres
B82: FS193 Nketoana | C82: FS FREE STATE | AB82: Libraries
B83: FS194 Maluti-a-Phofung | C83: FS FREE STATE | AB83: Cemeteries/Crematoria
B84: FS195 Phumelela | C84: FS FREE STATE | AB84: Police
B85: FS196 Mantsopa | C85: FS FREE STATE | AB85: Purls
B86: DC19 Thabo Mofutsanyana | C86: FS FREE STATE | AB86: Public Open Space
B87: FS201 Moqhaka | C87: FS FREE STATE | AB87: Nature Reserves
B88: FS203 Ngwathe | C88: FS FREE STATE | AB88: Public Ablution Facilities
B89: FS204 Metsimaholo | C89: FS FREE STATE | AB89: Markets
B90: FS205 Mafube | C90: FS FREE STATE | AB90: Stalls
B91: DC20 Fezile Dabi | C91: FS FREE STATE | AB91: Abattoirs
B92: EKU City of Ekurhuleni | C92: GT GAUTENG | AB92: Airports
B93: JHB City Of Johannesburg | C93: GT GAUTENG | AB93: Taxi Ranks/Bus Terminals
B94: TSH City Of Tshwane | C94: GT GAUTENG | AB94: Capital Spares
B95: GT421 Emfuleni | C95: GT GAUTENG | AB95: Indoor Facilities
B96: GT422 Midvaal | C96: GT GAUTENG | AB96: Outdoor Facilities
B97: GT423 Lesedi | C97: GT GAUTENG | AB97: Capital Spares
B98: DC42 Sedibeng | C98: GT GAUTENG | AB98: Monuments
B99: GT481 Mogale City | C99: GT GAUTENG | AB99: Historic Buildings
B100: GT484 Merafong City | C100: GT GAUTENG | AB100: Works of Art
B101: GT485 Rand West City | C101: GT GAUTENG | AB101: Conservation Areas
B102: DC48 West Rand | C102: GT GAUTENG | AB102: Other Heritage
B103: ETH eThekwini | C103: KZN KWAZULU-NATAL | AB103: Improved Property
B104: KZN212 Umdoni | C104: KZN KWAZULU-NATAL | AB104: Unimproved Property
B105: KZN213 Umzumbe | C105: KZN KWAZULU-NATAL | AB105: Municipal Offices
B106: KZN214 uMuziwabantu | C106: KZN KWAZULU-NATAL | AB106: Pay/Enquiry Points
B107: KZN216 Ray Nkonyeni | C107: KZN KWAZULU-NATAL | AB107: Building Plan Offices
B108: DC21 Ugu | C108: KZN KWAZULU-NATAL | AB108: Workshops
B109: KZN221 uMshwathi | C109: KZN KWAZULU-NATAL | AB109: Yards
B110: KZN222 uMngeni | C110: KZN KWAZULU-NATAL | AB110: Stores
B111: KZN223 Mpofana | C111: KZN KWAZULU-NATAL | AB111: Laboratories
B112: KZN224 Impendle | C112: KZN KWAZULU-NATAL | AB112: Training Centres
B113: KZN225 Msunduzi | C113: KZN KWAZULU-NATAL | AB113: Manufacturing Plant
B114: KZN226 Mkhambathini | C114: KZN KWAZULU-NATAL | AB114: Depots
B115: KZN227 Richmond | C115: KZN KWAZULU-NATAL | AB115: Capital Spares
B116: DC22 uMgungundlovu | C116: KZN KWAZULU-NATAL | AB116: Staff Housing
B117: KZN235 Okhahlamba | C117: KZN KWAZULU-NATAL | AB117: Social Housing
B118: KZN237 Inkosi Langalibalele | C118: KZN KWAZULU-NATAL | AB118: Capital Spares
B119: KZN238 Alfred Duma | C119: KZN KWAZULU-NATAL | AB119: Water Rights
B120: DC23 Uthukela | C120: KZN KWAZULU-NATAL | AB120: Effluent Licenses
B121: KZN241 Endumeni | C121: KZN KWAZULU-NATAL | AB121: Solid Waste Licenses
B122: KZN242 Nquthu | C122: KZN KWAZULU-NATAL | AB122: Computer Software and Applications
B123: KZN244 Msinga | C123: KZN KWAZULU-NATAL | AB123: Load Settlement Software Applications
B124: KZN245 Umvoti | C124: KZN KWAZULU-NATAL | AB124: Unspecified
B125: DC24 Umzinyathi | C125: KZN KWAZULU-NATAL
B126: KZN252 Newcastle | C126: KZN KWAZULU-NATAL
B127: KZN253 Emadlangeni | C127: KZN KWAZULU-NATAL
B128: KZN254 Dannhauser | C128: KZN KWAZULU-NATAL
B129: DC25 Amajuba | C129: KZN KWAZULU-NATAL
B130: KZN261 eDumbe | C130: KZN KWAZULU-NATAL
B131: KZN262 uPhongolo | C131: KZN KWAZULU-NATAL
B132: KZN263 Abaqulusi | C132: KZN KWAZULU-NATAL
B133: KZN265 Nongoma | C133: KZN KWAZULU-NATAL
B134: KZN266 Ulundi | C134: KZN KWAZULU-NATAL
B135: DC26 Zululand | C135: KZN KWAZULU-NATAL
B136: KZN271 Umhlabuyalingana | C136: KZN KWAZULU-NATAL
B137: KZN272 Jozini | C137: KZN KWAZULU-NATAL
B138: KZN275 Mtubatuba | C138: KZN KWAZULU-NATAL
B139: KZN276 Hlabisa Big Five | C139: KZN KWAZULU-NATAL
B140: DC27 Umkhanyakude | C140: KZN KWAZULU-NATAL
B141: KZN281 Mfolozi | C141: KZN KWAZULU-NATAL
B142: KZN282 uMhlathuze | C142: KZN KWAZULU-NATAL
B143: KZN284 uMlalazi | C143: KZN KWAZULU-NATAL
B144: KZN285 Mthonjaneni | C144: KZN KWAZULU-NATAL
B145: KZN286 Nkandla | C145: KZN KWAZULU-NATAL
B146: DC28 King Cetshwayo | C146: KZN KWAZULU-NATAL
B147: KZN291 Mandeni | C147: KZN KWAZULU-NATAL
B148: KZN292 KwaDukuza | C148: KZN KWAZULU-NATAL
B149: KZN293 Ndwedwe | C149: KZN KWAZULU-NATAL
B150: KZN294 Maphumulo | C150: KZN KWAZULU-NATAL
B151: DC29 iLembe | C151: KZN KWAZULU-NATAL
B152: KZN433 Greater Kokstad | C152: KZN KWAZULU-NATAL
B153: KZN434 Ubuhlebezwe | C153: KZN KWAZULU-NATAL
B154: KZN435 Umzimkhulu | C154: KZN KWAZULU-NATAL
B155: KZN436 Dr Nkosazana Dlamini Zuma | C155: KZN KWAZULU-NATAL
B156: DC43 Harry Gwala | C156: KZN KWAZULU-NATAL
B157: LIM331 Greater Giyani | C157: LIM LIMPOPO
B158: LIM332 Greater Letaba | C158: LIM LIMPOPO
B159: LIM333 Greater Tzaneen | C159: LIM LIMPOPO
B160: LIM334 Ba-Phalaborwa | C160: LIM LIMPOPO
B161: LIM335 Maruleng | C161: LIM LIMPOPO
B162: DC33 Mopani | C162: LIM LIMPOPO
B163: LIM341 Musina | C163: LIM LIMPOPO
B164: LIM343 Thulamela | C164: LIM LIMPOPO
B165: LIM344 Makhado | C165: LIM LIMPOPO
B166: LIM345 Collins Chabane | C166: LIM LIMPOPO
B167: DC34 Vhembe | C167: LIM LIMPOPO
B168: LIM351 Blouberg | C168: LIM LIMPOPO
B169: LIM353 Molemole | C169: LIM LIMPOPO
B170: LIM354 Polokwane | C170: LIM LIMPOPO
B171: LIM355 Lepelle-Nkumpi | C171: LIM LIMPOPO
B172: DC35 Capricorn | C172: LIM LIMPOPO
B173: LIM361 Thabazimbi | C173: LIM LIMPOPO
B174: LIM362 Lephalale | C174: LIM LIMPOPO
B175: LIM366 Bela Bela | C175: LIM LIMPOPO
B176: LIM367 Mogalakwena | C176: LIM LIMPOPO
B177: LIM368 Modimolle-Mookgopong | C177: LIM LIMPOPO
B178: DC36 Waterberg | C178: LIM LIMPOPO
B179: LIM471 Ephraim Mogale | C179: LIM LIMPOPO
B180: LIM472 Elias Motsoaledi | C180: LIM LIMPOPO
B181: LIM473 Makhuduthamaga | C181: LIM LIMPOPO
B182: LIM476 Tubatse Fetakgomo | C182: LIM LIMPOPO
B183: DC47 Sekhukhune | C183: LIM LIMPOPO
B184: MP301 Albert Luthuli | C184: MP MPUMALANGA
B185: MP302 Msukaligwa | C185: MP MPUMALANGA
B186: MP303 Mkhondo | C186: MP MPUMALANGA
B187: MP304 Pixley Ka Seme (MP) | C187: MP MPUMALANGA
B188: MP305 Lekwa | C188: MP MPUMALANGA
B189: MP306 Dipaleseng | C189: MP MPUMALANGA
B190: MP307 Govan Mbeki | C190: MP MPUMALANGA
B191: DC30 Gert Sibande | C191: MP MPUMALANGA
B192: MP311 Victor Khanye | C192: MP MPUMALANGA
B193: MP312 Emalahleni (Mp) | C193: MP MPUMALANGA
B194: MP313 Steve Tshwete | C194: MP MPUMALANGA
B195: MP314 Emakhazeni | C195: MP MPUMALANGA
B196: MP315 Thembisile Hani | C196: MP MPUMALANGA
B197: MP316 Dr J.S. Moroka | C197: MP MPUMALANGA
B198: DC31 Nkangala | C198: MP MPUMALANGA
B199: MP321 Thaba Chweu | C199: MP MPUMALANGA
B200: MP324 Nkomazi | C200: MP MPUMALANGA
... 87 more rows

Sheet Org structure
A1: Organisational Structure Votes | C1: Organisational Structure Sub-Votes | E1: Display Sub-Votes
A2: =B2&" - "&C2 -> Vote 1 - City Manager | B2: Vote 1 | C2: City Manager
A3: =B13&" - "& C13 -> Vote 2 - City Finance | B3: 1.1 | C3: Internal Audit and Compliance | D3: =CONCATENATE(B3, " - ", C3) -> 1,1 - Internal Audit and Compliance | E3: 1.1 - Internal Audit and Compliance
A4: =B24&" - "&C24 -> Vote 3 - Corporate Services | B4: 1.2 | C4: Office of the City Manager | D4: 1,2 - Office of the City Manager | E4: 1.2 - Office of the City Manager
A5: =B35&" - "&C35 -> Vote 4 - Community Services and Social Equity | B5: 1.3 | C5: Political Support | D5: 1,3 - Political Support | E5: 1.3 - Political Support
A6: =B46&" - "&C46 -> Vote 5 - Infrastructure Services | B6: 1.4 | C6: Strategic Planning | D6: 1,4 - Strategic Planning | E6: 1.4 - Strategic Planning
A7: =B57&" - "&C57 -> Vote 6 - Sustainable Development and City Enterprises | B7: 1.5 | C7: [Name of sub-vote] | D7: 1.5 - [Name of sub-vote]
A8: =B68&" - "&C68 -> Vote 7 - Electricity | B8: 1.6 | C8: [Name of sub-vote] | D8: 1.6 - [Name of sub-vote]
A9: =B79&" - "&C79 -> Vote 8 - [NAME OF VOTE 8] | B9: 1.7 | C9: [Name of sub-vote] | D9: 1.7 - [Name of sub-vote]
A10: =B90&" - "&C90 -> Vote 9 - [NAME OF VOTE 9] | B10: 1.8 | C10: [Name of sub-vote] | D10: 1.8 - [Name of sub-vote]
A11: =B101&" - "&C101 -> Vote 10 - [NAME OF VOTE 10] | B11: 1.9 | C11: [Name of sub-vote] | D11: 1.9 - [Name of sub-vote]
A12: =B112&" - "&C112 -> Vote 11 - [NAME OF VOTE 11] | B12: 1.10 | C12: [Name of sub-vote] | D12: 1.10 - [Name of sub-vote]
A13: =B123&" - "&C123 -> Vote 12 - [NAME OF VOTE 12] | B13: Vote 2 | C13: City Finance
A14: =B134&" - "&C134 -> Vote 13 - [NAME OF VOTE 13] | B14: 2.1 | C14: Asset Management | D14: =CONCATENATE(B14, " - ", C14) -> 2,1 - Asset Management | E14: 2.1 - Asset Management
A15: =B145&" - "&C145 -> Vote 14 - [NAME OF VOTE 14] | B15: 2.2 | C15: Budget and Treasury Management | D15: 2,2 - Budget and Treasury Management | E15: 2.2 - Budget and Treasury Management
A16: =B156&" - "&C156 -> Vote 15 - [NAME OF VOTE 15] | B16: 2.3 | C16: Expenditure Management | D16: 2,3 - Expenditure Management | E16: 2.3 - Expenditure Management
B17: 2.4 | C17: Revenue Management | D17: 2,4 - Revenue Management | E17: 2.4 - Revenue Management
B18: 2.5 | C18: Supply Chain Management | D18: 2,5 - Supply Chain Management | E18: 2.5 - Supply Chain Management
B19: 2.6 | C19: [Name of sub-vote] | D19: 2.6 - [Name of sub-vote]
B20: 2.7 | C20: [Name of sub-vote] | D20: 2.7 - [Name of sub-vote]
B21: 2.8 | C21: [Name of sub-vote] | D21: 2.8 - [Name of sub-vote]
B22: 2.9 | C22: [Name of sub-vote] | D22: 2.9 - [Name of sub-vote]
B23: 2.10 | C23: [Name of sub-vote] | D23: 2.10 - [Name of sub-vote]
B24: Vote 3 | C24: Corporate Services
B25: 3.1 | C25: Human Resources Management | D25: =CONCATENATE(B25, " - ", C25) -> 3,1 - Human Resources Management | E25: Human Resources Management
B26: 3.2 | C26: Information Technology | D26: 3,2 - Information Technology | E26: Information Technology
B27: 3.3 | C27: Legal Services | D27: 3,3 - Legal Services | E27: Legal Services
B28: 3.4 | C28: Secretariat and Auxiliary Services | D28: 3,4 - Secretariat and Auxiliary Services | E28: Secretariat and Auxiliary Services
B29: 3.5 | C29: General Manager: Corporate Service | D29: 3,5 - General Manager: Corporate Service | E29: General Manager: Corporate Service
B30: 3.6 | C30: [Name of sub-vote] | D30: 3.6 - [Name of sub-vote]
B31: 3.7 | C31: [Name of sub-vote] | D31: 3.7 - [Name of sub-vote]
B32: 3.8 | C32: [Name of sub-vote] | D32: 3.8 - [Name of sub-vote]
B33: 3.9 | C33: [Name of sub-vote] | D33: 3.9 - [Name of sub-vote]
B34: 3.10 | C34: [Name of sub-vote] | D34: 3.10 - [Name of sub-vote]
B35: Vote 4 | C35: Community Services and Social Equity
B36: 4.1 | C36: Area Based Management | D36: =CONCATENATE(B36, " - ", C36) -> 4,1 - Area Based Management | E36: 4.1 - Area Based Management
B37: 4.2 | C37: Public Safety, Emergency Services and Enforcement | D37: 4,2 - Public Safety, Emergency Services and Enforcement | E37: 4.2 - Public Safety, Emergency Services and Enforcement
B38: 4.3 | C38: Recreation and Facilities | D38: 4,3 - Recreation and Facilities | E38: 4.3 - Recreation and Facilities
B39: 4.4 | C39: Waste Management | D39: 4,4 - Waste Management | E39: 4.4 - Waste Management
B40: 4.5 | C40: [Name of sub-vote] | D40: 4.5 - [Name of sub-vote]
B41: 4.6 | C41: [Name of sub-vote] | D41: 4.6 - [Name of sub-vote]
B42: 4.7 | C42: [Name of sub-vote] | D42: 4.7 - [Name of sub-vote]
B43: 4.8 | C43: [Name of sub-vote] | D43: 4.8 - [Name of sub-vote]
B44: 4.9 | C44: [Name of sub-vote] | D44: 4.9 - [Name of sub-vote]
B45: 4.10 | C45: [Name of sub-vote] | D45: 4.10 - [Name of sub-vote]
B46: Vote 5 | C46: Infrastructure Services
B47: 5.1 | C47: Project Management Office | D47: =CONCATENATE(B47, " - ", C47) -> 5,1 - Project Management Office | E47: 5.1 - Project Management Office
B48: 5.2 | C48: Roads and Transportation | D48: 5,2 - Roads and Transportation | E48: 5.2 - Roads and Transportation
B49: 5.3 | C49: Water and Sanitation | D49: 5,3 - Water and Sanitation | E49: 5.3 - Water and Sanitation
B50: 5.4 | C50: General Manager: Infrastructure | D50: 5,4 - General Manager: Infrastructure | E50: 5.4 - General Manager: Infrastructure
B51: 5.5 | C51: [Name of sub-vote] | D51: 5.5 - [Name of sub-vote]
B52: 5.6 | C52: [Name of sub-vote] | D52: 5.6 - [Name of sub-vote]
B53: 5.7 | C53: [Name of sub-vote] | D53: 5.7 - [Name of sub-vote]
B54: 5.8 | C54: [Name of sub-vote] | D54: 5.8 - [Name of sub-vote]
B55: 5.9 | C55: [Name of sub-vote] | D55: 5.9 - [Name of sub-vote]
B56: 5.10 | C56: [Name of sub-vote] | D56: 5.10 - [Name of sub-vote]
B57: Vote 6 | C57: Sustainable Development and City Enterprises
B58: 6.1 | C58: City Entities | D58: =CONCATENATE(B58, " - ", C58) -> 6,1 - City Entities | E58: 6.1 - City Entities
B59: 6.2 | C59: Development Services | D59: 6,2 - Development Services | E59: 6.2 - Development Services
B60: 6.3 | C60: Human Settlement Development | D60: 6,3 - Human Settlement Development | E60: 6.3 - Human Settlement Development
B61: 6.4 | C61: Town Planning | D61: 6,4 - Town Planning | E61: 6.4 - Town Planning
B62: 6.5 | C62: General Manager: Sustainable Development and City Enterprises | D62: 6,5 - General Manager: Sustainable Development and City Enterprises | E62: 6.5 - General Manager: Sustainable Development and City Enterprises
B63: 6.6 | C63: [Name of sub-vote] | D63: 6.6 - [Name of sub-vote]
B64: 6.7 | C64: [Name of sub-vote] | D64: 6.7 - [Name of sub-vote]
B65: 6.8 | C65: [Name of sub-vote] | D65: 6.8 - [Name of sub-vote]
B66: 6.9 | C66: [Name of sub-vote] | D66: 6.9 - [Name of sub-vote]
B67: 6.10 | C67: [Name of sub-vote] | D67: 6.10 - [Name of sub-vote]
B68: Vote 7 | C68: Electricity
B69: 7.1 | C69: Electricity planning | D69: =CONCATENATE(B69, " - ", C69) -> 7,1 - Electricity planning | E69: 7.1 Electricity planning
B70: 7.2 | C70: Methods and Standards | D70: 7,2 - Methods and Standards | E70: 7.2 Methods and Standards
B71: 7.3 | C71: Operations and Maintenance | D71: 7,3 - Operations and Maintenance | E71: 7.3 Operations and Maintenance
B72: 7.4 | C72: Revenue Management | D72: 7,4 - Revenue Management | E72: 7.4 Revenue Management
B73: 7.5 | C73: General Manager Electricity | D73: 7,5 - General Manager Electricity | E73: 7.5 General Manager Electricity
B74: 7.6 | C74: [Name of sub-vote] | D74: 7.6 - [Name of sub-vote]
B75: 7.7 | C75: [Name of sub-vote] | D75: 7.7 - [Name of sub-vote]
B76: 7.8 | C76: [Name of sub-vote] | D76: 7.8 - [Name of sub-vote]
B77: 7.9 | C77: [Name of sub-vote] | D77: 7.9 - [Name of sub-vote]
B78: 7.10 | C78: [Name of sub-vote] | D78: 7.10 - [Name of sub-vote]
B79: Vote 8 | C79: [NAME OF VOTE 8]
B80: 8.1 | C80: [Name of sub-vote] | D80: =CONCATENATE(B80, " - ", C80) -> 8.1 - [Name of sub-vote] | E80: 8.1 - [Name of sub-vote]
B81: 8.2 | C81: [Name of sub-vote] | D81: 8.2 - [Name of sub-vote]
B82: 8.3 | C82: [Name of sub-vote] | D82: 8.3 - [Name of sub-vote]
B83: 8.4 | C83: [Name of sub-vote] | D83: 8.4 - [Name of sub-vote]
B84: 8.5 | C84: [Name of sub-vote] | D84: 8.5 - [Name of sub-vote]
B85: 8.6 | C85: [Name of sub-vote] | D85: 8.6 - [Name of sub-vote]
B86: 8.7 | C86: [Name of sub-vote] | D86: 8.7 - [Name of sub-vote]
B87: 8.8 | C87: [Name of sub-vote] | D87: 8.8 - [Name of sub-vote]
B88: 8.9 | C88: [Name of sub-vote] | D88: 8.9 - [Name of sub-vote]
B89: 8.10 | C89: [Name of sub-vote] | D89: 8.10 - [Name of sub-vote]
B90: Vote 9 | C90: [NAME OF VOTE 9]
B91: 9.1 | C91: [Name of sub-vote] | D91: =CONCATENATE(B91, " - ", C91) -> 9.1 - [Name of sub-vote] | E91: 9.1 - [Name of sub-vote]
B92: 9.2 | C92: [Name of sub-vote] | D92: 9.2 - [Name of sub-vote]
B93: 9.3 | C93: [Name of sub-vote] | D93: 9.3 - [Name of sub-vote]
B94: 9.4 | C94: [Name of sub-vote] | D94: 9.4 - [Name of sub-vote]
B95: 9.5 | C95: [Name of sub-vote] | D95: 9.5 - [Name of sub-vote]
B96: 9.6 | C96: [Name of sub-vote] | D96: 9.6 - [Name of sub-vote]
B97: 9.7 | C97: [Name of sub-vote] | D97: 9.7 - [Name of sub-vote]
B98: 9.8 | C98: [Name of sub-vote] | D98: 9.8 - [Name of sub-vote]
B99: 9.9 | C99: [Name of sub-vote] | D99: 9.9 - [Name of sub-vote]
B100: 9.10 | C100: [Name of sub-vote] | D100: 9.10 - [Name of sub-vote]
B101: Vote 10 | C101: [NAME OF VOTE 10]
B102: 10.1 | C102: [Name of sub-vote] | D102: =CONCATENATE(B102, " - ", C102) -> 10.1 - [Name of sub-vote] | E102: 10.1 - [Name of sub-vote]
B103: 10.2 | C103: [Name of sub-vote] | D103: 10.2 - [Name of sub-vote]
B104: 10.3 | C104: [Name of sub-vote] | D104: 10.3 - [Name of sub-vote]
B105: 10.4 | C105: [Name of sub-vote] | D105: 10.4 - [Name of sub-vote]
B106: 10.5 | C106: [Name of sub-vote] | D106: 10.5 - [Name of sub-vote]
B107: 10.6 | C107: [Name of sub-vote] | D107: 10.6 - [Name of sub-vote]
B108: 10.7 | C108: [Name of sub-vote] | D108: 10.7 - [Name of sub-vote]
B109: 10.8 | C109: [Name of sub-vote] | D109: 10.8 - [Name of sub-vote]
B110: 10.9 | C110: [Name of sub-vote] | D110: 10.9 - [Name of sub-vote]
B111: 10.10 | C111: [Name of sub-vote] | D111: 10.10 - [Name of sub-vote]
B112: Vote 11 | C112: [NAME OF VOTE 11]
B113: 11.1 | C113: [Name of sub-vote] | D113: =CONCATENATE(B113, " - ", C113) -> 11.1 - [Name of sub-vote] | E113: 11.1 - [Name of sub-vote]
B114: 11.2 | C114: [Name of sub-vote] | D114: 11.2 - [Name of sub-vote]
B115: 11.3 | C115: [Name of sub-vote] | D115: 11.3 - [Name of sub-vote]
B116: 11.4 | C116: [Name of sub-vote] | D116: 11.4 - [Name of sub-vote]
B117: 11.5 | C117: [Name of sub-vote] | D117: 11.5 - [Name of sub-vote]
B118: 11.6 | C118: [Name of sub-vote] | D118: 11.6 - [Name of sub-vote]
B119: 11.7 | C119: [Name of sub-vote] | D119: 11.7 - [Name of sub-vote]
B120: 11.8 | C120: [Name of sub-vote] | D120: 11.8 - [Name of sub-vote]
B121: 11.9 | C121: [Name of sub-vote] | D121: 11.9 - [Name of sub-vote]
B122: 11.10 | C122: [Name of sub-vote] | D122: 11.10 - [Name of sub-vote]
B123: Vote 12 | C123: [NAME OF VOTE 12]
B124: 12.1 | C124: [Name of sub-vote] | D124: =CONCATENATE(B124, " - ", C124) -> 12.1 - [Name of sub-vote] | E124: 12.1 - [Name of sub-vote]
B125: 12.2 | C125: [Name of sub-vote] | D125: 12.2 - [Name of sub-vote]
B126: 12.3 | C126: [Name of sub-vote] | D126: 12.3 - [Name of sub-vote]
B127: 12.4 | C127: [Name of sub-vote] | D127: 12.4 - [Name of sub-vote]
B128: 12.5 | C128: [Name of sub-vote] | D128: 12.5 - [Name of sub-vote]
B129: 12.6 | C129: [Name of sub-vote] | D129: 12.6 - [Name of sub-vote]
B130: 12.7 | C130: [Name of sub-vote] | D130: 12.7 - [Name of sub-vote]
B131: 12.8 | C131: [Name of sub-vote] | D131: 12.8 - [Name of sub-vote]
B132: 12.9 | C132: [Name of sub-vote] | D132: 12.9 - [Name of sub-vote]
B133: 12.10 | C133: [Name of sub-vote] | D133: 12.10 - [Name of sub-vote]
B134: Vote 13 | C134: [NAME OF VOTE 13]
B135: 13.1 | C135: [Name of sub-vote] | D135: =CONCATENATE(B135, " - ", C135) -> 13.1 - [Name of sub-vote] | E135: 13.1 - [Name of sub-vote]
B136: 13.2 | C136: [Name of sub-vote] | D136: 13.2 - [Name of sub-vote]
B137: 13.3 | C137: [Name of sub-vote] | D137: 13.3 - [Name of sub-vote]
B138: 13.4 | C138: [Name of sub-vote] | D138: 13.4 - [Name of sub-vote]
B139: 13.5 | C139: [Name of sub-vote] | D139: 13.5 - [Name of sub-vote]
B140: 13.6 | C140: [Name of sub-vote] | D140: 13.6 - [Name of sub-vote]
B141: 13.7 | C141: [Name of sub-vote] | D141: 13.7 - [Name of sub-vote]
B142: 13.8 | C142: [Name of sub-vote] | D142: 13.8 - [Name of sub-vote]
B143: 13.9 | C143: [Name of sub-vote] | D143: 13.9 - [Name of sub-vote]
B144: 13.10 | C144: [Name of sub-vote] | D144: 13.10 - [Name of sub-vote]
B145: Vote 14 | C145: [NAME OF VOTE 14]
B146: 14.1 | C146: [Name of sub-vote] | D146: =CONCATENATE(B146, " - ", C146) -> 14.1 - [Name of sub-vote] | E146: 14.1 - [Name of sub-vote]
B147: 14.2 | C147: [Name of sub-vote] | D147: 14.2 - [Name of sub-vote]
B148: 14.3 | C148: [Name of sub-vote] | D148: 14.3 - [Name of sub-vote]
B149: 14.4 | C149: [Name of sub-vote] | D149: 14.4 - [Name of sub-vote]
B150: 14.5 | C150: [Name of sub-vote] | D150: 14.5 - [Name of sub-vote]
B151: 14.6 | C151: [Name of sub-vote] | D151: 14.6 - [Name of sub-vote]
B152: 14.7 | C152: [Name of sub-vote] | D152: 14.7 - [Name of sub-vote]
B153: 14.8 | C153: [Name of sub-vote] | D153: 14.8 - [Name of sub-vote]
B154: 14.9 | C154: [Name of sub-vote] | D154: 14.9 - [Name of sub-vote]
B155: 14.10 | C155: [Name of sub-vote] | D155: 14.10 - [Name of sub-vote]
B156: Vote 15 | C156: [NAME OF VOTE 15]
B157: 15.1 | C157: [Name of sub-vote] | D157: =CONCATENATE(B157, " - ", C157) -> 15.1 - [Name of sub-vote] | E157: 15.1 - [Name of sub-vote]
B158: 15.2 | C158: [Name of sub-vote] | D158: 15.2 - [Name of sub-vote]
B159: 15.3 | C159: [Name of sub-vote] | D159: 15.3 - [Name of sub-vote]
B160: 15.4 | C160: [Name of sub-vote] | D160: 15.4 - [Name of sub-vote]
B161: 15.5 | C161: [Name of sub-vote] | D161: 15.5 - [Name of sub-vote]
B162: 15.6 | C162: [Name of sub-vote] | D162: 15.6 - [Name of sub-vote]
B163: 15.7 | C163: [Name of sub-vote] | D163: 15.7 - [Name of sub-vote]
B164: 15.8 | C164: [Name of sub-vote] | D164: 15.8 - [Name of sub-vote]
B165: 15.9 | C165: [Name of sub-vote] | D165: 15.9 - [Name of sub-vote]
B166: 15.10 | C166: [Name of sub-vote] | D166: 15.10 - [Name of sub-vote]

Sheet Contacts
A1: =muni&" - "&" Contact Information" -> 0 - Contact Information
A3: A. GENERAL INFORMATION
A4: Municipality | B4: =muni -> 0 | C4: =IF(B4="Choose name from List","Set name on 'Instructions' sheet", "") -> 
A6: Grade | C6: 1 Grade in terms of the Remuneration of Public Office Bearers Act.
A8: Province | B8: =IF(B4>" ",VLOOKUP(B4,'Lookup and lists'!B29:C307,2, FALSE)," ") -> 
A10: Web Address
A12: e-mail Address
A14: B. CONTACT INFORMATION
A15: Postal address:
A16: P.O. Box
A17: City / Town
A18: Postal Code
A20: Street address
A21: Building
A22: Street No. & Name
A23: City / Town
A24: Postal Code
A26: General Contacts
A27: Telephone number
A28: Fax number
A30: C. POLITICAL LEADERSHIP
A31: Speaker: | C31: Secretary/PA to the Speaker:
A32: ID Number | C32: ID Number
A33: Title | C33: Title
A34: Name | C34: Name
A35: Telephone number | C35: Telephone number
A36: Cell number | C36: Cell number
A37: Fax number | C37: Fax number
A38: E-mail address | C38: E-mail address
A40: Mayor/Executive Mayor: | C40: Secretary/PA to the Mayor/Executive Mayor:
A41: ID Number | C41: ID Number
A42: Title | C42: Title
A43: Name | C43: Name
A44: Telephone number | C44: Telephone number
A45: Cell number | C45: Cell number
A46: Fax number | C46: Fax number
A47: E-mail address | C47: E-mail address
A49: Deputy Mayor/Executive Mayor: | C49: Secretary/PA to the Deputy Mayor/Executive Mayor:
A50: ID Number | C50: ID Number
A51: Title | C51: Title
A52: Name | C52: Name
A53: Telephone number | C53: Telephone number
A54: Cell number | C54: Cell number
A55: Fax number | C55: Fax number
A56: E-mail address | C56: E-mail address
A58: D. MANAGEMENT LEADERSHIP
A59: Municipal Manager: | C59: Secretary/PA to the Municipal Manager:
A60: ID Number | C60: ID Number
A61: Title | C61: Title
A62: Name | C62: Name
A63: Telephone number | C63: Telephone number
A64: Cell number | C64: Cell number
A65: Fax number | C65: Fax number
A66: E-mail address | C66: E-mail address
A68: Chief Financial Officer | C68: Secretary/PA to the Chief Financial Officer
A69: ID Number | C69: ID Number
A70: Title | C70: Title
A71: Name | C71: Name
A72: Telephone number | C72: Telephone number
A73: Cell number | C73: Cell number
A74: Fax number | C74: Fax number
A75: E-mail address | C75: E-mail address
A77: Official responsible for submitting financial information | C77: Official responsible for submitting financial information
A78: ID Number | C78: ID Number
A79: Title | C79: Title
A80: Name | C80: Name
A81: Telephone number | C81: Telephone number
A82: Cell number | C82: Cell number
A83: Fax number | C83: Fax number
A84: E-mail address | C84: E-mail address
A85: Official responsible for submitting financial information | C85: Official responsible for submitting financial information
A86: ID Number | C86: ID Number
A87: Title | C87: Title
A88: Name | C88: Name
A89: Telephone number | C89: Telephone number
A90: Cell number | C90: Cell number
A91: Fax number | C91: Fax number
A92: E-mail address | C92: E-mail address
A93: Official responsible for submitting financial information | C93: Official responsible for submitting financial information
A94: ID Number | C94: ID Number
A95: Title | C95: Title
A96: Name | C96: Name
A97: Telephone number | C97: Telephone number
A98: Cell number | C98: Cell number
A99: Fax number | C99: Fax number
A100: E-mail address | C100: E-mail address
A101: Official responsible for submitting financial information | C101: Official responsible for submitting financial information
A102: ID Number | C102: ID Number
A103: Title | C103: Title
A104: Name | C104: Name
A105: Telephone number | C105: Telephone number
A106: Cell number | C106: Cell number
A107: Fax number | C107: Fax number
A108: E-mail address | C108: E-mail address
A109: Official responsible for submitting financial information | C109: Official responsible for submitting financial information
A110: ID Number | C110: ID Number
A111: Title | C111: Title
A112: Name | C112: Name
A113: Telephone number | C113: Telephone number
A114: Cell number | C114: Cell number
A115: Fax number | C115: Fax number
A116: E-mail address | C116: E-mail address
A117: Official responsible for submitting financial information | C117: Official responsible for submitting financial information
A118: ID Number | C118: ID Number
A119: Title | C119: Title
A120: Name | C120: Name
A121: Telephone number | C121: Telephone number
A122: Cell number | C122: Cell number
A123: Fax number | C123: Fax number
A124: E-mail address | C124: E-mail address
A125: Official responsible for submitting financial information | C125: Official responsible for submitting financial information
A126: ID Number | C126: ID Number
A127: Title | C127: Title
A128: Name | C128: Name
A129: Telephone number | C129: Telephone number
A130: Cell number | C130: Cell number
A131: Fax number | C131: Fax number
A132: E-mail address | C132: E-mail address
A133: Official responsible for submitting financial information
A134: ID Number
A135: Title
A136: Name
A137: Telephone number
A138: Cell number
A139: Fax number
A140: E-mail address

Sheet A1-Sum
A1: =muni&" - "&Approve1 -> 0 - Table A1 Budget Summary
A2: =desc -> Description | B2: =head1b -> 2020/21 | C2: =head1A -> 2021/22 | D2: =Head1 -> 2022/23 | E2: =Head2 -> Current Year 2023/24 | I2: =Head3 -> 2024/25 Medium Term Revenue & Expenditure Framework
A3: R thousands | B3: =Head5 -> Audited Outcome | C3: =Head5 -> Audited Outcome | D3: =Head5 -> Audited Outcome | E3: =Head6 -> Original Budget | F3: =Head7 -> Adjusted Budget | G3: =Head8 -> Full Year Forecast | H3: =Head5b -> Pre-audit outcome | I3: =Head9 -> Budget Year 2024/25 | J3: =Head10 -> Budget Year +1 2025/26 | K3: =Head11 -> Budget Year +2 2026/27
A4: Financial Performance
A5: Property rates | B5: ='A4-FinPerf RE'!C21 -> 1232330305 | C5: ='A4-FinPerf RE'!D21 -> 1211348604 | D5: ='A4-FinPerf RE'!E21 -> 1370173436 | E5: ='A4-FinPerf RE'!F21 -> 1526985082 | F5: ='A4-FinPerf RE'!G21 -> 1526985082 | G5: ='A4-FinPerf RE'!H21 -> 1526985082 | H5: ='A4-FinPerf RE'!I21 -> 0 | I5: ='A4-FinPerf RE'!J21 -> 1649352521 | J5: ='A4-FinPerf RE'!K21 -> 1725222737 | K5: ='A4-FinPerf RE'!L21 -> 1802857760
A6: Service charges | B6: =SUM('A4-FinPerf RE'!C6:C9) -> 3206751663 | C6: =SUM('A4-FinPerf RE'!D6:D9) -> 3619669817 | D6: =SUM('A4-FinPerf RE'!E6:E9) -> 3870497198 | E6: =SUM('A4-FinPerf RE'!F6:F9) -> 5135631234 | F6: =SUM('A4-FinPerf RE'!G6:G9) -> 4916167895 | G6: =SUM('A4-FinPerf RE'!H6:H9) -> 4916167895 | H6: =SUM('A4-FinPerf RE'!I6:I9) -> 0 | I6: =SUM('A4-FinPerf RE'!J6:J9) -> 5683700785 | J6: =SUM('A4-FinPerf RE'!K6:K9) -> 6564824803 | K6: =SUM('A4-FinPerf RE'!L6:L9) -> 7601945745
A7: Investment revenue | B7: ='A4-FinPerf RE'!C14 -> 8455919 | C7: ='A4-FinPerf RE'!D14 -> 10535026 | D7: ='A4-FinPerf RE'!E14 -> 0 | E7: ='A4-FinPerf RE'!F14 -> 18052025.28 | F7: ='A4-FinPerf RE'!G14 -> 18052025.28 | G7: ='A4-FinPerf RE'!H14 -> 18052025.28 | H7: ='A4-FinPerf RE'!I14 -> 0 | I7: ='A4-FinPerf RE'!J14 -> 290244092.2 | J7: ='A4-FinPerf RE'!K14 -> 303595320.4 | K7: ='A4-FinPerf RE'!L14 -> 317257109.9
A8: Transfer and subsidies - Operational | B8: ='A4-FinPerf RE'!C25 -> 757425720 | C8: ='A4-FinPerf RE'!D25 -> 681737625 | D8: ='A4-FinPerf RE'!E25 -> 801751325 | E8: ='A4-FinPerf RE'!F25 -> 838135150 | F8: ='A4-FinPerf RE'!G25 -> 846015625.9 | G8: ='A4-FinPerf RE'!H25 -> 846015625.9 | H8: ='A4-FinPerf RE'!I25 -> 0 | I8: ='A4-FinPerf RE'!J25 -> 956879939.3 | J8: ='A4-FinPerf RE'!K25 -> 1000217863 | K8: ='A4-FinPerf RE'!L25 -> 1067329110
A9: Other own revenue | B9: ='A4-FinPerf RE'!C32-SUM(B5:B8) -> 335392036 | C9: ='A4-FinPerf RE'!D32-SUM(C5:C8) -> 330421548 | D9: ='A4-FinPerf RE'!E32-SUM(D5:D8) -> 445034479.8 | E9: ='A4-FinPerf RE'!F32-SUM(E5:E8) -> 601922633.9 | F9: ='A4-FinPerf RE'!G32-SUM(F5:F8) -> 601922633.9 | G9: ='A4-FinPerf RE'!H32-SUM(G5:G8) -> 601922633.9 | H9: ='A4-FinPerf RE'!I32-SUM(H5:H8) -> 0 | I9: ='A4-FinPerf RE'!J32-SUM(I5:I8) -> 394262676.3 | J9: ='A4-FinPerf RE'!K32-SUM(J5:J8) -> 412398759.5 | K9: ='A4-FinPerf RE'!L32-SUM(K5:K8) -> 430822230.5
A10: ='A4-FinPerf RE'!A32 -> Total Revenue (excluding capital transfers and contributions) | B10: =SUM(B5:B9) -> 5540355643 | C10: =SUM(C5:C9) -> 5853712620 | D10: 6487456439 | E10: 8120726125 | F10: 7909143262 | G10: 7909143262 | H10: 0 | I10: 8974440013 | J10: 1.000625948e+10 | K10: 1.122021196e+10
A11: Employee costs | B11: ='A4-FinPerf RE'!C34 -> 1418425769 | C11: ='A4-FinPerf RE'!D34 -> 1494486747 | D11: ='A4-FinPerf RE'!E34 -> 1563267990 | E11: ='A4-FinPerf RE'!F34 -> 1781210508 | F11: ='A4-FinPerf RE'!G34 -> 1704864655 | G11: ='A4-FinPerf RE'!H34 -> 1704864655 | H11: ='A4-FinPerf RE'!I34 -> 0 | I11: ='A4-FinPerf RE'!J34 -> 1847015838 | J11: ='A4-FinPerf RE'!K34 -> 1932272500 | K11: ='A4-FinPerf RE'!L34 -> 2020335650
A12: Remuneration of councillors | B12: ='A4-FinPerf RE'!C35 -> 51641246 | C12: ='A4-FinPerf RE'!D35 -> 49529446 | D12: ='A4-FinPerf RE'!E35 -> 51817506.85 | E12: ='A4-FinPerf RE'!F35 -> 62699934.99 | F12: ='A4-FinPerf RE'!G35 -> 62699934.99 | G12: ='A4-FinPerf RE'!H35 -> 62699934.99 | H12: ='A4-FinPerf RE'!I35 -> 0 | I12: ='A4-FinPerf RE'!J35 -> 66461931.11 | J12: ='A4-FinPerf RE'!K35 -> 69519179.94 | K12: ='A4-FinPerf RE'!L35 -> 72647543.04
A13: Depreciation and amortisation | B13: ='A4-FinPerf RE'!C39 -> 372532037 | C13: ='A4-FinPerf RE'!D39 -> 366625069 | D13: ='A4-FinPerf RE'!E39 -> 337452386 | E13: ='A4-FinPerf RE'!F39 -> 460781797 | F13: ='A4-FinPerf RE'!G39 -> 461615991.2 | G13: ='A4-FinPerf RE'!H39 -> 461615991.2 | H13: ='A4-FinPerf RE'!I39 -> 0 | I13: ='A4-FinPerf RE'!J39 -> 362178747.5 | J13: ='A4-FinPerf RE'!K39 -> 349782306.6 | K13: ='A4-FinPerf RE'!L39 -> 345694135.9
A14: Interest | B14: ='A4-FinPerf RE'!C40 -> 35856007 | C14: ='A4-FinPerf RE'!D40 -> 143221895 | D14: ='A4-FinPerf RE'!E40 -> 143221895 | E14: ='A4-FinPerf RE'!F40 -> 40400879.72 | F14: ='A4-FinPerf RE'!G40 -> 40400879.72 | G14: ='A4-FinPerf RE'!H40 -> 40400879.72 | H14: ='A4-FinPerf RE'!I40 -> 0 | I14: ='A4-FinPerf RE'!J40 -> 42824930.71 | J14: ='A4-FinPerf RE'!K40 -> 44794877.52 | K14: ='A4-FinPerf RE'!L40 -> 46810647.01
A15: Inventory consumed and bulk purchases | B15: ='A4-FinPerf RE'!C36+'A4-FinPerf RE'!C37 -> 3464889381 | C15: ='A4-FinPerf RE'!D36+'A4-FinPerf RE'!D37 -> 3034514957 | D15: ='A4-FinPerf RE'!E36+'A4-FinPerf RE'!E37 -> 3089737287 | E15: ='A4-FinPerf RE'!F36+'A4-FinPerf RE'!F37 -> 3484629036 | F15: ='A4-FinPerf RE'!G36+'A4-FinPerf RE'!G37 -> 3592156262 | G15: ='A4-FinPerf RE'!H36+'A4-FinPerf RE'!H37 -> 3592156262 | H15: ='A4-FinPerf RE'!I36+'A4-FinPerf RE'!I37 -> 0 | I15: ='A4-FinPerf RE'!J36+'A4-FinPerf RE'!J37 -> 4138528114 | J15: ='A4-FinPerf RE'!K36+'A4-FinPerf RE'!K37 -> 4672422283 | K15: ='A4-FinPerf RE'!L36+'A4-FinPerf RE'!L37 -> 5307235362
A16: Transfers and subsidies | B16: ='A4-FinPerf RE'!C42 -> 16870304 | C16: ='A4-FinPerf RE'!D42 -> 32412674 | D16: ='A4-FinPerf RE'!E42 -> 29562255 | E16: ='A4-FinPerf RE'!F42 -> 51023537 | F16: ='A4-FinPerf RE'!G42 -> 44584470 | G16: ='A4-FinPerf RE'!H42 -> 44584470 | H16: ='A4-FinPerf RE'!I42 -> 0 | I16: ='A4-FinPerf RE'!J42 -> 69670130.46 | J16: ='A4-FinPerf RE'!K42 -> 72874955.54 | K16: ='A4-FinPerf RE'!L42 -> 76154327.64
A17: Other expenditure | B17: ='A4-FinPerf RE'!C47-SUM(B11:B16) -> 1371114676 | C17: ='A4-FinPerf RE'!D47-SUM(C11:C16) -> 1957306065 | D17: ='A4-FinPerf RE'!E47-SUM(D11:D16) -> 1071036090 | E17: ='A4-FinPerf RE'!F47-SUM(E11:E16) -> 1809593170 | F17: ='A4-FinPerf RE'!G47-SUM(F11:F16) -> 1657981107 | G17: ='A4-FinPerf RE'!H47-SUM(G11:G16) -> 1657981107 | H17: ='A4-FinPerf RE'!I47-SUM(H11:H16) -> 0 | I17: ='A4-FinPerf RE'!J47-SUM(I11:I16) -> 1876700328 | J17: ='A4-FinPerf RE'!K47-SUM(J11:J16) -> 2022413759 | K17: ='A4-FinPerf RE'!L47-SUM(K11:K16) -> 2143982780
A18: ='A4-FinPerf RE'!A47 -> Total Expenditure | B18: =SUM(B11:B17) -> 6731329420 | C18: =SUM(C11:C17) -> 7078096853 | D18: 6286095410 | E18: 7690338863 | F18: 7564303300 | G18: 7564303300 | H18: 0 | I18: 8403380019 | J18: 9164079861 | K18: 1.001286045e+10
A19: ='A4-FinPerf RE'!A48 -> Surplus/(Deficit) | B19: =B10-B18 -> -1190973777 | C19: =C10-C18 -> -1224384233 | D19: 201361029 | E19: 430387262.5 | F19: 344839962.4 | G19: 344839962.4 | H19: 0 | I19: 571059993.9 | J19: 842179620.6 | K19: 1207351510
A20: ='A4-FinPerf RE'!A49 -> Transfers and subsidies - capital (monetary allocations) | B20: ='A4-FinPerf RE'!C49 -> 498603415 | C20: ='A4-FinPerf RE'!D49 -> 374230230 | D20: ='A4-FinPerf RE'!E49 -> 324319270 | E20: ='A4-FinPerf RE'!F49 -> 448700055 | F20: ='A4-FinPerf RE'!G49 -> 536156204 | G20: ='A4-FinPerf RE'!H49 -> 536156204 | H20: ='A4-FinPerf RE'!I49 -> 0 | I20: ='A4-FinPerf RE'!J49 -> 446438101.9 | J20: ='A4-FinPerf RE'!K49 -> 389974937.8 | K20: ='A4-FinPerf RE'!L49 -> 473992600
A21: ='A4-FinPerf RE'!A50 -> Transfers and subsidies - capital (in-kind) | B21: ='A4-FinPerf RE'!C50 -> 0 | C21: ='A4-FinPerf RE'!D50 -> 0 | D21: ='A4-FinPerf RE'!E50 -> 0 | E21: ='A4-FinPerf RE'!F50 -> 0 | F21: ='A4-FinPerf RE'!G50 -> 0 | G21: ='A4-FinPerf RE'!H50 -> 0 | H21: ='A4-FinPerf RE'!I50 -> 0 | I21: ='A4-FinPerf RE'!J50 -> 0 | J21: ='A4-FinPerf RE'!K50 -> 0 | K21: ='A4-FinPerf RE'!L50 -> 0
A22: ='A4-FinPerf RE'!A51 -> Surplus/(Deficit) after capital transfers & contributions | B22: =B19+SUM(B20:B21) -> -692370362 | C22: =C19+SUM(C20:C21) -> -850154003 | D22: 525680299 | E22: 879087317.5 | F22: 880996166.4 | G22: 880996166.4 | H22: 0 | I22: 1017498096 | J22: 1232154558 | K22: 1681344110
A23: ='A4-FinPerf RE'!A57 -> Share of Surplus/Deficit attributable to Associate | B23: ='A4-FinPerf RE'!C57 -> 0 | C23: ='A4-FinPerf RE'!D57 -> 0 | D23: ='A4-FinPerf RE'!E57 -> 0 | E23: ='A4-FinPerf RE'!F57 -> 0 | F23: ='A4-FinPerf RE'!G57 -> 0 | G23: ='A4-FinPerf RE'!H57 -> 0 | H23: ='A4-FinPerf RE'!I57 -> 0 | I23: ='A4-FinPerf RE'!J57 -> 0 | J23: ='A4-FinPerf RE'!K57 -> 0 | K23: ='A4-FinPerf RE'!L57 -> 0
A24: ='A4-FinPerf RE'!A59 -> Surplus/(Deficit) for the year | B24: =B22+B23 -> -692370362 | C24: =C22+C23 -> -850154003 | D24: 525680299 | E24: 879087317.5 | F24: 880996166.4 | G24: 880996166.4 | H24: 0 | I24: 1017498096 | J24: 1232154558 | K24: 1681344110
A25: Capital expenditure & funds sources
A26: Capital expenditure | B26: ='A5-Capex'!C63 -> 685931270.1 | C26: ='A5-Capex'!D63 -> 521826748.7 | D26: ='A5-Capex'!E63 -> 547789828.1 | E26: ='A5-Capex'!F63 -> 768760054 | F26: ='A5-Capex'!G63 -> 802543953.5 | G26: ='A5-Capex'!H63 -> 802543953.5 | H26: ='A5-Capex'!I63 -> 0 | I26: ='A5-Capex'!J63 -> 824010890.4 | J26: ='A5-Capex'!K63 -> 510806937.8 | K26: ='A5-Capex'!L63 -> 594857880
A27: Transfers recognised - capital | B27: ='A5-Capex'!C70 -> 563995119.7 | C27: ='A5-Capex'!D70 -> 312721147.3 | D27: ='A5-Capex'!E70 -> 363329782.9 | E27: ='A5-Capex'!F70 -> 448700054.9 | F27: ='A5-Capex'!G70 -> 536156203.4 | G27: ='A5-Capex'!H70 -> 536156203.4 | H27: ='A5-Capex'!I70 -> 0 | I27: ='A5-Capex'!J70 -> 456974890.5 | J27: ='A5-Capex'!K70 -> 387974937.8 | K27: ='A5-Capex'!L70 -> 383992600
A29: ='A5-Capex'!A72 -> Borrowing | B29: ='A5-Capex'!C72 -> 0 | C29: ='A5-Capex'!D72 -> 49400541.77 | D29: ='A5-Capex'!E72 -> 0 | E29: ='A5-Capex'!F72 -> 200000000 | F29: ='A5-Capex'!G72 -> 116274950 | G29: ='A5-Capex'!H72 -> 116274950 | H29: ='A5-Capex'!I72 -> 0 | I29: ='A5-Capex'!J72 -> 234315856 | J29: ='A5-Capex'!K72 -> 0 | K29: ='A5-Capex'!L72 -> 0
A30: ='A5-Capex'!A73 -> Internally generated funds | B30: ='A5-Capex'!C73 -> 121936150.4 | C30: ='A5-Capex'!D73 -> 159705059.6 | D30: ='A5-Capex'!E73 -> 184460045.2 | E30: ='A5-Capex'!F73 -> 120059999 | F30: ='A5-Capex'!G73 -> 150112800 | G30: ='A5-Capex'!H73 -> 150112800 | H30: ='A5-Capex'!I73 -> 0 | I30: ='A5-Capex'!J73 -> 132720143.9 | J30: ='A5-Capex'!K73 -> 120000000 | K30: ='A5-Capex'!L73 -> 120000000
A31: Total sources of capital funds | B31: =+B27+B29+B30 -> 685931270.1 | C31: =+C27+C29+C30 -> 521826748.7 | D31: 547789828.1 | E31: 768760054 | F31: 802543953.5 | G31: 802543953.5 | H31: 0 | I31: 824010890.4 | J31: 507974937.8 | K31: 503992600
A32: Financial position
A33: ='A6-FinPos'!A13 -> Total current assets | B33: ='A6-FinPos'!C13 -> 2950014598 | C33: ='A6-FinPos'!D13 -> 2542368079 | D33: ='A6-FinPos'!E13 -> 3974179670 | E33: ='A6-FinPos'!F13 -> 2928028761 | F33: ='A6-FinPos'!G13 -> 4776388271 | G33: ='A6-FinPos'!H13 -> 4776388271 | H33: ='A6-FinPos'!I13 -> 0 | I33: ='A6-FinPos'!J13 -> 4639302421 | J33: ='A6-FinPos'!K13 -> 5294499208 | K33: ='A6-FinPos'!L13 -> 5468823560
A34: ='A6-FinPos'!A25 -> Total non current assets | B34: ='A6-FinPos'!C25 -> 8057941843 | C34: ='A6-FinPos'!D25 -> 8208641879 | D34: ='A6-FinPos'!E25 -> 8372236244 | E34: ='A6-FinPos'!F25 -> 9298982591 | F34: ='A6-FinPos'!G25 -> 9224230989 | G34: ='A6-FinPos'!H25 -> 9224230989 | H34: ='A6-FinPos'!I25 -> 0 | I34: ='A6-FinPos'!J25 -> 9303037847 | J34: ='A6-FinPos'!K25 -> 9264658523 | K34: ='A6-FinPos'!L25 -> 9283369489
A35: ='A6-FinPos'!A37 -> Total current liabilities | B35: ='A6-FinPos'!C37 -> 2021634793 | C35: ='A6-FinPos'!D37 -> 2520762905 | D35: ='A6-FinPos'!E37 -> 3138566386 | E35: ='A6-FinPos'!F37 -> 1647578959 | F35: ='A6-FinPos'!G37 -> 2323297695 | G35: ='A6-FinPos'!H37 -> 2323297695 | H35: ='A6-FinPos'!I37 -> 0 | I35: ='A6-FinPos'!J37 -> 2462695557 | J35: ='A6-FinPos'!K37 -> 2573516857 | K35: ='A6-FinPos'!L37 -> 2689407385
A36: ='A6-FinPos'!A43 -> Total non current liabilities | B36: ='A6-FinPos'!C43 -> 814494100 | C36: ='A6-FinPos'!D43 -> 775015320 | D36: ='A6-FinPos'!E43 -> 658473829 | E36: ='A6-FinPos'!F43 -> 1427688437 | F36: ='A6-FinPos'!G43 -> 1252053910 | G36: ='A6-FinPos'!H43 -> 1176477655 | H36: ='A6-FinPos'!I43 -> 0 | I36: ='A6-FinPos'!J43 -> 1477188531 | J36: ='A6-FinPos'!K43 -> 1423719945 | K36: ='A6-FinPos'!L43 -> 1367846719
A37: Community wealth/Equity | B37: ='A6-FinPos'!C50 -> 8171827548 | C37: ='A6-FinPos'!D50 -> 7455231733 | D37: ='A6-FinPos'!E50 -> 8549375699 | E37: ='A6-FinPos'!F50 -> 9724419691 | F37: ='A6-FinPos'!G50 -> 10166852986 | G37: ='A6-FinPos'!H50 -> 10166852986 | H37: ='A6-FinPos'!I50 -> 0 | I37: ='A6-FinPos'!J50 -> 1.000245618e+10 | J37: ='A6-FinPos'!K50 -> 1.056192093e+10 | K37: ='A6-FinPos'!L50 -> 1.069493895e+10
A38: Cash flows
A39: Net cash from (used) operating | B39: ='A7-CFlow'!C17 -> 588460200 | C39: ='A7-CFlow'!D17 -> 535138615 | D39: ='A7-CFlow'!E17 -> 790677633 | E39: ='A7-CFlow'!F17 -> 946378162.4 | F39: ='A7-CFlow'!G17 -> 1025376868 | G39: ='A7-CFlow'!H17 -> 946378162.4 | H39: ='A7-CFlow'!I17 -> 0 | I39: ='A7-CFlow'!J17 -> 901992619.2 | J39: ='A7-CFlow'!K17 -> 1077419597 | K39: ='A7-CFlow'!L17 -> 584655979.9
A40: Net cash from (used) investing | B40: ='A7-CFlow'!C26 -> -632698178 | C40: ='A7-CFlow'!D26 -> -524931844 | D40: ='A7-CFlow'!E26 -> -489265563 | E40: ='A7-CFlow'!F26 -> -768501055 | F40: ='A7-CFlow'!G26 -> -821289572 | G40: ='A7-CFlow'!H26 -> -768501055 | H40: ='A7-CFlow'!I26 -> 0 | I40: ='A7-CFlow'!J26 -> -824010890.4 | J40: ='A7-CFlow'!K26 -> -507974937.8 | K40: ='A7-CFlow'!L26 -> -503992600
A41: Net cash from (used) financing | B41: ='A7-CFlow'!C35 -> -113418258 | C41: ='A7-CFlow'!D35 -> -81573483 | D41: ='A7-CFlow'!E35 -> -79162901 | E41: ='A7-CFlow'!F35 -> 177000000 | F41: ='A7-CFlow'!G35 -> 93274950 | G41: ='A7-CFlow'!H35 -> 177000000 | H41: ='A7-CFlow'!I35 -> 0 | I41: ='A7-CFlow'!J35 -> 144315856 | J41: ='A7-CFlow'!K35 -> -90000000 | K41: ='A7-CFlow'!L35 -> -90000000
A42: =LEFT('A7-CFlow'!A39,37) -> Cash/cash equivalents at the year end | B42: ='A7-CFlow'!C39 -> 361320731 | C42: ='A7-CFlow'!D39 -> 288152840 | D42: ='A7-CFlow'!E39 -> 222249169 | E42: ='A7-CFlow'!F39 -> 644029947.4 | F42: ='A7-CFlow'!G39 -> 808764256 | G42: ='A7-CFlow'!H39 -> 766879964.7 | H42: ='A7-CFlow'!I39 -> 0 | I42: ='A7-CFlow'!J39 -> 733699594.8 | J42: ='A7-CFlow'!K39 -> 1213144254 | K42: ='A7-CFlow'!L39 -> 1203807634
A44: Cash backing/surplus reconciliation
A45: ='A8-ResRecon'!A4 -> Cash and investments available | B45: ='A8-ResRecon'!C8 -> 359519552 | C45: ='A8-ResRecon'!D8 -> 289152840 | D45: ='A8-ResRecon'!E8 -> 511402009 | E45: ='A8-ResRecon'!F8 -> 603973549 | F45: ='A8-ResRecon'!G8 -> 800674797 | G45: ='A8-ResRecon'!H8 -> 800674797 | H45: ='A8-ResRecon'!I8 -> 0 | I45: ='A8-ResRecon'!J8 -> 733699594.8 | J45: ='A8-ResRecon'!K8 -> 1213144254 | K45: ='A8-ResRecon'!L8 -> 1203807634
A46: ='A8-ResRecon'!A10 -> Application of cash and investments | B46: ='A8-ResRecon'!C18 -> -614494000 | C46: ='A8-ResRecon'!D18 -> -518393000 | D46: ='A8-ResRecon'!E18 -> -870648000 | E46: ='A8-ResRecon'!F18 -> -634862018 | F46: ='A8-ResRecon'!G18 -> -1189635648 | G46: ='A8-ResRecon'!H18 -> -1227125648 | H46: ='A8-ResRecon'!I18 -> 0 | I46: ='A8-ResRecon'!J18 -> -456606206.9 | J46: ='A8-ResRecon'!K18 -> -500855831.2 | K46: ='A8-ResRecon'!L18 -> -1155463377
A47: Balance - surplus (shortfall) | B47: =B45-B46 -> 974013552 | C47: =C45-C46 -> 807545840 | D47: 1382050009 | E47: 1238835567 | F47: 1990310445 | G47: 2027800445 | H47: 0 | I47: 1190305802 | J47: 1714000085 | K47: 2359271011
A48: Asset management
A49: Asset register summary (WDV) | B49: ='A9-Asset'!C180 -> 0 | C49: ='A9-Asset'!D180 -> 0 | D49: ='A9-Asset'!E180 -> 0 | E49: ='A9-Asset'!F180 -> 8609522537 | F49: ='A9-Asset'!G180 -> 7218154558 | G49: ='A9-Asset'!H180 -> 7218154558 | I49: ='A9-Asset'!I180 -> 7632814749 | J49: ='A9-Asset'!J180 -> 7983924227 | K49: ='A9-Asset'!K180 -> 8343200817
A50: ='A9-Asset'!A183 -> Depreciation | B50: ='A9-Asset'!C183 -> 372532037 | C50: ='A9-Asset'!D183 -> 366625069 | D50: ='A9-Asset'!E183 -> 350683902 | E50: ='A9-Asset'!F183 -> 461615974 | F50: ='A9-Asset'!G183 -> 462450136.6 | G50: ='A9-Asset'!H183 -> 0 | I50: ='A9-Asset'!I183 -> 362178747.5 | J50: ='A9-Asset'!J183 -> 349782306.6 | K50: ='A9-Asset'!K183 -> 345694135.9
A51: Renewal and Upgrading of Existing Assets | B51: ='A9-Asset'!C40+'A9-Asset'!C75 -> 277988495.2 | C51: ='A9-Asset'!D40+'A9-Asset'!D75 -> 313421420.6 | D51: ='A9-Asset'!E40+'A9-Asset'!E75 -> 382987919.7 | E51: ='A9-Asset'!F40+'A9-Asset'!F75 -> 260820500 | F51: ='A9-Asset'!G40+'A9-Asset'!G75 -> 378316881.5 | G51: ='A9-Asset'!H40+'A9-Asset'!H75 -> 0 | I51: ='A9-Asset'!I40+'A9-Asset'!I75 -> 251669253.4 | J51: ='A9-Asset'!J40+'A9-Asset'!J75 -> 255177180.6 | K51: ='A9-Asset'!K40+'A9-Asset'!K75 -> 269052948.6
A52: Repairs and Maintenance | B52: ='A9-Asset'!C184 -> 111339565.8 | C52: ='A9-Asset'!D184 -> 238603531.1 | D52: ='A9-Asset'!E184 -> 251686677 | E52: ='A9-Asset'!F184 -> 573286476.2 | F52: ='A9-Asset'!G184 -> 485350358.3 | G52: ='A9-Asset'!H184 -> 0 | I52: ='A9-Asset'!I184 -> 521496383.6 | J52: ='A9-Asset'!J184 -> 565582342.4 | K52: ='A9-Asset'!K184 -> 611283153.9
A54: Free services
A55: Cost of Free Basic Services provided | B55: ='A10-SerDel'!C60 -> 0 | C55: ='A10-SerDel'!D60 -> 0 | D55: ='A10-SerDel'!E60 -> 0 | E55: ='A10-SerDel'!F60 -> 0 | F55: ='A10-SerDel'!G60 -> 0 | G55: ='A10-SerDel'!H60 -> 0 | I55: ='A10-SerDel'!I60 -> 0 | J55: ='A10-SerDel'!J60 -> 0 | K55: ='A10-SerDel'!K60 -> 0
A56: Revenue cost of free services provided | B56: ='A10-SerDel'!C79 -> 65740309 | C56: ='A10-SerDel'!D79 -> 100000 | D56: ='A10-SerDel'!E79 -> 100000 | E56: ='A10-SerDel'!F79 -> 368780147.7 | F56: ='A10-SerDel'!G79 -> 364109132.3 | G56: ='A10-SerDel'!H79 -> 364109132.3 | I56: ='A10-SerDel'!I79 -> 375711787.7 | J56: ='A10-SerDel'!J79 -> 392989929.9 | K56: ='A10-SerDel'!K79 -> 411498866.7
A57: Households below minimum service level
A58: ='A10-SerDel'!A5 -> Water: | B58: ='A10-SerDel'!C14 -> 6396 | C58: ='A10-SerDel'!D14 -> 6396 | D58: ='A10-SerDel'!E14 -> 6396 | E58: ='A10-SerDel'!F14 -> 6654 | F58: ='A10-SerDel'!G14 -> 6654 | G58: ='A10-SerDel'!H14 -> 6654 | I58: ='A10-SerDel'!I14 -> 7053.24 | J58: ='A10-SerDel'!J14 -> 7370.6358 | K58: ='A10-SerDel'!K14 -> 7702.314411
A59: ='A10-SerDel'!A16 -> Sanitation/sewerage: | B59: ='A10-SerDel'!C26 -> 71527 | C59: ='A10-SerDel'!D26 -> 71527 | D59: ='A10-SerDel'!E26 -> 71527 | E59: ='A10-SerDel'!F26 -> 74417 | F59: ='A10-SerDel'!G26 -> 74417 | G59: ='A10-SerDel'!H26 -> 74417 | I59: ='A10-SerDel'!I26 -> 78882.02 | J59: ='A10-SerDel'!J26 -> 82431.7109 | K59: ='A10-SerDel'!K26 -> 86141.13789
A60: ='A10-SerDel'!A28 -> Energy: | B60: ='A10-SerDel'!C35 -> 8000 | C60: ='A10-SerDel'!D35 -> 8000 | D60: ='A10-SerDel'!E35 -> 8000 | E60: ='A10-SerDel'!F35 -> 8320 | F60: ='A10-SerDel'!G35 -> 8320 | G60: ='A10-SerDel'!H35 -> 8320 | I60: ='A10-SerDel'!I35 -> 8819.2 | J60: ='A10-SerDel'!J35 -> 9216.064 | K60: ='A10-SerDel'!K35 -> 9630.78688
A61: ='A10-SerDel'!A37 -> Refuse: | B61: ='A10-SerDel'!C45 -> 40770 | C61: ='A10-SerDel'!D45 -> 40770 | D61: ='A10-SerDel'!E45 -> 40770 | E61: ='A10-SerDel'!F45 -> 42401 | F61: ='A10-SerDel'!G45 -> 42401 | G61: ='A10-SerDel'!H45 -> 42401 | I61: ='A10-SerDel'!I45 -> 44945.06 | J61: ='A10-SerDel'!J45 -> 46967.5877 | K61: ='A10-SerDel'!K45 -> 49081.12915

Sheet A2-FinPerf SC
A1: =muni&" - "&Approve3 -> 0 - Table A2 Budgeted Financial Performance (revenue and expenditure by functional classification)
A2: ="Functional Classification "&desc -> Functional Classification Description | B2: =head27 -> Ref | C2: =head1b -> 2020/21 | D2: =head1A -> 2021/22 | E2: =Head1 -> 2022/23 | F2: =Head2 -> Current Year 2023/24 | I2: =Head3 -> 2024/25 Medium Term Revenue & Expenditure Framework
A3: R thousand | B3: 1 | C3: =Head5 -> Audited Outcome | D3: =Head5 -> Audited Outcome | E3: =Head5 -> Audited Outcome | F3: =Head6 -> Original Budget | G3: =Head7 -> Adjusted Budget | H3: =Head8 -> Full Year Forecast | I3: =Head9 -> Budget Year 2024/25 | J3: =Head10 -> Budget Year +1 2025/26 | K3: =Head11 -> Budget Year +2 2026/27
A4: Revenue - Functional
A5: Governance and administration | C5: =SUM(C6:C8) -> 1685956768 | D5: =SUM(D6:D8) -> 1695855981 | E5: 1955757202 | F5: 2375779979 | G5: 2531073523 | H5: 2531073523 | I5: 2726370567 | J5: 2869418545 | K5: 3020152396
A6: Executive and council | C6: =A2A!C6 -> 3935419.51 | D6: =A2A!D6 -> 3530376.55 | E6: =A2A!E6 -> 5213268.17 | F6: =A2A!F6 -> 4979000 | G6: =A2A!G6 -> 4701000 | H6: =A2A!H6 -> 4701000 | I6: =A2A!I6 -> 2092000 | J6: =A2A!J6 -> 0 | K6: =A2A!K6 -> 0
A7: Finance and administration | C7: =A2A!C9 -> 1682018698 | D7: =A2A!D9 -> 1692323110 | E7: =A2A!E9 -> 1950543934 | F7: =A2A!F9 -> 2370800979 | G7: =A2A!G9 -> 2526372523 | H7: =A2A!H9 -> 2526372523 | I7: =A2A!I9 -> 2724278567 | J7: =A2A!J9 -> 2869418545 | K7: =A2A!K9 -> 3020152396
A8: Internal audit | C8: =A2A!C23 -> 2649.84 | D8: =A2A!D23 -> 2494.96 | E8: =A2A!E23 -> 0 | F8: =A2A!F23 -> 0 | G8: =A2A!G23 -> 0 | H8: =A2A!H23 -> 0 | I8: =A2A!I23 -> 0 | J8: =A2A!J23 -> 0 | K8: =A2A!K23 -> 0
A9: Community and public safety | C9: =SUM(C10:C14) -> 187149779.2 | D9: =SUM(D10:D14) -> 134306482.7 | E9: 142629089.9 | F9: 338866615 | G9: 326589903.4 | H9: 326589903.4 | I9: 492281190 | J9: 365565889.6 | K9: 394247975.7
A10: Community and social services | C10: =A2A!C26 -> 24279484.79 | D10: =A2A!D26 -> 45792786.73 | E10: =A2A!E26 -> 61498683.1 | F10: =A2A!F26 -> 276753844.2 | G10: =A2A!G26 -> 79864674.56 | H10: =A2A!H26 -> 79864674.56 | I10: =A2A!I26 -> 269103423.5 | J10: =A2A!J26 -> 295271162.6 | K10: =A2A!K26 -> 321254929.5
A11: Sport and recreation | C11: =A2A!C48 -> 523912.59 | D11: =A2A!D48 -> 344638.91 | E11: =A2A!E48 -> 588753.1 | F11: =A2A!F48 -> 21223330.41 | G11: =A2A!G48 -> 40912790.41 | H11: =A2A!H48 -> 40912790.41 | I11: =A2A!I48 -> 23526793.18 | J11: =A2A!J48 -> 24609025.67 | K11: =A2A!K48 -> 25716431.83
A12: Public safety | C12: =A2A!C54 -> 19851967.14 | D12: =A2A!D54 -> 18186248.15 | E12: =A2A!E54 -> 24640408.62 | F12: =A2A!F54 -> 8568779.072 | G12: =A2A!G54 -> 8568779.072 | H12: =A2A!H54 -> 8568779.072 | I12: =A2A!I54 -> 9172795.913 | J12: =A2A!J54 -> 9594744.525 | K12: =A2A!K54 -> 9952636.281
A13: Housing | C13: =A2A!C63 -> 142494414.7 | D13: =A2A!D63 -> 69982808.91 | E13: =A2A!E63 -> 55901245.1 | F13: =A2A!F63 -> 32320661.28 | G13: =A2A!G63 -> 197243659.3 | H13: =A2A!H63 -> 197243659.3 | I13: =A2A!I63 -> 190478177.4 | J13: =A2A!J63 -> 36090956.84 | K13: =A2A!K63 -> 37323978.11
A14: Health | C14: =A2A!C66 -> 0 | D14: =A2A!D66 -> 0 | E14: =A2A!E66 -> 0 | F14: =A2A!F66 -> 0 | G14: =A2A!G66 -> 0 | H14: =A2A!H66 -> 0 | I14: =A2A!I66 -> 0 | J14: =A2A!J66 -> 0 | K14: =A2A!K66 -> 0
A15: Economic and environmental services | C15: =SUM(C16:C18) -> 271667406.3 | D15: =SUM(D16:D18) -> 207365686.9 | E15: 200051132.5 | F15: 55600947.45 | G15: 197768889.9 | H15: 145168889.9 | I15: 86691641.99 | J15: 146932457.5 | K15: 217639738.7
A16: Planning and development | C16: =A2A!C75 -> 37507188.98 | D16: =A2A!D75 -> 55781154.04 | E16: =A2A!E75 -> 152414516.5 | F16: =A2A!F75 -> 47684582.16 | G16: =A2A!G75 -> 137252524.6 | H16: =A2A!H75 -> 137252524.6 | I16: =A2A!I75 -> 31697207.13 | J16: =A2A!J75 -> 41708278.66 | K16: =A2A!K75 -> 62237937.73
A17: Road transport | C17: =A2A!C86 -> 234057621.1 | D17: =A2A!D86 -> 151376861.6 | E17: =A2A!E86 -> 47241673.42 | F17: =A2A!F86 -> 0 | G17: =A2A!G86 -> 52600000 | H17: =A2A!H86 -> 0 | I17: =A2A!I86 -> 50000000 | J17: =A2A!J86 -> 100000000 | K17: =A2A!K86 -> 150000000
A18: Environmental protection | C18: =A2A!C91 -> 102596.2 | D18: =A2A!D91 -> 207671.31 | E18: =A2A!E91 -> 394942.58 | F18: =A2A!F91 -> 7916365.286 | G18: =A2A!G91 -> 7916365.286 | H18: =A2A!H91 -> 7916365.286 | I18: =A2A!I91 -> 4994434.861 | J18: =A2A!J91 -> 5224178.865 | K18: =A2A!K91 -> 5401800.947
A19: Trading services | C19: =SUM(C20:C23) -> 3845123161 | D19: =SUM(D20:D23) -> 4158681263 | E19: 4474064465 | F19: 5698134020 | G19: 5275471312 | H19: 5275471312 | I19: 5992662073 | J19: =SUM(J20:J23) -> 6885792743 | K19: 7927858184
A20: Energy sources | C20: =A2A!C99 -> 2212438066 | D20: =A2A!D99 -> 2569652754 | E20: =A2A!E99 -> 2724539631 | F20: =A2A!F99 -> 4028755846 | G20: =A2A!G99 -> 3712970414 | H20: =A2A!H99 -> 3712970414 | I20: =A2A!I99 -> 4342532610 | J20: =A2A!J99 -> 5158584011 | K20: =A2A!K99 -> 6135107301
A21: Water management | C21: =A2A!C103 -> 1189218733 | D21: =A2A!D103 -> 1156790470 | E21: =A2A!E103 -> 1312922507 | F21: =A2A!F103 -> 1300958056 | G21: =A2A!G103 -> 1127612549 | H21: =A2A!H103 -> 1127612549 | I21: =A2A!I103 -> 1219122118 | J21: =A2A!J103 -> 1276982515 | K21: =A2A!K103 -> 1336072661
A22: Waste water management | C22: =A2A!C107 -> 288947747.1 | D22: =A2A!D107 -> 281762407.3 | E22: =A2A!E107 -> 286349072.1 | F22: =A2A!F107 -> 209646015.9 | G22: =A2A!G107 -> 284013369.6 | H22: =A2A!H107 -> 284013369.6 | I22: =A2A!I107 -> 262027256.3 | J22: =A2A!J107 -> 273472666.1 | K22: =A2A!K107 -> 271970306.1
A23: Waste management | C23: =A2A!C112 -> 154518614.7 | D23: =A2A!D112 -> 150475631.1 | E23: =A2A!E112 -> 150253254.9 | F23: =A2A!F112 -> 158774103.1 | G23: =A2A!G112 -> 150874978.7 | H23: =A2A!H112 -> 150874978.7 | I23: =A2A!I112 -> 168980088.6 | J23: =A2A!J112 -> 176753551.4 | K23: =A2A!K112 -> 184707915.1
A24: Other | B24: 4 | C24: =A2A!C117 -> 49061946.32 | D24: =A2A!D117 -> 26227823.48 | E24: =A2A!E117 -> 39273819.17 | F24: =A2A!F117 -> 101044618.5 | G24: =A2A!G117 -> 114395836.9 | H24: =A2A!H117 -> 114395836.9 | I24: =A2A!I117 -> 122872643.2 | J24: =A2A!J117 -> 128524784.8 | K24: =A2A!K117 -> 134306261
A25: ="Total "&A4 -> Total Revenue - Functional | B25: 2 | C25: =C5+C9+C15+C19+C24 -> 6038959060 | D25: =D5+D9+D15+D19+D24 -> 6222437237 | E25: =E5+E9+E15+E19+E24 -> 6811775709 | F25: 8569426180 | G25: 8445299465 | H25: 8392699465 | I25: =I5+I9+I15+I19+I24 -> 9420878115 | J25: 1.039623442e+10 | K25: 1.169420456e+10
A27: Expenditure - Functional
A28: Governance and administration | C28: =SUM(C29:C31) -> 1520817442 | D28: =SUM(D29:D31) -> 1191049487 | E28: 1085322317 | F28: 1480552759 | G28: 1740730565 | H28: 1740730565 | I28: 1806312848 | J28: 1918238668 | K28: 2018094370
A29: Executive and council | C29: =A2A!C128 -> 117397847.6 | D29: =A2A!D128 -> 117808679.1 | E29: =A2A!E128 -> 115687006.4 | F29: =A2A!F128 -> 258320031.1 | G29: =A2A!G128 -> 150269914 | H29: =A2A!H128 -> 150269914 | I29: =A2A!I128 -> 146068847.7 | J29: =A2A!J128 -> 156936094 | K29: =A2A!K128 -> 164919202.5
A30: Finance and administration | C30: =A2A!C131 -> 1386457371 | D30: =A2A!D131 -> 1053698122 | E30: =A2A!E131 -> 950234661.9 | F30: =A2A!F131 -> 1193777693 | G30: =A2A!G131 -> 1560312497 | H30: =A2A!H131 -> 1560312497 | I30: =A2A!I131 -> 1631984506 | J30: =A2A!J131 -> 1723377149 | K30: =A2A!K131 -> 1814079845
A31: Internal audit | C31: =A2A!C145 -> 16962222.89 | D31: =A2A!D145 -> 19542685.37 | E31: =A2A!E145 -> 19400648.37 | F31: =A2A!F145 -> 28455035.46 | G31: =A2A!G145 -> 30148153.48 | H31: =A2A!H145 -> 30148153.48 | I31: =A2A!I145 -> 28259494.71 | J31: =A2A!J145 -> 37925424.87 | K31: =A2A!K145 -> 39095322.2
A32: Community and public safety | C32: =SUM(C33:C37) -> 551498800.6 | D32: =SUM(D33:D37) -> 551440158.6 | E32: 624011514.2 | F32: 537195647.4 | G32: 640809790.9 | H32: 640809790.9 | I32: 632706534 | J32: 632310401.2 | K32: 657541117.3
A33: Community and social services | C33: =A2A!C148 -> 149092712.5 | D33: =A2A!D148 -> 141393704.7 | E33: =A2A!E148 -> 147223223.9 | F33: =A2A!F148 -> 135893001.6 | G33: =A2A!G148 -> 149462212.8 | H33: =A2A!H148 -> 149462212.8 | I33: =A2A!I148 -> 165506681.9 | J33: =A2A!J148 -> 172164497.9 | K33: =A2A!K148 -> 177981466.8
A34: Sport and recreation | C34: =A2A!C170 -> 121244913.6 | D34: =A2A!D170 -> 115888281.4 | E34: =A2A!E170 -> 140506827.5 | F34: =A2A!F170 -> 130424689 | G34: =A2A!G170 -> 134183742.6 | H34: =A2A!H170 -> 134183742.6 | I34: =A2A!I170 -> 121147022.5 | J34: =A2A!J170 -> 128589963 | K34: =A2A!K170 -> 133766187.1
A35: Public safety | C35: =A2A!C176 -> 196809242.2 | D35: =A2A!D176 -> 216193878.2 | E35: =A2A!E176 -> 232287900.7 | F35: =A2A!F176 -> 222097496 | G35: =A2A!G176 -> 259339347.9 | H35: =A2A!H176 -> 259339347.9 | I35: =A2A!I176 -> 244183097.4 | J35: =A2A!J176 -> 256707802.9 | K35: =A2A!K176 -> 268069289.3
A36: Housing | C36: =A2A!C185 -> 74912129 | D36: =A2A!D185 -> 68394082.77 | E36: =A2A!E185 -> 94434776.88 | F36: =A2A!F185 -> 35263319.41 | G36: =A2A!G185 -> 87641516.19 | H36: =A2A!H185 -> 87641516.19 | I36: =A2A!I185 -> 92136152.82 | J36: =A2A!J185 -> 64610980.37 | K36: =A2A!K185 -> 67024420.89
A37: Health | C37: =A2A!C188 -> 9439803.22 | D37: =A2A!D188 -> 9570211.44 | E37: =A2A!E188 -> 9558785.25 | F37: =A2A!F188 -> 13517141.35 | G37: =A2A!G188 -> 10182971.38 | H37: =A2A!H188 -> 10182971.38 | I37: =A2A!I188 -> 9733579.461 | J37: =A2A!J188 -> 10237157.12 | K37: =A2A!K188 -> 10699753.19
A38: Economic and environmental services | C38: =SUM(C39:C41) -> 313304803.3 | D38: =SUM(D39:D41) -> 393095329 | E38: 378225313.5 | F38: 513621030.7 | G38: 490950688.1 | H38: 490950688.1 | I38: 548144136 | J38: 585896540.6 | K38: 609978685.6
A39: Planning and development | C39: =A2A!C197 -> 69071779.38 | D39: =A2A!D197 -> 87743205.43 | E39: =A2A!E197 -> 93765700.13 | F39: =A2A!F197 -> 84862819.17 | G39: =A2A!G197 -> 104058486.3 | H39: =A2A!H197 -> 104058486.3 | I39: =A2A!I197 -> 101498346.9 | J39: =A2A!J197 -> 109022023.6 | K39: =A2A!K197 -> 114226412.1
A40: Road transport | C40: =A2A!C208 -> 223381413.3 | D40: =A2A!D208 -> 282415490.9 | E40: =A2A!E208 -> 259798778.1 | F40: =A2A!F208 -> 402475671.2 | G40: =A2A!G208 -> 361406895.8 | H40: =A2A!H208 -> 361406895.8 | I40: =A2A!I208 -> 417450807 | J40: =A2A!J208 -> 446315143 | K40: =A2A!K208 -> 463553030.3
A41: Environmental protection | C41: =A2A!C213 -> 20851610.65 | D41: =A2A!D213 -> 22936632.7 | E41: =A2A!E213 -> 24660835.2 | F41: =A2A!F213 -> 26282540.4 | G41: =A2A!G213 -> 25485305.98 | H41: =A2A!H213 -> 25485305.98 | I41: =A2A!I213 -> 29194982.01 | J41: =A2A!J213 -> 30559374.05 | K41: =A2A!K213 -> 32199243.23
A42: Trading services | C42: =SUM(C43:C46) -> 3532257238 | D42: =SUM(D43:D46) -> 4733193787 | E42: 4125348277 | F42: =SUM(F43:F46) -> 5109852271 | G42: 4628143774 | H42: 4628143774 | I42: 5321070592 | J42: 5923256981 | K42: =SUM(K43:K46) -> 6616803284
A43: Energy sources | C43: =A2A!C221 -> 1916751313 | D43: =A2A!D221 -> 2982827962 | E43: =A2A!E221 -> 2684975494 | F43: =A2A!F221 -> 3289791560 | G43: =A2A!G221 -> 3113161655 | H43: =A2A!H221 -> 3113161655 | I43: =A2A!I221 -> 3738551478 | J43: =A2A!J221 -> 4282660239 | K43: =A2A!K221 -> 4901974660
A44: Water management | C44: =A2A!C225 -> 1172570223 | D44: =A2A!D225 -> 1280896309 | E44: =A2A!E225 -> 952915577.5 | F44: =A2A!F225 -> 1293156974 | G44: =A2A!G225 -> 997172145.6 | H44: =A2A!H225 -> 997172145.6 | I44: =A2A!I225 -> 1047402923 | J44: =A2A!J225 -> 1077833396 | K44: =A2A!K225 -> 1124898013
A45: Waste water management | C45: =A2A!C229 -> 294864459.8 | D45: =A2A!D229 -> 325212343.8 | E45: =A2A!E229 -> 348153877.8 | F45: =A2A!F229 -> 399300023.2 | G45: =A2A!G229 -> 368517895.4 | H45: =A2A!H229 -> 368517895.4 | I45: =A2A!I229 -> 388564713.5 | J45: =A2A!J229 -> 406523010 | K45: =A2A!K229 -> 426753640.1
A46: Waste management | C46: =A2A!C234 -> 148071241.3 | D46: =A2A!D234 -> 144257171.7 | E46: =A2A!E234 -> 139303328 | F46: =A2A!F234 -> 127603714.5 | G46: =A2A!G234 -> 149292077.6 | H46: =A2A!H234 -> 149292077.6 | I46: =A2A!I234 -> 146551477.1 | J46: =A2A!J234 -> 156240336.5 | K46: =A2A!K234 -> 163176970.3
A47: Other | B47: 4 | C47: =A2A!C239 -> 66124376.69 | D47: =A2A!D239 -> 80640656.21 | E47: =A2A!E239 -> 73187988.52 | F47: =A2A!F239 -> 63978086.85 | G47: =A2A!G239 -> 63376572.45 | H47: =A2A!H239 -> 63376572.45 | I47: =A2A!I239 -> 95145909.18 | J47: =A2A!J239 -> 99582393.41 | K47: =A2A!K239 -> 103632342.2
A48: ="Total "&A27 -> Total Expenditure - Functional | B48: 3 | C48: =C28+C32+C38+C42+C47 -> 5984002660 | D48: =D28+D32+D38+D42+D47 -> 6949419417 | E48: =E28+E32+E38+E42+E47 -> 6286095410 | F48: =F28+F32+F38+F42+F47 -> 7705199795 | G48: 7564011390 | H48: 7564011390 | I48: 8403380019 | J48: 9159284984 | K48: 1.00060498e+10
A49: =result -> Surplus/(Deficit) for the year | C49: =C25-C48 -> 54956400 | D49: =D25-D48 -> -726982180 | E49: 525680299 | F49: 864226385.2 | G49: 881288075.2 | H49: 828688075.2 | I49: 1017498096 | J49: 1236949436 | K49: 1688154757
A50: =head27a -> References
A51: 1. Government Finance Statistics Functions and Sub-functions are standardised to assist the compilation of national and international accounts for comparison purposes
A52: 2. Total Revenue by functional classification must reconcile to Total Operating Revenue shown in Budgeted Financial Performance (revenue and expenditure)
A53: 3. Total Expenditure by Functional Classification must reconcile to Total Operating Expenditure shown in Budgeted Financial Performance (revenue and expenditure)
A54: 4. All amounts must be classified under a functional classification . The GFS function 'Other' is only for Abbatoirs, Air Transport, Forestry, Licensing and Regulation, Markets and Tourism - and if used must be supported by footnotes. Nothing else may be placed under 'Other'. Assign associate share to relevant classification.

Sheet A2A
A1: =muni&" - "&Approve3 -> 0 - Table A2 Budgeted Financial Performance (revenue and expenditure by functional classification)
A2: ="Functional Classification "&desc -> Functional Classification Description | B2: =head27 -> Ref | C2: =head1b -> 2020/21 | D2: =head1A -> 2021/22 | E2: =Head1 -> 2022/23 | F2: =Head2 -> Current Year 2023/24 | I2: =Head3 -> 2024/25 Medium Term Revenue & Expenditure Framework
A3: R thousand | B3: 1 | C3: =Head5 -> Audited Outcome | D3: =Head5 -> Audited Outcome | E3: =Head5 -> Audited Outcome | F3: =Head6 -> Original Budget | G3: =Head7 -> Adjusted Budget | H3: =Head8 -> Full Year Forecast | I3: =Head9 -> Budget Year 2024/25 | J3: =Head10 -> Budget Year +1 2025/26 | K3: =Head11 -> Budget Year +2 2026/27
A4: Revenue - Functional
A5: Municipal governance and administration | C5: =C6+C9+C23 -> 1685956768 | D5: =D6+D9+D23 -> 1695855981 | E5: 1955757202 | F5: 2375779979 | G5: 2531073523 | H5: 2531073523 | I5: 2726370567 | J5: 2869418545 | K5: 3020152396
A6: Executive and council | C6: =SUM(C7:C8) -> 3935419.51 | D6: =SUM(D7:D8) -> 3530376.55 | E6: 5213268.17 | F6: 4979000 | G6: 4701000 | H6: 4701000 | I6: 2092000 | J6: 0 | K6: 0
A7: Mayor and Council | C7: 12674.79 | D7: 0 | E7: -14822.46 | F7: 0 | G7: 0 | I7: 0 | J7: 0 | K7: 0
A8: Municipal Manager, Town Secretary and Chief Executive | C8: 3922744.72 | D8: 3530376.55 | E8: 5228090.63 | F8: 4979000 | G8: 4701000 | H8: 4701000 | I8: 2092000 | J8: 0 | K8: 0
A9: Finance and administration | C9: =SUM(C10:C22) -> 1682018698 | D9: =SUM(D10:D22) -> 1692323110 | E9: 1950543934 | F9: =SUM(F10:F22) -> 2370800979 | G9: =SUM(G10:G22) -> 2526372523 | H9: 2526372523 | I9: 2724278567 | J9: 2869418545 | K9: 3020152396
A10: Administrative and Corporate Support | C10: 12307.09 | D10: 6500.21 | E10: -201.25 | F10: 607186.8648 | G10: 0 | H10: 0 | I10: 0 | J10: 0 | K10: 0
A11: Asset Management | C11: 1587023.03 | D11: 6070848.97 | E11: 3029221.11 | F11: 13390566.77 | G11: 13390566.77 | H11: 13390566.77 | I11: 14153773.66 | J11: 14804847.25 | K11: 15471065.37
A12: Finance | C12: 1665539963 | D12: 1663295424 | E12: 1928898482 | F12: 2305482256 | G12: 2462261851 | H12: 2462261851 | I12: 2655135421 | J12: 2796889938 | K12: 2943915800
A13: Fleet Management | C13: 0 | D13: 0 | E13: 0 | F13: 0 | G13: 0 | H13: 0 | I13: 0 | J13: 0 | K13: 0
A14: Human Resources | C14: 8063480.46 | D14: 7456070.54 | E14: 8836069.3 | F14: 12513790.28 | G14: 11912927.26 | H14: 11912927.26 | I14: 11951098.95 | J14: 12705725.46 | K14: 13721901.88
A15: Information Technology | C15: 22555.09 | D15: 17396.22 | E15: -34.15 | F15: 2472.42645 | G15: 2472.43 | H15: 2472.43 | I15: 2608.41365 | J15: 2728.400678 | K15: 2851.178708
A16: Legal Services | C16: 2567.63 | D16: 1711.96 | E16: 47.55 | F16: 315314.2694 | G16: 315314.27 | H16: 315314.27 | I16: 332656.5549 | J16: 347958.7564 | K16: 363616.9004
A17: Marketing, Customer Relations, Publicity and Media Co-ordination | C17: 1362.34 | D17: 0 | E17: 0 | F17: 0 | G17: 0 | H17: 0 | I17: 0 | J17: 0 | K17: 0
A18: Property Services | C18: 6676492.88 | D18: 15365369.85 | E18: 9623664.67 | F18: 38156452.56 | G18: 38156452.55 | H18: 38156452.55 | I18: 42351757.82 | J18: 44299938.68 | K18: 46293435.92
A19: Risk Management | C19: 0 | D19: 0 | E19: 0 | F19: 0 | G19: 0 | H19: 0 | I19: 0 | J19: 0 | K19: 0
A20: Security Services | C20: 3256.51 | D20: 4291.19 | E20: 0 | F20: 0 | G20: 0 | H20: 0 | I20: 0 | J20: 0 | K20: 0
A21: Supply Chain Management | C21: 109689.85 | D21: 105497.07 | E21: 156684.33 | F21: 332939.1845 | G21: 332939.18 | H21: 332939.18 | I21: 351250.8349 | J21: 367408.3733 | K21: 383724.3378
A22: Valuation Service | D22: 0 | E22: 0 | F22: 0 | G22: 0 | H22: 0 | I22: 0 | J22: 0 | K22: 0
A23: Internal audit | C23: =SUM(C24:C24) -> 2649.84 | D23: =SUM(D24:D24) -> 2494.96 | E23: 0 | F23: 0 | G23: 0 | H23: 0 | I23: 0 | J23: 0 | K23: 0
A24: Governance Function | C24: 2649.84 | D24: 2494.96
A25: Community and public safety | C25: =C26+C48+C54+C63+C66 -> 187149779.2 | D25: =D26+D48+D54+D63+D66 -> 134306482.7 | E25: 142629089.9 | F25: 338866615 | G25: 326589903.4 | H25: 326589903.4 | I25: 492281190 | J25: 365565889.6 | K25: 394247975.7
A26: Community and social services | C26: =SUM(C27:C47) -> 24279484.79 | D26: =SUM(D27:D47) -> 45792786.73 | E26: 61498683.1 | F26: 276753844.2 | G26: 79864674.56 | H26: 79864674.56 | I26: 269103423.5 | J26: 295271162.6 | K26: 321254929.5
A27: Aged Care | D27: 0 | E27: 0 | I27: 0 | J27: 0 | K27: 0
A28: Agricultural | D28: 0 | E28: 0 | I28: 0 | J28: 0 | K28: 0
A29: Animal Care and Diseases | D29: 0 | E29: 0 | I29: 0 | J29: 0 | K29: 0
A30: Cemeteries, Funeral Parlours and Crematoriums | C30: 5208007.31 | D30: 8279696.42 | E30: 11624350.66 | F30: 16617370.72 | G30: 16617370.72 | H30: 16617370.72 | I30: 18611455.21 | J30: 19467582.15 | K30: 20343623.34
A31: Child Care Facilities | C31: 0 | D31: 0 | E31: 0 | F31: 0 | G31: 0 | H31: 0 | I31: 0 | J31: 0 | K31: 0
A32: Community Halls and Facilities | C32: 2902948.82 | D32: 14033547.31 | E32: 33263673.61 | F32: 245427473.6 | G32: 47103520.47 | H32: 47103520.47 | I32: 233967062.8 | J32: 245671779.5 | K32: 267392595.8
A33: Consumer Protection | C33: 0 | D33: 0 | E33: 0 | I33: 0 | J33: 0 | K33: 0
A34: Cultural Matters | C34: 0 | D34: 0 | E34: 0 | I34: 0 | J34: 0 | K34: 0
A35: Disaster Management | C35: 0 | D35: 0 | E35: 0 | I35: 0 | J35: 0 | K35: 0
A36: Education | C36: 0 | D36: 0 | E36: 0 | I36: 0 | J36: 0 | K36: 0
A37: Indigenous and Customary Law | C37: 0 | D37: 0 | E37: 0 | I37: 0 | J37: 0 | K37: 0
A38: Industrial Promotion | C38: 0 | D38: 0 | E38: 0 | I38: 0 | J38: 0 | K38: 0
A39: Language Policy | C39: 0 | D39: 0 | E39: 0 | I39: 0 | J39: 0 | K39: 0
A40: Libraries and Archives | C40: 15205234.72 | D40: 22907275.89 | E40: 16171964.22 | F40: 13537999.91 | G40: -119600.62 | H40: -119600.62 | I40: 0 | J40: 0 | K40: 0
A41: Literacy Programmes | C41: 0 | D41: 0 | E41: 0 | I41: 0 | J41: 0 | K41: 0
A42: Media Services | C42: 0 | D42: 0 | E42: 0 | I42: 0 | J42: 0 | K42: 0
A43: Museums and Art Galleries | C43: 953550.37 | D43: 572267.11 | E43: 438694.61 | F43: 1171000 | G43: 16263383.99 | H43: 16263383.99 | I43: 16524905.47 | J43: 30131800.92 | K43: 33518710.36
A44: Population Development | C44: 9743.57 | D44: 0 | E44: 0 | I44: 0 | J44: 0 | K44: 0
A45: Provincial Cultural Matters | D45: 0 | E45: 0 | I45: 0 | J45: 0 | K45: 0
A46: Theatres | D46: 0 | E46: 0 | I46: 0 | J46: 0 | K46: 0
A47: Zoo's | D47: 0 | E47: 0 | I47: 0 | J47: 0 | K47: 0
A48: Sport and recreation | C48: =SUM(C49:C53) -> 523912.59 | D48: =SUM(D49:D53) -> 344638.91 | E48: 588753.1 | F48: 21223330.41 | G48: 40912790.41 | H48: 40912790.41 | I48: 23526793.18 | J48: 24609025.67 | K48: 25716431.83
A49: Beaches and Jetties | D49: 0 | E49: 0 | I49: 0 | J49: 0 | K49: 0
A50: Casinos, Racing, Gambling, Wagering | D50: 0 | E50: 0 | I50: 0 | J50: 0 | K50: 0
A51: Community Parks (including Nurseries) | C51: 4738.68 | D51: 0 | E51: 0 | I51: 0 | J51: 0 | K51: 0
A52: Recreational Facilities | C52: 519173.91 | D52: 344638.91 | E52: 588753.1 | F52: 21223330.41 | G52: 21223330.41 | H52: 21223330.41 | I52: 23526793.18 | J52: 24609025.67 | K52: 25716431.83
A53: Sports Grounds and Stadiums | D53: 0 | E53: 0 | F53: 0 | G53: 19689460 | H53: 19689460 | I53: 0 | J53: 0 | K53: 0
A54: Public safety | C54: =SUM(C55:C62) -> 19851967.14 | D54: =SUM(D55:D62) -> 18186248.15 | E54: 24640408.62 | F54: 8568779.072 | G54: 8568779.072 | H54: 8568779.072 | I54: 9172795.913 | J54: 9594744.525 | K54: 9952636.281
A55: Civil Defence | C55: 1199482.64 | D55: 0 | E55: -19.14 | I55: 0 | J55: 0 | K55: 0
A56: Cleansing | C56: 0 | D56: 0 | E56: 0 | I56: 0 | J56: 0 | K56: 0
A57: Control of Public Nuisances | C57: 0 | D57: 0 | E57: 0 | I57: 0 | J57: 0 | K57: 0
A58: Fencing and Fences | C58: 0 | D58: 0 | E58: 0 | I58: 0 | J58: 0 | K58: 0
A59: Fire Fighting and Protection | C59: 310842.79 | D59: 904902.65 | E59: 370743.01 | F59: 397088.8729 | G59: 397088.8729 | H59: 397088.8729 | I59: 424885.1016 | J59: 444429.8163 | K59: 464429.158
A60: Licensing and Control of Animals | C60: 0 | D60: 0 | E60: 0 | F60: 0 | G60: 0 | H60: 0 | I60: 0 | J60: 0 | K60: 0
A61: Police Forces, Traffic and Street Parking Control | C61: 18341641.71 | D61: 17281345.5 | E61: 24269684.75 | F61: 8171690.199 | G61: 8171690.199 | H61: 8171690.199 | I61: 8747910.811 | J61: 9150314.709 | K61: 9488207.123
A62: Pounds | D62: 0 | E62: 0 | F62: 0 | G62: 0 | H62: 0 | I62: 0 | J62: 0 | K62: 0
A63: Housing | C63: =SUM(C64:C65) -> 142494414.7 | D63: =SUM(D64:D65) -> 69982808.91 | E63: 55901245.1 | F63: 32320661.28 | G63: 197243659.3 | H63: 197243659.3 | I63: 190478177.4 | J63: 36090956.84 | K63: 37323978.11
A64: Housing | C64: 142494414.7 | D64: 69982808.91 | E64: 55901245.1 | F64: 32320661.28 | G64: 197243659.3 | H64: 197243659.3 | I64: 190478177.4 | J64: 36090956.84 | K64: 37323978.11
A65: Informal Settlements | D65: 0 | E65: 0 | F65: 0 | G65: 0
A66: Health | C66: =SUM(C67:C73) -> 0 | D66: =SUM(D67:D73) -> 0 | E66: 0 | F66: 0 | G66: 0 | H66: 0 | I66: 0 | J66: 0 | K66: 0
A67: Ambulance
A68: Health Services
A69: Laboratory Services
A70: Food Control
A71: Health Surveillance and Prevention of Communicable Diseases including immunizations
A72: Vector Control
A73: Chemical Safety
A74: Economic and environmental services | C74: =C75+C86+C91 -> 271667406.3 | D74: =D75+D86+D91 -> 207365686.9 | E74: 200051132.5 | F74: 55600947.45 | G74: 197768889.9 | H74: 145168889.9 | I74: 86691641.99 | J74: 146932457.5 | K74: 217639738.7
A75: Planning and development | C75: =SUM(C76:C85) -> 37507188.98 | D75: =SUM(D76:D85) -> 55781154.04 | E75: 152414516.5 | F75: 47684582.16 | G75: 137252524.6 | H75: 137252524.6 | I75: 31697207.13 | J75: 41708278.66 | K75: 62237937.73
A76: Billboards | D76: 0 | E76: 0 | I76: 0 | J76: 0 | K76: 0
A77: Corporate Wide Strategic Planning (IDPs, LEDs) | C77: 300065.51 | D77: 739.71 | E77: -0.03 | I77: 0 | J77: 0 | K77: 0
A78: Central City Improvement District | C78: 0 | D78: 0 | E78: 0 | I78: 0 | J78: 0 | K78: 0
A79: Development Facilitation | C79: 0 | D79: 0 | E79: 0 | I79: 0 | J79: 0 | K79: 0
A80: Economic Development/Planning | C80: 364155.19 | D80: 46481241.65 | E80: 35053266.51 | G80: 11014562.57 | H80: 11014562.57 | I80: 1000000 | J80: 0 | K80: 0
A81: Regional Planning and Development | C81: 0 | D81: 0 | E81: 0 | G81: 0 | H81: 0 | I81: 0 | J81: 0 | K81: 0
A82: Town Planning, Building Regulations and Enforcement, and City Engineer | C82: 36842968.28 | D82: 9299172.68 | E82: 117361250 | F82: 47684582.16 | G82: 126237962.1 | H82: 126237962.1 | I82: 30697207.13 | J82: 41708278.66 | K82: 62237937.73
A83: Project Management Unit | D83: 0 | E83: 0 | I83: 0 | J83: 0 | K83: 0
A84: Provincial Planning | D84: 0 | E84: 0 | I84: 0 | J84: 0 | K84: 0
A85: Support to Local Municipalities | D85: 0 | E85: 0 | I85: 0 | J85: 0 | K85: 0
A86: Road transport | C86: =SUM(C87:C90) -> 234057621.1 | D86: =SUM(D87:D90) -> 151376861.6 | E86: 47241673.42 | F86: 0 | G86: 52600000 | H86: 0 | I86: 50000000 | J86: 100000000 | K86: 150000000
A87: Public Transport | C87: 178133714.4 | D87: 64161510.69 | E87: -26.27 | I87: 50000000 | J87: 100000000 | K87: 150000000
A88: Road and Traffic Regulation | C88: 0 | D88: 0 | E88: 0 | I88: 0 | J88: 0 | K88: 0
A89: Roads | C89: 55923559.92 | D89: 87215350.88 | E89: 47241699.69 | G89: 52600000 | I89: 0 | J89: 0 | K89: 0
A90: Taxi Ranks | C90: 346.84 | D90: 0 | E90: 0 | I90: 0 | J90: 0 | K90: 0
A91: Environmental protection | C91: =SUM(C92:C97) -> 102596.2 | D91: =SUM(D92:D97) -> 207671.31 | E91: 394942.58 | F91: 7916365.286 | G91: 7916365.286 | H91: 7916365.286 | I91: 4994434.861 | J91: 5224178.865 | K91: 5401800.947
A92: Biodiversity and Landscape | D92: 0 | E92: 0
A93: Coastal Protection | D93: 0 | E93: 0
A94: Indigenous Forests | D94: 0 | E94: 0
A95: Nature Conservation | D95: 0 | E95: 0
A96: Pollution Control | C96: 102596.2 | D96: 207671.31 | E96: 394942.58 | F96: 7916365.286 | G96: 7916365.286 | H96: 7916365.286 | I96: 4994434.861 | J96: 5224178.865 | K96: 5401800.947
A97: Soil Conservation | D97: 0 | E97: 0
A98: Trading services | C98: =C99+C103+C107+C112 -> 3845123161 | D98: =D99+D103+D107+D112 -> 4158681263 | E98: 4474064465 | F98: 5698134020 | G98: 5275471312 | H98: 5275471312 | I98: 5992662073 | J98: 6885792743 | K98: =K99+K103+K107+K112 -> 7927858184
A99: Energy sources | C99: =SUM(C100:C102) -> 2212438066 | D99: =SUM(D100:D102) -> 2569652754 | E99: 2724539631 | F99: 4028755846 | G99: 3712970414 | H99: 3712970414 | I99: 4342532610 | J99: 5158584011 | K99: 6135107301
A100: Electricity | C100: 2212438066 | D100: 2569652754 | E100: 2724539631 | F100: 4028755846 | G100: 3712970414 | H100: 3712970414 | I100: 4342532610 | J100: 5158584011 | K100: 6135107301
A101: Street Lighting and Signal Systems | D101: 0 | E101: 0 | F101: 0
A102: Nonelectric Energy | D102: 0 | E102: 0 | F102: 0
A103: Water management | C103: =SUM(C104:C106) -> 1189218733 | D103: =SUM(D104:D106) -> 1156790470 | E103: 1312922507 | F103: 1300958056 | G103: 1127612549 | H103: 1127612549 | I103: 1219122118 | J103: 1276982515 | K103: 1336072661
A104: Water Treatment | D104: 0 | E104: 0 | F104: 0
A105: Water Distribution | C105: 1189218733 | D105: 1156790470 | E105: 1312922507 | F105: 1300958056 | G105: 1127612549 | H105: 1127612549 | I105: 1219122118 | J105: 1276982515 | K105: 1336072661
A106: Water Storage | D106: 0 | E106: 0 | F106: 0
A107: Waste water management | C107: =SUM(C108:C111) -> 288947747.1 | D107: =SUM(D108:D111) -> 281762407.3 | E107: 286349072.1 | F107: 209646015.9 | G107: 284013369.6 | H107: 284013369.6 | I107: 262027256.3 | J107: 273472666.1 | K107: 271970306.1
A108: Public Toilets | C108: 39.55 | D108: 0 | E108: 0
A109: Sewerage | C109: 288947597 | D109: 281762407.3 | E109: 286349072.1 | F109: 209646015.9 | G109: 284013369.6 | H109: 284013369.6 | I109: 262027256.3 | J109: 273472666.1 | K109: 271970306.1
A110: Storm Water Management | C110: 110.56 | D110: 0 | E110: 0 | F110: 0
A111: Waste Water Treatment | D111: 0 | E111: 0 | F111: 0
A112: Waste management | C112: =SUM(C113:C116) -> 154518614.7 | D112: =SUM(D113:D116) -> 150475631.1 | E112: 150253254.9 | F112: 158774103.1 | G112: 150874978.7 | H112: 150874978.7 | I112: 168980088.6 | J112: 176753551.4 | K112: 184707915.1
A113: Recycling | D113: 0 | E113: 0 | F113: 0
A114: Solid Waste Disposal (Landfill Sites) | C114: 39354941.57 | D114: 37451184.19 | E114: 23607418.98 | F114: 0
A115: Solid Waste Removal | C115: 115163673.2 | D115: 113024446.9 | E115: 126645835.9 | F115: 158774103.1 | G115: 150874978.7 | H115: 150874978.7 | I115: 168980088.6 | J115: 176753551.4 | K115: 184707915.1
A116: Street Cleaning | D116: 0 | E116: 0 | F116: 0
A117: Other | C117: =SUM(C118:C123) -> 49061946.32 | D117: =SUM(D118:D123) -> 26227823.48 | E117: 39273819.17 | F117: 101044618.5 | G117: 114395836.9 | H117: 114395836.9 | I117: 122872643.2 | J117: 128524784.8 | K117: 134306261
A118: Abattoirs | C118: 6456463.56 | D118: 8595764.2 | E118: 0 | F118: 0 | G118: 0 | H118: 0
A119: Air Transport | C119: 21904865.39 | D119: 0 | E119: 14916638.06 | F119: 41534302.45 | G119: 44808461.44 | H119: 44808461.44 | I119: 46806432.43 | J119: 48959528.33 | K119: 51162707.1
A120: Forestry | C120: 243272.99 | D120: 189936.33 | E120: 0 | F120: 0 | G120: 10143141.02 | H120: 10143141.02 | I120: 10143141.02 | J120: 10609725.51 | K120: 11087163.15
A121: Licensing and Regulation | C121: 20456577.8 | D121: 17431810.1 | E121: 394531.84 | F121: 2292326.484 | G121: 2292325.98 | H121: 2292325.98 | I121: 2280701.495 | J121: 2385613.764 | K121: 2490827.259
A122: Markets | C122: 766.58 | D122: 10312.85 | E122: 23962669.47 | F122: 57217989.54 | G122: 57151908.48 | H122: 57151908.48 | I122: 63642368.29 | J122: 66569917.24 | K122: 69565563.51
A123: Tourism | E123: -20.2 | F123: 0 | G123: 0 | H123: 0 | I123: 0 | J123: 0 | K123: 0
A124: ="Total "&A4 -> Total Revenue - Functional | B124: 2 | C124: =C5+C25+C74+C98+C117 -> 6038959060 | D124: =D5+D25+D74+D98+D117 -> 6222437237 | E124: 6811775709 | F124: 8569426180 | G124: 8445299465 | H124: 8392699465 | I124: 9420878115 | J124: 1.039623442e+10 | K124: 1.169420456e+10
A126: Expenditure - Functional
A127: =A5 -> Municipal governance and administration | C127: =C128+C131+C145 -> 1520817442 | D127: =D128+D131+D145 -> 1191049487 | E127: 1085322317 | F127: 1480552759 | G127: 1740730565 | H127: 1740730565 | I127: 1806312848 | J127: 1918238668 | K127: 2018094370
A128: Executive and council | C128: =SUM(C129:C130) -> 117397847.6 | D128: =SUM(D129:D130) -> 117808679.1 | E128: 115687006.4 | F128: 258320031.1 | G128: 150269914 | H128: 150269914 | I128: 146068847.7 | J128: 156936094 | K128: 164919202.5
A129: Mayor and Council | C129: 76667592.01 | D129: 87358886.8 | E129: 82943964.14 | F129: 94350834.42 | G129: 98594144.81 | H129: 98594144.81 | I129: 96285667.07 | J129: 106239151.4 | K129: 112105192.3
A130: Municipal Manager, Town Secretary and Chief Executive | C130: 40730255.64 | D130: 30449792.29 | E130: 32743042.29 | F130: 163969196.6 | G130: 51675769.19 | H130: 51675769.19 | I130: 49783180.58 | J130: 50696942.57 | K130: 52814010.18
A131: Finance and administration | C131: =SUM(C132:C144) -> 1386457371 | D131: =SUM(D132:D144) -> 1053698122 | E131: 950234661.9 | F131: 1193777693 | G131: 1560312497 | H131: 1560312497 | I131: 1631984506 | J131: 1723377149 | K131: 1814079845
A132: Administrative and Corporate Support | C132: 48520851.24 | D132: 50791457.85 | E132: 59317183.6 | F132: 59777153.1 | G132: 72744516.36 | H132: 72744516.36 | I132: 72746147.21 | J132: 75395407.02 | K132: 88705476.73
A133: Asset Management | C133: 62056116.67 | D133: 70971653.48 | E133: 67830877.98 | F133: 62176445.61 | G133: 84807066.37 | H133: 84807066.37 | I133: 87624872.56 | J133: 93417601.19 | K133: 98810048.63
A134: Finance | C134: 810749316.7 | D134: 478867966.3 | E134: 327425602.4 | F134: 626500972.8 | G134: 932401233 | H134: 932401233 | I134: 991208416.8 | J134: 1046088847 | K134: 1092868208
A135: Fleet Management | C135: 0 | D135: 0 | E135: 0 | F135: 0 | G135: 0 | H135: 0 | I135: 0 | J135: 0 | K135: 0
A136: Human Resources | C136: 78065597.33 | D136: 77305139.46 | E136: 65352584.77 | F136: 91046088.27 | G136: 112544134.8 | H136: 112544134.8 | I136: 108309536.8 | J136: 108383589.6 | K136: 115529682.3
A137: Information Technology | C137: 41373957.4 | D137: 32643990.52 | E137: 51866475.22 | F137: 57159369.86 | G137: 50178991.03 | H137: 50178991.03 | I137: 52316392.7 | J137: 63032166.68 | K137: 66251996.28
A138: Legal Services | C138: 13829269.89 | D138: 10503949.75 | E138: 14853751.83 | F138: 18240282.65 | G138: 22052233.35 | H138: 22052233.35 | I138: 19907466.71 | J138: 23129513.4 | K138: 24228662.76
A139: Marketing, Customer Relations, Publicity and Media Co-ordination | C139: 16349277.73 | D139: 17212369.13 | E139: 18142129.61 | F139: 19543388.62 | G139: 24850655.31 | H139: 24850655.31 | I139: 24326241.85 | J139: 25445129 | K139: 26589907.23
A140: Property Services | C140: 66799138.26 | D140: 68297316.8 | E140: 61966598.05 | F140: 63488452.65 | G140: 65539704.2 | H140: 65539704.2 | I140: 57624600.3 | J140: 60675620.38 | K140: 62946203.6
A141: Risk Management | C141: 0 | D141: 0 | E141: 0 | F141: 0 | G141: 0 | H141: 0 | I141: 0 | J141: 0 | K141: 0
A142: Security Services | C142: 184663244.6 | D142: 172034542.9 | E142: 187688924.8 | F142: 120077387.9 | G142: 114721899 | H142: 114721899 | I142: 119509375.2 | J142: 124932480.4 | K142: 130766875.9
A143: Supply Chain Management | C143: 64050601.54 | D143: 75069735.87 | E143: 95790533.72 | F143: 75768151.16 | G143: 80472063.98 | H143: 80472063.98 | I143: 98411455.53 | J143: 102876794.3 | K143: 107382783.8
A144: Valuation Service | E144: 0 | G144: 0 | H144: 0 | I144: 0 | J144: 0 | K144: 0
A145: Internal audit | C145: =SUM(C146:C146) -> 16962222.89 | D145: =SUM(D146:D146) -> 19542685.37 | E145: 19400648.37 | F145: 28455035.46 | G145: 30148153.48 | H145: 30148153.48 | I145: 28259494.71 | J145: 37925424.87 | K145: 39095322.2
A146: Governance Function | C146: 16962222.89 | D146: 19542685.37 | E146: 19400648.37 | F146: 28455035.46 | G146: 30148153.48 | H146: 30148153.48 | I146: 28259494.71 | J146: 37925424.87 | K146: 39095322.2
A147: Community and public safety | C147: =C148+C170+C176+C185+C188 -> 551498800.6 | D147: =D148+D170+D176+D185+D188 -> 551440158.6 | E147: 624011514.2 | F147: 537195647.4 | G147: 640809790.9 | H147: 640809790.9 | I147: 632706534 | J147: 632310401.2 | K147: 657541117.3
A148: Community and social services | C148: =SUM(C149:C169) -> 149092712.5 | D148: =SUM(D149:D169) -> 141393704.7 | E148: 147223223.9 | F148: 135893001.6 | G148: 149462212.8 | H148: 149462212.8 | I148: 165506681.9 | J148: 172164497.9 | K148: 177981466.8
A149: Aged Care | C149: 556.83 | D149: 636.73 | E149: 2902.72 | F149: 658027.5577 | G149: 19582.85 | H149: 19582.85 | I149: 369799.8832 | J149: 386788.2806 | K149: 404171.9093
A150: Agricultural | C150: 0 | D150: 0 | E150: 0 | F150: 0 | G150: 0 | H150: 0 | I150: 0 | J150: 0 | K150: 0
A151: Animal Care and Diseases | C151: 1400050.2 | D151: 1482653 | E151: 0 | F151: 1257600 | G151: 1257600 | H151: 1257600 | I151: 1105000 | J151: 1352000 | K151: 1419600
A152: Cemeteries, Funeral Parlours and Crematoriums | C152: 26495873.82 | D152: 29019589.55 | E152: 29156919.61 | F152: 32803662.2 | G152: 31034601.2 | H152: 31034601.2 | I152: 31163345.73 | J152: 32792546.7 | K152: 34206737.9
A153: Child Care Facilities | C153: 0 | D153: 0 | E153: 0 | F153: 0 | G153: 0 | H153: 0 | I153: 0 | J153: 0 | K153: 0
A154: Community Halls and Facilities | C154: 45190957.96 | D154: 29720949.31 | E154: 33451340.83 | F154: 15799744.62 | G154: 18620969.46 | H154: 18620969.46 | I154: 30571400.49 | J154: 31157941.75 | K154: 31242429.72
A155: Consumer Protection | C155: 0 | D155: 0 | E155: 0 | I155: 0 | J155: 0 | K155: 0
A156: Cultural Matters | C156: 0 | D156: 0 | E156: 0 | I156: 0 | J156: 0 | K156: 0
A157: Disaster Management | C157: 0 | D157: 0 | E157: 0 | I157: 0 | J157: 0 | K157: 0
A158: Education | C158: 0 | D158: 0 | E158: 0 | I158: 0 | J158: 0 | K158: 0
A159: =A37 -> Indigenous and Customary Law | C159: 0 | D159: 0 | E159: 0 | I159: 0 | J159: 0 | K159: 0
A160: Industrial Promotion | C160: 0 | D160: 0 | E160: 0 | I160: 0 | J160: 0 | K160: 0
A161: Language Policy | C161: 0 | D161: 0 | E161: 0 | I161: 0 | J161: 0 | K161: 0
A162: Libraries and Archives | C162: 63852761.41 | D162: 69491675.27 | E162: 71857741.56 | F162: 73518450.61 | G162: 81280107.74 | H162: 81280107.74 | I162: 86969348.33 | J162: 90437345.24 | K162: 94049212.43
A163: Literacy Programmes | C163: 0 | D163: 0 | E163: 0 | I163: 0 | J163: 0 | K163: 0
A164: Media Services | C164: 0 | D164: 0 | E164: 0 | I164: 0 | J164: 0 | K164: 0
A165: Museums and Art Galleries | C165: 7430643.27 | D165: 7662252.27 | E165: 8325164.89 | F165: 6040266.113 | G165: 8216335.31 | H165: 8216335.31 | I165: 7329991.936 | J165: 7659853.074 | K165: 7995477.242
A166: Population Development | C166: 4714883.87 | D166: 4009500.75 | E166: 4422169.16 | F166: 5815250.466 | G166: 9033016.26 | H166: 9033016.26 | I166: 7997795.53 | J166: 8378022.818 | K166: 8663837.63
A167: Provincial Cultural Matters | C167: 0 | D167: 0 | E167: 0 | I167: 0 | J167: 0 | K167: 0
A168: Theatres | C168: 6985.16 | D168: 6447.84 | E168: 6985.16 | I168: 0 | J168: 0 | K168: 0
A169: Zoo's | D169: 0 | E169: 0 | I169: 0 | J169: 0 | K169: 0
A170: Sport and recreation | C170: =SUM(C171:C175) -> 121244913.6 | D170: =SUM(D171:D175) -> 115888281.4 | E170: 140506827.5 | F170: 130424689 | G170: 134183742.6 | H170: 134183742.6 | I170: 121147022.5 | J170: 128589963 | K170: 133766187.1
A171: Beaches and Jetties | D171: 0 | E171: 0 | G171: 0 | I171: 0 | J171: 0 | K171: 0
A172: Casinos, Racing, Gambling, Wagering | D172: 0 | E172: 0 | G172: 0 | I172: 0 | J172: 0 | K172: 0
A173: Community Parks (including Nurseries) | C173: 49055094.57 | D173: 56517812.87 | E173: 54831338.68 | F173: 72878671.55 | G173: 52323003.18 | H173: 52323003.18 | I173: 48065311.45 | J173: 50689783.46 | K173: 52808490.25
A174: Recreational Facilities | C174: 72189819.07 | D174: 59134104.51 | E174: 85228537.94 | F174: 56465275.91 | G174: 81146797.81 | H174: 81146797.81 | I174: 72550461.03 | J174: 77250179.51 | K174: 80275196.82
A175: Sports Grounds and Stadiums | D175: 236364 | E175: 446950.83 | F175: 1080741.568 | G175: 713941.57 | H175: 713941.57 | I175: 531250 | J175: 650000 | K175: 682500
A176: Public safety | C176: =SUM(C177:C184) -> 196809242.2 | D176: =SUM(D177:D184) -> 216193878.2 | E176: 232287900.7 | F176: 222097496 | G176: 259339347.9 | H176: 259339347.9 | I176: 244183097.4 | J176: 256707802.9 | K176: 268069289.3
A177: Civil Defence | C177: 14573432.22 | D177: 15285989.35 | E177: 15312006.23 | F177: 19219679.35 | G177: 34437570.12 | H177: 34437570.12 | I177: 19656120.22 | J177: 20732327.96 | K177: 21667762.65
A178: Cleansing | C178: 0 | D178: 0 | E178: 0 | F178: 0 | G178: 0 | H178: 0 | I178: 0 | J178: 0 | K178: 0
A179: =A57 -> Control of Public Nuisances | C179: 0 | D179: 0 | E179: 0 | F179: 0 | G179: 0 | H179: 0 | I179: 0 | J179: 0 | K179: 0
A180: Fencing and Fences | C180: 0 | D180: 0 | E180: 0 | F180: 0 | G180: 0 | H180: 0 | I180: 0 | J180: 0 | K180: 0
A181: Fire Fighting and Protection | C181: 95656656.36 | D181: 109259286 | E181: 116742940.9 | F181: 115276517.8 | G181: 144144962.3 | H181: 144144962.3 | I181: 149561867.6 | J181: 156924893.5 | K181: 163893650
A182: Licensing and Control of Animals | C182: 0 | D182: 0 | E182: 0 | F182: 0 | G182: 0 | H182: 0 | I182: 0 | J182: 0 | K182: 0
A183: Police Forces, Traffic and Street Parking Control | C183: 86579153.62 | D183: 91648602.87 | E183: 100232953.6 | F183: 87601298.84 | G183: 80756815.52 | H183: 80756815.52 | I183: 74965109.51 | J183: 79050581.44 | K183: 82507876.74
A184: Pounds | D184: 0 | E184: 0 | F184: 0 | G184: 0 | H184: 0 | I184: 0 | J184: 0 | K184: 0
A185: =A63 -> Housing | C185: =SUM(C186:C187) -> 74912129 | D185: =SUM(D186:D187) -> 68394082.77 | E185: 94434776.88 | F185: 35263319.41 | G185: 87641516.19 | H185: 87641516.19 | I185: 92136152.82 | J185: 64610980.37 | K185: 67024420.89
A186: Housing | C186: 74912129 | D186: 68394082.77 | E186: 94434776.88 | F186: 35263319.41 | G186: 87641516.19 | H186: 87641516.19 | I186: 92136152.82 | J186: 64610980.37 | K186: 67024420.89
A187: Informal Settlements | D187: 0 | E187: 0 | G187: 0
A188: Health | C188: =SUM(C189:C195) -> 9439803.22 | D188: =SUM(D189:D195) -> 9570211.44 | E188: 9558785.25 | F188: 13517141.35 | G188: 10182971.38 | H188: 10182971.38 | I188: 9733579.461 | J188: 10237157.12 | K188: 10699753.19
A189: Ambulance | D189: 0 | E189: 0
A190: Health Services | C190: 9439803.22 | D190: 9570211.44 | E190: 9558785.25 | F190: 13517141.35 | G190: 10182971.38 | H190: 10182971.38 | I190: 9733579.461 | J190: 10237157.12 | K190: 10699753.19
A191: Laboratory Services | D191: 0 | E191: 0
A192: Food Control | D192: 0 | E192: 0
A193: Health Surveillance and Prevention of Communicable Diseases including immunizations | D193: 0 | E193: 0
A194: Vector Control | D194: 0 | E194: 0
A195: Chemical Safety | D195: 0 | E195: 0
A196: Economic and environmental services | C196: =C197+C208+C213 -> 313304803.3 | D196: =D197+D208+D213 -> 393095329 | E196: 378225313.5 | F196: 513621030.7 | G196: 490950688.1 | H196: 490950688.1 | I196: 548144136 | J196: 585896540.6 | K196: 609978685.6
A197: Planning and development | C197: =SUM(C198:C207) -> 69071779.38 | D197: =SUM(D198:D207) -> 87743205.43 | E197: 93765700.13 | F197: 84862819.17 | G197: 104058486.3 | H197: 104058486.3 | I197: 101498346.9 | J197: 109022023.6 | K197: 114226412.1
A198: Billboards | D198: 0 | E198: 0 | F198: 0 | G198: 0 | H198: 0 | I198: 0 | J198: 0 | K198: 0
A199: Corporate Wide Strategic Planning (IDPs, LEDs) | C199: 6772978.5 | D199: 6406941.96 | E199: 10215065.73 | F199: 9449713.077 | G199: 9405329.5 | H199: 9405329.5 | I199: 9524886.968 | J199: 13440118.85 | K199: 14407925.53
A200: Central City Improvement District | C200: 0 | D200: 0 | E200: 0 | F200: 0 | G200: 0 | H200: 0 | I200: 0 | J200: 0 | K200: 0
A201: Development Facilitation | C201: 0 | D201: 0 | E201: 0 | F201: 0 | G201: 0 | H201: 0 | I201: 0 | J201: 0 | K201: 0
... 51 more rows

Sheet A3-FinPerf V
A1: =muni&" - "&Approve2 -> 0 - Table A3 Budgeted Financial Performance (revenue and expenditure by municipal vote)
A2: =Vdesc -> Vote Description | B2: =head27 -> Ref | C2: =head1b -> 2020/21 | D2: =head1A -> 2021/22 | E2: =Head1 -> 2022/23 | F2: =Head2 -> Current Year 2023/24 | I2: =Head3 -> 2024/25 Medium Term Revenue & Expenditure Framework | L2: =Head4 -> LTFS
A3: R thousand | C3: =Head5 -> Audited Outcome | D3: =Head5 -> Audited Outcome | E3: =Head5 -> Audited Outcome | F3: =Head6 -> Original Budget | G3: =Head7 -> Adjusted Budget | H3: =Head8 -> Full Year Forecast | I3: =Head9 -> Budget Year 2024/25 | J3: =Head10 -> Budget Year +1 2025/26 | K3: =Head11 -> Budget Year +2 2026/27 | L3: =Head12 -> Forecast 2027/28 | M3: =Head13 -> Forecast 2028/29 | N3: =Head14 -> Forecast 2029/30 | O3: =Head15 -> Forecast 2030/31 | P3: =Head16 -> Forecast 2031/32 | Q3: =Head17 -> Forecast 2032/33 | R3: =Head18 -> Forecast 2033/34 | S3: =Head19 -> Forecast 2034/35 | T3: =Head20 -> Forecast 2035/36 | U3: =Head21 -> Forecast 2036/37 | V3: =Head22 -> Forecast 2037/38 | W3: =Head23 -> Forecast 2038/39
A4: Revenue by Vote | B4: 1
A5: =A3A!A5 -> Vote 1 - City Manager | C5: =A3A!C5 -> 316680.28 | D5: =A3A!D5 -> 21554.57 | E5: =A3A!E5 -> -14882.48 | F5: =A3A!F5 -> 0 | G5: =A3A!G5 -> 0 | H5: =A3A!H5 -> 0 | I5: =A3A!I5 -> 0 | J5: =A3A!J5 -> 0 | K5: =A3A!K5 -> 0
A6: =A3A!A16 -> Vote 2 - City Finance | C6: =A3A!C16 -> 1673384926 | D6: =A3A!D16 -> 1692708414 | E6: =A3A!E16 -> 1855452217 | F6: =A3A!F16 -> 2342934597 | G6: =A3A!G16 -> 2596123424 | H6: =A3A!H16 -> 2596123424 | I6: =A3A!I16 -> 2675602753 | J6: =A3A!J16 -> 2818298768 | K6: =A3A!K16 -> 2966287810
A7: =A3A!A27 -> Vote 3 - Corporate Services | C7: =A3A!C27 -> 3958707.15 | D7: =A3A!D27 -> 3542654.18 | E7: =A3A!E27 -> 8603314.88 | F7: =A3A!F27 -> 7980216.973 | G7: =A3A!G27 -> 7910911.98 | H7: =A3A!H27 -> 7910911.98 | I7: =A3A!I27 -> 5258283.914 | J7: =A3A!J27 -> 3311932.974 | K7: =A3A!K27 -> 3460969.958
A8: =A3A!A38 -> Vote 4 - Community Services and Social Equity | C8: =A3A!C38 -> 198749941.6 | D8: =A3A!D38 -> 215034923.5 | E8: =A3A!E38 -> 235448191.6 | F8: =A3A!F38 -> 497013172.7 | G8: =A3A!G38 -> 296214767.8 | H8: =A3A!H38 -> 296214767.8 | I8: =A3A!I38 -> 490385956.1 | J8: =A3A!J38 -> 513886320.7 | K8: =A3A!K38 -> 547603373.5
A9: =A3A!A49 -> Vote 5 - Infrastructure Services | C9: =A3A!C49 -> 1719141598 | D9: =A3A!D49 -> 1596046262 | E9: =A3A!E49 -> 1628015025 | F9: =A3A!F49 -> 1520657146 | G9: =A3A!G49 -> 1473469435 | H9: =A3A!H49 -> 1473469435 | I9: =A3A!I49 -> 1540531143 | J9: =A3A!J49 -> 1660473387 | K9: =A3A!K49 -> 1768956412
A10: =A3A!A60 -> Vote 6 - Sustainable Development and City Enterprises | C10: =A3A!C60 -> 229818291.3 | D10: =A3A!D60 -> 144081748.6 | E10: =A3A!E60 -> 248423314.1 | F10: =A3A!F60 -> 200280366 | G10: =A3A!G60 -> 473092745.8 | H10: =A3A!H60 -> 473092745.8 | I10: =A3A!I60 -> 366567368.2 | J10: =A3A!J60 -> 241680000.1 | K10: =A3A!K60 -> 272788688.2
A11: =A3A!A71 -> Vote 7 - Electricity | C11: =A3A!C71 -> 2213588916 | D11: =A3A!D71 -> 2571001680 | E11: =A3A!E71 -> 2835848529 | F11: =A3A!F71 -> 4000560679 | G11: =A3A!G71 -> 3598488181 | H11: =A3A!H71 -> 3598488181 | I11: =A3A!I71 -> 4342532610 | J11: =A3A!J71 -> 5158584011 | K11: =A3A!K71 -> 6135107301
A12: =A3A!A82 -> Vote 8 - [NAME OF VOTE 8] | C12: =A3A!C82 -> 0 | D12: =A3A!D82 -> 0 | E12: =A3A!E82 -> 0 | F12: =A3A!F82 -> 0 | G12: =A3A!G82 -> 0 | H12: =A3A!H82 -> 0 | I12: =A3A!I82 -> 0 | J12: =A3A!J82 -> 0 | K12: =A3A!K82 -> 0
A13: =A3A!A93 -> Vote 9 - [NAME OF VOTE 9] | C13: =A3A!C93 -> 0 | D13: =A3A!D93 -> 0 | E13: =A3A!E93 -> 0 | F13: =A3A!F93 -> 0 | G13: =A3A!G93 -> 0 | H13: =A3A!H93 -> 0 | I13: =A3A!I93 -> 0 | J13: =A3A!J93 -> 0 | K13: =A3A!K93 -> 0
A14: =A3A!A104 -> Vote 10 - [NAME OF VOTE 10] | C14: =A3A!C104 -> 0 | D14: =A3A!D104 -> 0 | E14: =A3A!E104 -> 0 | F14: =A3A!F104 -> 0 | G14: =A3A!G104 -> 0 | H14: =A3A!H104 -> 0 | I14: =A3A!I104 -> 0 | J14: =A3A!J104 -> 0 | K14: =A3A!K104 -> 0
A15: =A3A!A115 -> Vote 11 - [NAME OF VOTE 11] | C15: =A3A!C115 -> 0 | D15: =A3A!D115 -> 0 | E15: =A3A!E115 -> 0 | F15: =A3A!F115 -> 0 | G15: =A3A!G115 -> 0 | H15: =A3A!H115 -> 0 | I15: =A3A!I115 -> 0 | J15: =A3A!J115 -> 0 | K15: =A3A!K115 -> 0 | L15: =A5A!L115 -> 0
A16: =A3A!A126 -> Vote 12 - [NAME OF VOTE 12] | C16: =A3A!C126 -> 0 | D16: =A3A!D126 -> 0 | E16: =A3A!E126 -> 0 | F16: =A3A!F126 -> 0 | G16: =A3A!G126 -> 0 | H16: =A3A!H126 -> 0 | I16: =A3A!I126 -> 0 | J16: =A3A!J126 -> 0 | K16: =A3A!K126 -> 0 | L16: =A5A!L126 -> 0
A17: =A3A!A137 -> Vote 13 - [NAME OF VOTE 13] | C17: =A3A!C137 -> 0 | D17: =A3A!D137 -> 0 | E17: =A3A!E137 -> 0 | F17: =A3A!F137 -> 0 | G17: =A3A!G137 -> 0 | H17: =A3A!H137 -> 0 | I17: =A3A!I137 -> 0 | J17: =A3A!J137 -> 0 | K17: =A3A!K137 -> 0 | L17: =A5A!L137 -> 0
A18: =A3A!A148 -> Vote 14 - [NAME OF VOTE 14] | C18: =A3A!C148 -> 0 | D18: =A3A!D148 -> 0 | E18: =A3A!E148 -> 0 | F18: =A3A!F148 -> 0 | G18: =A3A!G148 -> 0 | H18: =A3A!H148 -> 0 | I18: =A3A!I148 -> 0 | J18: =A3A!J148 -> 0 | K18: =A3A!K148 -> 0 | L18: =A5A!L148 -> 0
A19: =A3A!A159 -> Vote 15 - [NAME OF VOTE 15] | C19: =A3A!C159 -> 0 | D19: =A3A!D159 -> 0 | E19: =A3A!E159 -> 0 | F19: =A3A!F159 -> 0 | G19: =A3A!G159 -> 0 | H19: =A3A!H159 -> 0 | I19: =A3A!I159 -> 0 | J19: =A3A!J159 -> 0 | K19: =A3A!K159 -> 0 | L19: =A5A!L159 -> 0
A20: Total Revenue by Vote | B20: 2 | C20: =SUM(C5:C19) -> 6038959060 | D20: =SUM(D5:D19) -> 6222437237 | E20: 6811775709 | F20: 8569426178 | G20: 8445299466 | H20: 8445299466 | I20: 9420878115 | J20: 1.039623442e+10 | K20: 1.169420456e+10
A22: Expenditure by Vote to be appropriated | B22: 1
A23: =A3A!A173 -> Vote 1 - City Manager | C23: =A3A!C173 -> 144293564.4 | D23: =A3A!D173 -> 155043755.9 | E23: =A3A!E173 -> 151981634.6 | F23: =A3A!F173 -> 300105971.1 | G23: =A3A!G173 -> 197403240.6 | H23: =A3A!H173 -> 197403240.6 | I23: =A3A!I173 -> 191819668.5 | J23: =A3A!J173 -> 218838271.1 | K23: =A3A!K173 -> 229425708.9
A24: =A3A!A184 -> Vote 2 - City Finance | C24: =A3A!C184 -> 951383518.4 | D24: =A3A!D184 -> 611783863.7 | E24: =A3A!E184 -> 362344580.9 | F24: =A3A!F184 -> 799187822.7 | G24: =A3A!G184 -> 1208252871 | H24: =A3A!H184 -> 1208252871 | I24: =A3A!I184 -> 1166932156 | J24: =A3A!J184 -> 1228986541 | K24: =A3A!K184 -> 1282055868
A25: =A3A!A195 -> Vote 3 - Corporate Services | C25: =A3A!C195 -> 89837684.96 | D25: =A3A!D195 -> 69616493.69 | E25: =A3A!E195 -> 163339219.3 | F25: =A3A!F195 -> 195633443.4 | G25: =A3A!G195 -> 158753924.9 | H25: =A3A!H195 -> 158753924.9 | I25: =A3A!I195 -> 212747027.2 | J25: =A3A!J195 -> 224973364.1 | K25: =A3A!K195 -> 247301581.7
A26: =A3A!A206 -> Vote 4 - Community Services and Social Equity | C26: =A3A!C206 -> 848301582.7 | D26: =A3A!D206 -> 864836632.2 | E26: =A3A!E206 -> 904576995.9 | F26: =A3A!F206 -> 827458053.8 | G26: =A3A!G206 -> 1241622857 | H26: =A3A!H206 -> 1241622857 | I26: =A3A!I206 -> 844627157 | J26: =A3A!J206 -> 889737257.9 | K26: =A3A!K206 -> 926862789.7
A27: =A3A!A217 -> Vote 5 - Infrastructure Services | C27: =A3A!C217 -> 1734904819 | D27: =A3A!D217 -> 2026075661 | E27: =A3A!E217 -> 1565729441 | F27: =A3A!F217 -> 2117250006 | G27: =A3A!G217 -> 639125706.7 | H27: =A3A!H217 -> 639125706.7 | I27: =A3A!I217 -> 1881446739 | J27: =A3A!J217 -> 1959194070 | K27: =A3A!K217 -> 2045622071
A28: =A3A!A228 -> Vote 6 - Sustainable Development and City Enterprises | C28: =A3A!C228 -> 242328175.9 | D28: =A3A!D228 -> 271855705.8 | E28: =A3A!E228 -> 295042335.3 | F28: =A3A!F228 -> 225419326.3 | G28: =A3A!G228 -> 668477444 | H28: =A3A!H228 -> 668477444 | I28: =A3A!I228 -> 331868753.4 | J28: =A3A!J228 -> 314739385.1 | K28: =A3A!K228 -> 328202411.2
A29: =A3A!A239 -> Vote 7 - Electricity | C29: =A3A!C239 -> 1972953315 | D29: =A3A!D239 -> 2950207305 | E29: =A3A!E239 -> 2843081202 | F29: =A3A!F239 -> 3240145172 | G29: =A3A!G239 -> 3450375345 | H29: =A3A!H239 -> 3450375345 | I29: =A3A!I239 -> 3773938518 | J29: =A3A!J239 -> 4322816094 | K29: =A3A!K239 -> 4946579368
A30: =A3A!A250 -> Vote 8 - [NAME OF VOTE 8] | C30: =A3A!C250 -> 0 | D30: =A3A!D250 -> 0 | E30: =A3A!E250 -> 0 | F30: =A3A!F250 -> 0 | G30: =A3A!G250 -> 0 | H30: =A3A!H250 -> 0 | I30: =A3A!I250 -> 0 | J30: =A3A!J250 -> 0 | K30: =A3A!K250 -> 0
A31: =A3A!A261 -> Vote 9 - [NAME OF VOTE 9] | C31: =A3A!C261 -> 0 | D31: =A3A!D261 -> 0 | E31: =A3A!E261 -> 0 | F31: =A3A!F261 -> 0 | G31: =A3A!G261 -> 0 | H31: =A3A!H261 -> 0 | I31: =A3A!I261 -> 0 | J31: =A3A!J261 -> 0 | K31: =A3A!K261 -> 0
A32: =A3A!A272 -> Vote 10 - [NAME OF VOTE 10] | C32: =A3A!C272 -> 0 | D32: =A3A!D272 -> 0 | E32: =A3A!E272 -> 0 | F32: =A3A!F272 -> 0 | G32: =A3A!G272 -> 0 | H32: =A3A!H272 -> 0 | I32: =A3A!I272 -> 0 | J32: =A3A!J272 -> 0 | K32: =A3A!K272 -> 0
A33: =A3A!A283 -> Vote 11 - [NAME OF VOTE 11] | C33: =A3A!C283 -> 0 | D33: =A3A!D283 -> 0 | E33: =A3A!E283 -> 0 | F33: =A3A!F283 -> 0 | G33: =A3A!G283 -> 0 | H33: =A3A!H283 -> 0 | I33: =A3A!I283 -> 0 | J33: =A3A!J283 -> 0 | K33: =A3A!K283 -> 0 | L33: =A3A!L284 -> 0
A34: =A3A!A294 -> Vote 12 - [NAME OF VOTE 12] | C34: =A3A!C294 -> 0 | D34: =A3A!D294 -> 0 | E34: =A3A!E294 -> 0 | F34: =A3A!F294 -> 0 | G34: =A3A!G294 -> 0 | H34: =A3A!H294 -> 0 | I34: =A3A!I294 -> 0 | J34: =A3A!J294 -> 0 | K34: =A3A!K294 -> 0 | L34: =A3A!L295 -> 0
A35: =A3A!A305 -> Vote 13 - [NAME OF VOTE 13] | C35: =A3A!C305 -> 0 | D35: =A3A!D305 -> 0 | E35: =A3A!E305 -> 0 | F35: =A3A!F305 -> 0 | G35: =A3A!G305 -> 0 | H35: =A3A!H305 -> 0 | I35: =A3A!I305 -> 0 | J35: =A3A!J305 -> 0 | K35: =A3A!K305 -> 0 | L35: =A3A!L306 -> 0
A36: =A3A!A316 -> Vote 14 - [NAME OF VOTE 14] | C36: =A3A!C316 -> 0 | D36: =A3A!D316 -> 0 | E36: =A3A!E316 -> 0 | F36: =A3A!F316 -> 0 | G36: =A3A!G316 -> 0 | H36: =A3A!H316 -> 0 | I36: =A3A!I316 -> 0 | J36: =A3A!J316 -> 0 | K36: =A3A!K316 -> 0 | L36: =A3A!L317 -> 0
A37: =A3A!A327 -> Vote 15 - [NAME OF VOTE 15] | C37: =A3A!C327 -> 0 | D37: =A3A!D327 -> 0 | E37: =A3A!E327 -> 0 | F37: =A3A!F327 -> 0 | G37: =A3A!G327 -> 0 | H37: =A3A!H327 -> 0 | I37: =A3A!I327 -> 0 | J37: =A3A!J327 -> 0 | K37: =A3A!K327 -> 0 | L37: =A3A!L328 -> 0
A38: Total Expenditure by Vote | B38: 2 | C38: =SUM(C23:C37) -> 5984002660 | D38: =SUM(D23:D37) -> 6949419417 | E38: =SUM(E23:E37) -> 6286095410 | F38: 7705199795 | G38: 7564011389 | H38: 7564011389 | I38: 8403380019 | J38: 9159284984 | K38: 1.00060498e+10 | L38: =SUM(L23:L29) -> 0 | M38: 0 | N38: 0 | O38: 0 | P38: 0 | Q38: 0 | R38: 0 | S38: 0 | T38: 0 | U38: 0 | V38: 0 | W38: 0
A39: =result -> Surplus/(Deficit) for the year | B39: 2 | C39: =C20-C38 -> 54956400 | D39: =D20-D38 -> -726982180 | E39: 525680299 | F39: 864226383 | G39: 881288077.4 | H39: 881288077.4 | I39: 1017498096 | J39: 1236949436 | K39: 1688154757 | L39: 0 | M39: 0 | N39: 0 | O39: 0 | P39: 0 | Q39: 0 | R39: 0 | S39: 0 | T39: 0 | U39: 0 | V39: 0 | W39: 0
A40: =head27a -> References
A41: 1. Insert 'Vote'; e.g. department, if different to functional classification structure
A42: 2. Must reconcile to Budgeted Financial Performance (revenue and expenditure)
A43: 3. Assign share in 'associate' to relevant Vote

Sheet A3A
A1: =muni&" - "&Approve2&"A" -> 0 - Table A3 Budgeted Financial Performance (revenue and expenditure by municipal vote)A
A2: =Vdesc -> Vote Description | B2: =head27 -> Ref | C2: =head1b -> 2020/21 | D2: =head1A -> 2021/22 | E2: =Head1 -> 2022/23 | F2: =Head2 -> Current Year 2023/24 | I2: =Head3 -> 2024/25 Medium Term Revenue & Expenditure Framework | L2: =Head4 -> LTFS
A3: R thousand | C3: =Head5 -> Audited Outcome | D3: =Head5 -> Audited Outcome | E3: =Head5 -> Audited Outcome | F3: =Head6 -> Original Budget | G3: =Head7 -> Adjusted Budget | H3: =Head8 -> Full Year Forecast | I3: =Head9 -> Budget Year 2024/25 | J3: =Head10 -> Budget Year +1 2025/26 | K3: =Head11 -> Budget Year +2 2026/27 | L3: =Head12 -> Forecast 2027/28 | M3: =Head13 -> Forecast 2028/29 | N3: =Head14 -> Forecast 2029/30 | O3: =Head15 -> Forecast 2030/31 | P3: =Head16 -> Forecast 2031/32 | Q3: =Head17 -> Forecast 2032/33 | R3: =Head18 -> Forecast 2033/34 | S3: =Head19 -> Forecast 2034/35 | T3: =Head20 -> Forecast 2035/36 | U3: =Head21 -> Forecast 2036/37 | V3: =Head22 -> Forecast 2037/38 | W3: =Head23 -> Forecast 2038/39
A4: Revenue by Vote | B4: 1
A5: ='Org structure'!A2 -> Vote 1 - City Manager | C5: =SUM(C6:C15) -> 316680.28 | D5: =SUM(D6:D15) -> 21554.57 | E5: -14882.48 | F5: 0 | G5: 0 | H5: 0 | I5: 0 | J5: 0 | K5: 0
A6: ='Org structure'!E3 -> 1.1 - Internal Audit and Compliance | C6: 2649.84 | D6: 2494.96 | E6: 0
A7: ='Org structure'!E4 -> 1.2 - Office of the City Manager | C7: 1290.14 | D7: 6831.15 | E7: -59.99
A8: ='Org structure'!E5 -> 1.3 - Political Support | C8: 12674.79 | D8: 11488.75 | E8: -14822.46
A9: ='Org structure'!E6 -> 1.4 - Strategic Planning | C9: 300065.51 | D9: 739.71 | E9: -0.03
A10: ='Org structure'!E7 -> 0
A11: ='Org structure'!E8 -> 0
A12: ='Org structure'!E9 -> 0
A13: ='Org structure'!E10 -> 0
A14: ='Org structure'!E11 -> 0
A15: ='Org structure'!E12 -> 0
A16: ='Org structure'!A3 -> Vote 2 - City Finance | C16: =SUM(C17:C26) -> 1673384926 | D16: =SUM(D17:D26) -> 1692708414 | E16: 1855452217 | F16: 2342934597 | G16: 2596123424 | H16: 2596123424 | I16: 2675602753 | J16: 2818298768 | K16: 2966287810
A17: ='Org structure'!E14 -> 2.1 - Asset Management | C17: 7754458.16 | D17: 20671097.22 | E17: 13821318.57 | F17: 19067376.06 | G17: 19067376.06 | H17: 19067376.06 | I17: 20116081.74 | J17: 21041421.5 | K17: 21988285.47
A18: ='Org structure'!E15 -> 2.2 - Budget and Treasury Management | C18: 385609372.7 | D18: 351346646.7 | E18: 399441924.2 | F18: 787224025.3 | G18: 787224025.3 | H18: 787224025.3 | I18: 843107146.8 | J18: 901508363.5 | K18: 963242054.9
A19: ='Org structure'!E16 -> 2.3 - Expenditure Management | C19: 1233.72 | D19: 527.39 | E19: -26.13 | F19: 411255.6181 | G19: 411255.61 | H19: 411255.61 | I19: 433874.6686 | J19: 453832.9033 | K19: 474255.384
A20: ='Org structure'!E17 -> 2.4 - Revenue Management | C20: 1279910171 | D20: 1320584646 | E20: 1442032316 | F20: 1535899001 | G20: 1789087828 | H20: 1789087828 | I20: 1811594399 | J20: 1894927742 | K20: 1980199490
A21: ='Org structure'!E18 -> 2.5 - Supply Chain Management | C21: 109689.85 | D21: 105497.07 | E21: 156684.33 | F21: 332939.1845 | G21: 332939.18 | H21: 332939.18 | I21: 351250.8349 | J21: 367408.3733 | K21: 383724.3378
A22: ='Org structure'!E19 -> 0
A23: ='Org structure'!E20 -> 0
A24: ='Org structure'!E21 -> 0
A25: ='Org structure'!E22 -> 0
A26: ='Org structure'!E23 -> 0
A27: ='Org structure'!A4 -> Vote 3 - Corporate Services | C27: =SUM(C28:C37) -> 3958707.15 | D27: =SUM(D28:D37) -> 3542654.18 | E27: 8603314.88 | F27: 7980216.973 | G27: 7910911.98 | H27: 7910911.98 | I27: 5258283.914 | J27: 3311932.974 | K27: 3460969.958
A28: ='Org structure'!E25 -> Human Resources Management | C28: 22555.09 | D28: 17396.22 | E28: 3375352.11 | F28: 2683430.277 | G28: 2892125.28 | H28: 2892125.28 | I28: 2831018.945 | J28: 2961245.817 | K28: 3094501.879
A29: ='Org structure'!E26 -> Information Technology | C29: 2567.63 | D29: 1711.96 | E29: -34.15 | F29: 2472.42645 | G29: 2472.43 | H29: 2472.43 | I29: 2608.41365 | J29: 2728.400678 | K29: 2851.178708
A30: ='Org structure'!E27 -> Legal Services | C30: 12247.85 | D30: 6513.46 | E30: 47.55 | F30: 315314.2694 | G30: 315314.27 | H30: 315314.27 | I30: 332656.5549 | J30: 347958.7564 | K30: 363616.9004
A31: ='Org structure'!E28 -> Secretariat and Auxiliary Services | C31: 3921336.58 | D31: 3517032.54 | E31: -201.25 | F31: 0 | G31: 0 | H31: 0 | I31: 0 | J31: 0 | K31: 0
A32: ='Org structure'!E29 -> General Manager: Corporate Service | E32: 5228150.62 | F32: 4979000 | G32: 4701000 | H32: 4701000 | I32: 2092000 | J32: 0 | K32: 0
A33: ='Org structure'!E30 -> 0
A34: ='Org structure'!E31 -> 0
A35: ='Org structure'!E32 -> 0
A36: ='Org structure'!E33 -> 0
A37: ='Org structure'!E34 -> 0
A38: ='Org structure'!A5 -> Vote 4 - Community Services and Social Equity | C38: =SUM(C39:C48) -> 198749941.6 | D38: 215034923.5 | E38: 235448191.6 | F38: 497013172.7 | G38: 296214767.8 | H38: 296214767.8 | I38: 490385956.1 | J38: 513886320.7 | K38: 547603373.5
A39: ='Org structure'!E36 -> 4.1 - Area Based Management | C39: 185977.7 | D39: 429151.76 | E39: 660775.37 | F39: 9788096.706 | G39: 9788096.69 | H39: 9788096.69 | I39: 10962668.29 | J39: 11466951.03 | K39: 11982508.43
A40: ='Org structure'!E37 -> 4.2 - Public Safety, Emergency Services and Enforcement | C40: 19855223.65 | D40: 18190539.34 | E40: 24640408.62 | F40: 8568779.072 | G40: 8568779.08 | H40: 8568779.08 | I40: 9172795.913 | J40: 9594744.525 | K40: 9952636.281
A41: ='Org structure'!E38 -> 4.3 - Recreation and Facilities | C41: 24190086.01 | D41: 45939601.26 | E41: 59893752.7 | F41: 319882193.8 | G41: 126982913.3 | H41: 126982913.3 | I41: 301270403.3 | J41: 316071073.7 | K41: 340960313.6
A42: ='Org structure'!E39 -> 4.4 - Waste Management | C42: 154518654.3 | D42: 150475631.1 | E42: 150253254.9 | F42: 158774103.1 | G42: 150874978.7 | H42: 150874978.7 | I42: 168980088.6 | J42: 176753551.4 | K42: 184707915.1
A43: ='Org structure'!E40 -> 0
A44: ='Org structure'!E41 -> 0
A45: ='Org structure'!E42 -> 0
A46: ='Org structure'!E43 -> 0
A47: ='Org structure'!E44 -> 0
A48: ='Org structure'!E45 -> 0
A49: ='Org structure'!A6 -> Vote 5 - Infrastructure Services | C49: =SUM(C50:C59) -> 1719141598 | D49: =SUM(D50:D59) -> 1596046262 | E49: 1628015025 | F49: 1520657146 | G49: 1473469435 | H49: 1473469435 | I49: 1540531143 | J49: 1660473387 | K49: 1768956412
A50: ='Org structure'!E47 -> 5.1 - Project Management Office | C50: 6074552.06 | D50: 6107917.56 | E50: 5460715.84 | F50: 9830360 | G50: 9020801.98 | H50: 9020801.98 | I50: 9120080 | J50: 9744479.64 | K50: 10627400
A51: ='Org structure'!E48 -> 5.2 - Roads and Transportation | C51: 234900598 | D51: 151378954 | E51: 47241673.42 | F51: 222714.297 | G51: 52822714.3 | H51: 52822714.3 | I51: 50261689.3 | J51: 100273727 | K51: 150286044.7
A52: ='Org structure'!E49 -> 5.3 - Water and Sanitation | C52: 1478166330 | D52: 1438552878 | E52: 1575312636 | F52: 1510604072 | G52: 1411625919 | H52: 1411625919 | I52: 1481149374 | J52: 1550455181 | K52: 1608042968
A53: ='Org structure'!E50 -> 5.4 - General Manager: Infrastructure | C53: 118 | D53: 6512.86 | E53: 0 | F53: 0 | G53: 0 | H53: 0 | I53: 0 | J53: 0 | K53: 0
A54: ='Org structure'!E51 -> 0
A55: ='Org structure'!E52 -> 0
A56: ='Org structure'!E53 -> 0
A57: ='Org structure'!E54 -> 0
A58: ='Org structure'!E55 -> 0
A59: ='Org structure'!E56 -> 0
A60: ='Org structure'!A7 -> Vote 6 - Sustainable Development and City Enterprises | C60: =SUM(C61:C70) -> 229818291.3 | D60: =SUM(D61:D70) -> 144081748.6 | E60: 248423314.1 | F60: 200280366 | G60: 473092745.8 | H60: 473092745.8 | I60: 366567368.2 | J60: 241680000.1 | K60: 272788688.2
A61: ='Org structure'!E58 -> 6.1 - City Entities | C61: 49772223.7 | D61: 26610735.06 | E61: 39317981.94 | F61: 110066430.8 | G61: 128366894.9 | H61: 128366894.9 | I61: 137116847.2 | J61: 156270972 | K61: 165334144.1
A62: ='Org structure'!E59 -> 6.2 - Development Services | C62: 607428.18 | D62: 37982121.61 | E62: 35447798.35 | F62: 2292326.484 | G62: 13306889.06 | H62: 13306889.06 | I62: 3280701.495 | J62: 2385613.764 | K62: 2490827.259
A63: ='Org structure'!E60 -> 6.3 - Human Settlement Development | C63: 142494414.7 | D63: 69982808.91 | E63: 55901245.1 | F63: 32320661.28 | G63: 197243659.3 | H63: 197243659.3 | I63: 190478177.4 | J63: 36090956.84 | K63: 37323978.11
A64: ='Org structure'!E61 -> 6.4 - Town Planning | C64: 36944224.7 | D64: 9506083 | E64: 117756288.8 | F64: 55600947.45 | G64: 134175302.5 | H64: 134175302.5 | I64: 35691641.99 | J64: 46932457.52 | K64: 67639738.68
A65: ='Org structure'!E62 -> 6.5 - General Manager: Sustainable Development and City Enterprises | E65: 0 | I65: 0 | J65: 0 | K65: 0
A66: ='Org structure'!E63 -> 0
A67: ='Org structure'!E64 -> 0
A68: ='Org structure'!E65 -> 0
A69: ='Org structure'!E66 -> 0
A70: ='Org structure'!E67 -> 0
A71: ='Org structure'!A8 -> Vote 7 - Electricity | C71: =SUM(C72:C81) -> 2213588916 | D71: 2571001680 | E71: 2835848529 | F71: 4000560679 | G71: 3598488181 | H71: 3598488181 | I71: 4342532610 | J71: 5158584011 | K71: 6135107301
A72: ='Org structure'!E69 -> 7.1 Electricity planning | C72: 2213588916 | D72: 2571001680 | E72: 54061006.76 | F72: 12000000 | G72: 12000000 | H72: 12000000 | I72: 20892768.47 | J72: 20056404.48 | K72: 25537121.33
A73: ='Org structure'!E70 -> 7.2 Methods and Standards | E73: 0 | F73: 0 | G73: 0 | H73: 0
A74: ='Org structure'!E71 -> 7.3 Operations and Maintenance | E74: 0 | F74: 0 | G74: 0 | H74: 0
A75: ='Org structure'!E72 -> 7.4 Revenue Management | E75: 2788392895 | F75: 3963821822 | G75: 3561749324 | H75: 3561749324 | I75: 4295540347 | J75: 5111227535 | K75: 6081041606
A76: ='Org structure'!E73 -> 7.5 General Manager Electricity | E76: -6605372.74 | F76: 24738856.93 | G76: 24738856.93 | H76: 24738856.93 | I76: 26099494.06 | J76: 27300070.79 | K76: 28528573.97
A77: ='Org structure'!E74 -> 0
A78: ='Org structure'!E75 -> 0
A79: ='Org structure'!E76 -> 0
A80: ='Org structure'!E77 -> 0
A81: ='Org structure'!E78 -> 0
A82: ='Org structure'!A9 -> Vote 8 - [NAME OF VOTE 8] | C82: =SUM(C83:C92) -> 0 | D82: =SUM(D83:D92) -> 0 | E82: 0 | F82: 0 | G82: 0 | H82: 0
A83: ='Org structure'!E80 -> 8.1 - [Name of sub-vote]
A84: ='Org structure'!E81 -> 0
A85: ='Org structure'!E82 -> 0
A86: ='Org structure'!E83 -> 0
A87: ='Org structure'!E84 -> 0
A88: ='Org structure'!E85 -> 0
A89: ='Org structure'!E86 -> 0
A90: ='Org structure'!E87 -> 0
A91: ='Org structure'!E88 -> 0
A92: ='Org structure'!E89 -> 0
A93: ='Org structure'!A10 -> Vote 9 - [NAME OF VOTE 9] | C93: =SUM(C94:C103) -> 0 | D93: =SUM(D94:D103) -> 0 | E93: 0 | F93: 0 | G93: 0 | H93: 0
A94: ='Org structure'!E91 -> 9.1 - [Name of sub-vote]
A95: ='Org structure'!E92 -> 0
A96: ='Org structure'!E93 -> 0
A97: ='Org structure'!E94 -> 0
A98: ='Org structure'!E95 -> 0
A99: ='Org structure'!E96 -> 0
A100: ='Org structure'!E97 -> 0
A101: ='Org structure'!E98 -> 0
A102: ='Org structure'!E99 -> 0
A103: ='Org structure'!E100 -> 0
A104: ='Org structure'!A11 -> Vote 10 - [NAME OF VOTE 10] | C104: =SUM(C105:C114) -> 0 | D104: =SUM(D105:D114) -> 0 | E104: 0 | F104: 0 | G104: 0 | H104: 0
A105: ='Org structure'!E102 -> 10.1 - [Name of sub-vote]
A106: ='Org structure'!E103 -> 0
A107: ='Org structure'!E104 -> 0
A108: ='Org structure'!E105 -> 0
A109: ='Org structure'!E106 -> 0
A110: ='Org structure'!E107 -> 0
A111: ='Org structure'!E108 -> 0
A112: ='Org structure'!E109 -> 0
A113: ='Org structure'!E110 -> 0
A114: ='Org structure'!E111 -> 0
A115: ='Org structure'!A12 -> Vote 11 - [NAME OF VOTE 11] | C115: =SUM(C116:C125) -> 0 | D115: =SUM(D116:D125) -> 0 | E115: 0 | F115: 0 | G115: 0 | H115: 0
A116: ='Org structure'!E113 -> 11.1 - [Name of sub-vote]
A117: ='Org structure'!E114 -> 0
A118: ='Org structure'!E115 -> 0
A119: ='Org structure'!E116 -> 0
A120: ='Org structure'!E117 -> 0
A121: ='Org structure'!E118 -> 0
A122: ='Org structure'!E119 -> 0
A123: ='Org structure'!E120 -> 0
A124: ='Org structure'!E121 -> 0
A125: ='Org structure'!E122 -> 0
A126: ='Org structure'!A13 -> Vote 12 - [NAME OF VOTE 12] | C126: =SUM(C127:C136) -> 0 | D126: =SUM(D127:D136) -> 0 | E126: 0 | F126: 0 | G126: 0 | H126: 0
A127: ='Org structure'!E124 -> 12.1 - [Name of sub-vote]
A128: ='Org structure'!E125 -> 0
A129: ='Org structure'!E126 -> 0
A130: ='Org structure'!E127 -> 0
A131: ='Org structure'!E128 -> 0
A132: ='Org structure'!E129 -> 0
A133: ='Org structure'!E130 -> 0
A134: ='Org structure'!E131 -> 0
A135: ='Org structure'!E132 -> 0
A136: ='Org structure'!E133 -> 0
A137: ='Org structure'!A14 -> Vote 13 - [NAME OF VOTE 13] | C137: =SUM(C138:C147) -> 0 | D137: =SUM(D138:D147) -> 0 | E137: 0 | F137: 0 | G137: 0 | H137: 0 | I137: 0 | J137: 0 | K137: 0
A138: ='Org structure'!E135 -> 13.1 - [Name of sub-vote]
A139: ='Org structure'!E136 -> 0
A140: ='Org structure'!E137 -> 0
A141: ='Org structure'!E138 -> 0
A142: ='Org structure'!E139 -> 0
A143: ='Org structure'!E140 -> 0
A144: ='Org structure'!E141 -> 0
A145: ='Org structure'!E142 -> 0
A146: ='Org structure'!E143 -> 0
A147: ='Org structure'!E144 -> 0
A148: ='Org structure'!A15 -> Vote 14 - [NAME OF VOTE 14] | C148: =SUM(C149:C158) -> 0 | D148: =SUM(D149:D158) -> 0 | E148: 0 | F148: 0 | G148: 0 | H148: 0 | I148: 0 | J148: 0 | K148: 0
A149: ='Org structure'!E146 -> 14.1 - [Name of sub-vote]
A150: ='Org structure'!E147 -> 0
A151: ='Org structure'!E148 -> 0
A152: ='Org structure'!E149 -> 0
A153: ='Org structure'!E150 -> 0
A154: ='Org structure'!E151 -> 0
A155: ='Org structure'!E152 -> 0
A156: ='Org structure'!E153 -> 0
A157: ='Org structure'!E154 -> 0
A158: ='Org structure'!E155 -> 0
A159: ='Org structure'!A16 -> Vote 15 - [NAME OF VOTE 15] | C159: =SUM(C160:C169) -> 0 | D159: =SUM(D160:D169) -> 0 | E159: 0 | F159: 0 | G159: 0 | H159: 0 | I159: 0 | J159: 0 | K159: 0
A160: ='Org structure'!E157 -> 15.1 - [Name of sub-vote]
A161: ='Org structure'!E158 -> 0
A162: ='Org structure'!E159 -> 0
A163: ='Org structure'!E160 -> 0
A164: ='Org structure'!E161 -> 0
A165: ='Org structure'!E162 -> 0
A166: ='Org structure'!E163 -> 0
A167: ='Org structure'!E164 -> 0
A168: ='Org structure'!E165 -> 0
A169: ='Org structure'!E166 -> 0
A170: Total Revenue by Vote | B170: 2 | C170: =C5+C16+C27+C38+C49+C60+C71+C82+C93+C104+C115+C126+C137+C148+C159 -> 6038959060 | D170: =D5+D16+D27+D38+D49+D60+D71+D82+D93+D104+D115+D126+D137+D148+D159 -> 6222437237 | E170: =E5+E16+E27+E38+E49+E60+E71+E82+E93+E104+E115+E126+E137+E148+E159 -> 6811775709 | F170: 8569426178 | G170: 8445299466 | H170: 8445299466 | I170: =I5+I16+I27+I38+I49+I60+I71+I82+I93+I104+I115+I126+I137+I148+I159 -> 9420878115 | J170: 1.039623442e+10 | K170: 1.169420456e+10 | L170: =SUM(L78:L81) -> 0 | M170: 0 | N170: 0 | O170: 0 | P170: 0 | Q170: 0 | R170: 0 | S170: 0 | T170: 0 | U170: 0 | V170: 0 | W170: 0 | AC170: =AB170-E170 -> -6811775709
A172: Expenditure by Vote | B172: 1
A173: =A5 -> Vote 1 - City Manager | C173: =SUM(C174:C183) -> 144293564.4 | D173: 155043755.9 | E173: 151981634.6 | F173: 300105971.1 | G173: 197403240.6 | H173: 197403240.6 | I173: 191819668.5 | J173: 218838271.1 | K173: 229425708.9
A174: =A6 -> 1.1 - Internal Audit and Compliance | C174: 16962222.89 | D174: 19542685.37 | E174: 19400648.37 | F174: 28455035.46 | G174: 34367710.46 | H174: 34367710.46 | I174: 28259494.71 | J174: 37925424.87 | K174: 39095322.2
A175: 1.2 - Office of the City Manager | C175: 40195404.76 | D175: 30952176.34 | E175: 25450839.94 | F175: 160808892.2 | G175: 45551895.72 | H175: 45551895.72 | I175: 45827363.93 | J175: 50116138.57 | K175: 52164506.35
A176: 1.3 - Political Support | C176: 80362958.21 | D176: 98141952.22 | E176: 96915080.57 | F176: 101392330.3 | G176: 112214368.7 | H176: 112214368.7 | I176: 108207922.9 | J176: 117356588.9 | K176: 123757954.8
A177: 1.4 - Strategic Planning | C177: 6772978.5 | D177: 6406941.96 | E177: 10215065.73 | F177: 9449713.077 | G177: 5269265.68 | H177: 5269265.68 | I177: 9524886.968 | J177: 13440118.85 | K177: 14407925.53
A178: 0
A179: 0
A180: 0
A181: 0
A182: 0
A183: 0
A184: =A16 -> Vote 2 - City Finance | C184: =SUM(C185:C194) -> 951383518.4 | D184: =SUM(D185:D194) -> 611783863.7 | E184: =SUM(E185:E194) -> 362344580.9 | F184: 799187822.7 | G184: 1208252871 | H184: 1208252871 | I184: 1166932156 | J184: 1228986541 | K184: 1282055868
A185: =A17 -> 2.1 - Asset Management | C185: 74248458.53 | D185: 76038184.1 | E185: 69681320.96 | F185: 81457538.5 | G185: 118516081.9 | H185: 118516081.9 | I185: 95532173.96 | J185: 100103757 | K185: 102777518.9
A186: 2.2 - Budget and Treasury Management | C186: 130822583.2 | D186: 124803387.2 | E186: 70891096.18 | F186: 139219805.8 | G186: 93057917.1 | H186: 93057917.1 | I186: 134603926.3 | J186: 143878525.2 | K186: 150192281.9
A187: 2.3 - Expenditure Management | C187: 44830103.27 | D187: 40273490.67 | E187: 39636978.73 | F187: 43561837.16 | G187: 52655320.98 | H187: 52655320.98 | I187: 42985050.17 | J187: 47050407.63 | K187: 49151497.18
A188: 2.4 - Revenue Management | C188: 637431771.8 | D188: 295599065.9 | E188: 86344651.33 | F188: 459180490.1 | G188: 908866963.2 | H188: 908866963.2 | I188: 795399549.5 | J188: 835077057 | K188: 872551785.8
A189: 2.5 - Supply Chain Management | C189: 64050601.54 | D189: 75069735.87 | E189: 95790533.72 | F189: 75768151.16 | G189: 35156587.64 | H189: 35156587.64 | I189: 98411455.53 | J189: 102876794.3 | K189: 107382783.8
A190: 0
A191: 0
A192: 0
A193: 0
A194: 0
A195: =A27 -> Vote 3 - Corporate Services | C195: =SUM(C196:C205) -> 89837684.96 | D195: 69616493.69 | E195: 163339219.3 | F195: 195633443.4 | G195: 158753924.9 | H195: 158753924.9 | I195: 212747027.2 | J195: 224973364.1 | K195: 247301581.7
A196: Human Resources Management | C196: 33578160.71 | D196: 29012266.82 | E196: 62022384.88 | F196: 82790450.05 | G196: 44067840.76 | H196: 44067840.76 | I196: 93075683.15 | J196: 92281645.41 | K196: 98276559.08
A197: Information Technology | C197: 13829269.89 | D197: 10503949.75 | E197: 51838622.35 | F197: 56146777.96 | G197: 59325102.1 | H197: 59325102.1 | I197: 50169008.88 | J197: 60792996.1 | K197: 63924567.51
A198: Legal Services | C198: 23534277.58 | D198: 23571277.44 | E198: 14853751.83 | F198: 18240282.65 | G198: 1551343.52 | H198: 1551343.52 | I198: 19907466.71 | J198: 23129513.4 | K198: 24228662.76
A199: Secretariat and Auxiliary Services | C199: 18895976.78 | D199: 6528999.68 | E199: 26567553.25 | F199: 25452722.21 | G199: 25884797.17 | H199: 25884797.17 | I199: 35151661.89 | J199: 35872073.83 | K199: 47398265.48
A200: General Manager: Corporate Service | E200: 8056907.03 | F200: 13003210.51 | G200: 27924841.38 | H200: 27924841.38 | I200: 14443206.57 | J200: 12897135.4 | K200: 13473526.9
A201: 0
... 142 more rows

Sheet A4-FinPerf RE
A1: =muni&" - "&Approve4 -> 0 - Table A4 Budgeted Financial Performance (revenue and expenditure)
A2: =desc -> Description | B2: =head27 -> Ref | C2: =head1b -> 2020/21 | D2: =head1A -> 2021/22 | E2: =Head1 -> 2022/23 | F2: =Head2 -> Current Year 2023/24 | J2: =Head3 -> 2024/25 Medium Term Revenue & Expenditure Framework | M2: =Head4 -> LTFS
A3: R thousand | B3: 1 | C3: =Head5 -> Audited Outcome | D3: =Head5 -> Audited Outcome | E3: =Head5 -> Audited Outcome | F3: =Head6 -> Original Budget | G3: =Head7 -> Adjusted Budget | H3: =Head8 -> Full Year Forecast | I3: =Head5b -> Pre-audit outcome | J3: =Head9 -> Budget Year 2024/25 | K3: =Head10 -> Budget Year +1 2025/26 | L3: =Head11 -> Budget Year +2 2026/27 | M3: =Head12 -> Forecast 2027/28 | N3: =Head13 -> Forecast 2028/29 | O3: =Head14 -> Forecast 2029/30 | P3: =Head15 -> Forecast 2030/31 | Q3: =Head16 -> Forecast 2031/32 | R3: =Head17 -> Forecast 2032/33 | S3: =Head18 -> Forecast 2033/34 | T3: =Head19 -> Forecast 2034/35 | U3: =Head20 -> Forecast 2035/36 | V3: =Head21 -> Forecast 2036/37 | W3: =Head22 -> Forecast 2037/38 | X3: =Head23 -> Forecast 2038/39
A4: Revenue
A5: Exchange Revenue
A6: Service charges - Electricity | B6: 2 | C6: ='SA1'!C17 -> 2152783170 | D6: ='SA1'!D17 -> 2549652864 | E6: ='SA1'!E17 -> 2724539631 | F6: ='SA1'!F17 -> 3892818096 | G6: ='SA1'!G17 -> 3673354756 | H6: ='SA1'!H17 -> 3673354756 | I6: ='SA1'!I17 -> 0 | J6: ='SA1'!J17 -> 4297825065 | K6: ='SA1'!K17 -> 5115198800 | L6: ='SA1'!L17 -> 6087086572
A7: Service charges - Water | B7: 2 | C7: ='SA1'!C23 -> 773169373 | D7: ='SA1'!D23 -> 773657197 | E7: ='SA1'!E23 -> 824368756 | F7: ='SA1'!F23 -> 901571501.8 | G7: ='SA1'!G23 -> 901571501.8 | H7: ='SA1'!H23 -> 901571501.8 | I7: ='SA1'!I23 -> 0 | J7: ='SA1'!J23 -> 1009760082 | K7: ='SA1'!K23 -> 1056209046 | L7: ='SA1'!L23 -> 1103738453
A8: Service charges - Waste Water Management | B8: 2 | C8: ='SA1'!C29 -> 167102484 | D8: ='SA1'!D29 -> 182241050 | E8: ='SA1'!E29 -> 197959736 | F8: ='SA1'!F29 -> 202499871.9 | G8: ='SA1'!G29 -> 202499871.9 | H8: ='SA1'!H29 -> 202499871.9 | I8: ='SA1'!I29 -> 0 | J8: ='SA1'!J29 -> 220724860.4 | K8: ='SA1'!K29 -> 230878204 | L8: ='SA1'!L29 -> 241267723.2
A9: Service charges - Waste Management | B9: 2 | C9: ='SA1'!C36 -> 113696636 | D9: ='SA1'!D36 -> 114118706 | E9: ='SA1'!E36 -> 123629075 | F9: ='SA1'!F36 -> 138741765.1 | G9: ='SA1'!G36 -> 138741765.1 | H9: ='SA1'!H36 -> 138741765.1 | I9: ='SA1'!I36 -> 0 | J9: ='SA1'!J36 -> 155390776.9 | K9: ='SA1'!K36 -> 162538752.7 | L9: ='SA1'!L36 -> 169852996.5
A10: Sale of Goods and Rendering of Services | C10: 9320476 | D10: 11474040 | E10: 10975823 | G10: 0 | H10: 0
A11: Agency services | C11: 1931382 | D11: 2139483 | E11: 2598950 | F11: 714790.3238 | G11: 714790.3238 | H11: 714790.3238 | J11: 764825.6424 | K11: 800007.622 | L11: 836007.9649
A12: Interest | G12: 0 | H12: 0 | J12: 19135146.8 | K12: 20015363.55 | L12: 20916054.91
A13: Interest earned from Receivables | C13: 144311904 | D13: 148962699 | E13: 158697404 | F13: 198174144 | G13: 198174144 | H13: 198174144
A14: Interest earned from Current and Non Current Assets | C14: 8455919 | D14: 10535026 | F14: 18052025.28 | G14: 18052025.28 | H14: 18052025.28 | J14: 290244092.2 | K14: 303595320.4 | L14: 317257109.9
A15: Dividends | G15: 0 | H15: 0
A16: Rent on Land | C16: 14558911 | G16: 0 | H16: 0
A17: Rental from Fixed Assets | C17: 148196 | D17: 25415308 | E17: 20071337.02 | F17: 104823531.7 | G17: 104823531.7 | H17: 104823531.7 | J17: 113961628.7 | K17: 119203863.6 | L17: 124568037.5
A18: Licence and permits | D18: 984210 | G18: 2451743.957 | H18: 2451743.957
A19: Operational Revenue | C19: 44527160 | D19: 54566408 | E19: 57528560 | F19: 230407182.4 | G19: 230407182.4 | H19: 230407182.4 | J19: 246167058.6 | K19: 257490743.3 | L19: 269077826.8
A20: Non-Exchange Revenue
A21: Property rates | B21: 2 | C21: ='SA1'!C10 -> 1232330305 | D21: ='SA1'!D10 -> 1211348604 | E21: ='SA1'!E10 -> 1370173436 | F21: ='SA1'!F10 -> 1526985082 | G21: ='SA1'!G10 -> 1526985082 | H21: ='SA1'!H10 -> 1526985082 | I21: ='SA1'!I10 -> 0 | J21: ='SA1'!J10 -> 1649352521 | K21: ='SA1'!K10 -> 1725222737 | L21: ='SA1'!L10 -> 1802857760
A22: Surcharges and Taxes | G22: 0 | H22: 0
A23: Fines, penalties and forfeits | C23: 16062035 | D23: 14488973 | E23: 20129364.79 | F23: 14659914.48 | G23: 14659914.48 | H23: 14659914.48 | J23: 11687216.86 | K23: 12224828.84 | L23: 12640473.02
A24: Licences or permits | C24: 602789 | E24: 2415455.89 | F24: 2451743.957 | G24: 0 | H24: 0 | J24: 2546799.704 | K24: 2663952.49 | L24: 2783830.352
A25: Transfer and subsidies - Operational | C25: 757425720 | D25: 681737625 | E25: 801751325 | F25: 838135150 | G25: 846015625.9 | H25: 846015625.9 | J25: 956879939.3 | K25: 1000217863 | L25: 1067329110
A26: Interest | C26: 38479755 | D26: 50189792 | E26: 63180751 | F26: 50691327 | G26: 50691327 | H26: 50691327
A27: Fuel Levy | G27: 0 | H27: 0
A28: Operational Revenue | G28: 0 | H28: 0
A29: Gains on disposal of Assets | D29: 4179142 | G29: 0 | H29: 0
A30: Other Gains | C30: 65449428 | D30: 18021493 | E30: 109436834.1 | G30: 0 | H30: 0
A31: Discontinued Operations | G31: 0 | H31: 0
A32: Total Revenue (excluding capital transfers and contributions) | C32: =SUM(C6:C19)+SUM(C21:C31) -> 5540355643 | D32: =SUM(D6:D19)+SUM(D21:D31) -> 5853712620 | E32: 6487456439 | F32: 8120726125 | G32: 7909143262 | H32: 7909143262 | I32: 0 | J32: 8974440013 | K32: 1.000625948e+10 | L32: 1.122021196e+10
A33: Expenditure
A34: Employee related costs | B34: 2 | C34: ='SA1'!C71 -> 1418425769 | D34: ='SA1'!D71 -> 1494486747 | E34: ='SA1'!E71 -> 1563267990 | F34: ='SA1'!F71 -> 1781210508 | G34: ='SA1'!G71 -> 1704864655 | H34: ='SA1'!H71 -> 1704864655 | I34: ='SA1'!I71 -> 0 | J34: ='SA1'!J71 -> 1847015838 | K34: ='SA1'!K71 -> 1932272500 | L34: ='SA1'!L71 -> 2020335650 | M34: ='SA1'!M71 -> 0 | N34: ='SA1'!N71 -> 0 | O34: ='SA1'!O71 -> 0 | P34: ='SA1'!P71 -> 0 | Q34: ='SA1'!Q71 -> 0 | R34: ='SA1'!R71 -> 0 | S34: ='SA1'!S71 -> 0 | T34: ='SA1'!T71 -> 0
A35: Remuneration of councillors | C35: 51641246 | D35: 49529446 | E35: 51817506.85 | F35: 62699934.99 | G35: 62699934.99 | H35: 62699934.99 | J35: 66461931.11 | K35: 69519179.94 | L35: 72647543.04
A36: Bulk purchases - electricity | B36: 2 | C36: ='SA1'!C88 -> 2659404299 | D36: ='SA1'!D88 -> 2950207305 | E36: ='SA1'!E88 -> 2350400905 | F36: ='SA1'!F88 -> 2514000000 | G36: ='SA1'!G88 -> 2714000000 | H36: ='SA1'!H88 -> 2714000000 | I36: ='SA1'!I88 -> 0 | J36: ='SA1'!J88 -> 3145118900 | K36: ='SA1'!K88 -> 3638902567 | L36: ='SA1'!L88 -> 4210210270
A37: Inventory consumed | B37: 8 | C37: ='SA1'!C169 -> 805485082 | D37: ='SA1'!D169 -> 84307652 | E37: ='SA1'!E169 -> 739336382 | F37: ='SA1'!F169 -> 970629036 | G37: ='SA1'!G169 -> 878156262 | H37: ='SA1'!H169 -> 878156262 | I37: ='SA1'!I169 -> 0 | J37: ='SA1'!J169 -> 993409214.4 | K37: ='SA1'!K169 -> 1033519715 | L37: ='SA1'!L169 -> 1097025092
A38: Debt impairment | B38: 3 | C38: 236403910 | D38: 1003762757 | E38: 71195569 | F38: 600000000 | G38: 600000000 | H38: 600000000 | J38: 636000000 | K38: 665256000 | L38: 695192520
A39: Depreciation and amortisation | C39: ='SA1'!C83 -> 372532037 | D39: ='SA1'!D83 -> 366625069 | E39: ='SA1'!E83 -> 337452386 | F39: ='SA1'!F83 -> 460781797 | G39: ='SA1'!G83 -> 461615991.2 | H39: ='SA1'!H83 -> 461615991.2 | I39: ='SA1'!I83 -> 0 | J39: ='SA1'!J83 -> 362178747.5 | K39: ='SA1'!K83 -> 349782306.6 | L39: ='SA1'!L83 -> 345694135.9
A40: Interest | C40: 35856007 | D40: 143221895 | E40: 143221895 | F40: 40400879.72 | G40: 40400879.72 | H40: 40400879.72 | J40: 42824930.71 | K40: 44794877.52 | L40: 46810647.01
A41: Contracted services | C41: ='SA1'!C127 -> 575663952 | D41: ='SA1'!D127 -> 722753886 | E41: ='SA1'!E127 -> 797503868 | F41: ='SA1'!F127 -> 994210937 | G41: ='SA1'!G127 -> 855313662 | H41: ='SA1'!H127 -> 855313662 | I41: ='SA1'!I127 -> 0 | J41: ='SA1'!J127 -> 1023282031 | K41: ='SA1'!K127 -> 1103978058 | L41: ='SA1'!L127 -> 1178097106
A42: Transfers and subsidies | C42: ='SA1'!C93 -> 16870304 | D42: ='SA1'!D93 -> 32412674 | E42: ='SA1'!E93 -> 29562255 | F42: ='SA1'!F93 -> 51023537 | G42: ='SA1'!G93 -> 44584470 | H42: ='SA1'!H93 -> 44584470 | I42: ='SA1'!I93 -> 0 | J42: ='SA1'!J93 -> 69670130.46 | K42: ='SA1'!K93 -> 72874955.54 | L42: ='SA1'!L93 -> 76154327.64
A43: Irrecoverable debts written off | C43: 390096130 | D43: 83779107 | E43: 26721381
A44: Operational costs | C44: ='SA1'!C157 -> 128891893 | D44: ='SA1'!D157 -> 121311526 | E44: ='SA1'!E157 -> 175615272 | F44: ='SA1'!F157 -> 215382233 | G44: ='SA1'!G157 -> 202667445 | H44: ='SA1'!H157 -> 202667445 | I44: ='SA1'!I157 -> 0 | J44: ='SA1'!J157 -> 217418296.8 | K44: ='SA1'!K157 -> 253179701.4 | L44: ='SA1'!L157 -> 270693153.3
A45: Losses on disposal of Assets | C45: 10483210 | D45: 16100000
A46: Other Losses | C46: 29575581 | D46: 9598789
A47: Total Expenditure | C47: =SUM(C34:C46) -> 6731329420 | D47: =SUM(D34:D46) -> 7078096853 | E47: 6286095410 | F47: 7690338863 | G47: 7564303300 | H47: 7564303300 | I47: 0 | J47: 8403380019 | K47: 9164079861 | L47: 1.001286045e+10 | M47: =SUM(M34:M46) -> 0 | N47: 0 | O47: 0 | P47: 0 | Q47: 0 | R47: 0 | S47: 0 | T47: 0 | U47: 0 | V47: 0 | W47: 0 | X47: 0
A48: Surplus/(Deficit) | C48: =C32-C47 -> -1190973777 | D48: =D32-D47 -> -1224384233 | E48: 201361029 | F48: 430387262.5 | G48: 344839962.4 | H48: 344839962.4 | I48: 0 | J48: 571059993.9 | K48: 842179620.6 | L48: 1207351510 | M48: =M32+M47 -> 0 | N48: 0 | O48: 0 | P48: 0 | Q48: 0 | R48: 0 | S48: 0 | T48: 0 | U48: 0 | V48: 0 | W48: 0 | X48: 0
A49: Transfers and subsidies - capital (monetary allocations) | B49: 6 | C49: 498603415 | D49: 374230230 | E49: 324319270 | F49: 448700055 | G49: 536156204 | H49: 536156204 | J49: 446438101.9 | K49: 389974937.8 | L49: 473992600
A50: Transfers and subsidies - capital (in-kind) | B50: 6
A51: Surplus/(Deficit) after capital transfers & contributions | C51: =SUM(C48:C50) -> -692370362 | D51: =SUM(D48:D50) -> -850154003 | E51: 525680299 | F51: 879087317.5 | G51: 880996166.4 | H51: 880996166.4 | I51: 0 | J51: 1017498096 | K51: 1232154558 | L51: 1681344110
A52: Income Tax
A53: Surplus/(Deficit) after income tax | C53: =+C51-C52 -> -692370362 | D53: =+D51-D52 -> -850154003 | E53: 525680299 | F53: 879087317.5 | G53: 880996166.4 | H53: 880996166.4 | I53: 0 | J53: 1017498096 | K53: 1232154558 | L53: 1681344110 | M53: 0 | N53: 0 | O53: 0 | P53: 0 | Q53: 0
A54: Share of Surplus/Deficit attributable to Joint Venture
A55: Share of Surplus/Deficit attributable to Minorities
A56: Surplus/(Deficit) attributable to municipality | C56: =SUM(C53:C55) -> -692370362 | D56: =SUM(D53:D55) -> -850154003 | E56: 525680299 | F56: 879087317.5 | G56: 880996166.4 | H56: 880996166.4 | I56: 0 | J56: 1017498096 | K56: 1232154558 | L56: 1681344110 | M56: 0 | N56: 0 | O56: 0 | P56: 0 | Q56: 0
A57: Share of Surplus/Deficit attributable to Associate | B57: 7
A58: Intercompany/Parent subsidiary transactions
A59: =result -> Surplus/(Deficit) for the year | B59: 1 | C59: =SUM(C56:C58) -> -692370362 | D59: =SUM(D56:D58) -> -850154003 | E59: 525680299 | F59: 879087317.5 | G59: 880996166.4 | H59: 880996166.4 | I59: 0 | J59: 1017498096 | K59: 1232154558 | L59: 1681344110 | M59: 0 | N59: 0 | O59: 0 | P59: 0 | Q59: 0 | R59: =R35+R58 -> 0 | S59: 0 | T59: 0 | U59: 0 | V59: 0 | W59: 0 | X59: 0
A60: References
A61: 1. Classifications are revenue sources and expenditure type
A62: 2. Detail to be provided in Table SA1 | O62: =O59-'A4-FinPerf RE'!J59 -> -1017498096 | P62: =P59-'A4-FinPerf RE'!K59 -> -1232154558 | Q62: =Q59-'A4-FinPerf RE'!L59 -> -1681344110
A63: 3. Debt impairment includes Impairment and Reversal of Impairment Losses
A64: 4. Expenditure type components previously shown under repairs and maintenance should be allocated back to the originating expenditure group/item; e.g. employee costs
A65: 5. Repairs & maintenance detailed in Table A9 and Table SA34c
A66: 6. Contributions are funds provided by external organisations to assist with infrastructure development; e.g. developer contributions (detail to be provided in Table SA1)
A67: 7. Equity method ( Includes Joint Ventures)
A68: 8. All materials consumed including water consumed and materials used in operations.

Sheet A5-Capex
A2: =Vdesc -> Vote Description | B2: =head27 -> Ref | C2: =head1b -> 2020/21 | D2: =head1A -> 2021/22 | E2: =Head1 -> 2022/23 | F2: =Head2 -> Current Year 2023/24 | J2: =Head3 -> 2024/25 Medium Term Revenue & Expenditure Framework
A3: R thousand | B3: 1 | C3: =Head5 -> Audited Outcome | D3: =Head5 -> Audited Outcome | E3: =Head5 -> Audited Outcome | F3: =Head6 -> Original Budget | G3: =Head7 -> Adjusted Budget | H3: =Head8 -> Full Year Forecast | I3: =Head5b -> Pre-audit outcome | J3: =Head9 -> Budget Year 2024/25 | K3: =Head10 -> Budget Year +1 2025/26 | L3: =Head11 -> Budget Year +2 2026/27
A4: Capital expenditure - Vote
A5: Multi-year expenditure to be appropriated | B5: 2
A6: =A5A!A6 -> Vote 1 - City Manager | C6: =A5A!C6 -> 0 | D6: =A5A!D6 -> 1613825.13 | E6: =A5A!E6 -> 27000 | F6: =A5A!F6 -> 0 | G6: =A5A!G6 -> 0 | H6: =A5A!H6 -> 0 | I6: =A5A!I6 -> 0 | J6: =A5A!J6 -> 0 | K6: =A5A!K6 -> 0 | L6: =A5A!L6 -> 0
A7: =A5A!A17 -> Vote 2 - City Finance | C7: =A5A!C17 -> 1592912.04 | D7: =A5A!D17 -> 4935541.48 | E7: =A5A!E17 -> 9153029.53 | F7: =A5A!F17 -> 30000000 | G7: =A5A!G17 -> 30000000 | H7: =A5A!H17 -> 30000000 | I7: =A5A!I17 -> 0 | J7: =A5A!J17 -> 25000000 | K7: =A5A!K17 -> 26125000 | L7: =A5A!L17 -> 26677875
A8: =A5A!A28 -> Vote 3 - Corporate Services | C8: =A5A!C28 -> 971615.63 | D8: =A5A!D28 -> 2272710.48 | E8: =A5A!E28 -> 937669.79 | F8: =A5A!F28 -> 10000000 | G8: =A5A!G28 -> 3318000 | H8: =A5A!H28 -> 3318000 | I8: =A5A!I28 -> 0 | J8: =A5A!J28 -> 6585000 | K8: =A5A!K28 -> 8714000 | L8: =A5A!L28 -> 8000000
A9: =A5A!A39 -> Vote 4 - Community Services and Social Equity | C9: =A5A!C39 -> 24381249.32 | D9: =A5A!D39 -> 33154389.84 | E9: =A5A!E39 -> 48934490.92 | F9: =A5A!F39 -> 24886499.05 | G9: =A5A!G39 -> 68123568 | H9: =A5A!H39 -> 68123568 | I9: =A5A!I39 -> 0 | J9: =A5A!J39 -> 42142711.2 | K9: =A5A!K39 -> 45728706.64 | L9: =A5A!L39 -> 48042448.56
A10: =A5A!A50 -> Vote 5 - Infrastructure Services | C10: =A5A!C50 -> 404546366.1 | D10: =A5A!D50 -> 308960388.3 | E10: =A5A!E50 -> 268923267.1 | F10: =A5A!F50 -> 318102140 | G10: =A5A!G50 -> 237994494 | H10: =A5A!H50 -> 237994494 | I10: =A5A!I50 -> 0 | J10: =A5A!J50 -> 303186097.9 | K10: =A5A!K50 -> 331647914.4 | L10: =A5A!L50 -> 388918928.5
A11: =A5A!A61 -> Vote 6 - Sustainable Development and City Enterprises | C11: =A5A!C61 -> 180965008.9 | D11: =A5A!D61 -> 51772460.63 | E11: =A5A!E61 -> 133279407.1 | F11: =A5A!F61 -> 144745414.9 | G11: =A5A!G61 -> 266966935.4 | H11: =A5A!H61 -> 266966935.4 | I11: =A5A!I61 -> 0 | J11: =A5A!J61 -> 153598529.7 | K11: =A5A!K61 -> 33421180.73 | L11: =A5A!L61 -> 53501810.95
A12: =A5A!A72 -> Vote 7 - Electricity | C12: =A5A!C72 -> 46850530.93 | D12: =A5A!D72 -> 98800431.88 | E12: =A5A!E72 -> 71071450.3 | F12: =A5A!F72 -> 175400000 | G12: =A5A!G72 -> 141974950 | H12: =A5A!H72 -> 141974950 | I12: =A5A!I72 -> 0 | J12: =A5A!J72 -> 256053551.7 | K12: =A5A!K72 -> 23576718.2 | L12: =A5A!L72 -> 27697411.98
A13: =A5A!A83 -> Vote 8 - [NAME OF VOTE 8] | C13: =A5A!C83 -> 0 | D13: =A5A!D83 -> 0 | E13: =A5A!E83 -> 0 | F13: =A5A!F83 -> 0 | G13: =A5A!G83 -> 0 | H13: =A5A!H83 -> 0 | I13: =A5A!I83 -> 0 | J13: =A5A!J83 -> 0 | K13: =A5A!K83 -> 0 | L13: =A5A!L83 -> 0
A14: =A5A!A94 -> Vote 9 - [NAME OF VOTE 9] | C14: =A5A!C94 -> 0 | D14: =A5A!D94 -> 0 | E14: =A5A!E94 -> 0 | F14: =A5A!F94 -> 0 | G14: =A5A!G94 -> 0 | H14: =A5A!H94 -> 0 | I14: =A5A!I94 -> 0 | J14: =A5A!J94 -> 0 | K14: =A5A!K94 -> 0 | L14: =A5A!L94 -> 0
A15: =A5A!A105 -> Vote 10 - [NAME OF VOTE 10] | C15: =A5A!C105 -> 0 | D15: =A5A!D105 -> 0 | E15: =A5A!E105 -> 0 | F15: =A5A!F105 -> 0 | G15: =A5A!G105 -> 0 | H15: =A5A!H105 -> 0 | I15: =A5A!I105 -> 0 | J15: =A5A!J105 -> 0 | K15: =A5A!K105 -> 0 | L15: =A5A!L105 -> 0
A16: =A5A!A116 -> Vote 11 - [NAME OF VOTE 11] | C16: =A5A!C116 -> 0 | D16: =A5A!D116 -> 0 | E16: =A5A!E116 -> 0 | F16: =A5A!F116 -> 0 | G16: =A5A!G116 -> 0 | H16: =A5A!H116 -> 0 | I16: =A5A!I116 -> 0 | J16: =A5A!J116 -> 0 | K16: =A5A!K116 -> 0 | L16: =A5A!L116 -> 0
A17: =A5A!A127 -> Vote 12 - [NAME OF VOTE 12] | C17: =A5A!C127 -> 0 | D17: =A5A!D127 -> 0 | E17: =A5A!E127 -> 0 | F17: =A5A!F127 -> 0 | G17: =A5A!G127 -> 0 | H17: =A5A!H127 -> 0 | I17: =A5A!I127 -> 0 | J17: =A5A!J127 -> 0 | K17: =A5A!K127 -> 0 | L17: =A5A!L127 -> 0
A18: =A5A!A138 -> Vote 13 - [NAME OF VOTE 13] | C18: =A5A!C138 -> 0 | D18: =A5A!D138 -> 0 | E18: =A5A!E138 -> 0 | F18: =A5A!F138 -> 0 | G18: =A5A!G138 -> 0 | H18: =A5A!H138 -> 0 | I18: =A5A!I138 -> 0 | J18: =A5A!J138 -> 0 | K18: =A5A!K138 -> 0 | L18: =A5A!L138 -> 0
A19: =A5A!A149 -> Vote 14 - [NAME OF VOTE 14] | C19: =A5A!C149 -> 0 | D19: =A5A!D149 -> 0 | E19: =A5A!E149 -> 0 | F19: =A5A!F149 -> 0 | G19: =A5A!G149 -> 0 | H19: =A5A!H149 -> 0 | I19: =A5A!I149 -> 0 | J19: =A5A!J149 -> 0 | K19: =A5A!K149 -> 0 | L19: =A5A!L149 -> 0
A20: =A5A!A160 -> Vote 15 - [NAME OF VOTE 15] | C20: =A5A!C160 -> 0 | D20: =A5A!D160 -> 0 | E20: =A5A!E160 -> 0 | F20: =A5A!F160 -> 0 | G20: =A5A!G160 -> 0 | H20: =A5A!H160 -> 0 | I20: =A5A!I160 -> 0 | J20: =A5A!J160 -> 0 | K20: =A5A!K160 -> 0 | L20: =A5A!L160 -> 0
A21: Capital multi-year expenditure sub-total | B21: 7 | C21: =SUM(C6:C20) -> 659307682.9 | D21: =SUM(D6:D20) -> 501509747.7 | E21: 532326314.7 | F21: 703134054 | G21: 748377947.5 | H21: =SUM(H6:H20) -> 748377947.5 | I21: 0 | J21: 786565890.4 | K21: 469213520 | L21: 552838475
A23: Single-year expenditure to be appropriated | B23: 2
A24: =A6 -> Vote 1 - City Manager | C24: =A5A!C175 -> 1409774.98 | D24: =A5A!D175 -> 2151205.01 | E24: =A5A!E175 -> 943953.22 | F24: =A5A!F175 -> 5000000 | G24: =A5A!G175 -> 7700000 | H24: =A5A!H175 -> 7700000 | I24: =A5A!I175 -> 0 | J24: =A5A!J175 -> 5000000 | K24: =A5A!K175 -> 3050000 | L24: =A5A!L175 -> 1500000
A25: =A7 -> Vote 2 - City Finance | C25: =A5A!C186 -> 6469188.79 | D25: =A5A!D186 -> 6344857.33 | E25: =A5A!E186 -> 3084194.22 | F25: =A5A!F186 -> 0 | G25: =A5A!G186 -> 0 | H25: =A5A!H186 -> 0 | I25: =A5A!I186 -> 0 | J25: =A5A!J186 -> 0 | K25: =A5A!K186 -> 0 | L25: =A5A!L186 -> 0
A26: Vote 3 - Corporate Services | C26: =A5A!C197 -> 132691.03 | D26: =A5A!D197 -> 2270139.63 | E26: =A5A!E197 -> 3796496.82 | F26: =A5A!F197 -> 10000000 | G26: =A5A!G197 -> 17000000 | H26: =A5A!H197 -> 17000000 | I26: =A5A!I197 -> 0 | J26: =A5A!J197 -> 7615000 | K26: =A5A!K197 -> 7021000 | L26: =A5A!L197 -> 5470875
A27: Vote 4 - Community Services and Social Equity | C27: =A5A!C208 -> 13964306.88 | D27: =A5A!D208 -> 3553157.05 | E27: =A5A!E208 -> 4980126 | F27: =A5A!F208 -> 4000000 | G27: =A5A!G208 -> 4229800 | H27: =A5A!H208 -> 4229800 | I27: =A5A!I208 -> 0 | J27: =A5A!J208 -> 8690000 | K27: =A5A!K208 -> 20840417.8 | L27: =A5A!L208 -> 25220500
A28: Vote 5 - Infrastructure Services | C28: =A5A!C219 -> 0 | D28: =A5A!D219 -> 3549110.6 | E28: =A5A!E219 -> 792613.81 | F28: =A5A!F219 -> 5000000 | G28: =A5A!G219 -> 19850000 | H28: =A5A!H219 -> 19850000 | I28: =A5A!I219 -> 0 | J28: =A5A!J219 -> 10000000 | K28: =A5A!K219 -> 10232000 | L28: =A5A!L219 -> 9328030
A29: Vote 6 - Sustainable Development and City Enterprises | C29: =A5A!C230 -> 399547.54 | D29: =A5A!D230 -> 2059024.09 | E29: =A5A!E230 -> 1035306.98 | F29: =A5A!F230 -> 38026000 | G29: =A5A!G230 -> 1386206 | H29: =A5A!H230 -> 1386206 | I29: =A5A!I230 -> 0 | J29: =A5A!J230 -> 2140000 | K29: =A5A!K230 -> 450000 | L29: =A5A!L230 -> 500000
A30: Vote 7 - Electricity | C30: =A5A!C241 -> 4248077.95 | D30: =A5A!D241 -> 0 | E30: =A5A!E241 -> 830822.31 | F30: =A5A!F241 -> 3600000 | G30: =A5A!G241 -> 4000000 | H30: =A5A!H241 -> 4000000 | I30: =A5A!I241 -> 0 | J30: =A5A!J241 -> 4000000 | K30: =A5A!K241 -> 0 | L30: =A5A!L241 -> 0
A31: Vote 8 - [NAME OF VOTE 8] | C31: =A5A!C252 -> 0 | D31: =A5A!D252 -> 0 | E31: =A5A!E252 -> 0 | F31: =A5A!F252 -> 0 | G31: =A5A!G252 -> 0 | H31: =A5A!H252 -> 0 | I31: =A5A!I252 -> 0 | J31: =A5A!J252 -> 0 | K31: =A5A!K252 -> 0 | L31: =A5A!L252 -> 0
A32: Vote 9 - [NAME OF VOTE 9] | C32: =A5A!C263 -> 0 | D32: =A5A!D263 -> 0 | E32: =A5A!E263 -> 0 | F32: =A5A!F263 -> 0 | G32: =A5A!G263 -> 0 | H32: =A5A!H263 -> 0 | I32: =A5A!I263 -> 0 | J32: =A5A!J263 -> 0 | K32: =A5A!K263 -> 0 | L32: =A5A!L263 -> 0
A33: Vote 10 - [NAME OF VOTE 10] | C33: =A5A!C274 -> 0 | D33: =A5A!D274 -> 0 | E33: =A5A!E274 -> 0 | F33: =A5A!F274 -> 0 | G33: =A5A!G274 -> 0 | H33: =A5A!H274 -> 0 | I33: =A5A!I274 -> 0 | J33: =A5A!J274 -> 0 | K33: =A5A!K274 -> 0 | L33: =A5A!L274 -> 0
A34: Vote 11 - [NAME OF VOTE 11] | C34: =A5A!C285 -> 0 | D34: =A5A!D285 -> 0 | E34: =A5A!E285 -> 0 | F34: =A5A!F285 -> 0 | G34: =A5A!G285 -> 0 | H34: =A5A!H285 -> 0 | I34: =A5A!I285 -> 0 | J34: =A5A!J285 -> 0 | K34: =A5A!K285 -> 0 | L34: =A5A!L285 -> 0
A35: Vote 12 - [NAME OF VOTE 12] | C35: =A5A!C296 -> 0 | D35: =A5A!D296 -> 0 | E35: =A5A!E296 -> 0 | F35: =A5A!F296 -> 0 | G35: =A5A!G296 -> 0 | H35: =A5A!H296 -> 0 | I35: =A5A!I296 -> 0 | J35: =A5A!J296 -> 0 | K35: =A5A!K296 -> 0 | L35: =A5A!L296 -> 0
A36: Vote 13 - [NAME OF VOTE 13] | C36: =A5A!C307 -> 0 | D36: =A5A!D307 -> 0 | E36: =A5A!E307 -> 0 | F36: =A5A!F307 -> 0 | G36: =A5A!G307 -> 0 | H36: =A5A!H307 -> 0 | I36: =A5A!I307 -> 0 | J36: =A5A!J307 -> 0 | K36: =A5A!K307 -> 0 | L36: =A5A!L307 -> 0
A37: Vote 14 - [NAME OF VOTE 14] | C37: =A5A!C318 -> 0 | D37: =A5A!D318 -> 0 | E37: =A5A!E318 -> 0 | F37: =A5A!F318 -> 0 | G37: =A5A!G318 -> 0 | H37: =A5A!H318 -> 0 | I37: =A5A!I318 -> 0 | J37: =A5A!J318 -> 0 | K37: =A5A!K318 -> 0 | L37: =A5A!L318 -> 0
A38: =A20 -> Vote 15 - [NAME OF VOTE 15] | C38: =A5A!C329 -> 0 | D38: =A5A!D329 -> 0 | E38: =A5A!E329 -> 0 | F38: =A5A!F329 -> 0 | G38: =A5A!G329 -> 0 | H38: =A5A!H329 -> 0 | I38: =A5A!I329 -> 0 | J38: =A5A!J329 -> 0 | K38: =A5A!K329 -> 0 | L38: =A5A!L329 -> 0
A39: Capital single-year expenditure sub-total | C39: =SUM(C24:C38) -> 26623587.17 | D39: =SUM(D24:D38) -> 19927493.71 | E39: 15463513.36 | F39: 65626000 | G39: 54166006 | H39: 54166006 | I39: 0 | J39: 37445000 | K39: 41593417.8 | L39: 42019405
A40: Total Capital Expenditure - Vote | C40: =C39+C21 -> 685931270.1 | D40: =D39+D21 -> 521437241.5 | E40: 547789828.1 | F40: 768760054 | G40: 802543953.5 | H40: 802543953.5 | I40: 0 | J40: 824010890.4 | K40: 510806937.8 | L40: 594857880
A42: Capital Expenditure - Functional
A43: Governance and administration | C43: =SUM(C44:C46) -> 10576182.47 | D43: =SUM(D44:D46) -> 19335557.15 | E43: 18773165.89 | F43: 51000000 | G43: 58773054 | H43: 58773054 | I43: 0 | J43: 45300000 | K43: 45742000 | L43: 42514030
A44: Executive and council | C44: 1409774.98 | D44: 2638711.39 | E44: 749658.04 | F44: 1000000 | G44: 7700000 | H44: 7700000 | J44: 5100000 | K44: 3110000 | L44: 1590500
A45: Finance and administration | C45: 9166407.49 | D45: 16696845.76 | E45: 18023507.85 | F45: 50000000 | G45: 51073054 | H45: 51073054 | J45: =41100000-900000 -> 40200000 | K45: 42632000 | L45: 40923530
A46: Internal audit | D46: 0 | E46: 0 | F46: 0 | G46: 0 | H46: 0 | J46: 0 | K46: 0 | L46: 0
A47: Community and public safety | C47: =SUM(C48:C52) -> 79498230.52 | D47: =SUM(D48:D52) -> 36890721.92 | E47: 57141397.17 | F47: 169251914 | G47: 190566517.5 | H47: 190566517.5 | I47: 0 | J47: 168351240.9 | K47: 52030305.16 | L47: 58022259.51
A48: Community and social services | C48: 14120515.58 | D48: 33969243.76 | E48: 43937014.62 | F48: 20307499.05 | G48: 35901774 | H48: 35901774 | J48: 24745151.2 | K48: 38913764.44 | L48: 44139898.56
A49: Sport and recreation | C49: 2414731.14 | D49: 1041093.51 | E49: 921500 | F49: 0 | G49: 8400000 | H49: 8400000 | J49: 11932560 | K49: 9168360 | L49: 10375550
A50: Public safety | C50: -299343.43 | D50: 94470 | E50: 147639.89 | F50: 4199000 | G50: 972000 | H50: 972000 | J50: 2100000 | K50: 2270000 | L50: 1740000
A51: Housing | C51: 63262327.23 | D51: 1785914.65 | E51: 12135242.66 | F51: 144745414.9 | G51: 145292743.5 | H51: 145292743.5 | J51: 129573529.7 | K51: 1678180.73 | L51: 1766810.95
A52: Health | E52: 0 | F52: 0 | G52: 0 | H52: 0 | J52: 0 | K52: 0 | L52: 0
A53: Economic and environmental services | C53: =SUM(C54:C56) -> 366180038.4 | D53: =SUM(D54:D56) -> 239009075.4 | E53: 277382246.5 | F53: 107006000 | G53: 192359032.9 | H53: 192359032.9 | I53: 0 | J53: 139974463.2 | K53: 167631920 | L53: 221337800
A54: Planning and development | C54: 115786718.4 | D54: 37474066.53 | E54: 118611552.7 | F54: 38606000 | G54: 117803032.9 | H54: 117803032.9 | J54: 23150000 | K54: 30000000 | L54: 50000000
A55: Road transport | C55: 250393320 | D55: 201376703.9 | E55: 158748517.8 | F55: 68400000 | G55: 74556000 | H55: 74556000 | J55: 116824463.2 | K55: 137631920 | L55: 171337800
A56: Environmental protection | D56: 158305 | E56: 22176 | F56: 0 | G56: 0 | H56: 0 | J56: 0 | K56: 0 | L56: 0
A57: Trading services | C57: =SUM(C58:C61) -> 227503654.9 | D57: =SUM(D58:D61) -> 226176439.7 | E57: 191140453.7 | F57: 438702140 | G57: 357031190 | H57: 357031190 | I57: 0 | J57: 467535186.4 | K57: 243402712.6 | L57: 270983790.5
A58: Energy sources | C58: 51098608.88 | D58: 98800431.88 | E58: 64942417.74 | F58: 179000000 | G58: 145974950 | H58: 145974950 | J58: 260053551.7 | K58: 23576718.2 | L58: 27697411.98
A59: Water management | C59: 78159404.5 | D59: 58051642.31 | E59: 67841532.68 | F59: 133924500 | G59: 113879600 | H59: 113879600 | J59: 100375000 | K59: 83360896.25 | L59: 113956850
A60: Waste water management | C60: 75993641.63 | D60: 54321981.29 | E60: 48191731.92 | F60: 120777640 | G60: 72176640 | H60: 72176640 | J60: 97046634.7 | K60: 121815098.2 | L60: 114007028.5
A61: Waste management | C61: 22251999.91 | D61: 15002384.25 | E61: 10164771.41 | F61: 5000000 | G61: 25000000 | H61: 25000000 | J61: 10060000 | K61: 14650000 | L61: 15322500
A62: Other | C62: 2173163.77 | D62: 414954.5 | E62: 3352564.81 | F62: 2800000 | G62: 3814159 | H62: 3814159 | J62: 2850000 | K62: 2000000 | L62: 2000000
A63: Total Capital Expenditure - Functional | B63: 3 | C63: =C43+C47+C53+C57+C62 -> 685931270.1 | D63: =D43+D47+D53+D57+D62 -> 521826748.7 | E63: 547789828.1 | F63: 768760054 | G63: 802543953.5 | H63: 802543953.5 | I63: 0 | J63: 824010890.4 | K63: 510806937.8 | L63: =L43+L47+L53+L57+L62 -> 594857880
A65: Funded by:
A66: National Government | C66: 397216558 | D66: 291413394.4 | E66: 251839997.3 | F66: 312534640 | G66: 412215016.9 | H66: 412215016.9 | J66: 325816919.9 | K66: 372081520 | L66: 365057600
A67: Provincial Government | C67: 166778561.7 | D67: 21307752.9 | E67: 111489785.6 | F67: 136165414.9 | G67: 123941186.5 | H67: 123941186.5 | J67: 131157970.6 | K67: 15893417.79 | L67: 18935000
A68: District Municipality
A69: Transfers and subsidies - capital (monetary allocations) (Nat / Prov Departm Agencies, Households, Non-profit Institutions, Private Enterprises, Public Corporatons, Higher Educ Institutions)
A70: Transfers recognised - capital | B70: 4 | C70: =SUM(C66:C69) -> 563995119.7 | D70: 312721147.3 | E70: 363329782.9 | F70: 448700054.9 | G70: 536156203.4 | H70: 536156203.4 | I70: 0 | J70: 456974890.5 | K70: 387974937.8 | L70: 383992600
A72: Borrowing | B72: 6 | D72: 49400541.77 | F72: 200000000 | G72: 116274950 | H72: 116274950 | J72: 234315856 | K72: 0 | L72: 0
A73: Internally generated funds | C73: 121936150.4 | D73: 159705059.6 | E73: 184460045.2 | F73: 120059999 | G73: 150112800 | H73: 150112800 | J73: 132720143.9 | K73: 120000000 | L73: 120000000
A74: Total Capital Funding | B74: 7 | C74: =+C70+C72+C73 -> 685931270.1 | D74: =+D70+D72+D73 -> 521826748.7 | E74: 547789828.1 | F74: 768760054 | G74: 802543953.5 | H74: 802543953.5 | I74: 0 | J74: 824010890.4 | K74: 507974937.8 | L74: 503992600
A75: =head27a -> References
A76: 1. Municipalities may choose to appropriate for capital expenditure for three years or for one year (if one year appropriation projected expenditure required for yr2 and yr3).
A77: 2. Include capital component of PPP unitary payment. Note that capital transfers are only appropriated to municipalities for the budget year
A78: 3. Capital expenditure by functional classification must reconcile to the appropriations by vote
A79: 4. Must reconcile to supporting table SA20 and to Budgeted Financial Performance (revenue and expenditure)
A81: 6. Include finance leases and PPP capital funding component of unitary payment - total borrowing/repayments to reconcile to changes in Table SA17
A82: 7. Total Capital Funding must balance with Total Capital Expenditure
A83: 8. Include any capitalised interest (MFMA section 46) as part of relevant capital budget

Sheet A5A
A1: =muni&" - "&Approve5 -> 0 - Table A5 Budgeted Capital Expenditure by vote, functional classification and funding
A2: =Vdesc -> Vote Description | B2: =head27 -> Ref | C2: =head1b -> 2020/21 | D2: =head1A -> 2021/22 | E2: =Head1 -> 2022/23 | F2: =Head2 -> Current Year 2023/24 | J2: =Head3 -> 2024/25 Medium Term Revenue & Expenditure Framework | N2: ="Multi-year appropriation for "&Head9& " in the "&Head2A&" Annual Budget" -> Multi-year appropriation for Budget Year 2024/25 in the 2023/24 Annual Budget | R2: ="Multi-year appropriation for "&RIGHT(Head10,7)& " in the "&Head2A&" Annual Budget" -> Multi-year appropriation for 2025/26 in the 2023/24 Annual Budget | V2: New multi-year appropriations (funds for new and existing projects)
A3: R thousand | B3: 1 | C3: =Head5 -> Audited Outcome | D3: =Head5 -> Audited Outcome | E3: =Head5 -> Audited Outcome | F3: =Head6 -> Original Budget | G3: =Head7 -> Adjusted Budget | H3: =Head8 -> Full Year Forecast | I3: =Head5b -> Pre-audit outcome | J3: =Head9 -> Budget Year 2024/25 | K3: =Head10 -> Budget Year +1 2025/26 | L3: =Head11 -> Budget Year +2 2026/27 | N3: ="Appropriation for "&RIGHT(Head9,7) -> Appropriation for 2024/25 | O3: ="Adjustments in "&Head2A -> Adjustments in 2023/24 | P3: ="Downward adjustments for "&RIGHT(Head9,7) -> Downward adjustments for 2024/25 | Q3: Appropriation carried forward | R3: ="Appropriation for "&RIGHT(Head9,7) -> Appropriation for 2024/25 | S3: ="Adjustments in "&Head2A -> Adjustments in 2023/24 | T3: ="Downward adjustments for "&RIGHT(Head9,7) -> Downward adjustments for 2024/25 | U3: Appropriation carried forward | V3: =Head9 -> Budget Year 2024/25 | W3: =Head10 -> Budget Year +1 2025/26 | X3: =Head11 -> Budget Year +2 2026/27
A4: Capital expenditure - Municipal Vote
A5: Multi-year expenditure appropriation | B5: 2
A6: ='Org structure'!A2 -> Vote 1 - City Manager | C6: =SUM(C7:C16) -> 0 | D6: =SUM(D7:D16) -> 1613825.13 | E6: 27000 | F6: 0 | G6: 0 | H6: 0 | I6: =SUM(I7:I16) -> 0 | J6: 0 | K6: 0 | L6: 0 | N6: =SUM(N7:N16) -> 0 | O6: 0 | P6: 0 | Q6: 0 | R6: 0 | S6: 0 | T6: 0 | U6: 0 | V6: =SUM(V7:V16) -> 0 | W6: =SUM(W7:W16) -> 0 | X6: =SUM(X7:X16) -> 0
A7: ='Org structure'!E3 -> 1.1 - Internal Audit and Compliance | D7: 0 | E7: 0 | J7: =Q7+V7 -> 0 | K7: =U7+W7 -> 0 | L7: =X7 -> 0 | Q7: =SUM(N7:P7) -> 0 | U7: =SUM(R7:T7) -> 0
A8: ='Org structure'!E4 -> 1.2 - Office of the City Manager | D8: 1039942.75 | E8: 27000 | J8: =Q8+V8 -> 0 | K8: =U8+W8 -> 0 | L8: =X8 -> 0 | Q8: =SUM(N8:P8) -> 0 | U8: =SUM(R8:T8) -> 0
A9: ='Org structure'!E5 -> 1.3 - Political Support | D9: 573882.38 | E9: 0 | J9: =Q9+V9 -> 0 | K9: =U9+W9 -> 0 | L9: 0 | Q9: 0 | U9: 0
A10: ='Org structure'!E6 -> 1.4 - Strategic Planning | D10: 0 | E10: 0 | J10: 0 | K10: 0 | L10: 0 | Q10: 0 | U10: 0
A11: ='Org structure'!E7 -> 0 | J11: 0 | K11: 0 | L11: =X11 -> 0 | Q11: 0 | U11: 0 | V11: 0 | W11: 0 | X11: 0
A12: ='Org structure'!E8 -> 0 | J12: 0 | K12: 0 | L12: 0 | Q12: 0 | U12: 0
A13: ='Org structure'!E9 -> 0 | J13: 0 | K13: 0 | L13: 0 | Q13: 0 | U13: 0
A14: ='Org structure'!E10 -> 0 | J14: 0 | K14: 0 | L14: 0 | Q14: 0 | U14: 0
A15: ='Org structure'!E11 -> 0 | J15: 0 | K15: 0 | L15: 0 | Q15: 0 | U15: 0
A16: ='Org structure'!E12 -> 0 | J16: 0 | K16: 0 | L16: 0 | Q16: 0 | U16: 0
A17: ='Org structure'!A3 -> Vote 2 - City Finance | C17: =SUM(C18:C27) -> 1592912.04 | D17: =SUM(D18:D27) -> 4935541.48 | E17: 9153029.53 | F17: 30000000 | G17: 30000000 | H17: 30000000 | I17: =SUM(I18:I27) -> 0 | J17: 25000000 | K17: 26125000 | L17: 26677875 | N17: =SUM(N18:N27) -> 0 | O17: 0 | P17: 0 | Q17: 0 | R17: 0 | S17: 0 | T17: 0 | U17: 0 | V17: 25000000 | W17: 26125000 | X17: 26677875
A18: ='Org structure'!E14 -> 2.1 - Asset Management | D18: 0 | E18: 0 | F18: 0 | J18: =Q18+V18 -> 0 | K18: =U18+W18 -> 0 | L18: =X18 -> 0 | Q18: =SUM(N18:P18) -> 0 | U18: 0 | V18: 0 | W18: 0 | X18: 0
A19: ='Org structure'!E15 -> 2.2 - Budget and Treasury Management | C19: 1336280.74 | D19: 1853747.03 | E19: 7990335.54 | F19: 30000000 | G19: 30000000 | H19: 30000000 | J19: =Q19+V19 -> 25000000 | K19: =U19+W19 -> 26125000 | L19: 26677875 | Q19: 0 | U19: 0 | V19: 25000000 | W19: 26125000 | X19: 26677875
A20: ='Org structure'!E16 -> 2.3 - Expenditure Management | D20: 54550 | E20: 0 | F20: 0 | J20: 0 | K20: 0 | L20: 0 | Q20: 0 | U20: 0 | V20: 0 | W20: 0 | X20: 0
A21: ='Org structure'!E17 -> 2.4 - Revenue Management | D21: 2528200 | E21: 1071543 | F21: 0 | J21: 0 | K21: =U21+W21 -> 0 | L21: 0 | Q21: 0 | U21: 0 | V21: 0 | W21: 0 | X21: 0
A22: ='Org structure'!E18 -> 2.5 - Supply Chain Management | C22: 256631.3 | D22: 499044.45 | E22: 91150.99 | F22: 0 | J22: 0 | K22: 0 | L22: 0 | Q22: 0 | U22: 0 | V22: 0 | W22: 0 | X22: 0
A23: ='Org structure'!E19 -> 0 | J23: 0 | K23: 0 | L23: 0 | Q23: 0 | U23: 0
A24: ='Org structure'!E20 -> 0 | J24: 0 | K24: 0 | L24: 0 | Q24: 0 | U24: 0
A25: ='Org structure'!E21 -> 0 | J25: 0 | K25: 0 | L25: 0 | Q25: 0 | U25: 0
A26: ='Org structure'!E22 -> 0 | J26: 0 | K26: 0 | L26: 0 | Q26: 0 | U26: 0
A27: ='Org structure'!E23 -> 0 | J27: 0 | K27: 0 | L27: 0 | Q27: 0 | U27: 0
A28: ='Org structure'!A4 -> Vote 3 - Corporate Services | C28: =SUM(C29:C38) -> 971615.63 | D28: =SUM(D29:D38) -> 2272710.48 | E28: 937669.79 | F28: 10000000 | G28: 3318000 | H28: 3318000 | I28: =SUM(I29:I38) -> 0 | J28: 6585000 | K28: 8714000 | L28: 8000000 | N28: =SUM(N29:N38) -> 0 | O28: 0 | P28: 0 | Q28: 0 | R28: 0 | S28: 0 | T28: 0 | U28: 0 | V28: 6585000 | W28: 8714000 | X28: 8000000
A29: ='Org structure'!E25 -> Human Resources Management | D29: 1889731 | E29: 48708 | F29: 0 | G29: 0 | J29: =Q29+V29 -> 50000 | K29: =U29+W29 -> 0 | L29: =X29 -> 0 | Q29: =SUM(N29:P29) -> 0 | U29: 0 | V29: 50000 | W29: 0 | X29: 0
A30: ='Org structure'!E26 -> Information Technology | C30: 971615.63 | D30: 0 | E30: 338683.39 | F30: 10000000 | G30: 3000000 | H30: 3000000 | J30: 6125000 | K30: 8714000 | L30: 8000000 | Q30: 0 | U30: 0 | V30: 6125000 | W30: 8714000 | X30: 8000000
A31: ='Org structure'!E27 -> Legal Services | D31: 382979.48 | E31: 0 | F31: 0 | G31: 0 | J31: 0 | K31: 0 | L31: 0 | Q31: 0 | U31: =SUM(R31:T31) -> 0 | V31: 0 | W31: 0 | X31: 0
A32: ='Org structure'!E28 -> Secretariat and Auxiliary Services | D32: 0 | E32: 550278.4 | F32: 0 | G32: 318000 | H32: 318000 | J32: 400000 | K32: =U32+W32 -> 0 | L32: 0 | Q32: 0 | U32: 0 | V32: 400000 | W32: 0 | X32: 0
A33: ='Org structure'!E29 -> General Manager: Corporate Service | E33: 0 | F33: 0 | G33: 0 | J33: =Q33+V33 -> 10000 | K33: 0 | L33: 0 | Q33: 0 | U33: 0 | V33: 10000 | W33: 0 | X33: 0
A34: ='Org structure'!E30 -> 0 | J34: 0 | K34: 0 | L34: 0 | Q34: 0 | U34: 0
A35: ='Org structure'!E31 -> 0 | J35: 0 | K35: 0 | L35: 0 | Q35: 0 | U35: 0
A36: ='Org structure'!E32 -> 0 | J36: 0 | K36: 0 | L36: 0 | Q36: 0 | U36: 0
A37: ='Org structure'!E33 -> 0 | J37: 0 | K37: 0 | L37: 0 | Q37: 0 | U37: 0
A38: ='Org structure'!E34 -> 0 | J38: 0 | K38: 0 | L38: 0 | Q38: 0 | U38: 0
A39: ='Org structure'!A5 -> Vote 4 - Community Services and Social Equity | C39: =SUM(C40:C49) -> 24381249.32 | D39: =SUM(D40:D49) -> 33154389.84 | E39: 48934490.92 | F39: 24886499.05 | G39: 68123568 | H39: 68123568 | I39: =SUM(I40:I49) -> 0 | J39: 42142711.2 | K39: 45728706.64 | L39: 48042448.56 | N39: =SUM(N40:N49) -> 0 | O39: 0 | P39: 0 | Q39: 0 | R39: 0 | S39: 0 | T39: 0 | U39: 0 | V39: 42142711.2 | W39: 45728706.64 | X39: 48042448.56
A40: ='Org structure'!E36 -> 4.1 - Area Based Management | D40: 790463.79 | E40: 1117272.3 | F40: 0 | G40: 0 | H40: 0 | J40: =Q40+V40 -> 100000 | K40: =U40+W40 -> 50000 | L40: =X40 -> 100000 | Q40: =SUM(N40:P40) -> 0 | U40: 0 | V40: 100000 | W40: 50000 | X40: 100000
A41: ='Org structure'!E37 -> 4.2 - Public Safety, Emergency Services and Enforcement | D41: 0 | E41: 31440.24 | F41: 0 | G41: 665000 | H41: 665000 | J41: 1810000 | K41: 1860000 | L41: 660000 | Q41: 0 | U41: 0 | V41: 1810000 | W41: 1860000 | X41: 660000
A42: ='Org structure'!E38 -> 4.3 - Recreation and Facilities | C42: 12466354.57 | D42: 17408776.8 | E42: 43245466.43 | F42: 19886499.05 | G42: 42458568 | H42: 42458568 | J42: 30232711.2 | K42: 31428706.64 | L42: 34272948.56 | Q42: 0 | U42: 0 | V42: 30232711.2 | W42: 31428706.64 | X42: 34272948.56
A43: ='Org structure'!E39 -> 4.4 - Waste Management | C43: 11914894.75 | D43: 14955149.25 | E43: 4540311.95 | F43: 5000000 | G43: 25000000 | H43: 25000000 | J43: 10000000 | K43: 12390000 | L43: 13009500 | Q43: 0 | U43: 0 | V43: 10000000 | W43: 12390000 | X43: 13009500
A44: ='Org structure'!E40 -> 0 | J44: 0 | K44: 0 | L44: 0 | Q44: 0 | U44: 0
A45: ='Org structure'!E41 -> 0 | J45: 0 | K45: 0 | L45: 0 | Q45: 0 | U45: 0
A46: ='Org structure'!E42 -> 0 | J46: 0 | K46: 0 | L46: 0 | Q46: 0 | U46: 0
A47: ='Org structure'!E43 -> 0 | J47: 0 | K47: 0 | L47: 0 | Q47: 0 | U47: 0
A48: ='Org structure'!E44 -> 0 | J48: 0 | K48: 0 | L48: 0 | Q48: 0 | U48: 0
A49: ='Org structure'!E45 -> 0 | J49: 0 | K49: 0 | L49: 0 | Q49: 0 | U49: 0
A50: ='Org structure'!A6 -> Vote 5 - Infrastructure Services | C50: =SUM(C51:C60) -> 404546366.1 | D50: =SUM(D51:D60) -> 308960388.3 | E50: 268923267.1 | F50: 318102140 | G50: 237994494 | H50: 237994494 | I50: =SUM(I51:I60) -> 0 | J50: 303186097.9 | K50: 331647914.4 | L50: 388918928.5 | N50: =SUM(N51:N60) -> 0 | O50: 0 | P50: 0 | Q50: 0 | R50: 0 | S50: 0 | T50: 0 | U50: 0 | V50: 303186097.9 | W50: 331647914.4 | X50: 388918928.5
A51: ='Org structure'!E47 -> 5.1 - Project Management Office | D51: 12550 | E51: 0 | F51: 0 | G51: 138254 | H51: 138254 | J51: =Q51+V51 -> 100000 | K51: =U51+W51 -> 0 | L51: =X51 -> 0 | Q51: =SUM(N51:P51) -> 0 | U51: 0 | V51: 100000 | W51: 0 | X51: 0
A52: ='Org structure'!E48 -> 5.2 - Roads and Transportation | C52: 250393320 | D52: 196574214.7 | E52: 153682616.3 | F52: 63400000 | G52: 68200000 | H52: 68200000 | J52: 110664463.2 | K52: 131471920 | L52: 164955050 | Q52: 0 | U52: 0 | V52: 110664463.2 | W52: 131471920 | X52: 164955050
A53: ='Org structure'!E49 -> 5.3 - Water and Sanitation | C53: 154153046.1 | D53: 112373623.6 | E53: 115240650.8 | F53: 254702140 | G53: 169656240 | H53: 169656240 | J53: 192421634.7 | K53: 200175994.4 | L53: 223963878.5 | Q53: 0 | U53: 0 | V53: 192421634.7 | W53: 200175994.4 | X53: 223963878.5
A54: ='Org structure'!E50 -> 5.4 - General Manager: Infrastructure | D54: 0 | E54: 0 | F54: 0 | J54: 0 | K54: 0 | L54: 0 | Q54: 0 | U54: 0 | V54: 0 | W54: 0 | X54: 0
A55: ='Org structure'!E51 -> 0 | J55: 0 | K55: 0 | L55: 0 | Q55: 0 | U55: 0
A56: ='Org structure'!E52 -> 0 | J56: 0 | K56: 0 | L56: 0 | Q56: 0 | U56: 0
A57: ='Org structure'!E53 -> 0 | J57: 0 | K57: 0 | L57: 0 | Q57: 0 | U57: 0
A58: ='Org structure'!E54 -> 0 | J58: 0 | K58: 0 | L58: 0 | Q58: 0 | U58: 0
A59: ='Org structure'!E55 -> 0 | J59: 0 | K59: 0 | L59: 0 | Q59: 0 | U59: 0
A60: ='Org structure'!E56 -> 0 | J60: 0 | K60: 0 | L60: 0 | Q60: 0 | U60: 0
A61: ='Org structure'!A7 -> Vote 6 - Sustainable Development and City Enterprises | C61: =SUM(C62:C71) -> 180965008.9 | D61: =SUM(D62:D71) -> 51772460.63 | E61: 133279407.1 | F61: 144745414.9 | G61: 266966935.4 | H61: 266966935.4 | I61: =SUM(I62:I71) -> 0 | J61: 153598529.7 | K61: 33421180.73 | L61: 53501810.95 | N61: =SUM(N62:N71) -> 0 | O61: 0 | P61: 0 | Q61: 0 | R61: 0 | S61: 0 | T61: 0 | U61: 0 | V61: 153598529.7 | W61: 33421180.73 | X61: 53501810.95
A62: ='Org structure'!E58 -> 6.1 - City Entities | C62: 2315510.77 | D62: 15005502.89 | E62: 3094804.23 | F62: 0 | G62: 4671159 | H62: 4671159 | J62: =Q62+V62 -> 2685000 | K62: =U62+W62 -> 2143000 | L62: =X62 -> 2135000 | Q62: =SUM(N62:P62) -> 0 | U62: 0 | V62: 2685000 | W62: 2143000 | X62: 2135000
A63: ='Org structure'!E59 -> 6.2 - Development Services | C63: 16004175.65 | D63: 32992343.87 | E63: 31344443.97 | F63: 0 | G63: 31444183.78 | H63: 31444183.78 | J63: 22090000 | K63: 30000000 | L63: 50000000 | Q63: 0 | U63: 0 | V63: 22090000 | W63: 30000000 | X63: 50000000
A64: ='Org structure'!E60 -> 6.3 - Human Settlement Development | C64: 62960515.34 | D64: 1067854.9 | E64: 11746687.44 | F64: 144745414.9 | G64: 144892743.5 | H64: 144892743.5 | J64: 128823529.7 | K64: 1278180.73 | L64: 1366810.95 | Q64: 0 | U64: 0 | V64: 128823529.7 | W64: 1278180.73 | X64: 1366810.95
A65: ='Org structure'!E61 -> 6.4 - Town Planning | C65: 99684807.15 | D65: 2706758.97 | E65: 87093471.42 | F65: 0 | G65: 85958849.14 | H65: 85958849.14 | J65: 0 | K65: 0 | L65: 0 | Q65: 0 | U65: 0 | V65: 0 | W65: 0 | X65: 0
A66: ='Org structure'!E62 -> 6.5 - General Manager: Sustainable Development and City Enterprises | E66: 0 | F66: 0 | J66: 0 | K66: 0 | L66: 0 | Q66: 0 | U66: 0 | V66: 0 | W66: 0 | X66: 0
A67: ='Org structure'!E63 -> 0 | J67: 0 | K67: 0 | L67: 0 | Q67: 0 | U67: 0
A68: ='Org structure'!E64 -> 0 | J68: 0 | K68: 0 | L68: 0 | Q68: 0 | U68: 0
A69: ='Org structure'!E65 -> 0 | J69: 0 | K69: 0 | L69: 0 | Q69: 0 | U69: 0
A70: ='Org structure'!E66 -> 0 | J70: 0 | K70: 0 | L70: 0 | Q70: 0 | U70: 0
A71: ='Org structure'!E67 -> 0 | J71: 0 | K71: 0 | L71: 0 | Q71: 0 | U71: 0
A72: ='Org structure'!A8 -> Vote 7 - Electricity | C72: =SUM(C73:C82) -> 46850530.93 | D72: 98800431.88 | E72: 71071450.3 | F72: 175400000 | G72: 141974950 | H72: 141974950 | I72: 0 | J72: 256053551.7 | K72: 23576718.2 | L72: 27697411.98 | N72: =SUM(N73:N82) -> 0 | O72: 0 | P72: 0 | Q72: 0 | R72: 0 | S72: 0 | T72: 0 | U72: 0 | V72: 256053551.7 | W72: 23576718.2 | X72: 27697411.98
A73: ='Org structure'!E69 -> 7.1 Electricity planning | C73: 46850530.93 | D73: 98800431.88 | E73: 65880810.79 | F73: 155400000 | G73: 134974950 | H73: 134974950 | J73: =Q73+V73 -> 248053551.7 | K73: =U73+W73 -> 15216718.2 | L73: =X73 -> 18961211.98 | Q73: =SUM(N73:P73) -> 0 | U73: =SUM(R73:T73) -> 0 | V73: 248053551.7 | W73: 15216718.2 | X73: 18961211.98
A74: ='Org structure'!E70 -> 7.2 Methods and Standards | E74: 0 | F74: 0 | G74: 0 | H74: 0 | J74: 0 | K74: 0 | L74: 0 | Q74: 0 | U74: 0 | V74: 0 | W74: 0 | X74: 0
A75: ='Org structure'!E71 -> 7.3 Operations and Maintenance | E75: 0 | F75: 0 | G75: 0 | H75: 0 | J75: 0 | K75: 0 | L75: 0 | Q75: 0 | U75: 0 | V75: 0 | W75: 0 | X75: 0
A76: ='Org structure'!E72 -> 7.4 Revenue Management | E76: 5190639.51 | F76: 20000000 | G76: 7000000 | H76: 7000000 | J76: 8000000 | K76: 8360000 | L76: 8736200 | Q76: 0 | U76: 0 | V76: 8000000 | W76: 8360000 | X76: 8736200
A77: ='Org structure'!E73 -> 7.5 General Manager Electricity | E77: 0 | F77: 0 | G77: 0 | H77: 0 | J77: 0 | K77: 0 | L77: 0 | Q77: 0 | U77: 0 | V77: 0 | W77: 0 | X77: 0
A78: ='Org structure'!E74 -> 0 | J78: 0 | K78: 0 | L78: 0 | Q78: 0 | U78: 0 | V78: 0 | W78: 0 | X78: 0
A79: ='Org structure'!E75 -> 0 | J79: 0 | K79: 0 | L79: 0 | Q79: 0 | U79: 0
A80: ='Org structure'!E76 -> 0 | J80: 0 | K80: 0 | L80: 0 | Q80: 0 | U80: 0
A81: ='Org structure'!E77 -> 0 | J81: 0 | K81: 0 | L81: 0 | Q81: 0 | U81: 0
A82: ='Org structure'!E78 -> 0 | J82: 0 | K82: 0 | L82: 0 | Q82: 0 | U82: 0
A83: ='Org structure'!A9 -> Vote 8 - [NAME OF VOTE 8] | C83: =SUM(C84:C93) -> 0 | D83: 0 | E83: 0 | F83: 0 | G83: 0 | H83: 0 | I83: 0 | J83: 0 | K83: 0 | L83: 0 | N83: =SUM(N84:N93) -> 0 | O83: 0 | P83: 0 | Q83: 0 | R83: 0 | S83: 0 | T83: 0 | U83: 0 | V83: 0 | W83: 0 | X83: 0
A84: ='Org structure'!E80 -> 8.1 - [Name of sub-vote] | J84: =Q84+V84 -> 0 | K84: =U84+W84 -> 0 | L84: =X84 -> 0 | Q84: =SUM(N84:P84) -> 0 | U84: 0
A85: ='Org structure'!E81 -> 0 | J85: 0 | K85: 0 | L85: 0 | Q85: 0 | U85: 0
A86: ='Org structure'!E82 -> 0 | J86: 0 | K86: 0 | L86: 0 | Q86: 0 | U86: 0
A87: ='Org structure'!E83 -> 0 | J87: 0 | K87: 0 | L87: 0 | Q87: 0 | U87: 0
A88: ='Org structure'!E84 -> 0 | J88: 0 | K88: 0 | L88: 0 | Q88: 0 | U88: 0
A89: ='Org structure'!E85 -> 0 | J89: 0 | K89: 0 | L89: 0 | Q89: 0 | U89: 0
A90: ='Org structure'!E86 -> 0 | J90: 0 | K90: 0 | L90: 0 | Q90: 0 | U90: 0
A91: ='Org structure'!E87 -> 0 | J91: 0 | K91: 0 | L91: 0 | Q91: 0 | U91: 0
A92: ='Org structure'!E88 -> 0 | J92: 0 | K92: 0 | L92: 0 | Q92: 0 | U92: 0
A93: ='Org structure'!E89 -> 0 | J93: 0 | K93: 0 | L93: 0 | Q93: 0 | U93: 0
A94: ='Org structure'!A10 -> Vote 9 - [NAME OF VOTE 9] | C94: =SUM(C95:C104) -> 0 | D94: =SUM(D95:D104) -> 0 | E94: 0 | F94: 0 | G94: 0 | H94: 0 | I94: 0 | J94: 0 | K94: 0 | L94: 0 | N94: =SUM(N95:N104) -> 0 | O94: 0 | P94: 0 | Q94: 0 | R94: 0 | S94: 0 | T94: 0 | U94: 0 | V94: 0 | W94: 0 | X94: 0
A95: ='Org structure'!E91 -> 9.1 - [Name of sub-vote] | J95: =Q95+V95 -> 0 | K95: =U95+W95 -> 0 | L95: =X95 -> 0 | Q95: =SUM(N95:P95) -> 0 | U95: 0
A96: ='Org structure'!E92 -> 0 | J96: 0 | K96: 0 | L96: 0 | Q96: 0 | U96: 0
A97: ='Org structure'!E93 -> 0 | J97: 0 | K97: 0 | L97: 0 | Q97: 0 | U97: 0
A98: ='Org structure'!E94 -> 0 | J98: 0 | K98: 0 | L98: 0 | Q98: 0 | U98: 0
A99: ='Org structure'!E95 -> 0 | J99: 0 | K99: 0 | L99: 0 | Q99: 0 | U99: 0
A100: ='Org structure'!E96 -> 0 | J100: 0 | K100: 0 | L100: 0 | Q100: 0 | U100: 0
A101: ='Org structure'!E97 -> 0 | J101: 0 | K101: 0 | L101: 0 | Q101: 0 | U101: 0
A102: ='Org structure'!E98 -> 0 | J102: 0 | K102: 0 | L102: 0 | Q102: 0 | U102: 0
A103: ='Org structure'!E99 -> 0 | J103: 0 | K103: 0 | L103: 0 | Q103: 0 | U103: 0
A104: ='Org structure'!E100 -> 0 | J104: 0 | K104: 0 | L104: 0 | Q104: 0 | U104: 0
A105: ='Org structure'!A11 -> Vote 10 - [NAME OF VOTE 10] | C105: =SUM(C106:C115) -> 0 | D105: =SUM(D106:D115) -> 0 | E105: 0 | F105: 0 | G105: 0 | H105: 0 | I105: 0 | J105: 0 | K105: 0 | L105: 0 | N105: =SUM(N106:N115) -> 0 | O105: 0 | P105: 0 | Q105: 0 | R105: 0 | S105: 0 | T105: 0 | U105: 0 | V105: 0 | W105: 0 | X105: 0
A106: ='Org structure'!E102 -> 10.1 - [Name of sub-vote] | J106: =Q106+V106 -> 0 | K106: =U106+W106 -> 0 | L106: =X106 -> 0 | Q106: =SUM(N106:P106) -> 0 | U106: 0
A107: ='Org structure'!E103 -> 0 | J107: 0 | K107: 0 | L107: 0 | Q107: 0 | U107: 0
A108: ='Org structure'!E104 -> 0 | J108: 0 | K108: 0 | L108: 0 | Q108: 0 | U108: 0
A109: ='Org structure'!E105 -> 0 | J109: 0 | K109: 0 | L109: 0 | Q109: 0 | U109: 0
A110: ='Org structure'!E106 -> 0 | J110: 0 | K110: 0 | L110: 0 | Q110: 0 | U110: 0
A111: ='Org structure'!E107 -> 0 | J111: 0 | K111: 0 | L111: 0 | Q111: 0 | U111: 0
A112: ='Org structure'!E108 -> 0 | J112: 0 | K112: 0 | L112: 0 | Q112: 0 | U112: 0
A113: ='Org structure'!E109 -> 0 | J113: 0 | K113: 0 | L113: 0 | Q113: 0 | U113: 0
A114: ='Org structure'!E110 -> 0 | J114: 0 | K114: 0 | L114: 0 | Q114: 0 | U114: 0
A115: ='Org structure'!E111 -> 0 | J115: 0 | K115: 0 | L115: 0 | Q115: 0 | U115: 0
A116: ='Org structure'!A12 -> Vote 11 - [NAME OF VOTE 11] | C116: =SUM(C117:C126) -> 0 | D116: 0 | E116: 0 | F116: 0 | G116: 0 | H116: 0 | I116: 0 | J116: 0 | K116: 0 | L116: 0 | N116: =SUM(N117:N126) -> 0 | O116: 0 | P116: 0 | Q116: 0 | R116: 0 | S116: 0 | T116: 0 | U116: 0 | V116: 0 | W116: 0 | X116: 0
A117: ='Org structure'!E113 -> 11.1 - [Name of sub-vote] | J117: =Q117+V117 -> 0 | K117: =U117+W117 -> 0 | L117: =X117 -> 0 | Q117: =SUM(N117:P117) -> 0 | U117: 0
A118: ='Org structure'!E114 -> 0 | J118: 0 | K118: 0 | L118: 0 | Q118: 0 | U118: 0
A119: ='Org structure'!E115 -> 0 | J119: 0 | K119: 0 | L119: 0 | Q119: 0 | U119: 0
A120: ='Org structure'!E116 -> 0 | J120: 0 | K120: 0 | L120: 0 | Q120: 0 | U120: 0
A121: ='Org structure'!E117 -> 0 | J121: 0 | K121: 0 | L121: 0 | Q121: 0 | U121: 0
A122: ='Org structure'!E118 -> 0 | J122: 0 | K122: 0 | L122: 0 | Q122: 0 | U122: 0
A123: ='Org structure'!E119 -> 0 | J123: 0 | K123: 0 | L123: 0 | Q123: 0 | U123: 0
A124: ='Org structure'!E120 -> 0 | J124: 0 | K124: 0 | L124: 0 | Q124: 0 | U124: 0
A125: ='Org structure'!E121 -> 0 | J125: 0 | K125: 0 | L125: 0 | Q125: 0 | U125: 0
A126: ='Org structure'!E122 -> 0 | J126: 0 | K126: 0 | L126: 0 | Q126: 0 | U126: 0
A127: ='Org structure'!A13 -> Vote 12 - [NAME OF VOTE 12] | C127: =SUM(C128:C137) -> 0 | D127: 0 | E127: 0 | F127: 0 | G127: 0 | H127: 0 | I127: 0 | J127: 0 | K127: 0 | L127: 0 | N127: =SUM(N128:N137) -> 0 | O127: 0 | P127: 0 | Q127: 0 | R127: 0 | S127: 0 | T127: 0 | U127: 0 | V127: 0 | W127: 0 | X127: 0
A128: ='Org structure'!E124 -> 12.1 - [Name of sub-vote] | J128: =Q128+V128 -> 0 | K128: =U128+W128 -> 0 | L128: =X128 -> 0 | Q128: =SUM(N128:P128) -> 0 | U128: 0
A129: ='Org structure'!E125 -> 0 | J129: 0 | K129: 0 | L129: 0 | Q129: 0 | U129: 0
A130: ='Org structure'!E126 -> 0 | J130: 0 | K130: 0 | L130: 0 | Q130: 0 | U130: 0
A131: ='Org structure'!E127 -> 0 | J131: 0 | K131: 0 | L131: 0 | Q131: 0 | U131: 0
A132: ='Org structure'!E128 -> 0 | J132: 0 | K132: 0 | L132: 0 | Q132: 0 | U132: 0
A133: ='Org structure'!E129 -> 0 | J133: =Q133+V133 -> 0 | K133: 0 | L133: 0 | Q133: 0 | U133: 0
A134: ='Org structure'!E130 -> 0 | J134: 0 | K134: 0 | L134: 0 | Q134: 0 | U134: 0
A135: ='Org structure'!E131 -> 0 | J135: 0 | K135: 0 | L135: 0 | Q135: 0 | U135: 0
A136: ='Org structure'!E132 -> 0 | J136: 0 | K136: 0 | L136: 0 | Q136: 0 | U136: =SUM(R136:T136) -> 0
A137: ='Org structure'!E133 -> 0 | J137: 0 | K137: 0 | L137: 0 | Q137: 0 | U137: 0
A138: ='Org structure'!A14 -> Vote 13 - [NAME OF VOTE 13] | C138: =SUM(C139:C148) -> 0 | D138: 0 | E138: 0 | F138: 0 | G138: 0 | H138: 0 | I138: 0 | J138: 0 | K138: 0 | L138: 0 | N138: =SUM(N139:N148) -> 0 | O138: 0 | P138: 0 | Q138: 0 | R138: 0 | S138: 0 | T138: 0 | U138: 0 | V138: 0 | W138: 0 | X138: 0
A139: ='Org structure'!E135 -> 13.1 - [Name of sub-vote] | J139: =Q139+V139 -> 0 | K139: =U139+W139 -> 0 | L139: =X139 -> 0 | Q139: =SUM(N139:P139) -> 0 | U139: 0
A140: ='Org structure'!E136 -> 0 | J140: 0 | K140: 0 | L140: 0 | Q140: 0 | U140: 0
A141: ='Org structure'!E137 -> 0 | J141: 0 | K141: 0 | L141: 0 | Q141: 0 | U141: 0
A142: ='Org structure'!E138 -> 0 | J142: 0 | K142: 0 | L142: 0 | Q142: 0 | U142: 0
A143: ='Org structure'!E139 -> 0 | J143: 0 | K143: 0 | L143: 0 | Q143: 0 | U143: 0
A144: ='Org structure'!E140 -> 0 | J144: 0 | K144: 0 | L144: 0 | Q144: 0 | U144: 0
A145: ='Org structure'!E141 -> 0 | J145: 0 | K145: 0 | L145: 0 | Q145: 0 | U145: 0
A146: ='Org structure'!E142 -> 0 | J146: 0 | K146: 0 | L146: 0 | Q146: 0 | U146: 0
A147: ='Org structure'!E143 -> 0 | J147: 0 | K147: 0 | L147: 0 | Q147: 0 | U147: 0
A148: ='Org structure'!E144 -> 0 | J148: 0 | K148: 0 | L148: 0 | Q148: 0 | U148: 0
A149: ='Org structure'!A15 -> Vote 14 - [NAME OF VOTE 14] | C149: =SUM(C150:C159) -> 0 | D149: 0 | E149: 0 | F149: 0 | G149: 0 | H149: 0 | I149: 0 | J149: 0 | K149: 0 | L149: 0 | N149: =SUM(N150:N159) -> 0 | O149: 0 | P149: 0 | Q149: 0 | R149: 0 | S149: 0 | T149: 0 | U149: 0 | V149: 0 | W149: 0 | X149: 0
A150: ='Org structure'!E146 -> 14.1 - [Name of sub-vote] | J150: =Q150+V150 -> 0 | K150: =U150+W150 -> 0 | L150: =X150 -> 0 | Q150: =SUM(N150:P150) -> 0 | U150: 0
A151: ='Org structure'!E147 -> 0 | J151: 0 | K151: 0 | L151: 0 | Q151: 0 | U151: 0
A152: ='Org structure'!E148 -> 0 | J152: 0 | K152: 0 | L152: 0 | Q152: 0 | U152: 0
A153: ='Org structure'!E149 -> 0 | J153: 0 | K153: 0 | L153: 0 | Q153: 0 | U153: 0
A154: ='Org structure'!E150 -> 0 | J154: 0 | K154: 0 | L154: 0 | Q154: 0 | U154: 0
A155: ='Org structure'!E151 -> 0 | J155: 0 | K155: 0 | L155: 0 | Q155: 0 | U155: 0
A156: ='Org structure'!E152 -> 0 | J156: 0 | K156: 0 | L156: 0 | Q156: 0 | U156: 0
A157: ='Org structure'!E153 -> 0 | J157: 0 | K157: 0 | L157: 0 | Q157: 0 | U157: 0
A158: ='Org structure'!E154 -> 0 | J158: 0 | K158: 0 | L158: 0 | Q158: 0 | U158: 0
A159: ='Org structure'!E155 -> 0 | J159: 0 | K159: 0 | L159: 0 | Q159: 0 | U159: 0
A160: ='Org structure'!A16 -> Vote 15 - [NAME OF VOTE 15] | C160: =SUM(C161:C170) -> 0 | D160: 0 | E160: 0 | F160: 0 | G160: 0 | H160: 0 | I160: 0 | J160: 0 | K160: 0 | L160: 0 | N160: =SUM(N161:N170) -> 0 | O160: 0 | P160: 0 | Q160: 0 | R160: 0 | S160: 0 | T160: 0 | U160: 0 | V160: 0 | W160: 0 | X160: 0
A161: ='Org structure'!E157 -> 15.1 - [Name of sub-vote] | J161: =Q161+V161 -> 0 | K161: =U161+W161 -> 0 | L161: =X161 -> 0 | Q161: =SUM(N161:P161) -> 0 | U161: 0
A162: ='Org structure'!E158 -> 0 | J162: 0 | K162: 0 | L162: 0 | Q162: 0 | U162: 0
A163: ='Org structure'!E159 -> 0 | J163: 0 | K163: 0 | L163: 0 | Q163: 0 | U163: 0
A164: ='Org structure'!E160 -> 0 | J164: 0 | K164: 0 | L164: 0 | Q164: 0 | U164: 0
A165: ='Org structure'!E161 -> 0 | J165: 0 | K165: 0 | L165: 0 | Q165: 0 | U165: 0
A166: ='Org structure'!E162 -> 0 | J166: 0 | K166: 0 | L166: 0 | Q166: 0 | U166: 0
A167: ='Org structure'!E163 -> 0 | J167: 0 | K167: 0 | L167: 0 | Q167: 0 | U167: 0
A168: ='Org structure'!E164 -> 0 | J168: 0 | K168: 0 | L168: 0 | Q168: 0 | U168: 0
A169: ='Org structure'!E165 -> 0 | J169: 0 | K169: 0 | L169: 0 | Q169: 0 | U169: 0
A170: ='Org structure'!E166 -> 0 | J170: 0 | K170: 0 | L170: 0 | Q170: 0 | U170: 0
A171: Capital multi-year expenditure sub-total | C171: =C6+C17+C28+C39+C50+C61+C72+C83+C94+C105+C116+C127+C138+C149+C160 -> 659307682.9 | D171: =D6+D17+D28+D39+D50+D61+D72+D83+D94+D105+D116+D127+D138+D149+D160 -> 501509747.7 | E171: 532326314.7 | F171: 703134054 | G171: 748377947.5 | H171: 748377947.5 | I171: 0 | J171: 786565890.4 | K171: 469213520 | L171: 552838475 | N171: =N6+N17+N28+N39+N50+N61+N72+N83+N94+N105+N116+N127+N138+N149+N160 -> 0 | O171: 0 | P171: 0 | Q171: 0 | R171: 0 | S171: 0 | U171: 0 | V171: =V6+V17+V28+V39+V50+V61+V72+V83+V94+V105+V116+V127+V138+V149+V160 -> 786565890.4 | W171: =W6+W17+W28+W39+W50+W61+W72+W83+W94+W105+W116+W127+W138+W149+W160 -> 469213520 | X171: =X6+X17+X28+X39+X50+X61+X72+X83+X94+X105+X116+X127+X138+X149+X160 -> 552838475
A173: Capital expenditure - Municipal Vote
A174: Single-year expenditure appropriation | B174: 2
A175: =A6 -> Vote 1 - City Manager | C175: =SUM(C176:C185) -> 1409774.98 | D175: 2151205.01 | E175: 943953.22 | F175: 5000000 | G175: 7700000 | H175: 7700000 | I175: 0 | J175: 5000000 | K175: 3050000 | L175: 1500000
A176: =A7 -> 1.1 - Internal Audit and Compliance | D176: 0 | E176: 0 | F176: 0 | G176: 0
A177: 1.2 - Office of the City Manager | C177: 274174.98 | D177: 71499.7 | E177: 194295.18 | F177: 1000000 | G177: 5000000 | H177: 5000000 | J177: 5000000 | K177: 3050000 | L177: 1500000
A178: 1.3 - Political Support | C178: 1135600 | D178: 1040623.62 | E178: 749658.04 | F178: 0 | G178: 2700000 | H178: 2700000
A179: 1.4 - Strategic Planning | D179: 1039081.69 | E179: 0 | F179: 4000000 | G179: 0
A180: 0
A181: 0
A182: 0
A183: 0
A184: 0
A185: 0
A186: Vote 2 - City Finance | C186: =SUM(C187:C196) -> 6469188.79 | D186: 6344857.33 | E186: 3084194.22 | F186: 0 | G186: 0 | H186: 0 | I186: 0 | J186: 0 | K186: 0 | L186: 0
A187: 2.1 - Asset Management | C187: 5396998.22 | D187: 4381677.9 | E187: 2497739.82
A188: 2.2 - Budget and Treasury Management | C188: 1047881.32 | D188: 622883.85 | E188: 0
A189: 2.3 - Expenditure Management | C189: 0 | D189: 0 | E189: 49674.91
A190: 2.4 - Revenue Management | C190: 0 | D190: 1059984.98 | E190: 0
A191: 2.5 - Supply Chain Management | C191: 24309.25 | D191: 280310.6 | E191: 536779.49
A192: 0
A193: 0
A194: 0
A195: 0
A196: 0
A197: Vote 3 - Corporate Services | C197: =SUM(C198:C207) -> 132691.03 | D197: 2270139.63 | E197: 3796496.82 | F197: 10000000 | G197: 17000000 | H197: 17000000 | I197: 0 | J197: 7615000 | K197: 7021000 | L197: 5470875
A198: Human Resources Management | C198: 132691.03 | D198: 2124468.49 | E198: 0 | F198: 0 | J198: 60000 | K198: 961000 | L198: 0
A199: Information Technology | D199: 15697.5 | E199: 2630224.82 | F199: 10000000 | G199: 17000000 | H199: 17000000 | J199: =8325000-900000 -> 7425000 | K199: 6000000 | L199: 5380375
A200: Legal Services | D200: 95276 | E200: 0 | F200: 0 | J200: 0 | K200: 0 | L200: 0
A201: Secretariat and Auxiliary Services | D201: 34697.64 | E201: 1166272 | F201: 0 | J201: 40000 | K201: 0 | L201: 0
... 140 more rows

Sheet A6-FinPos
A1: =muni&" - "&Approve6 -> 0 - Table A6 Budgeted Financial Position
A2: =desc -> Description | B2: =head27 -> Ref | C2: =head1b -> 2020/21 | D2: =head1A -> 2021/22 | E2: =Head1 -> 2022/23 | F2: =Head2 -> Current Year 2023/24 | J2: =Head3 -> 2024/25 Medium Term Revenue & Expenditure Framework
A3: R thousand | C3: =Head5 -> Audited Outcome | D3: =Head5 -> Audited Outcome | E3: =Head5 -> Audited Outcome | F3: =Head6 -> Original Budget | G3: =Head7 -> Adjusted Budget | H3: =Head8 -> Full Year Forecast | I3: =Head5b -> Pre-audit outcome | J3: =Head9 -> Budget Year 2024/25 | K3: =Head10 -> Budget Year +1 2025/26 | L3: =Head11 -> Budget Year +2 2026/27
A4: ASSETS
A5: Current assets
A6: Cash and cash equivalents | C6: 359519552 | D6: 289152840 | E6: 511402009 | F6: 603973549 | G6: 800674797 | H6: 800674797 | J6: ='A7-CFlow'!J39 -> 733699594.8 | K6: ='A7-CFlow'!K39 -> 1213144254 | L6: ='A7-CFlow'!L39 -> 1203807634
A7: Trade and other receivables from exchange transactions | B7: 1 | C7: ='SA3'!C19 -> 1640228436 | D7: ='SA3'!D19 -> 1315073345 | E7: ='SA3'!E19 -> 2157209998 | F7: ='SA3'!F19 -> 1296255147 | G7: ='SA3'!G19 -> 2499303735 | H7: ='SA3'!H19 -> 2499303735 | I7: ='SA3'!I19 -> 0 | J7: 2649261959 | K7: 2768478747 | L7: 2893060291
A8: Receivables from non-exchange transactions | B8: 1 | C8: ='SA3'!C28 -> 13879333 | D8: ='SA3'!D28 -> 21113837 | E8: ='SA3'!E28 -> 97085566 | F8: ='SA3'!F28 -> 668305596 | G8: ='SA3'!G28 -> 765103880 | H8: ='SA3'!H28 -> 765103880 | I8: ='SA3'!I28 -> 0 | J8: 811010112.8 | K8: 847505567.9 | L8: 885643318.4
A9: Current portion of non-current receivables | F9: 0 | G9: 93046 | H9: 93046
A10: Inventory | B10: 2 | C10: 353716815 | D10: 367397459 | E10: 420123352 | F10: 359494469 | G10: 420123353 | H10: 420123353 | J10: 445330754.2 | K10: 465370638.1 | L10: 486312316.8
A11: VAT | F11: 0 | G11: 246824035 | H11: 246824035
A12: Other current assets | C12: 582670462 | D12: 549630598 | E12: 788358745 | F12: 0 | G12: 44265425 | H12: 44265425
A13: Total current assets | C13: =SUM(C6:C12) -> 2950014598 | D13: =SUM(D6:D12) -> 2542368079 | E13: 3974179670 | F13: 2928028761 | G13: 4776388271 | H13: 4776388271 | I13: 0 | J13: 4639302421 | K13: 5294499208 | L13: 5468823560
A14: Non current assets
A15: Investments
A16: Investment property | C16: 891933607 | D16: 925219355 | E16: 953062121 | F16: 974255980.8 | G16: 974255980.8 | H16: 974255980.8 | J16: 974255980.8 | K16: 974255980.8 | L16: 974255980.8
A17: Property, plant and equipment | B17: 3 | C17: ='SA3'!C130 -> 6771582107 | D17: ='SA3'!D130 -> 6908465877 | E17: ='SA3'!E130 -> 7044166606 | F17: ='SA3'!F130 -> 7930887847 | G17: ='SA3'!G130 -> 7874603292 | H17: ='SA3'!H130 -> 7874603292 | I17: ='SA3'!I130 -> 0 | J17: ='SA3'!J130 -> 7930887847 | K17: ='SA3'!K130 -> 7874603292 | L17: ='SA3'!L130 -> 7874603292
A18: Biological assets | F18: 84450600 | G18: 76375890 | H18: 76375890 | J18: =G18*1.06 -> 80958443.4 | K18: =J18*1.045 -> 84601573.35 | L18: =K18*1.045 -> 88408644.15
A19: Living and non-living resources | C19: 743574 | D19: 696179 | E19: 575890 | F19: 733076 | G19: 0 | H19: 0 | J19: =G19*1.06 -> 0 | K19: =J19*1.045 -> 0 | L19: 0
A20: Heritage assets | C20: 272918984 | D20: 273106020 | E20: 274718370 | F20: 287700639 | G20: 274782569 | H20: 274782569 | J20: 291269523.1 | K20: 304376651.7 | L20: 318073601
A21: Intangible assets | C21: 24463571 | D21: 20954448 | E21: 23913257 | F21: 20954448 | G21: 24213257 | H21: 24213257 | J21: 25666052.42 | K21: 26821024.78 | L21: 28027970.89
A22: Trade and other receivables from exchange transactions | F22: 0 | G22: 0 | H22: 0
A23: Non-current receivables from non-exchange transactions | F23: 0 | G23: 0 | H23: 0
A24: Other non-current assets | C24: 96300000 | D24: 80200000 | E24: 75800000 | F24: 0 | G24: 0 | H24: 0
A25: Total non current assets | C25: =SUM(C15:C24) -> 8057941843 | D25: =SUM(D15:D24) -> 8208641879 | E25: 8372236244 | F25: 9298982591 | G25: 9224230989 | H25: 9224230989 | I25: 0 | J25: 9303037847 | K25: 9264658523 | L25: 9283369489
A26: TOTAL ASSETS | C26: =C13+C25 -> 11007956441 | D26: =D13+D25 -> 10751009958 | E26: =E13+E25 -> 12346415914 | F26: =F13+F25 -> 1.222701135e+10 | G26: 1.400061926e+10 | H26: 1.400061926e+10 | I26: 0 | J26: 1.394234027e+10 | K26: 1.455915773e+10 | L26: 1.475219305e+10
A27: LIABILITIES
A28: Current liabilities
A29: Bank overdraft
A30: Financial liabilities | C30: ='SA3'!C136 -> 81573484 | D30: ='SA3'!D136 -> 79162900 | E30: ='SA3'!E136 -> 74270955 | F30: ='SA3'!F136 -> 83358534 | G30: ='SA3'!G136 -> 74270955 | H30: ='SA3'!H136 -> 74270955 | I30: ='SA3'!I136 -> 0 | J30: ='SA3'!J136 -> 78727212.3 | K30: ='SA3'!K136 -> 82269936.85 | L30: ='SA3'!L136 -> 86054353.95
A31: Consumer deposits | C31: 120647886 | D31: 132962378 | E31: 142078762 | F31: 140009384 | G31: 142187904 | H31: 142187904 | J31: =G31*1.06 -> 150719178.2 | K31: =J31*1.045 -> 157501541.3 | L31: =K31*1.045 -> 164589110.6
A32: Trade and other payables from exchange transactions | B32: 4 | C32: 1389326632 | D32: 1925228675 | E32: 2487458256 | F32: 1186508059 | G32: 1616757449 | H32: 1616757449 | J32: =G32*1.06 -> 1713762896 | K32: =J32*(1.045) -> 1790882226 | L32: =K32*1.045 -> 1871471926
A33: Trade and other payables from non-exchange transactions | B33: 5 | C33: 21715043 | D33: 20091631 | E33: 15568203 | F33: 0 | G33: 0 | H33: 0 | J33: 0 | K33: 0 | L33: 0
A34: Provision | C34: 9473444 | D34: 7591978 | E34: 8979751 | F34: 50151239 | G34: 58244752 | H34: 58244752 | J34: 61739437.12 | K34: 64517711.79 | L34: 67421008.82
A35: VAT | C35: 179672591 | D35: 178111817 | E35: 185012600 | F35: 187551743 | G35: 431836635 | H35: 431836635 | J35: 457746833.1 | K35: 478345440.6 | L35: 499870985.4
A36: Other current liabilities | C36: 219225713 | D36: 177613526 | E36: 225197859
A37: Total current liabilities | C37: =SUM(C29:C36) -> 2021634793 | D37: =SUM(D29:D36) -> 2520762905 | E37: 3138566386 | F37: 1647578959 | G37: 2323297695 | H37: 2323297695 | I37: 0 | J37: 2462695557 | K37: 2573516857 | L37: 2689407385 | N37: =3138566386-E37 -> 0
A38: Non current liabilities
A39: Financial liabilities | B39: 6 | C39: ='SA3'!C148 -> 203744512 | D39: ='SA3'!D148 -> 124581612 | E39: ='SA3'!E148 -> 50310656 | F39: ='SA3'!F148 -> 779436437 | G39: ='SA3'!G148 -> 528225655 | H39: ='SA3'!H148 -> 528225655 | I39: ='SA3'!I148 -> 0 | J39: ='SA3'!J148 -> 559919194.3 | K39: ='SA3'!K148 -> 585115558 | L39: ='SA3'!L148 -> 611445758.2
A40: Provision | B40: 7 | C40: ='SA3'!C162 -> 55141588 | D40: ='SA3'!D162 -> 61113708 | E40: ='SA3'!E162 -> 62175173 | F40: ='SA3'!F162 -> 0 | G40: ='SA3'!G162 -> 75576255 | H40: ='SA3'!H162 -> 0 | I40: ='SA3'!I162 -> 0 | J40: ='SA3'!J162 -> 80110830.3 | K40: ='SA3'!K162 -> 83715817.66 | L40: ='SA3'!L162 -> 87566745.28
A41: Long term portion of trade payables | C41: ='SA3'!C151 -> 0 | D41: ='SA3'!D151 -> 0 | E41: ='SA3'!E151 -> 0 | F41: ='SA3'!F151 -> 0 | G41: ='SA3'!G151 -> 0 | H41: ='SA3'!H151 -> 0 | I41: ='SA3'!I151 -> 0 | J41: ='SA3'!J151 -> 253702506 | K41: ='SA3'!K151 -> 253702506 | L41: ='SA3'!L151 -> 253702506
A42: Other non-current liabilities | C42: 555608000 | D42: 589320000 | E42: 545988000 | F42: 648252000 | G42: 648252000 | H42: 648252000 | J42: 583456000 | K42: 501186063.1 | L42: 415131709.2
A43: Total non current liabilities | C43: =SUM(C39:C42) -> 814494100 | D43: =SUM(D39:D42) -> 775015320 | E43: 658473829 | F43: 1427688437 | G43: 1252053910 | H43: 1176477655 | I43: 0 | J43: 1477188531 | K43: 1423719945 | L43: 1367846719
A44: TOTAL LIABILITIES | C44: =C37+C43 -> 2836128893 | D44: =D37+D43 -> 3295778225 | E44: =E37+E43 -> 3797040215 | F44: =F37+F43 -> 3075267396 | G44: 3575351605 | H44: 3499775350 | I44: 0 | J44: 3939884087 | K44: =K37+K43 -> 3997236802 | L44: 4057254104
A45: NET ASSETS | C45: =C26-C44 -> 8171827548 | D45: 7455231733 | E45: 8549375699 | F45: 9151743956 | G45: 1.042526765e+10 | H45: 1.050084391e+10 | I45: 0 | J45: 1.000245618e+10 | K45: 1.056192093e+10 | L45: 1.069493895e+10
A46: COMMUNITY WEALTH/EQUITY
A47: Accumulated surplus/(deficit) | B47: 8 | C47: 7980838526 | D47: 7253400681 | E47: 8329636267 | F47: 9511891593 | G47: 10166852986 | H47: 10166852986 | J47: 1.000245618e+10 | K47: 1.056192093e+10 | L47: 1.069493895e+10
A48: Reserves and funds | B48: 9 | C48: ='SA3'!C181 -> 190989022 | D48: ='SA3'!D181 -> 201831052 | E48: ='SA3'!E181 -> 219739432 | F48: ='SA3'!F181 -> 212528098 | G48: ='SA3'!G181 -> 0 | H48: ='SA3'!H181 -> 0 | I48: ='SA3'!I181 -> 0 | J48: ='SA3'!J181 -> 0 | K48: ='SA3'!K181 -> 0 | L48: ='SA3'!L181 -> 0
A49: Other
A50: TOTAL COMMUNITY WEALTH/EQUITY | B50: 10 | C50: =SUM(C47:C49) -> 8171827548 | D50: =SUM(D47:D49) -> 7455231733 | E50: 8549375699 | F50: 9724419691 | G50: 10166852986 | H50: 10166852986 | I50: 0 | J50: 1.000245618e+10 | K50: 1.056192093e+10 | L50: 1.069493895e+10
A51: =head27a -> References
A52: 1. Detail breakdown in Table SA3 for Trade receivables from Exchange and Non-exchange transactions | J52: =J45-J50 -> 0 | K52: =K45-K50 -> 0 | L52: 0
A53: 2. Include completed low cost housing to be transferred to beneficiaries within 12 months detail provided in Table SA3
A54: 3. Include 'Construction-work-in-progress' (disclosed separately in annual financial statements) detail in SA3
A55: 4. Detail breakdown in Table SA3.
A56: 5. Detail breakdown in Table SA3.
A57: 6. Detail breakdown in Table SA3.
A58: 7 Detail breakdown in Table SA3.
A59: 8. Detail breakdown in Table SA3.
A60: 9. Detail breakdown in Table SA3. Includes reserves to be funded by statute.
A61: 10. Net assets must balance with Total Community Wealth/Equity

Sheet A7-CFlow
A1: =muni&" - "&Approve7 -> 0 - Table A7 Budgeted Cash Flows
A2: =desc -> Description | B2: =head27 -> Ref | C2: =head1b -> 2020/21 | D2: =head1A -> 2021/22 | E2: =Head1 -> 2022/23 | F2: =Head2 -> Current Year 2023/24 | J2: =Head3 -> 2024/25 Medium Term Revenue & Expenditure Framework
A3: R thousand | C3: =Head5 -> Audited Outcome | D3: =Head5 -> Audited Outcome | E3: =Head5 -> Audited Outcome | F3: =Head6 -> Original Budget | G3: =Head7 -> Adjusted Budget | H3: =Head8 -> Full Year Forecast | I3: =Head5b -> Pre-audit outcome | J3: =Head9 -> Budget Year 2024/25 | K3: =Head10 -> Budget Year +1 2025/26 | L3: =Head11 -> Budget Year +2 2026/27
A4: CASH FLOW FROM OPERATING ACTIVITIES
A5: Receipts
A6: Property rates | D6: 1149564108 | E6: 1335259494 | F6: 1435365977 | G6: 1435365977 | H6: 1435365977 | J6: ='SA30'!N5 -> 1533897844 | K6: ='SA30'!O5 -> 1604457145 | L6: ='SA30'!P5 -> 1676657717
A7: Service charges | C7: 4078704928 | D7: 3166809930 | E7: 3515849063 | F7: 4467999174 | G7: 4277066068 | H7: 4467999174 | J7: ='SA30'!N6+'SA30'!N7+'SA30'!N8+'SA30'!N9 -> 4944819683 | K7: ='SA30'!O6+'SA30'!O7+'SA30'!O8+'SA30'!O9 -> 5711397578 | L7: ='SA30'!P6+'SA30'!P7+'SA30'!P8+'SA30'!P9 -> 5876739034
A8: Other revenue | D8: 76009657 | E8: 9652336 | F8: 1106865000 | G8: 1119062172 | H8: 1106865000 | J8: ='SA30'!N11+'SA30'!N15+'SA30'!N16+'SA30'!N17+'SA30'!N19+'SA30'!N29 -> 795486387.5 | K8: ='SA30'!O11+'SA30'!O15+'SA30'!O16+'SA30'!O17+'SA30'!O19+'SA30'!O29 -> 902398264.5 | L8: ='SA30'!P11+'SA30'!P15+'SA30'!P16+'SA30'!P17+'SA30'!P19+'SA30'!P29 -> 930995253.4
A9: Transfers and Subsidies - Operational | B9: 1 | C9: 1254551714 | D9: 686988866 | E9: 795621362 | F9: 834106196 | G9: 844915796 | H9: 834106196 | J9: ='SA30'!N18 -> 956879939.3 | K9: ='SA30'!O18 -> 1000217863 | L9: ='SA30'!P18 -> 1067329110
A10: Transfers and Subsidies - Capital | B10: 1 | D10: 327896741 | E10: 370294564 | F10: 452578009 | G10: 536156204 | H10: 452578009 | J10: ='SA30'!N23+'SA30'!N24 -> 456974890.5 | K10: ='SA30'!O23+'SA30'!O24 -> 387974937.8 | L10: ='SA30'!P23+'SA30'!P24 -> 383992600
A11: Interest | C11: 23017689 | D11: 33578242 | E11: 43019202 | F11: 18052025 | G11: 18132025 | H11: 18052025 | J11: ='SA30'!N12+'SA30'!N13 -> 19135146.8 | K11: ='SA30'!O12+'SA30'!O13 -> 20015363.55 | L11: ='SA30'!P12+'SA30'!P13 -> 20916054.91
A12: Dividends | F12: 0 | G12: 0 | H12: 0 | J12: ='SA30'!N14 -> 0 | K12: ='SA30'!O14 -> 0 | L12: ='SA30'!P14 -> 0
A13: Payments
A14: Suppliers and employees | C14: -4731611067 | D14: -4853520047 | E14: -5238024705 | F14: -7277163805 | G14: -7126432961 | H14: -7277163805 | J14: =-('SA30'!N35+'SA30'!N36+'SA30'!N38+'SA30'!N39+'SA30'!N40+'SA30'!N41+'SA30'!N44+'SA30'!N50) -> -7692706211 | K14: =-('SA30'!O35+'SA30'!O36+'SA30'!O38+'SA30'!O39+'SA30'!O40+'SA30'!O41+'SA30'!O44+'SA30'!O50) -> -8431371722 | L14: =-('SA30'!P35+'SA30'!P36+'SA30'!P38+'SA30'!P39+'SA30'!P40+'SA30'!P41+'SA30'!P44+'SA30'!P50) -> -9249008815
A15: Interest | C15: -36203064 | D15: -27182033 | E15: -18837253 | F15: -40400878 | G15: -40400878 | H15: -40400878 | J15: =-('SA30'!N37) -> -42824930.71 | K15: =-('SA30'!O37) -> -44794877.52 | L15: =-('SA30'!P37) -> -46810647.01
A16: Transfers and Subsidies | B16: 1 | D16: -25006849 | E16: -22156430 | F16: -51023536 | G16: -38487535 | H16: -51023536 | J16: =-('SA30'!N42+'SA30'!N43) -> -69670130.46 | K16: =-('SA30'!O42+'SA30'!O43) -> -72874955.54 | L16: =-('SA30'!P42+'SA30'!P43) -> -76154327.64
A17: NET CASH FROM/(USED) OPERATING ACTIVITIES | C17: =SUM(C6:C12)+SUM(C14:C16) -> 588460200 | D17: =SUM(D6:D12)+SUM(D14:D16) -> 535138615 | E17: 790677633 | F17: 946378162.4 | G17: 1025376868 | H17: 946378162.4 | I17: =SUM(I6:I12)+SUM(I14:I16) -> 0 | J17: 901992619.2 | K17: 1077419597 | L17: 584655979.9
A18: CASH FLOWS FROM INVESTING ACTIVITIES
A19: Receipts
A20: Proceeds on disposal of PPE | C20: -600455908 | D20: 5825155 | E20: 3343347 | J20: ='SA30'!N25 -> 0 | K20: ='SA30'!O25 -> 0 | L20: ='SA30'!P25 -> 0
E21: 0
A22: Decrease (increase) in non-current receivables | D22: -358575 | E22: 0 | J22: ='SA30'!N30 -> 0 | K22: ='SA30'!O30 -> 0 | L22: ='SA30'!P30 -> 0
A23: Decrease (increase) in non-current investments | C23: -32242270 | E23: 9415144 | J23: ='SA30'!N31 -> 0 | K23: ='SA30'!O31 -> 0 | L23: ='SA30'!P31 -> 0
A24: Payments
A25: Capital assets | D25: -530398424 | E25: -502024054 | F25: -768501055 | G25: -821289572 | H25: -768501055 | J25: =-('SA30'!N48) -> -824010890.4 | K25: =-('SA30'!O48) -> -507974937.8 | L25: =-('SA30'!P48) -> -503992600
A26: NET CASH FROM/(USED) INVESTING ACTIVITIES | C26: =+C20+C22+C23+C25 -> -632698178 | D26: =+D20+D22+D23+D25 -> -524931844 | E26: -489265563 | F26: -768501055 | G26: -821289572 | H26: -768501055 | I26: 0 | J26: -824010890.4 | K26: -507974937.8 | L26: -503992600
A28: CASH FLOWS FROM FINANCING ACTIVITIES
A29: Receipts
A30: Short term loans | J30: ='SA30'!N26 -> 0 | K30: ='SA30'!O26 -> 0 | L30: ='SA30'!P26 -> 0
A31: Borrowing long term/refinancing | F31: 200000000 | G31: 116274950 | H31: 200000000 | J31: ='SA30'!N27 -> 234315856 | K31: ='SA30'!O27 -> 0 | L31: ='SA30'!P27 -> 0
A32: Increase (decrease) in consumer deposits | J32: ='SA30'!N28 -> 0 | K32: ='SA30'!O28 -> 0 | L32: ='SA30'!P28 -> 0
A33: Payments
A34: Repayment of borrowing | C34: -113418258 | D34: -81573483 | E34: -79162901 | F34: -23000000 | G34: -23000000 | H34: -23000000 | J34: =-('SA30'!N49) -> -90000000 | K34: =-('SA30'!O49) -> -90000000 | L34: =-('SA30'!P49) -> -90000000
A35: NET CASH FROM/(USED) FINANCING ACTIVITIES | C35: =SUM(C30:C32)+C34 -> -113418258 | D35: =SUM(D30:D32)+D34 -> -81573483 | E35: -79162901 | F35: 177000000 | G35: 93274950 | H35: 177000000 | I35: 0 | J35: 144315856 | K35: -90000000 | L35: -90000000
A37: NET INCREASE/ (DECREASE) IN CASH HELD | C37: =C17+C26+C35 -> -157656236 | D37: -71366712 | E37: 222249169 | F37: 354877107.4 | G37: 297362246 | H37: 354877107.4 | I37: 0 | J37: 222297584.8 | K37: 479444659.5 | L37: -9336620.116
A38: Cash/cash equivalents at the year begin: | B38: 2 | C38: 518976967 | D38: 359519552 | F38: 289152840 | G38: 511402010 | H38: 412002857.3 | J38: ='SA30'!N54 -> 511402010 | K38: =J39 -> 733699594.8 | L38: =K39 -> 1213144254
A39: Cash/cash equivalents at the year end: | B39: 2 | C39: =C37+C38 -> 361320731 | D39: =D37+D38 -> 288152840 | E39: =E37+E38 -> 222249169 | F39: =F37+F38 -> 644029947.4 | G39: 808764256 | H39: 766879964.7 | I39: 0 | J39: 733699594.8 | K39: 1213144254 | L39: 1203807634
A40: =head27a -> References
A41: 1. Local/District municipalities to include transfers from/to District/Local Municipalities
A42: 2. Cash equivalents includes investments with maturities of 3 months or less
A43: 3. The MTREF is populated directly from SA30.
A44: Total receipts | C44: =SUM(C6:C12)+SUM(C20:C22) -> 4755818423 | D44: 5446314124 | E44: 6073039368 | F44: 8314966381 | G44: 8230698242 | H44: 8314966381 | I44: 0 | J44: 8707193891 | K44: 9626461152 | L44: 9956629770
A45: Total payments | C45: =SUM(C14:C16)+C25 -> -4767814131 | D45: -5436107353 | E45: -5781042442 | F45: -8137089274 | G45: -8026610946 | H45: -8137089274 | I45: 0 | J45: -8629212162 | K45: -9057016493 | L45: -9875966390
C46: =C44+C45 -> -11995708 | D46: =D44+D45 -> 10206771 | E46: 291996926 | F46: 177877107.4 | G46: 204087296 | H46: 177877107.4 | I46: 0 | J46: 77981728.79 | K46: 569444659.5 | L46: 80663379.88
A47: Borrowings & investments & c.deposits | C47: =C23+C31+C32 -> -32242270 | D47: =D23+D31+D32 -> 0 | E47: 9415144 | F47: 200000000 | G47: 116274950 | H47: 200000000 | I47: 0 | J47: 234315856 | K47: 0 | L47: 0
A48: =A34 -> Repayment of borrowing | C48: =C34 -> -113418258 | D48: =D34 -> -81573483 | E48: -79162901 | F48: -23000000 | G48: -23000000 | H48: -23000000 | I48: =I34 -> 0 | J48: -90000000 | K48: -90000000 | L48: -90000000
C49: =C46+C47+C48 -> -157656236 | D49: =D46+D47+D48 -> -71366712 | E49: 222249169 | F49: 354877107.4 | G49: 297362246 | H49: 354877107.4 | I49: 0 | J49: 222297584.8 | K49: 479444659.5 | L49: -9336620.116
C50: =C37-C49 -> 0 | D50: 0 | E50: 0 | F50: 0 | G50: 0 | H50: 0 | I50: 0 | J50: 0 | K50: 0 | L50: 0

Sheet A8-ResRecon
A1: =muni&" - "&Approve8 -> 0 - Table A8 Cash backed reserves/accumulated surplus reconciliation
A2: =desc -> Description | B2: =head27 -> Ref | C2: =head1b -> 2020/21 | D2: =head1A -> 2021/22 | E2: =Head1 -> 2022/23 | F2: =Head2 -> Current Year 2023/24 | J2: =Head3 -> 2024/25 Medium Term Revenue & Expenditure Framework
A3: R thousand | C3: =Head5 -> Audited Outcome | D3: =Head5 -> Audited Outcome | E3: =Head5 -> Audited Outcome | F3: =Head6 -> Original Budget | G3: =Head7 -> Adjusted Budget | H3: =Head8 -> Full Year Forecast | I3: =Head5b -> Pre-audit outcome | J3: =Head9 -> Budget Year 2024/25 | K3: =Head10 -> Budget Year +1 2025/26 | L3: =Head11 -> Budget Year +2 2026/27
A4: Cash and investments available
A5: =LEFT('A7-CFlow'!A39,37) -> Cash/cash equivalents at the year end | B5: 1 | C5: ='A7-CFlow'!C39 -> 361320731 | D5: ='A7-CFlow'!D39 -> 288152840 | E5: ='A7-CFlow'!E39 -> 222249169 | F5: ='A7-CFlow'!F39 -> 644029947.4 | G5: ='A7-CFlow'!G39 -> 808764256 | H5: ='A7-CFlow'!H39 -> 766879964.7 | I5: ='A7-CFlow'!I39 -> 0 | J5: ='A7-CFlow'!J39 -> 733699594.8 | K5: ='A7-CFlow'!K39 -> 1213144254 | L5: ='A7-CFlow'!L39 -> 1203807634
A6: Other current investments > 90 days | C6: ='A6-FinPos'!C6-'A6-FinPos'!C29-'A8-ResRecon'!C5 -> -1801179 | D6: ='A6-FinPos'!D6-'A6-FinPos'!D29-'A8-ResRecon'!D5 -> 1000000 | E6: ='A6-FinPos'!E6-'A6-FinPos'!E29-'A8-ResRecon'!E5 -> 289152840 | F6: ='A6-FinPos'!F6-'A6-FinPos'!F29-'A8-ResRecon'!F5 -> -40056398.43 | G6: ='A6-FinPos'!G6-'A6-FinPos'!G29-'A8-ResRecon'!G5 -> -8089459 | H6: ='A6-FinPos'!H6-'A6-FinPos'!H29-'A8-ResRecon'!H5 -> 33794832.3 | I6: ='A6-FinPos'!I6-'A6-FinPos'!I29-'A8-ResRecon'!I5 -> 0 | J6: ='A6-FinPos'!J6-'A6-FinPos'!J29-'A8-ResRecon'!J5 -> 0 | K6: ='A6-FinPos'!K6-'A6-FinPos'!K29-'A8-ResRecon'!K5 -> 0 | L6: ='A6-FinPos'!L6-'A6-FinPos'!L29-'A8-ResRecon'!L5 -> 0
A7: Non current Investments | B7: 1 | C7: ='A6-FinPos'!C15 -> 0 | D7: ='A6-FinPos'!D15 -> 0 | E7: ='A6-FinPos'!E15 -> 0 | F7: ='A6-FinPos'!F15 -> 0 | G7: ='A6-FinPos'!G15 -> 0 | H7: ='A6-FinPos'!H15 -> 0 | I7: ='A6-FinPos'!I15 -> 0 | J7: ='A6-FinPos'!J15 -> 0 | K7: ='A6-FinPos'!K15 -> 0 | L7: ='A6-FinPos'!L15 -> 0
A8: Cash and investments available: | C8: =SUM(C5:C7) -> 359519552 | D8: =SUM(D5:D7) -> 289152840 | E8: 511402009 | F8: 603973549 | G8: 800674797 | H8: 800674797 | I8: 0 | J8: 733699594.8 | K8: 1213144254 | L8: 1203807634
A10: Application of cash and investments
A11: Unspent conditional transfers | C11: ='SA3'!C141 -> 0 | D11: ='SA3'!D141 -> 0 | E11: ='SA3'!E141 -> 0 | F11: ='SA3'!F141 -> 0 | G11: ='SA3'!G141 -> 0 | H11: ='SA3'!H141 -> 0 | I11: ='SA3'!I141 -> 0 | J11: ='SA3'!J141 -> 0 | K11: ='SA3'!K141 -> 0 | L11: ='SA3'!L141 -> 0
A12: Unspent borrowing
A13: Statutory requirements | B13: 2 | F13: 187551743 | G13: 185012600 | H13: 185012600 | J13: =G13*1.06 -> 196113356 | K13: =J13*1.045 -> 204938457 | L13: =K13*1.045 -> 214160687.6
A14: Other working capital requirements | B14: 3 | C14: =-C34 -> -614494000 | D14: =-D34 -> -518393000 | E14: -870648000 | F14: =-F34 -> -872565000 | G14: -1432893000 | H14: -1470383000 | I14: 0 | J14: -714459000 | K14: -770312000 | L14: -1437045074
A15: Other provisions | F15: 50151239 | G15: 58244752 | H15: 58244752 | J15: =G15*1.06 -> 61739437.12 | K15: =J15*1.045 -> 64517711.79 | L15: =K15*1.045 -> 67421008.82
A16: Long term investments committed | B16: 4 | C16: =C54 -> 0 | D16: =D54 -> 0 | E16: 0 | F16: 0 | G16: 0 | H16: 0 | I16: 0 | J16: 0 | K16: 0 | L16: 0
A17: Reserves to be backed by cash/investments | B17: 5
A18: Total Application of cash and investments: | C18: =SUM(C11:C17) -> -614494000 | D18: =SUM(D11:D17) -> -518393000 | E18: -870648000 | F18: -634862018 | G18: -1189635648 | H18: -1227125648 | I18: 0 | J18: -456606206.9 | K18: -500855831.2 | L18: -1155463377
A19: Surplus(shortfall) - Excluding Non-Current Creditors Trf to Debt Relief Benefits | C19: =C8-C18 -> 974013552 | D19: =D8-D18 -> 807545840 | E19: 1382050009 | F19: 1238835567 | G19: 1990310445 | H19: 2027800445 | I19: 0 | J19: 1190305802 | K19: 1714000085 | L19: 2359271011
A20: Creditors transferred to Debt Relief - Non-Current portion | C20: ='SA3'!C155 -> 0 | D20: ='SA3'!D155 -> 0 | E20: ='SA3'!E155 -> 0 | F20: ='SA3'!F155 -> 0 | G20: ='SA3'!G155 -> 0 | H20: ='SA3'!H155 -> 0 | I20: ='SA3'!I155 -> 0 | J20: ='SA3'!J155 -> 253702506 | K20: ='SA3'!K155 -> 253702506 | L20: ='SA3'!L155 -> 253702506
A21: Surplus(shortfall) - Including Non-Current Creditors Trf to Debt Relief Benefits | C21: =SUM(C19:C20) -> 974013552 | D21: =SUM(D19:D20) -> 807545840 | E21: 1382050009 | F21: 1238835567 | G21: 1990310445 | H21: 2027800445 | I21: 0 | J21: 1444008308 | K21: 1967702591 | L21: 2612973517
A22: =head27a -> References
A23: 1. Must reconcile with Budgeted Cash Flows
A24: 2. For example: VAT, taxation
A25: 3. Council approval for policy required - include sufficient working capital (e.g. allowing for a % of current debtors > 90 days as uncollectable)
A26: 4. For example: sinking fund requirements for borrowing
A27: 5. Council approval required for each reserve created and basis of cash backing of reserves - Total Reserves to be backed by cash/investments excl Valuation reserve
A30: Other working capital requirements
A31: Debtors | C31: =IF(ISERROR(ROUND(C37*C38,-3)),0,(ROUND(C37*C38,-3))) -> 614494000 | D31: =IF(ISERROR(ROUND(D37*D38,-3)),0,(ROUND(D37*D38,-3))) -> 518393000 | E31: 870648000 | F31: 872565000 | G31: 1432893000 | H31: 1470383000 | I31: 0 | J31: 3314459000 | K31: 3470312000 | L31: 3308517000
A33: Creditors due | C33: ='SA3'!C139+'SA3'!C140 -> 0 | D33: ='SA3'!D139+'SA3'!D140 -> 0 | E33: ='SA3'!E139+'SA3'!E140 -> 0 | F33: ='SA3'!F139+'SA3'!F140 -> 0 | G33: ='SA3'!G139+'SA3'!G140 -> 0 | H33: ='SA3'!H139+'SA3'!H140 -> 0 | I33: ='SA3'!I139+'SA3'!I140 -> 0 | J33: ='SA3'!J139+'SA3'!J140 -> 2600000000 | K33: ='SA3'!K139+'SA3'!K140 -> 2700000000 | L33: ='SA3'!L139+'SA3'!L140 -> 1871471926
A34: Total | C34: =C31-C33 -> 614494000 | D34: =D31-D33 -> 518393000 | E34: 870648000 | F34: 872565000 | G34: 1432893000 | H34: 1470383000 | I34: 0 | J34: 714459000 | K34: 770312000 | L34: 1437045074
A36: Debtors collection assumptions
A37: Balance outstanding - debtors | C37: ='A6-FinPos'!C7+'A6-FinPos'!C8+'A6-FinPos'!C9+'A6-FinPos'!C22+'A6-FinPos'!C23 -> 1654107769 | D37: ='A6-FinPos'!D7+'A6-FinPos'!D8+'A6-FinPos'!D9+'A6-FinPos'!D22+'A6-FinPos'!D23 -> 1336187182 | E37: ='A6-FinPos'!E7+'A6-FinPos'!E8+'A6-FinPos'!E9+'A6-FinPos'!E22+'A6-FinPos'!E23 -> 2254295564 | F37: ='A6-FinPos'!F7+'A6-FinPos'!F8+'A6-FinPos'!F9+'A6-FinPos'!F22+'A6-FinPos'!F23 -> 1964560743 | G37: ='A6-FinPos'!G7+'A6-FinPos'!G8+'A6-FinPos'!G9+'A6-FinPos'!G22+'A6-FinPos'!G23 -> 3264500661 | H37: ='A6-FinPos'!H7+'A6-FinPos'!H8+'A6-FinPos'!H9+'A6-FinPos'!H22+'A6-FinPos'!H23 -> 3264500661 | I37: ='A6-FinPos'!I7+'A6-FinPos'!I8+'A6-FinPos'!I9+'A6-FinPos'!I22+'A6-FinPos'!I23 -> 0 | J37: ='A6-FinPos'!J7+'A6-FinPos'!J8+'A6-FinPos'!J9+'A6-FinPos'!J22+'A6-FinPos'!J23 -> 3460272072 | K37: ='A6-FinPos'!K7+'A6-FinPos'!K8+'A6-FinPos'!K9+'A6-FinPos'!K22+'A6-FinPos'!K23 -> 3615984315 | L37: ='A6-FinPos'!L7+'A6-FinPos'!L8+'A6-FinPos'!L9+'A6-FinPos'!L22+'A6-FinPos'!L23 -> 3778703609
A38: Estimate of debtors collection rate | C38: =IF(ISERROR('SA10'!D10),0,('SA10'!D10)) -> 0.3714959412 | D38: =IF(ISERROR('SA10'!E10),0,('SA10'!E10)) -> 0.3879644963 | E38: =IF(ISERROR('SA10'!F10),0,('SA10'!F10)) -> 0.3862175101 | F38: =IF(ISERROR('SA10'!G10),0,('SA10'!G10)) -> 0.44415295 | G38: =IF(ISERROR('SA10'!H10),0,('SA10'!H10)) -> 0.4389318543 | H38: =IF(ISERROR('SA10'!I10),0,('SA10'!I10)) -> 0.4504158566 | I38: =IF(ISERROR('SA10'!J10),0,('SA10'!J10)) -> 0 | J38: =IF(ISERROR('SA10'!K10),0,('SA10'!K10)) -> 0.9578606723 | K38: =IF(ISERROR('SA10'!L10),0,('SA10'!L10)) -> 0.9597144767 | L38: =IF(ISERROR('SA10'!M10),0,('SA10'!M10)) -> 0.8755694516
K41: `
A42: =A16 -> Long term investments committed
A43: Balance (Insert description; eg sinking fund)
C54: =SUM(C43:C53) -> 0 | D54: =SUM(D43:D53) -> 0 | E54: 0 | F54: 0 | G54: 0 | H54: 0 | I54: 0 | J54: 0 | K54: 0 | L54: 0
A55: =A17 -> Reserves to be backed by cash/investments
A56: Housing Development Fund | C56: ='SA3'!C176 -> 95126533 | D56: ='SA3'!D176 -> 105694250 | E56: ='SA3'!E176 -> 110558452 | F56: ='SA3'!F176 -> 0 | G56: ='SA3'!G176 -> 0 | H56: ='SA3'!H176 -> 0 | I56: ='SA3'!I176 -> 0 | J56: ='SA3'!J176 -> 0 | K56: ='SA3'!K176 -> 0 | L56: ='SA3'!L176 -> 0
A57: Capital replacement | C57: ='SA3'!C177 -> 724892 | D57: ='SA3'!D177 -> 785902 | E57: ='SA3'!E177 -> 4605111 | F57: ='SA3'!F177 -> 0 | G57: ='SA3'!G177 -> 0 | H57: ='SA3'!H177 -> 0 | I57: ='SA3'!I177 -> 0 | J57: ='SA3'!J177 -> 0 | K57: ='SA3'!K177 -> 0 | L57: ='SA3'!L177 -> 0
A58: Self-insurance | C58: ='SA3'!C178 -> 0 | D58: ='SA3'!D178 -> 0 | E58: ='SA3'!E178 -> 0 | F58: ='SA3'!F178 -> 0 | G58: ='SA3'!G178 -> 0 | H58: ='SA3'!H178 -> 0 | I58: ='SA3'!I178 -> 0 | J58: ='SA3'!J178 -> 0 | K58: ='SA3'!K178 -> 0 | L58: ='SA3'!L178 -> 0
A59: Compensation for Occupational Injuries and Diseases
A60: Employee Benefit reserve
A61: Non-current Provisions reserve
A62: Valuation roll reserve
A63: Investment in associate account
A64: Capitalisation
B65: 6 | C65: =SUM(C56:C64) -> 95851425 | D65: =SUM(D56:D64) -> 106480152 | E65: 115163563 | F65: 0 | G65: 0 | H65: 0 | I65: 0 | J65: 0 | K65: 0 | L65: 0
A66: Note:
A67: 6. Above reserves do not include Revaluation reserve. Revaluation reserve not required to be cash backed

Sheet A9-Asset
A1: =muni&" - "&Approve9 -> 0 - Table A9 Asset Management
A2: =desc -> Description | B2: =head27 -> Ref | C2: =head1b -> 2020/21 | D2: =head1A -> 2021/22 | E2: =Head1 -> 2022/23 | F2: =Head2 -> Current Year 2023/24 | I2: =Head3 -> 2024/25 Medium Term Revenue & Expenditure Framework
A3: R thousand | C3: =Head5 -> Audited Outcome | D3: =Head5 -> Audited Outcome | E3: =Head5 -> Audited Outcome | F3: =Head6 -> Original Budget | G3: =Head7 -> Adjusted Budget | H3: =Head8 -> Full Year Forecast | I3: =Head9 -> Budget Year 2024/25 | J3: =Head10 -> Budget Year +1 2025/26 | K3: =Head11 -> Budget Year +2 2026/27
A4: CAPITAL EXPENDITURE
A5: Total New Assets | B5: 1 | C5: =C15+C18+C19+C22+C25+C26+SUM(C29:C35)+C38 -> 407942774.9 | D5: =D15+D18+D19+D22+D25+D26+SUM(D29:D35)+D38 -> 208015820.8 | E5: 164948734.2 | F5: 507939554 | G5: 424227071.9 | H5: 0 | I5: 573241637 | J5: 255629757.2 | K5: 325804931.4
A6: Roads Infrastructure | C6: =SA34a!C7 -> 211423171.8 | D6: =SA34a!D7 -> 81647654.11 | E6: =SA34a!E7 -> 2069740.91 | F6: =SA34a!F7 -> 2250000 | G6: =SA34a!G7 -> 2250000 | H6: =SA34a!H7 -> 0 | I6: =SA34a!I7 -> 35420143.91 | J6: =SA34a!J7 -> 53355000 | K6: =SA34a!K7 -> 103690500
A7: Storm water Infrastructure | C7: =SA34a!C12 -> 0 | D7: =SA34a!D12 -> 0 | E7: =SA34a!E12 -> 0 | F7: =SA34a!F12 -> 0 | G7: =SA34a!G12 -> 0 | H7: =SA34a!H12 -> 0 | I7: =SA34a!I12 -> 0 | J7: =SA34a!J12 -> 0 | K7: =SA34a!K12 -> 0
A8: Electrical Infrastructure | C8: =SA34a!C16 -> 4653205.64 | D8: =SA34a!D16 -> 5502776.88 | E8: =SA34a!E16 -> 63108055.52 | F8: =SA34a!F16 -> 194000000 | G8: =SA34a!G16 -> 106674950 | H8: =SA34a!H16 -> 0 | I8: =SA34a!I16 -> 203032551.7 | J8: =SA34a!J16 -> 16576718.2 | K8: =SA34a!K16 -> 17697411.98
A9: Water Supply Infrastructure | C9: =SA34a!C26 -> 74239163.4 | D9: =SA34a!D26 -> 22506108.56 | E9: =SA34a!E26 -> 4743063.14 | F9: =SA34a!F26 -> 29860000 | G9: =SA34a!G26 -> 22860000 | H9: =SA34a!H26 -> 0 | I9: =SA34a!I26 -> 5320000 | J9: =SA34a!J26 -> 0 | K9: =SA34a!K26 -> 0
A10: Sanitation Infrastructure | C10: =SA34a!C37 -> 44898478.72 | D10: =SA34a!D37 -> 7231193.43 | E10: =SA34a!E37 -> 11810585.4 | F10: =SA34a!F37 -> 65477640 | G10: =SA34a!G37 -> 29376640 | H10: =SA34a!H37 -> 0 | I10: =SA34a!I37 -> 78223966.7 | J10: =SA34a!J37 -> 60615098.18 | K10: =SA34a!K37 -> 49007028.51
A11: Solid Waste Infrastructure | C11: =SA34a!C44 -> 0 | D11: =SA34a!D44 -> 0 | E11: =SA34a!E44 -> 1387773 | F11: =SA34a!F44 -> 0 | G11: =SA34a!G44 -> 0 | H11: =SA34a!H44 -> 0 | I11: =SA34a!I44 -> 0 | J11: =SA34a!J44 -> 0 | K11: =SA34a!K44 -> 0
A12: Rail Infrastructure | C12: =SA34a!C52 -> 0 | D12: =SA34a!D52 -> 0 | E12: =SA34a!E52 -> 0 | F12: =SA34a!F52 -> 0 | G12: =SA34a!G52 -> 0 | H12: =SA34a!H52 -> 0 | I12: =SA34a!I52 -> 0 | J12: =SA34a!J52 -> 0 | K12: =SA34a!K52 -> 0
A13: Coastal Infrastructure | C13: =SA34a!C62 -> 0 | D13: =SA34a!D62 -> 9690782.04 | E13: =SA34a!E62 -> 0 | F13: =SA34a!F62 -> 0 | G13: =SA34a!G62 -> 0 | H13: =SA34a!H62 -> 0 | I13: =SA34a!I62 -> 0 | J13: =SA34a!J62 -> 0 | K13: =SA34a!K62 -> 0
A14: Information and Communication Infrastructure | C14: =SA34a!C68 -> 0 | D14: =SA34a!D68 -> 0 | E14: =SA34a!E68 -> 0 | F14: =SA34a!F68 -> 0 | G14: =SA34a!G68 -> 0 | H14: =SA34a!H68 -> 0 | I14: =SA34a!I68 -> 0 | J14: =SA34a!J68 -> 0 | K14: =SA34a!K68 -> 0
A15: Infrastructure | C15: =SUM(C6:C14) -> 335214019.5 | D15: =SUM(D6:D14) -> 126578515 | E15: 83119217.97 | F15: 291587640 | G15: 161161590 | H15: 0 | I15: 321996662.3 | J15: 130546816.4 | K15: 170394940.5
A16: Community Facilities | C16: =SA34a!C75 -> 10563092.96 | D16: =SA34a!D75 -> 8485737.62 | E16: =SA34a!E75 -> 37928838.2 | F16: =SA34a!F75 -> 25607499.05 | G16: =SA34a!G75 -> 23243267 | H16: =SA34a!H75 -> 0 | I16: =SA34a!I75 -> 17641943.08 | J16: =SA34a!J75 -> 14616720 | K16: =SA34a!K75 -> 15941100
A17: Sport and Recreation Facilities | C17: =SA34a!C98 -> 2595862.83 | D17: =SA34a!D98 -> 573882.38 | E17: =SA34a!E98 -> 0 | F17: =SA34a!F98 -> 0 | G17: =SA34a!G98 -> 0 | H17: =SA34a!H98 -> 0 | I17: =SA34a!I98 -> 0 | J17: =SA34a!J98 -> 0 | K17: =SA34a!K98 -> 0
A18: Community Assets | C18: =SUM(C16:C17) -> 13158955.79 | D18: =SUM(D16:D17) -> 9059620 | E18: 37928838.2 | F18: 25607499.05 | G18: 23243267 | H18: 0 | I18: 17641943.08 | J18: 14616720 | K18: 15941100
A19: Heritage Assets | C19: =SA34a!C103 -> 0 | D19: =SA34a!D103 -> 0 | E19: =SA34a!E103 -> 0 | F19: =SA34a!F103 -> 0 | G19: =SA34a!G103 -> 0 | H19: =SA34a!H103 -> 0 | I19: =SA34a!I103 -> 0 | J19: =SA34a!J103 -> 0 | K19: =SA34a!K103 -> 0
A20: Revenue Generating | C20: =SA34a!C111 -> 0 | D20: =SA34a!D111 -> 0 | E20: =SA34a!E111 -> 0 | F20: =SA34a!F111 -> 0 | G20: =SA34a!G111 -> 0 | H20: =SA34a!H111 -> 0 | I20: =SA34a!I111 -> 0 | J20: =SA34a!J111 -> 0 | K20: =SA34a!K111 -> 0
A21: Non-revenue Generating | C21: =SA34a!C114 -> 0 | D21: =SA34a!D114 -> 0 | E21: =SA34a!E114 -> 0 | F21: =SA34a!F114 -> 0 | G21: =SA34a!G114 -> 0 | H21: =SA34a!H114 -> 0 | I21: =SA34a!I114 -> 0 | J21: =SA34a!J114 -> 0 | K21: =SA34a!K114 -> 0
A22: Investment properties | C22: =SUM(C20:C21) -> 0 | D22: =SUM(D20:D21) -> 0 | E22: 0 | F22: 0 | G22: 0 | H22: 0 | I22: 0 | J22: 0 | K22: 0
A23: Operational Buildings | C23: =SA34a!C119 -> 0 | D23: =SA34a!D119 -> 295455.06 | E23: =SA34a!E119 -> 8399035.19 | F23: =SA34a!F119 -> 10000000 | G23: =SA34a!G119 -> 3174740 | H23: =SA34a!H119 -> 0 | I23: =SA34a!I119 -> 4499000 | J23: =SA34a!J119 -> 3257000 | K23: =SA34a!K119 -> 35000
A24: Housing | C24: =SA34a!C131 -> 59046781.33 | D24: =SA34a!D131 -> 11265797.46 | E24: =SA34a!E131 -> 4366558.74 | F24: =SA34a!F131 -> 135545414.9 | G24: =SA34a!G131 -> 131185415 | H24: =SA34a!H131 -> 0 | I24: =SA34a!I131 -> 64518472.58 | J24: =SA34a!J131 -> 5747742.205 | K24: =SA34a!K131 -> 18000000
A25: Other Assets | C25: =SUM(C23:C24) -> 59046781.33 | D25: =SUM(D23:D24) -> 11561252.52 | E25: 12765593.93 | F25: 145545414.9 | G25: 134360154.9 | H25: 0 | I25: 69017472.58 | J25: 9004742.205 | K25: 18035000
A26: Biological or Cultivated Assets | C26: =SA34a!C136 -> 0 | D26: =SA34a!D136 -> 0 | E26: =SA34a!E136 -> 0 | F26: =SA34a!F136 -> 0 | G26: =SA34a!G136 -> 0 | H26: =SA34a!H136 -> 0 | I26: =SA34a!I136 -> 0 | J26: =SA34a!J136 -> 0 | K26: =SA34a!K136 -> 0
A27: Servitudes | C27: =SA34a!C140 -> 0 | D27: =SA34a!D140 -> 0 | E27: =SA34a!E140 -> 7986044 | F27: =SA34a!F140 -> 30000000 | G27: =SA34a!G140 -> 30000000 | H27: =SA34a!H140 -> 0 | I27: =SA34a!I140 -> 25000000 | J27: =SA34a!J140 -> 26125000 | K27: =SA34a!K140 -> 26677875
A28: Licences and Rights | C28: =SA34a!C141 -> 523018.19 | D28: =SA34a!D141 -> 1040908.7 | E28: =SA34a!E141 -> 0 | F28: =SA34a!F141 -> 0 | G28: =SA34a!G141 -> 0 | H28: =SA34a!H141 -> 0 | I28: =SA34a!I141 -> 900000 | J28: =SA34a!J141 -> 832000 | K28: =SA34a!K141 -> 865280
A29: Intangible Assets | C29: =SUM(C27:C28) -> 523018.19 | D29: =SUM(D27:D28) -> 1040908.7 | E29: 7986044 | F29: 30000000 | G29: 30000000 | H29: 0 | I29: 25900000 | J29: 26957000 | K29: 27543155
A30: Computer Equipment | C30: =SA34a!C149 -> 0 | D30: =SA34a!D149 -> 6492815.35 | E30: =SA34a!E149 -> 6315899.84 | F30: =SA34a!F149 -> 15000000 | G30: =SA34a!G149 -> 24899006 | H30: =SA34a!H149 -> 0 | I30: =SA34a!I149 -> 0 | J30: =SA34a!J149 -> 0 | K30: =SA34a!K149 -> 0
A31: Furniture and Office Equipment | C31: =SA34a!C152 -> 0 | D31: =SA34a!D152 -> 2333929.85 | E31: =SA34a!E152 -> 9073299.76 | F31: =SA34a!F152 -> 199000 | G31: =SA34a!G152 -> 28460254 | H31: =SA34a!H152 -> 0 | I31: =SA34a!I152 -> 77515559.01 | J31: =SA34a!J152 -> 52844478.57 | K31: =SA34a!K152 -> 73832985.95
A32: Machinery and Equipment | C32: =SA34a!C155 -> 0 | D32: =SA34a!D155 -> 41032224.44 | E32: =SA34a!E155 -> 7759840.52 | F32: =SA34a!F155 -> 0 | G32: =SA34a!G155 -> 22102800 | H32: =SA34a!H155 -> 0 | I32: =SA34a!I155 -> 42370000 | J32: =SA34a!J155 -> 7060000 | K32: =SA34a!K155 -> 5025000
A33: Transport Assets | C33: =SA34a!C158 -> 0 | D33: =SA34a!D158 -> 9916554.94 | E33: =SA34a!E158 -> 0 | F33: =SA34a!F158 -> 0 | G33: =SA34a!G158 -> 0 | H33: =SA34a!H158 -> 0 | I33: =SA34a!I158 -> 18800000 | J33: =SA34a!J158 -> 14600000 | K33: =SA34a!K158 -> 15032750
A34: Land | C34: =SA34a!C161 -> 0 | D34: =SA34a!D161 -> 0 | E34: =SA34a!E161 -> 0 | F34: =SA34a!F161 -> 0 | G34: =SA34a!G161 -> 0 | H34: =SA34a!H161 -> 0 | I34: =SA34a!I161 -> 0 | J34: =SA34a!J161 -> 0 | K34: =SA34a!K161 -> 0
A35: Zoo's, Marine and Non-biological Animals | C35: =SA34a!C164 -> 0 | D35: =SA34a!D164 -> 0 | E35: =SA34a!E164 -> 0 | F35: =SA34a!F164 -> 0 | G35: =SA34a!G164 -> 0 | H35: =SA34a!H164 -> 0 | I35: =SA34a!I164 -> 0 | J35: =SA34a!J164 -> 0 | K35: =SA34a!K164 -> 0
A36: Mature | C36: =SA34a!C168 -> 0 | D36: =SA34a!D168 -> 0 | E36: =SA34a!E168 -> 0 | F36: =SA34a!F168 -> 0 | G36: =SA34a!G168 -> 0 | H36: =SA34a!H168 -> 0 | I36: =SA34a!I168 -> 0 | J36: =SA34a!J168 -> 0 | K36: =SA34a!K168 -> 0
A37: Immature | C37: =SA34a!C171 -> 0 | D37: =SA34a!D171 -> 0 | E37: =SA34a!E171 -> 0 | F37: =SA34a!F171 -> 0 | G37: =SA34a!G171 -> 0 | H37: =SA34a!H171 -> 0 | I37: =SA34a!I171 -> 0 | J37: =SA34a!J171 -> 0 | K37: =SA34a!K171 -> 0
A38: Living Resources | C38: =SUM(C36:C37) -> 0 | D38: =SUM(D36:D37) -> 0 | E38: 0 | F38: 0 | G38: 0 | H38: 0 | I38: 0 | J38: 0 | K38: 0
A40: Total Renewal of Existing Assets | B40: 2 | C40: =C50+C53+C54+C57+C60+C61+SUM(C64:C70)+C73 -> 72703927.45 | D40: =D50+D53+D54+D57+D60+D61+SUM(D64:D70)+D73 -> 208114466 | E40: 115855239.2 | F40: 55356000 | G40: 34508472.58 | H40: 0 | I40: 37531493 | J40: 39155000 | K40: 31718800
A41: Roads Infrastructure | C41: =SA34b!C7 -> 50403832.5 | D41: =SA34b!D7 -> 118545061.6 | E41: =SA34b!E7 -> 115550660.1 | F41: =SA34b!F7 -> 33150000 | G41: =SA34b!G7 -> 20000000 | H41: =SA34b!H7 -> 0 | I41: =SA34b!I7 -> 29231493 | J41: =SA34b!J7 -> 31065000 | K41: =SA34b!K7 -> 23548750
A42: Storm water Infrastructure | C42: =SA34b!C12 -> 0 | D42: =SA34b!D12 -> 0 | E42: =SA34b!E12 -> 0 | F42: =SA34b!F12 -> 0 | G42: =SA34b!G12 -> 0 | H42: =SA34b!H12 -> 0 | I42: =SA34b!I12 -> 0 | J42: =SA34b!J12 -> 0 | K42: =SA34b!K12 -> 0
A43: Electrical Infrastructure | C43: =SA34b!C16 -> 0 | D43: =SA34b!D16 -> 1243673.75 | E43: =SA34b!E16 -> 0 | F43: =SA34b!F16 -> 0 | G43: =SA34b!G16 -> 0 | H43: =SA34b!H16 -> 0 | I43: =SA34b!I16 -> 0 | J43: =SA34b!J16 -> 0 | K43: =SA34b!K16 -> 0
A44: Water Supply Infrastructure | C44: =SA34b!C26 -> 0 | D44: =SA34b!D26 -> 12311306.36 | E44: =SA34b!E26 -> 0 | F44: =SA34b!F26 -> 0 | G44: =SA34b!G26 -> 0 | H44: =SA34b!H26 -> 0 | I44: =SA34b!I26 -> 5000000 | J44: =SA34b!J26 -> 5210000 | K44: =SA34b!K26 -> 5202050
A45: Sanitation Infrastructure | C45: =SA34b!C37 -> 15866227.89 | D45: =SA34b!D37 -> 67834392.63 | E45: =SA34b!E37 -> 0 | F45: =SA34b!F37 -> 0 | G45: =SA34b!G37 -> 7040000 | H45: =SA34b!H37 -> 0 | I45: =SA34b!I37 -> 0 | J45: =SA34b!J37 -> 0 | K45: =SA34b!K37 -> 0
A46: Solid Waste Infrastructure | C46: =SA34b!C44 -> 0 | D46: =SA34b!D44 -> 0 | E46: =SA34b!E44 -> 0 | F46: =SA34b!F44 -> 0 | G46: =SA34b!G44 -> 0 | H46: =SA34b!H44 -> 0 | I46: =SA34b!I44 -> 0 | J46: =SA34b!J44 -> 0 | K46: =SA34b!K44 -> 0
A47: Rail Infrastructure | C47: =SA34b!C52 -> 0 | D47: =SA34b!D52 -> 0 | E47: =SA34b!E52 -> 0 | F47: =SA34b!F52 -> 0 | G47: =SA34b!G52 -> 0 | H47: =SA34b!H52 -> 0 | I47: =SA34b!I52 -> 0 | J47: =SA34b!J52 -> 0 | K47: =SA34b!K52 -> 0
A48: Coastal Infrastructure | C48: =SA34b!C62 -> 0 | D48: =SA34b!D62 -> 0 | E48: =SA34b!E62 -> 0 | F48: =SA34b!F62 -> 14206000 | G48: =SA34b!G62 -> 0 | H48: =SA34b!H62 -> 0 | I48: =SA34b!I62 -> 0 | J48: =SA34b!J62 -> 0 | K48: =SA34b!K62 -> 0
A49: Information and Communication Infrastructure | C49: =SA34b!C68 -> 0 | D49: =SA34b!D68 -> 0 | E49: =SA34b!E68 -> 0 | F49: =SA34b!F68 -> 0 | G49: =SA34b!G68 -> 0 | H49: =SA34b!H68 -> 0 | I49: =SA34b!I68 -> 0 | J49: =SA34b!J68 -> 0 | K49: =SA34b!K68 -> 0
A50: Infrastructure | C50: =SUM(C41:C49) -> 66270060.39 | D50: =SUM(D41:D49) -> 199934434.3 | E50: 115550660.1 | F50: 47356000 | G50: 27040000 | H50: 0 | I50: 34231493 | J50: 36275000 | K50: 28750800
A51: Community Facilities | C51: =SA34b!C75 -> 1178169.95 | D51: =SA34b!D75 -> 740615.92 | E51: =SA34b!E75 -> 174579.05 | F51: =SA34b!F75 -> 8000000 | G51: =SA34b!G75 -> 0 | H51: =SA34b!H75 -> 0 | I51: =SA34b!I75 -> 0 | J51: =SA34b!J75 -> 0 | K51: =SA34b!K75 -> 0
A52: Sport and Recreation Facilities | C52: =SA34b!C98 -> 4067886.72 | D52: =SA34b!D98 -> 140024.98 | E52: =SA34b!E98 -> 0 | F52: =SA34b!F98 -> 0 | G52: =SA34b!G98 -> 0 | H52: =SA34b!H98 -> 0 | I52: =SA34b!I98 -> 0 | J52: =SA34b!J98 -> 0 | K52: =SA34b!K98 -> 0
A53: Community Assets | C53: =SUM(C51:C52) -> 5246056.67 | D53: =SUM(D51:D52) -> 880640.9 | E53: 174579.05 | F53: 8000000 | G53: 0 | H53: 0 | I53: 0 | J53: 0 | K53: 0
A54: Heritage Assets | C54: =SA34b!C103 -> 0 | D54: =SA34b!D103 -> 0 | E54: =SA34b!E103 -> 0 | F54: =SA34b!F103 -> 0 | G54: =SA34b!G103 -> 0 | H54: =SA34b!H103 -> 0 | I54: =SA34b!I103 -> 0 | J54: =SA34b!J103 -> 0 | K54: =SA34b!K103 -> 0
A55: Revenue Generating | C55: =SA34b!C111 -> 0 | D55: =SA34b!D111 -> 0 | E55: =SA34b!E111 -> 0 | F55: =SA34b!F111 -> 0 | G55: =SA34b!G111 -> 0 | H55: =SA34b!H111 -> 0 | I55: =SA34b!I111 -> 0 | J55: =SA34b!J111 -> 0 | K55: =SA34b!K111 -> 0
A56: Non-revenue Generating | C56: =SA34b!C114 -> 0 | D56: =SA34b!D114 -> 0 | E56: =SA34b!E114 -> 0 | F56: =SA34b!F114 -> 0 | G56: =SA34b!G114 -> 0 | H56: =SA34b!H114 -> 0 | I56: =SA34b!I114 -> 0 | J56: =SA34b!J114 -> 0 | K56: =SA34b!K114 -> 0
A57: Investment properties | C57: =SUM(C55:C56) -> 0 | D57: =SUM(D55:D56) -> 0 | E57: 0 | F57: 0 | G57: 0 | H57: 0 | I57: 0 | J57: 0 | K57: 0
A58: Operational Buildings | C58: =SA34b!C119 -> 1187810.39 | D58: =SA34b!D119 -> 4337398.38 | E58: =SA34b!E119 -> 130000 | F58: =SA34b!F119 -> 0 | G58: =SA34b!G119 -> 7468472.58 | H58: =SA34b!H119 -> 0 | I58: =SA34b!I119 -> 3300000 | J58: =SA34b!J119 -> 2880000 | K58: =SA34b!K119 -> 2968000
A59: Housing | C59: =SA34b!C131 -> 0 | D59: =SA34b!D131 -> 0 | E59: =SA34b!E131 -> 0 | F59: =SA34b!F131 -> 0 | G59: =SA34b!G131 -> 0 | H59: =SA34b!H131 -> 0 | I59: =SA34b!I131 -> 0 | J59: =SA34b!J131 -> 0 | K59: =SA34b!K131 -> 0
A60: Other Assets | C60: =SUM(C58:C59) -> 1187810.39 | D60: =SUM(D58:D59) -> 4337398.38 | E60: 130000 | F60: 0 | G60: 7468472.58 | H60: 0 | I60: 3300000 | J60: 2880000 | K60: 2968000
A61: Biological or Cultivated Assets | C61: =SA34b!C136 -> 0 | D61: =SA34b!D136 -> 0 | E61: =SA34b!E136 -> 0 | F61: =SA34b!F136 -> 0 | G61: =SA34b!G136 -> 0 | H61: =SA34b!H136 -> 0 | I61: =SA34b!I136 -> 0 | J61: =SA34b!J136 -> 0 | K61: =SA34b!K136 -> 0
A62: Servitudes | C62: =SA34b!C140 -> 0 | D62: =SA34b!D140 -> 0 | E62: =SA34b!E140 -> 0 | F62: =SA34b!F140 -> 0 | G62: =SA34b!G140 -> 0 | H62: =SA34b!H140 -> 0 | I62: =SA34b!I140 -> 0 | J62: =SA34b!J140 -> 0 | K62: =SA34b!K140 -> 0
A63: Licences and Rights | C63: =SA34b!C141 -> 0 | D63: =SA34b!D141 -> 2961992.34 | E63: =SA34b!E141 -> 0 | F63: =SA34b!F141 -> 0 | G63: =SA34b!G141 -> 0 | H63: =SA34b!H141 -> 0 | I63: =SA34b!I141 -> 0 | J63: =SA34b!J141 -> 0 | K63: =SA34b!K141 -> 0
A64: Intangible Assets | C64: =SUM(C62:C63) -> 0 | D64: =SUM(D62:D63) -> 2961992.34 | E64: 0 | F64: 0 | G64: 0 | H64: 0 | I64: 0 | J64: 0 | K64: 0
A65: Computer Equipment | C65: =SA34b!C149 -> 0 | D65: =SA34b!D149 -> 0 | E65: =SA34b!E149 -> 0 | F65: =SA34b!F149 -> 0 | G65: =SA34b!G149 -> 0 | H65: =SA34b!H149 -> 0 | I65: =SA34b!I149 -> 0 | J65: =SA34b!J149 -> 0 | K65: =SA34b!K149 -> 0
A66: Furniture and Office Equipment | C66: =SA34b!C152 -> 0 | D66: =SA34b!D152 -> 0 | E66: =SA34b!E152 -> 0 | F66: =SA34b!F152 -> 0 | G66: =SA34b!G152 -> 0 | H66: =SA34b!H152 -> 0 | I66: =SA34b!I152 -> 0 | J66: =SA34b!J152 -> 0 | K66: =SA34b!K152 -> 0
A67: Machinery and Equipment | C67: =SA34b!C155 -> 0 | D67: =SA34b!D155 -> 0 | E67: =SA34b!E155 -> 0 | F67: =SA34b!F155 -> 0 | G67: =SA34b!G155 -> 0 | H67: =SA34b!H155 -> 0 | I67: =SA34b!I155 -> 0 | J67: =SA34b!J155 -> 0 | K67: =SA34b!K155 -> 0
A68: Transport Assets | C68: =SA34b!C158 -> 0 | D68: =SA34b!D158 -> 0 | E68: =SA34b!E158 -> 0 | F68: =SA34b!F158 -> 0 | G68: =SA34b!G158 -> 0 | H68: =SA34b!H158 -> 0 | I68: =SA34b!I158 -> 0 | J68: =SA34b!J158 -> 0 | K68: =SA34b!K158 -> 0
A69: Land | C69: =SA34b!C161 -> 0 | D69: =SA34b!D161 -> 0 | E69: =SA34b!E161 -> 0 | F69: =SA34b!F161 -> 0 | G69: =SA34b!G161 -> 0 | H69: =SA34b!H161 -> 0 | I69: =SA34b!I161 -> 0 | J69: =SA34b!J161 -> 0 | K69: =SA34b!K161 -> 0
A70: Zoo's, Marine and Non-biological Animals | C70: =SA34b!C164 -> 0 | D70: =SA34b!D164 -> 0 | E70: =SA34b!E164 -> 0 | F70: =SA34b!F164 -> 0 | G70: =SA34b!G164 -> 0 | H70: =SA34b!H164 -> 0 | I70: =SA34b!I164 -> 0 | J70: =SA34b!J164 -> 0 | K70: =SA34b!K164 -> 0
A71: Mature | C71: =SA34b!C168 -> 0 | D71: =SA34b!D168 -> 0 | E71: =SA34b!E168 -> 0 | F71: =SA34b!F168 -> 0 | G71: =SA34b!G168 -> 0 | H71: =SA34b!H168 -> 0 | I71: =SA34b!I168 -> 0 | J71: =SA34b!J168 -> 0 | K71: =SA34b!K168 -> 0
A72: Immature | C72: =SA34b!C171 -> 0 | D72: =SA34b!D171 -> 0 | E72: =SA34b!E171 -> 0 | F72: =SA34b!F171 -> 0 | G72: =SA34b!G171 -> 0 | H72: =SA34b!H171 -> 0 | I72: =SA34b!I171 -> 0 | J72: =SA34b!J171 -> 0 | K72: =SA34b!K171 -> 0
A73: Living Resources | C73: =SUM(C71:C72) -> 0 | D73: 0 | E73: 0 | F73: 0 | G73: 0 | H73: 0 | I73: 0 | J73: 0 | K73: 0
A75: Total Upgrading of Existing Assets | B75: 6 | C75: =C85+C88+C89+C92+C95+C96+SUM(C99:C105)+C108 -> 205284567.8 | D75: =D85+D88+D89+D92+D95+D96+SUM(D99:D105)+D108 -> 105306954.7 | E75: 267132680.5 | F75: 205464500 | G75: 343808408.9 | H75: 0 | I75: 214137760.4 | J75: 216022180.6 | K75: 237334148.6
A76: Roads Infrastructure | C76: =SA34e!C7 -> 59061068.89 | D76: =SA34e!D7 -> 29784476.15 | E76: =SA34e!E7 -> 122865465.1 | F76: =SA34e!F7 -> 38400000 | G76: =SA34e!G7 -> 146358849.1 | H76: =SA34e!H7 -> 0 | I76: =SA34e!I7 -> 96853525.31 | J76: =SA34e!J7 -> 57857920 | K76: =SA34e!K7 -> 43722800
A77: Storm water Infrastructure | C77: =SA34e!C12 -> 0 | D77: =SA34e!D12 -> 0 | E77: =SA34e!E12 -> 0 | F77: =SA34e!F12 -> 0 | G77: =SA34e!G12 -> 0 | H77: =SA34e!H12 -> 0 | I77: =SA34e!I12 -> 0 | J77: =SA34e!J12 -> 0 | K77: =SA34e!K12 -> 0
A78: Electrical Infrastructure | C78: =SA34e!C16 -> 26990126.44 | D78: =SA34e!D16 -> 34905519.9 | E78: =SA34e!E16 -> 5701590.35 | F78: =SA34e!F16 -> 0 | G78: =SA34e!G16 -> 11618316 | H78: =SA34e!H16 -> 0 | I78: =SA34e!I16 -> 10421000 | J78: =SA34e!J16 -> 7550000 | K78: =SA34e!K16 -> 10605000
A79: Water Supply Infrastructure | C79: =SA34e!C26 -> 15228935.02 | D79: =SA34e!D26 -> 0 | E79: =SA34e!E26 -> 60283705.79 | F79: =SA34e!F26 -> 106064500 | G79: =SA34e!G26 -> 69619600 | H79: =SA34e!H26 -> 0 | I79: =SA34e!I26 -> 35805000 | J79: =SA34e!J26 -> 44098274 | K79: =SA34e!K26 -> 42420000
A80: Sanitation Infrastructure | C80: =SA34e!C37 -> 0 | D80: =SA34e!D37 -> 19787951.88 | E80: =SA34e!E37 -> 35610103.61 | F80: =SA34e!F37 -> 40300000 | G80: =SA34e!G37 -> 42800000 | H80: =SA34e!H37 -> 0 | I80: =SA34e!I37 -> 18822668 | J80: =SA34e!J37 -> 61200000 | K80: =SA34e!K37 -> 65000000
A81: Solid Waste Infrastructure | C81: =SA34e!C44 -> 1933511.82 | D81: =SA34e!D44 -> 3302474.25 | E81: =SA34e!E44 -> 4511271.95 | F81: =SA34e!F44 -> 5000000 | G81: =SA34e!G44 -> 25000000 | H81: =SA34e!H44 -> 0 | I81: =SA34e!I44 -> 10000000 | J81: =SA34e!J44 -> 10490000 | K81: =SA34e!K44 -> 11014500
A82: Rail Infrastructure | C82: =SA34e!C52 -> 0 | D82: =SA34e!D52 -> 0 | E82: =SA34e!E52 -> 0 | F82: =SA34e!F52 -> 0 | G82: =SA34e!G52 -> 0 | H82: =SA34e!H52 -> 0 | I82: =SA34e!I52 -> 0 | J82: =SA34e!J52 -> 0 | K82: =SA34e!K52 -> 0
A83: Coastal Infrastructure | C83: =SA34e!C62 -> 0 | D83: =SA34e!D62 -> 0 | E83: =SA34e!E62 -> 0 | F83: =SA34e!F62 -> 0 | G83: =SA34e!G62 -> 0 | H83: =SA34e!H62 -> 0 | I83: =SA34e!I62 -> 0 | J83: =SA34e!J62 -> 0 | K83: =SA34e!K62 -> 0
A84: Information and Communication Infrastructure | C84: =SA34e!C68 -> 0 | D84: =SA34e!D68 -> 0 | E84: =SA34e!E68 -> 0 | F84: =SA34e!F68 -> 0 | G84: =SA34e!G68 -> 0 | H84: =SA34e!H68 -> 0 | I84: =SA34e!I68 -> 0 | J84: =SA34e!J68 -> 0 | K84: =SA34e!K68 -> 0
A85: Infrastructure | C85: =SUM(C76:C84) -> 103213642.2 | D85: 87780422.18 | E85: 228972136.8 | F85: 189764500 | G85: 295396765.1 | H85: 0 | I85: 171902193.3 | J85: 181196194 | K85: 172762300
A86: Community Facilities | C86: =SA34e!C75 -> 102070925.6 | D86: =SA34e!D75 -> 17526532.49 | E86: =SA34e!E75 -> 0 | F86: =SA34e!F75 -> 0 | G86: =SA34e!G75 -> 0 | H86: =SA34e!H75 -> 0 | I86: =SA34e!I75 -> 0 | J86: =SA34e!J75 -> 0 | K86: =SA34e!K75 -> 0
A87: Sport and Recreation Facilities | C87: =SA34e!C98 -> 0 | D87: =SA34e!D98 -> 0 | E87: =SA34e!E98 -> 0 | F87: =SA34e!F98 -> 0 | G87: =SA34e!G98 -> 8000000 | H87: =SA34e!H98 -> 0 | I87: =SA34e!I98 -> 6952560 | J87: =SA34e!J98 -> 7308360 | K87: =SA34e!K98 -> 7970550
A88: Community Assets | C88: =SUM(C86:C87) -> 102070925.6 | D88: 17526532.49 | E88: 0 | F88: 0 | G88: 8000000 | H88: 0 | I88: 6952560 | J88: 7308360 | K88: 7970550
A89: Heritage Assets | C89: =SA34e!C103 -> 0 | D89: =SA34e!D103 -> 0 | E89: =SA34e!E103 -> 0 | F89: =SA34e!F103 -> 0 | G89: =SA34e!G103 -> 0 | H89: =SA34e!H103 -> 0 | I89: =SA34e!I103 -> 0 | J89: =SA34e!J103 -> 0 | K89: =SA34e!K103 -> 0
A90: Revenue Generating | C90: =SA34e!C111 -> 0 | D90: =SA34e!D111 -> 0 | E90: =SA34e!E111 -> 0 | F90: =SA34e!F111 -> 0 | G90: =SA34e!G111 -> 0 | H90: =SA34e!H111 -> 0 | I90: =SA34e!I111 -> 0 | J90: =SA34e!J111 -> 0 | K90: =SA34e!K111 -> 0
A91: Non-revenue Generating | C91: =SA34e!C114 -> 0 | D91: =SA34e!D114 -> 0 | E91: =SA34e!E114 -> 0 | F91: =SA34e!F114 -> 0 | G91: =SA34e!G114 -> 0 | H91: =SA34e!H114 -> 0 | I91: =SA34e!I114 -> 0 | J91: =SA34e!J114 -> 0 | K91: =SA34e!K114 -> 0
A92: Investment properties | C92: =SUM(C90:C91) -> 0 | D92: 0 | E92: 0 | F92: 0 | G92: 0 | H92: 0 | I92: 0 | J92: 0 | K92: 0
A93: Operational Buildings | C93: =SA34e!C119 -> 0 | D93: =SA34e!D119 -> 0 | E93: =SA34e!E119 -> 38160543.7 | F93: =SA34e!F119 -> 10700000 | G93: =SA34e!G119 -> 37111643.78 | H93: =SA34e!H119 -> 0 | I93: =SA34e!I119 -> 22000031.12 | J93: =SA34e!J119 -> 27517626.64 | K93: =SA34e!K119 -> 56601298.56
A94: Housing | C94: =SA34e!C131 -> 0 | D94: =SA34e!D131 -> 0 | E94: =SA34e!E131 -> 0 | F94: =SA34e!F131 -> 0 | G94: =SA34e!G131 -> 0 | H94: =SA34e!H131 -> 0 | I94: =SA34e!I131 -> 13282976 | J94: =SA34e!J131 -> 0 | K94: =SA34e!K131 -> 0
A95: Other Assets | C95: =SUM(C93:C94) -> 0 | D95: 0 | E95: 38160543.7 | F95: 10700000 | G95: 37111643.78 | H95: 0 | I95: 35283007.12 | J95: 27517626.64 | K95: 56601298.56
A96: Biological or Cultivated Assets | C96: =SA34e!C136 -> 0 | D96: =SA34e!D136 -> 0 | E96: =SA34e!E136 -> 0 | F96: =SA34e!F136 -> 0 | G96: =SA34e!G136 -> 0 | H96: =SA34e!H136 -> 0 | I96: =SA34e!I136 -> 0 | J96: =SA34e!J136 -> 0 | K96: =SA34e!K136 -> 0
A97: Servitudes | C97: =SA34e!C140 -> 0 | D97: =SA34e!D140 -> 0 | E97: =SA34e!E140 -> 0 | F97: =SA34e!F140 -> 0 | G97: =SA34e!G140 -> 0 | H97: =SA34e!H140 -> 0 | I97: =SA34e!I140 -> 0 | J97: =SA34e!J140 -> 0 | K97: =SA34e!K140 -> 0
A98: Licences and Rights | C98: =SA34e!C141 -> 0 | D98: =SA34e!D141 -> 0 | E98: =SA34e!E141 -> 0 | F98: =SA34e!F141 -> 0 | G98: =SA34e!G141 -> 0 | H98: =SA34e!H141 -> 0 | I98: =SA34e!I141 -> 0 | J98: =SA34e!J141 -> 0 | K98: =SA34e!K141 -> 0
A99: Intangible Assets | C99: =SUM(C97:C98) -> 0 | D99: 0 | E99: 0 | F99: 0 | G99: 0 | H99: 0 | I99: 0 | J99: 0 | K99: 0
A100: Computer Equipment | C100: =SA34e!C149 -> 0 | D100: =SA34e!D149 -> 0 | E100: =SA34e!E149 -> 0 | F100: =SA34e!F149 -> 0 | G100: =SA34e!G149 -> 0 | H100: =SA34e!H149 -> 0 | I100: =SA34e!I149 -> 0 | J100: =SA34e!J149 -> 0 | K100: =SA34e!K149 -> 0
A101: Furniture and Office Equipment | C101: =SA34e!C152 -> 0 | D101: =SA34e!D152 -> 0 | E101: =SA34e!E152 -> 0 | F101: =SA34e!F152 -> 0 | G101: =SA34e!G152 -> 0 | H101: =SA34e!H152 -> 0 | I101: =SA34e!I152 -> 0 | J101: =SA34e!J152 -> 0 | K101: =SA34e!K152 -> 0
A102: Machinery and Equipment | C102: =SA34e!C155 -> 0 | D102: =SA34e!D155 -> 0 | E102: =SA34e!E155 -> 0 | F102: =SA34e!F155 -> 0 | G102: =SA34e!G155 -> 0 | H102: =SA34e!H155 -> 0 | I102: =SA34e!I155 -> 0 | J102: =SA34e!J155 -> 0 | K102: =SA34e!K155 -> 0
A103: Transport Assets | C103: =SA34e!C158 -> 0 | D103: =SA34e!D158 -> 0 | E103: =SA34e!E158 -> 0 | F103: =SA34e!F158 -> 5000000 | G103: =SA34e!G158 -> 3300000 | H103: =SA34e!H158 -> 0 | I103: =SA34e!I158 -> 0 | J103: =SA34e!J158 -> 0 | K103: =SA34e!K158 -> 0
A104: Land | C104: =SA34e!C161 -> 0 | D104: =SA34e!D161 -> 0 | E104: =SA34e!E161 -> 0 | F104: =SA34e!F161 -> 0 | G104: =SA34e!G161 -> 0 | H104: =SA34e!H161 -> 0 | I104: =SA34e!I161 -> 0 | J104: =SA34e!J161 -> 0 | K104: =SA34e!K161 -> 0
A105: Zoo's, Marine and Non-biological Animals | C105: =SA34e!C164 -> 0 | D105: =SA34e!D164 -> 0 | E105: =SA34e!E164 -> 0 | F105: =SA34e!F164 -> 0 | G105: =SA34e!G164 -> 0 | H105: =SA34e!H164 -> 0 | I105: =SA34e!I164 -> 0 | J105: =SA34e!J164 -> 0 | K105: =SA34e!K164 -> 0
A106: Mature | C106: =SA34e!C168 -> 0 | D106: =SA34e!D168 -> 0 | E106: =SA34e!E168 -> 0 | F106: =SA34e!F168 -> 0 | G106: =SA34e!G168 -> 0 | H106: =SA34e!H168 -> 0 | I106: =SA34e!I168 -> 0 | J106: =SA34e!J168 -> 0 | K106: =SA34e!K168 -> 0
A107: Immature | C107: =SA34b!C171 -> 0 | D107: =SA34b!D171 -> 0 | E107: =SA34b!E171 -> 0 | F107: =SA34b!F171 -> 0 | G107: =SA34b!G171 -> 0 | H107: =SA34b!H171 -> 0 | I107: =SA34b!I171 -> 0 | J107: =SA34b!J171 -> 0 | K107: =SA34b!K171 -> 0
A108: Living Resources | C108: =SUM(C106:C107) -> 0 | D108: =SUM(D106:D107) -> 0 | E108: 0 | F108: 0 | G108: 0 | H108: 0 | I108: 0 | J108: 0 | K108: 0
A110: Total Capital Expenditure | B110: 4 | C110: =+C5+C40+C75 -> 685931270.1 | D110: =+D5+D40+D75 -> 521437241.5 | E110: 547936653.9 | F110: 768760054 | G110: 802543953.4 | H110: 0 | I110: 824910890.4 | J110: 510806937.8 | K110: 594857880
A111: Roads Infrastructure | C111: =+C6+C41+C76 -> 320888073.2 | D111: 229977191.9 | E111: 240485866.1 | F111: 73800000 | G111: 168608849.1 | H111: 0 | I111: 161505162.2 | J111: 142277920 | K111: 170962050
A112: Storm water Infrastructure | C112: =+C7+C42+C77 -> 0 | D112: 0 | E112: 0 | F112: 0 | G112: 0 | H112: 0 | I112: 0 | J112: 0 | K112: 0
A113: Electrical Infrastructure | C113: =+C8+C43+C78 -> 31643332.08 | D113: 41651970.53 | E113: 68809645.87 | F113: 194000000 | G113: 118293266 | H113: 0 | I113: 213453551.7 | J113: 24126718.2 | K113: 28302411.98
A114: Water Supply Infrastructure | C114: =+C9+C44+C79 -> 89468098.42 | D114: 34817414.92 | E114: 65026768.93 | F114: 135924500 | G114: 92479600 | H114: 0 | I114: 46125000 | J114: 49308274 | K114: 47622050
A115: Sanitation Infrastructure | C115: =+C10+C45+C80 -> 60764706.61 | D115: 94853537.94 | E115: 47420689.01 | F115: 105777640 | G115: 79216640 | H115: 0 | I115: 97046634.7 | J115: 121815098.2 | K115: 114007028.5
A116: Solid Waste Infrastructure | C116: =+C11+C46+C81 -> 1933511.82 | D116: 3302474.25 | E116: 5899044.95 | F116: 5000000 | G116: 25000000 | H116: 0 | I116: 10000000 | J116: 10490000 | K116: 11014500
A117: Rail Infrastructure | C117: =+C12+C47+C82 -> 0 | D117: 0 | E117: 0 | F117: 0 | G117: 0 | H117: 0 | I117: 0 | J117: 0 | K117: 0
A118: Coastal Infrastructure | C118: =+C13+C48+C83 -> 0 | D118: 9690782.04 | E118: 0 | F118: 14206000 | G118: 0 | H118: 0 | I118: 0 | J118: 0 | K118: 0
A119: Information and Communication Infrastructure | C119: =+C14+C49+C84 -> 0 | D119: 0 | E119: 0 | F119: 0 | G119: 0 | H119: 0 | I119: 0 | J119: 0 | K119: 0
A120: Infrastructure | C120: =SUM(C111:C119) -> 504697722.1 | D120: =SUM(D111:D119) -> 414293371.5 | E120: 427642014.9 | F120: 528708140 | G120: 483598355.1 | H120: 0 | I120: 528130348.6 | J120: 348018010.4 | K120: 371908040.5
A121: Community Facilities | C121: =+C16+C51+C86 -> 113812188.5 | D121: 26752886.03 | E121: 38103417.25 | F121: 33607499.05 | G121: 23243267 | H121: 0 | I121: 17641943.08 | J121: 14616720 | K121: 15941100
A122: Sport and Recreation Facilities | C122: =+C17+C52+C87 -> 6663749.55 | D122: 713907.36 | E122: 0 | F122: 0 | G122: 8000000 | H122: 0 | I122: 6952560 | J122: 7308360 | K122: 7970550
A123: Community Assets | C123: =SUM(C121:C122) -> 120475938.1 | D123: =SUM(D121:D122) -> 27466793.39 | E123: 38103417.25 | F123: 33607499.05 | G123: 31243267 | H123: 0 | I123: 24594503.08 | J123: 21925080 | K123: 23911650
A124: Heritage Assets | C124: =+C19+C54+C89 -> 0 | D124: 0 | E124: 0 | F124: 0 | G124: 0 | H124: 0 | I124: 0 | J124: 0 | K124: 0
A125: Revenue Generating | C125: =+C20+C55+C90 -> 0 | D125: 0 | E125: 0 | F125: 0 | G125: 0 | H125: 0 | I125: 0 | J125: 0 | K125: 0
A126: Non-revenue Generating | C126: =+C21+C56+C91 -> 0 | D126: 0 | E126: 0 | F126: 0 | G126: 0 | H126: 0 | I126: 0 | J126: 0 | K126: 0
A127: Investment properties | C127: =SUM(C125:C126) -> 0 | D127: =SUM(D125:D126) -> 0 | E127: 0 | F127: 0 | G127: 0 | H127: 0 | I127: 0 | J127: 0 | K127: 0
A128: Operational Buildings | C128: =+C23+C58+C93 -> 1187810.39 | D128: 4632853.44 | E128: 46689578.89 | F128: 20700000 | G128: 47754856.36 | H128: 0 | I128: 29799031.12 | J128: 33654626.64 | K128: 59604298.56
A129: Housing | C129: =+C24+C59+C94 -> 59046781.33 | D129: 11265797.46 | E129: 4366558.74 | F129: 135545414.9 | G129: 131185415 | H129: 0 | I129: 77801448.58 | J129: 5747742.205 | K129: 18000000
A130: Other Assets | C130: =SUM(C128:C129) -> 60234591.72 | D130: 15898650.9 | E130: 51056137.63 | F130: 156245414.9 | G130: 178940271.3 | H130: 0 | I130: 107600479.7 | J130: 39402368.84 | K130: 77604298.56
A131: Biological or Cultivated Assets | C131: =+C26+C61+C96 -> 0 | D131: 0 | E131: 0 | F131: 0 | G131: 0 | H131: 0 | I131: 0 | J131: 0 | K131: 0
A132: Servitudes | C132: =+C27+C62+C97 -> 0 | D132: 0 | E132: 7986044 | F132: 30000000 | G132: 30000000 | H132: 0 | I132: 25000000 | J132: 26125000 | K132: 26677875
A133: Licences and Rights | C133: =+C28+C63+C98 -> 523018.19 | D133: 4002901.04 | E133: 0 | F133: 0 | G133: 0 | H133: 0 | I133: 900000 | J133: 832000 | K133: 865280
A134: Intangible Assets | C134: =SUM(C132:C133) -> 523018.19 | D134: =SUM(D132:D133) -> 4002901.04 | E134: 7986044 | F134: 30000000 | G134: 30000000 | H134: 0 | I134: 25900000 | J134: 26957000 | K134: 27543155
A135: Computer Equipment | C135: =+C30+C65+C100 -> 0 | D135: 6492815.35 | E135: 6315899.84 | F135: 15000000 | G135: 24899006 | H135: 0 | I135: 0 | J135: 0 | K135: 0
A136: Furniture and Office Equipment | C136: =+C31+C66+C101 -> 0 | D136: 2333929.85 | E136: 9073299.76 | F136: 199000 | G136: 28460254 | H136: 0 | I136: 77515559.01 | J136: 52844478.57 | K136: 73832985.95
A137: Machinery and Equipment | C137: =+C32+C67+C102 -> 0 | D137: 41032224.44 | E137: 7759840.52 | F137: 0 | G137: 22102800 | H137: 0 | I137: 42370000 | J137: 7060000 | K137: 5025000
A138: Transport Assets | C138: =+C33+C68+C103 -> 0 | D138: 9916554.94 | E138: 0 | F138: 5000000 | G138: 3300000 | H138: 0 | I138: 18800000 | J138: 14600000 | K138: 15032750
A139: Land | C139: =+C34+C69+C104 -> 0 | D139: 0 | E139: 0 | F139: 0 | G139: 0 | H139: 0 | I139: 0 | J139: 0 | K139: 0
A140: Zoo's, Marine and Non-biological Animals | C140: =+C35+C70+C105 -> 0 | D140: 0 | E140: 0 | F140: 0 | G140: 0 | H140: 0 | I140: 0 | J140: 0 | K140: 0
A141: Mature | C141: =+C36+C71+C106 -> 0 | D141: =+D36+D71+D106 -> 0 | E141: 0 | F141: 0 | G141: 0 | H141: 0 | I141: 0 | J141: 0 | K141: 0
A142: Immature | C142: =+C37+C72+C107 -> 0 | D142: =+D37+D72+D107 -> 0 | E142: 0 | F142: 0 | G142: 0 | H142: 0 | I142: 0 | J142: 0 | K142: 0
A143: Living Resources | C143: =SUM(C141:C142) -> 0 | D143: 0 | E143: 0 | F143: 0 | G143: 0 | H143: 0 | I143: 0 | J143: 0 | K143: 0
A144: TOTAL CAPITAL EXPENDITURE - Asset class | C144: =+C5+C40+C75 -> 685931270.1 | D144: =+D5+D40+D75 -> 521437241.5 | E144: 547936653.9 | F144: 768760054 | G144: 802543953.4 | H144: 0 | I144: 824910890.4 | J144: 510806937.8 | K144: 594857880
A146: ASSET REGISTER SUMMARY - PPE (WDV) | B146: 5 | C146: =C156+C159+C160+C163+C166+C167+C170+C171+C172+C173+C174+C175+C176+C179 -> 0 | D146: =D156+D159+D160+D163+D166+D167+D170+D171+D172+D173+D174+D175+D176+D179 -> 0 | E146: 0 | F146: 8609522537 | G146: 7218154558 | H146: 7218154558 | I146: 7632814749 | J146: 7983924227 | K146: 8343200817
A147: Roads Infrastructure | G147: 1749610966 | H147: 1749610966 | I147: =H147*1.06 -> 1854587624 | J147: =I147*1.046 -> 1939898655 | K147: =J147*1.045 -> 2027194094
A148: Storm water Infrastructure | G148: 594162638 | H148: 594162638 | I148: =H148*1.06 -> 629812396.3 | J148: =I148*1.046 -> 658783766.5 | K148: =J148*1.045 -> 688429036
A149: Electrical Infrastructure | F149: 7185147793 | G149: 1056297825 | H149: 1056297825 | I149: 1119675694 | J149: 1171180776 | K149: 1223883911
A150: Water Supply Infrastructure | G150: 500350692 | H150: 500350692 | I150: 530371733.5 | J150: 554768833.3 | K150: 579733430.8
A151: Sanitation Infrastructure | G151: 462955116 | H151: 462955116 | I151: 490732423 | J151: 513306114.4 | K151: 536404889.6
A152: Solid Waste Infrastructure | G152: 28916147 | H152: 28916147 | I152: 30651115.82 | J152: 32061067.15 | K152: 33503815.17
A153: Rail Infrastructure | G153: 669472 | H153: 669472 | I153: 709640.32 | J153: 742283.7747 | K153: 775686.5446
A154: Coastal Infrastructure | I154: 0 | J154: 0 | K154: 0
A155: Information and Communication Infrastructure | I155: 0 | J155: 0 | K155: 0
A156: Infrastructure | C156: =SUM(C147:C155) -> 0 | D156: =SUM(D147:D155) -> 0 | E156: 0 | F156: 7185147793 | G156: 4392962856 | H156: 4392962856 | I156: 4656540627 | J156: 4870741496 | K156: 5089924864
J157: 0
J158: 0
A159: Community Assets | G159: 307151280 | H159: 307151280 | I159: =G159*1-6 -> 307151274 | J159: 321280232.6 | K159: =J159*1.045 -> 335737843.1
A160: Heritage Assets | F160: 287700639 | G160: 274782569 | H160: 274782569 | I160: =G160*1.06 -> 291269523.1 | J160: 304667921.2 | K160: =J160*1.045 -> 318377977.7
J161: 0 | K161: 0
J162: 0 | K162: 0
A163: Investment properties | F163: 974255981 | G163: 924805184 | H163: 924805184 | I163: =G163*1.06 -> 980293495 | J163: 1025386996 | K163: 1071529411
J164: 0 | K164: 0
J165: 0 | K165: 0
A166: Other Assets | G166: 250979903 | H166: 250979903 | I166: =G166*1.06 -> 266038697.2 | J166: 278276477.3 | K166: 290798918.7
A167: Biological or Cultivated Assets | F167: 84450600 | G167: 76375890 | H167: 76375890 | I167: =G167*1.06 -> 80958443.4 | J167: 84682531.8 | K167: 88493245.73
I168: =G168*1.06 -> 0 | J168: 0 | K168: 0
I169: 0 | J169: 0 | K169: 0
A170: Intangible Assets | F170: 20954448 | G170: 24213257 | H170: 24213257 | I170: 25666052.42 | J170: 26846690.83 | K170: 28054791.92
A171: Computer Equipment | F171: 11500000 | G171: 46471115 | H171: 46471115 | I171: 49259381.9 | J171: 51525313.47 | K171: 53843952.57
A172: Furniture and Office Equipment | F172: 5110000 | G172: 18424875 | H172: 18424875 | I172: 19530367.5 | J172: 20428764.41 | K172: 21348058.8
A173: Machinery and Equipment | F173: 29820000 | G173: 85601475 | H173: 85601475 | I173: 90737563.5 | J173: 94911491.42 | K173: 99182508.53
A174: Transport Assets | F174: 9850000 | G174: 103959413 | H174: 103959413 | I174: 110196977.8 | J174: 115266038.8 | K174: 120453010.5
A175: Land | G175: 712426741 | H175: 712426741 | I175: 755172345.5 | J175: 789910273.4 | K175: 825456235.7
A176: Zoo's, Marine and Non-biological Animals
F177: 733076
A179: Living Resources | F179: 733076
A180: TOTAL ASSET REGISTER SUMMARY - PPE (WDV) | B180: 5 | C180: =C156+C159+C160+C163+C166+C167+C170+C171+C172+C173+C174+C175+C176+C179 -> 0 | D180: =D156+D159+D160+D163+D166+D167+D170+D171+D172+D173+D174+D175+D176+D179 -> 0 | E180: 0 | F180: =F156+F159+F160+F163+F166+F167+F170+F171+F172+F173+F174+F175+F176+F179 -> 8609522537 | G180: =G156+G159+G160+G163+G166+G167+G170+G171+G172+G173+G174+G175+G176+G179 -> 7218154558 | H180: 7218154558 | I180: 7632814749 | J180: 7983924227 | K180: 8343200817
A182: EXPENDITURE OTHER ITEMS | C182: =SUM(C183:C184) -> 483871602.8 | D182: =SUM(D183:D184) -> 605228600.1 | E182: 602370579 | F182: 1034902450 | G182: 947800494.9 | H182: 0 | I182: 883675131.1 | J182: 915364649 | K182: 956977289.8
A183: Depreciation | B183: 7 | C183: =SA34d!C175 -> 372532037 | D183: =SA34d!D175 -> 366625069 | E183: =SA34d!E175 -> 350683902 | F183: =SA34d!F175 -> 461615974 | G183: =SA34d!G175 -> 462450136.6 | H183: =SA34d!H175 -> 0 | I183: =SA34d!I175 -> 362178747.5 | J183: =SA34d!J175 -> 349782306.6 | K183: =SA34d!K175 -> 345694135.9
A184: Repairs and Maintenance by Asset Class | B184: 3 | C184: =C194+C197+C198+C201+C204+C205+SUM(C208:C214)+C217 -> 111339565.8 | D184: =D194+D197+D198+D201+D204+D205+SUM(D208:D214)+D217 -> 238603531.1 | E184: 251686677 | F184: 573286476.2 | G184: 485350358.3 | H184: 0 | I184: 521496383.6 | J184: 565582342.4 | K184: 611283153.9
A185: Roads Infrastructure | C185: =SA34c!C7 -> 0 | D185: =SA34c!D7 -> 0 | E185: =SA34c!E7 -> 0 | F185: =SA34c!F7 -> 0 | G185: =SA34c!G7 -> 0 | H185: =SA34c!H7 -> 0 | I185: =SA34c!I7 -> 0 | J185: =SA34c!J7 -> 0 | K185: =SA34c!K7 -> 0
A186: Storm water Infrastructure | C186: =SA34c!C12 -> 0 | D186: =SA34c!D12 -> 0 | E186: =SA34c!E12 -> 0 | F186: =SA34c!F12 -> 0 | G186: =SA34c!G12 -> 0 | H186: =SA34c!H12 -> 0 | I186: =SA34c!I12 -> 0 | J186: =SA34c!J12 -> 0 | K186: =SA34c!K12 -> 0
A187: Electrical Infrastructure | C187: =SA34c!C16 -> 77522286.65 | D187: =SA34c!D16 -> 130183872.9 | E187: =SA34c!E16 -> 63198838.1 | F187: =SA34c!F16 -> 161182203.1 | G187: =SA34c!G16 -> 238825679.3 | H187: =SA34c!H16 -> 0 | I187: =SA34c!I16 -> 154375000 | J187: =SA34c!J16 -> 166751100 | K187: =SA34c!K16 -> 185036603
A188: Water Supply Infrastructure | C188: =SA34c!C26 -> 0 | D188: =SA34c!D26 -> 0 | E188: =SA34c!E26 -> 0 | F188: =SA34c!F26 -> 0 | G188: =SA34c!G26 -> 0 | H188: =SA34c!H26 -> 0 | I188: =SA34c!I26 -> 13600000 | J188: =SA34c!J26 -> 10900000 | K188: =SA34c!K26 -> 11090000
A189: Sanitation Infrastructure | C189: =SA34c!C37 -> 0 | D189: =SA34c!D37 -> 0 | E189: =SA34c!E37 -> 12960597.98 | F189: =SA34c!F37 -> 8680400 | G189: =SA34c!G37 -> 14178937.24 | H189: =SA34c!H37 -> 0 | I189: =SA34c!I37 -> 0 | J189: =SA34c!J37 -> 0 | K189: =SA34c!K37 -> 0
A190: Solid Waste Infrastructure | C190: =SA34c!C44 -> 0 | D190: =SA34c!D44 -> 0 | E190: =SA34c!E44 -> 0 | F190: =SA34c!F44 -> 0 | G190: =SA34c!G44 -> 0 | H190: =SA34c!H44 -> 0 | I190: =SA34c!I44 -> 0 | J190: =SA34c!J44 -> 0 | K190: =SA34c!K44 -> 0
A191: Rail Infrastructure | C191: =SA34c!C52 -> 0 | D191: =SA34c!D52 -> 0 | E191: =SA34c!E52 -> 0 | F191: =SA34c!F52 -> 0 | G191: =SA34c!G52 -> 0 | H191: =SA34c!H52 -> 0 | I191: =SA34c!I52 -> 0 | J191: =SA34c!J52 -> 0 | K191: =SA34c!K52 -> 0
A192: Coastal Infrastructure | C192: =SA34c!C62 -> 0 | D192: =SA34c!D62 -> 0 | E192: =SA34c!E62 -> 0 | F192: =SA34c!F62 -> 0 | G192: =SA34c!G62 -> 0 | H192: =SA34c!H62 -> 0 | I192: =SA34c!I62 -> 0 | J192: =SA34c!J62 -> 0 | K192: =SA34c!K62 -> 0
A193: Information and Communication Infrastructure | C193: =SA34c!C68 -> 0 | D193: =SA34c!D68 -> 0 | E193: =SA34c!E68 -> 0 | F193: =SA34c!F68 -> 0 | G193: =SA34c!G68 -> 0 | H193: =SA34c!H68 -> 0 | I193: =SA34c!I68 -> 0 | J193: =SA34c!J68 -> 0 | K193: =SA34c!K68 -> 0
A194: Infrastructure | C194: =SUM(C185:C193) -> 77522286.65 | D194: =SUM(D185:D193) -> 130183872.9 | E194: 76159436.08 | F194: 169862603.1 | G194: 253004616.5 | H194: 0 | I194: 167975000 | J194: 177651100 | K194: 196126603
A195: Community Facilities | C195: =SA34c!C75 -> 0 | D195: =SA34c!D75 -> 0 | E195: =SA34c!E75 -> 0 | F195: =SA34c!F75 -> 15000 | G195: =SA34c!G75 -> 0 | H195: =SA34c!H75 -> 0 | I195: =SA34c!I75 -> 12750 | J195: =SA34c!J75 -> 15600 | K195: =SA34c!K75 -> 16380
A196: Sport and Recreation Facilities | C196: =SA34c!C98 -> 0 | D196: =SA34c!D98 -> 0 | E196: =SA34c!E98 -> 0 | F196: =SA34c!F98 -> 0 | G196: =SA34c!G98 -> 0 | H196: =SA34c!H98 -> 0 | I196: =SA34c!I98 -> 0 | J196: =SA34c!J98 -> 0 | K196: =SA34c!K98 -> 0
A197: Community Assets | C197: =SUM(C195:C196) -> 0 | D197: 0 | E197: 0 | F197: 15000 | G197: 0 | H197: 0 | I197: 12750 | J197: 15600 | K197: 16380
A198: Heritage Assets | C198: =SA34c!C103 -> 0 | D198: =SA34c!D103 -> 0 | E198: =SA34c!E103 -> 0 | F198: =SA34c!F103 -> 0 | G198: =SA34c!G103 -> 0 | H198: =SA34c!H103 -> 0 | I198: =SA34c!I103 -> 0 | J198: =SA34c!J103 -> 0 | K198: =SA34c!K103 -> 0
A199: Revenue Generating | C199: =SA34c!C111 -> 0 | D199: =SA34c!D111 -> 0 | E199: =SA34c!E111 -> 0 | F199: =SA34c!F111 -> 0 | G199: =SA34c!G111 -> 0 | H199: =SA34c!H111 -> 0 | I199: =SA34c!I111 -> 0 | J199: =SA34c!J111 -> 0 | K199: =SA34c!K111 -> 0
A200: Non-revenue Generating | C200: =SA34c!C114 -> 0 | D200: =SA34c!D114 -> 0 | E200: =SA34c!E114 -> 0 | F200: =SA34c!F114 -> 0 | G200: =SA34c!G114 -> 0 | H200: =SA34c!H114 -> 0 | I200: =SA34c!I114 -> 0 | J200: =SA34c!J114 -> 0 | K200: =SA34c!K114 -> 0
A201: Investment properties | C201: =SUM(C199:C200) -> 0 | D201: 0 | E201: 0 | F201: 0 | G201: 0 | H201: 0 | I201: 0 | J201: 0 | K201: 0
A202: Operational Buildings | C202: =SA34c!C119 -> 14191124.89 | D202: =SA34c!D119 -> 70356137.47 | E202: =SA34c!E119 -> 51284449.8 | F202: =SA34c!F119 -> 163462034.6 | G202: =SA34c!G119 -> 107992162.8 | H202: =SA34c!H119 -> 0 | I202: =SA34c!I119 -> 180942659.5 | J202: =SA34c!J119 -> 201024360.6 | K202: =SA34c!K119 -> 215096763.9
A203: Housing | C203: =SA34c!C131 -> 0 | D203: =SA34c!D131 -> 0 | E203: =SA34c!E131 -> 0 | F203: =SA34c!F131 -> 0 | G203: =SA34c!G131 -> 0 | H203: =SA34c!H131 -> 0 | I203: =SA34c!I131 -> 0 | J203: =SA34c!J131 -> 0 | K203: =SA34c!K131 -> 0
A204: Other Assets | C204: =SUM(C202:C203) -> 14191124.89 | D204: 70356137.47 | E204: 51284449.8 | F204: 163462034.6 | G204: 107992162.8 | H204: 0 | I204: 180942659.5 | J204: 201024360.6 | K204: 215096763.9
A205: Biological or Cultivated Assets | C205: =SA34c!C136 -> 0 | D205: =SA34c!D136 -> 0 | E205: =SA34c!E136 -> 0 | F205: =SA34c!F136 -> 0 | G205: =SA34c!G136 -> 0 | H205: =SA34c!H136 -> 0 | I205: =SA34c!I136 -> 0 | J205: =SA34c!J136 -> 0 | K205: =SA34c!K136 -> 0
A206: Servitudes | C206: =SA34c!C140 -> 0 | D206: =SA34c!D140 -> 0 | E206: =SA34c!E140 -> 0 | F206: =SA34c!F140 -> 0 | G206: =SA34c!G140 -> 0 | H206: =SA34c!H140 -> 0 | I206: =SA34c!I140 -> 0 | J206: =SA34c!J140 -> 0 | K206: =SA34c!K140 -> 0
... 25 more rows

Sheet A10-SerDel
A1: =muni&" - "&Approve10 -> 0 - Table A10 Basic service delivery measurement
A2: =desc -> Description | B2: =head27 -> Ref | C2: =head1b -> 2020/21 | D2: =head1A -> 2021/22 | E2: =Head1 -> 2022/23 | F2: =Head2 -> Current Year 2023/24 | I2: =Head3 -> 2024/25 Medium Term Revenue & Expenditure Framework
C3: =Head5A -> Outcome | D3: =Head5A -> Outcome | E3: =Head5A -> Outcome | F3: =Head6 -> Original Budget | G3: =Head7 -> Adjusted Budget | H3: =Head8 -> Full Year Forecast | I3: =Head9 -> Budget Year 2024/25 | J3: =Head10 -> Budget Year +1 2025/26 | K3: =Head11 -> Budget Year +2 2026/27
A4: Household service targets | B4: 1
A5: Water:
A6: Piped water inside dwelling | C6: ='SA9'!E67 -> 81977 | D6: ='SA9'!F67 -> 81977 | E6: ='SA9'!G67 -> 81977 | F6: ='SA9'!H67 -> 85289 | G6: ='SA9'!I67 -> 85289 | H6: ='SA9'!J67 -> 85289 | I6: ='SA9'!K67 -> 90406.34 | J6: ='SA9'!L67 -> 94474.6253 | K6: ='SA9'!M67 -> 98725.98344
A7: Piped water inside yard (but not in dwelling) | C7: ='SA9'!E68 -> 63907 | D7: ='SA9'!F68 -> 63907 | E7: ='SA9'!G68 -> 63907 | F7: ='SA9'!H68 -> 66489 | G7: ='SA9'!I68 -> 66489 | H7: ='SA9'!J68 -> 66489 | I7: ='SA9'!K68 -> 70478.34 | J7: ='SA9'!L68 -> 73649.8653 | K7: ='SA9'!M68 -> 76964.10924
A8: Using public tap (at least min.service level) | B8: 2 | C8: ='SA9'!E69 -> 6663 | D8: ='SA9'!F69 -> 6663 | E8: ='SA9'!G69 -> 6663 | F8: ='SA9'!H69 -> 6932 | G8: ='SA9'!I69 -> 6932 | H8: ='SA9'!J69 -> 6932 | I8: ='SA9'!K69 -> 7347.92 | J8: ='SA9'!L69 -> 7678.5764 | K8: ='SA9'!M69 -> 8024.112338
A9: Other water supply (at least min.service level) | B9: 4 | C9: ='SA9'!E70 -> 0 | D9: ='SA9'!F70 -> 0 | E9: ='SA9'!G70 -> 0 | F9: ='SA9'!H70 -> 0 | G9: ='SA9'!I70 -> 0 | H9: ='SA9'!J70 -> 0 | I9: ='SA9'!K70 -> 0 | J9: ='SA9'!L70 -> 0 | K9: ='SA9'!M70 -> 0
A10: Minimum Service Level and Above sub-total | C10: =SUM(C6:C9) -> 152547 | D10: =SUM(D6:D9) -> 152547 | E10: 152547 | F10: 158710 | G10: 158710 | H10: 158710 | I10: 168232.6 | J10: 175803.067 | K10: 183714.205
A11: Using public tap (< min.service level) | B11: 3 | C11: ='SA9'!E72 -> 6396 | D11: ='SA9'!F72 -> 6396 | E11: ='SA9'!G72 -> 6396 | F11: ='SA9'!H72 -> 6654 | G11: ='SA9'!I72 -> 6654 | H11: ='SA9'!J72 -> 6654 | I11: ='SA9'!K72 -> 7053.24 | J11: ='SA9'!L72 -> 7370.6358 | K11: ='SA9'!M72 -> 7702.314411
A12: Other water supply (< min.service level) | B12: =B9 -> 4 | C12: ='SA9'!E73 -> 0 | D12: ='SA9'!F73 -> 0 | E12: ='SA9'!G73 -> 0 | F12: ='SA9'!H73 -> 0 | G12: ='SA9'!I73 -> 0 | H12: ='SA9'!J73 -> 0 | I12: ='SA9'!K73 -> 0 | J12: ='SA9'!L73 -> 0 | K12: ='SA9'!M73 -> 0
A13: No water supply | C13: ='SA9'!E74 -> 0 | D13: ='SA9'!F74 -> 0 | E13: ='SA9'!G74 -> 0 | F13: ='SA9'!H74 -> 0 | G13: ='SA9'!I74 -> 0 | H13: ='SA9'!J74 -> 0 | I13: ='SA9'!K74 -> 0 | J13: ='SA9'!L74 -> 0 | K13: ='SA9'!M74 -> 0
A14: Below Minimum Service Level sub-total | C14: =SUM(C11:C13) -> 6396 | D14: =SUM(D11:D13) -> 6396 | E14: 6396 | F14: 6654 | G14: 6654 | H14: 6654 | I14: 7053.24 | J14: 7370.6358 | K14: 7702.314411
A15: Total number of households | B15: 5 | C15: =C10+C14 -> 158943 | D15: =D10+D14 -> 158943 | E15: 158943 | F15: 165364 | G15: 165364 | H15: 165364 | I15: 175285.84 | J15: 183173.7028 | K15: 191416.5194
A16: Sanitation/sewerage:
A17: Flush toilet (connected to sewerage) | C17: ='SA9'!E78 -> 82970 | D17: ='SA9'!F78 -> 82970 | E17: ='SA9'!G78 -> 82970 | F17: ='SA9'!H78 -> 86322 | G17: ='SA9'!I78 -> 86322 | H17: ='SA9'!J78 -> 86322 | I17: ='SA9'!K78 -> 91501.32 | J17: ='SA9'!L78 -> 95618.8794 | K17: ='SA9'!M78 -> 99921.72897
A18: Flush toilet (with septic tank) | C18: ='SA9'!E79 -> 3160 | D18: ='SA9'!F79 -> 3160 | E18: ='SA9'!G79 -> 3160 | F18: ='SA9'!H79 -> 3288 | G18: ='SA9'!I79 -> 3288 | H18: ='SA9'!J79 -> 3288 | I18: ='SA9'!K79 -> 3485.28 | J18: ='SA9'!L79 -> 3642.1176 | K18: ='SA9'!M79 -> 3806.012892
A19: Chemical toilet | C19: ='SA9'!E80 -> 96 | D19: ='SA9'!F80 -> 96 | E19: ='SA9'!G80 -> 96 | F19: ='SA9'!H80 -> 100 | G19: ='SA9'!I80 -> 100 | H19: ='SA9'!J80 -> 100 | I19: ='SA9'!K80 -> 106 | J19: ='SA9'!L80 -> 110.77 | K19: ='SA9'!M80 -> 115.75465
A20: Pit toilet (ventilated) | C20: ='SA9'!E81 -> 6240 | D20: ='SA9'!F81 -> 6240 | E20: ='SA9'!G81 -> 6240 | F20: ='SA9'!H81 -> 6492 | G20: ='SA9'!I81 -> 6492 | H20: ='SA9'!J81 -> 6492 | I20: ='SA9'!K81 -> 6881.52 | J20: ='SA9'!L81 -> 7191.1884 | K20: ='SA9'!M81 -> 7514.791878
A21: Other toilet provisions (> min.service level) | C21: ='SA9'!E82 -> 0 | D21: ='SA9'!F82 -> 0 | E21: ='SA9'!G82 -> 0 | F21: ='SA9'!H82 -> 0 | G21: ='SA9'!I82 -> 0 | H21: ='SA9'!J82 -> 0 | I21: ='SA9'!K82 -> 0 | J21: ='SA9'!L82 -> 0 | K21: ='SA9'!M82 -> 0
A22: =$A$10 -> Minimum Service Level and Above sub-total | C22: =SUM(C17:C21) -> 92466 | D22: =SUM(D17:D21) -> 92466 | E22: 92466 | F22: 96202 | G22: 96202 | H22: 96202 | I22: 101974.12 | J22: 106562.9554 | K22: 111358.2884
A23: Bucket toilet | C23: ='SA9'!E84 -> 0 | D23: ='SA9'!F84 -> 0 | E23: ='SA9'!G84 -> 0 | F23: ='SA9'!H84 -> 0 | G23: ='SA9'!I84 -> 0 | H23: ='SA9'!J84 -> 0 | I23: ='SA9'!K84 -> 0 | J23: ='SA9'!L84 -> 0 | K23: ='SA9'!M84 -> 0
A24: Other toilet provisions (< min.service level) | C24: ='SA9'!E85 -> 0 | D24: ='SA9'!F85 -> 0 | E24: ='SA9'!G85 -> 0 | F24: ='SA9'!H85 -> 0 | G24: ='SA9'!I85 -> 0 | H24: ='SA9'!J85 -> 0 | I24: ='SA9'!K85 -> 0 | J24: ='SA9'!L85 -> 0 | K24: ='SA9'!M85 -> 0
A25: No toilet provisions | C25: ='SA9'!E86 -> 71527 | D25: ='SA9'!F86 -> 71527 | E25: ='SA9'!G86 -> 71527 | F25: ='SA9'!H86 -> 74417 | G25: ='SA9'!I86 -> 74417 | H25: ='SA9'!J86 -> 74417 | I25: ='SA9'!K86 -> 78882.02 | J25: ='SA9'!L86 -> 82431.7109 | K25: ='SA9'!M86 -> 86141.13789
A26: =$A$14 -> Below Minimum Service Level sub-total | C26: =SUM(C23:C25) -> 71527 | D26: =SUM(D23:D25) -> 71527 | E26: 71527 | F26: 74417 | G26: 74417 | H26: 74417 | I26: 78882.02 | J26: 82431.7109 | K26: 86141.13789
A27: =$A$15 -> Total number of households | B27: =$B$15 -> 5 | C27: =C22+C26 -> 163993 | D27: =D22+D26 -> 163993 | E27: 163993 | F27: 170619 | G27: 170619 | H27: 170619 | I27: 180856.14 | J27: 188994.6663 | K27: 197499.4263
A28: Energy:
A29: Electricity (at least min.service level) | C29: ='SA9'!E90 -> 135271 | D29: ='SA9'!F90 -> 135271 | E29: ='SA9'!G90 -> 135271 | F29: ='SA9'!H90 -> 140682 | G29: ='SA9'!I90 -> 140682 | H29: ='SA9'!J90 -> 140682 | I29: ='SA9'!K90 -> 149122.92 | J29: ='SA9'!L90 -> 155833.4514 | K29: ='SA9'!M90 -> 162845.9567
A30: Electricity - prepaid (min.service level) | C30: ='SA9'!E91 -> 27347 | D30: ='SA9'!F91 -> 27347 | E30: ='SA9'!G91 -> 27347 | F30: ='SA9'!H91 -> 28441 | G30: ='SA9'!I91 -> 28441 | H30: ='SA9'!J91 -> 28441 | I30: ='SA9'!K91 -> 30147.46 | J30: ='SA9'!L91 -> 31504.0957 | K30: ='SA9'!M91 -> 32921.78001
A31: =$A$10 -> Minimum Service Level and Above sub-total | C31: =SUM(C29:C30) -> 162618 | D31: =SUM(D29:D30) -> 162618 | E31: 162618 | F31: 169123 | G31: 169123 | H31: 169123 | I31: 179270.38 | J31: 187337.5471 | K31: 195767.7367
A32: Electricity (< min.service level) | C32: ='SA9'!E93 -> 0 | D32: ='SA9'!F93 -> 0 | E32: ='SA9'!G93 -> 0 | F32: ='SA9'!H93 -> 0 | G32: ='SA9'!I93 -> 0 | H32: ='SA9'!J93 -> 0 | I32: ='SA9'!K93 -> 0 | J32: ='SA9'!L93 -> 0 | K32: ='SA9'!M93 -> 0
A33: Electricity - prepaid (< min. service level) | C33: ='SA9'!E94 -> 0 | D33: ='SA9'!F94 -> 0 | E33: ='SA9'!G94 -> 0 | F33: ='SA9'!H94 -> 0 | G33: ='SA9'!I94 -> 0 | H33: ='SA9'!J94 -> 0 | I33: ='SA9'!K94 -> 0 | J33: ='SA9'!L94 -> 0 | K33: ='SA9'!M94 -> 0
A34: Other energy sources | C34: ='SA9'!E95 -> 8000 | D34: ='SA9'!F95 -> 8000 | E34: ='SA9'!G95 -> 8000 | F34: ='SA9'!H95 -> 8320 | G34: ='SA9'!I95 -> 8320 | H34: ='SA9'!J95 -> 8320 | I34: ='SA9'!K95 -> 8819.2 | J34: ='SA9'!L95 -> 9216.064 | K34: ='SA9'!M95 -> 9630.78688
A35: =$A$14 -> Below Minimum Service Level sub-total | C35: =SUM(C32:C34) -> 8000 | D35: =SUM(D32:D34) -> 8000 | E35: 8000 | F35: 8320 | G35: 8320 | H35: 8320 | I35: 8819.2 | J35: 9216.064 | K35: 9630.78688
A36: =$A$15 -> Total number of households | B36: =$B$15 -> 5 | C36: =C31+C35 -> 170618 | D36: =D31+D35 -> 170618 | E36: 170618 | F36: 177443 | G36: 177443 | H36: 177443 | I36: 188089.58 | J36: 196553.6111 | K36: 205398.5236
A37: Refuse:
A38: Removed at least once a week | C38: ='SA9'!E99 -> 129848 | D38: ='SA9'!F99 -> 129848 | E38: ='SA9'!G99 -> 129848 | F38: ='SA9'!H99 -> 135042 | G38: ='SA9'!I99 -> 135042 | H38: ='SA9'!J99 -> 135042 | I38: ='SA9'!K99 -> 143144.52 | J38: ='SA9'!L99 -> 149586.0234 | K38: ='SA9'!M99 -> 156317.3945
A39: =$A$10 -> Minimum Service Level and Above sub-total | C39: =SUM(C38) -> 129848 | D39: =SUM(D38) -> 129848 | E39: 129848 | F39: 135042 | G39: 135042 | H39: 135042 | I39: 143144.52 | J39: 149586.0234 | K39: 156317.3945
A40: Removed less frequently than once a week | C40: ='SA9'!E101 -> 40770 | D40: ='SA9'!F101 -> 40770 | E40: ='SA9'!G101 -> 40770 | F40: ='SA9'!H101 -> 42401 | G40: ='SA9'!I101 -> 42401 | H40: ='SA9'!J101 -> 42401 | I40: ='SA9'!K101 -> 44945.06 | J40: ='SA9'!L101 -> 46967.5877 | K40: ='SA9'!M101 -> 49081.12915
A41: Using communal refuse dump | C41: ='SA9'!E102 -> 0 | D41: ='SA9'!F102 -> 0 | E41: ='SA9'!G102 -> 0 | F41: ='SA9'!H102 -> 0 | G41: ='SA9'!I102 -> 0 | H41: ='SA9'!J102 -> 0 | I41: ='SA9'!K102 -> 0 | J41: ='SA9'!L102 -> 0 | K41: ='SA9'!M102 -> 0
A42: Using own refuse dump | C42: ='SA9'!E103 -> 0 | D42: ='SA9'!F103 -> 0 | E42: ='SA9'!G103 -> 0 | F42: ='SA9'!H103 -> 0 | G42: ='SA9'!I103 -> 0 | H42: ='SA9'!J103 -> 0 | I42: ='SA9'!K103 -> 0 | J42: ='SA9'!L103 -> 0 | K42: ='SA9'!M103 -> 0
A43: Other rubbish disposal | C43: ='SA9'!E104 -> 0 | D43: ='SA9'!F104 -> 0 | E43: ='SA9'!G104 -> 0 | F43: ='SA9'!H104 -> 0 | G43: ='SA9'!I104 -> 0 | H43: ='SA9'!J104 -> 0 | I43: ='SA9'!K104 -> 0 | J43: ='SA9'!L104 -> 0 | K43: ='SA9'!M104 -> 0
A44: No rubbish disposal | C44: ='SA9'!E105 -> 0 | D44: ='SA9'!F105 -> 0 | E44: ='SA9'!G105 -> 0 | F44: ='SA9'!H105 -> 0 | G44: ='SA9'!I105 -> 0 | H44: ='SA9'!J105 -> 0 | I44: ='SA9'!K105 -> 0 | J44: ='SA9'!L105 -> 0 | K44: ='SA9'!M105 -> 0
A45: =$A$14 -> Below Minimum Service Level sub-total | C45: =SUM(C40:C44) -> 40770 | D45: =SUM(D40:D44) -> 40770 | E45: 40770 | F45: 42401 | G45: 42401 | H45: 42401 | I45: 44945.06 | J45: 46967.5877 | K45: 49081.12915
A46: =$A$15 -> Total number of households | B46: =$B$15 -> 5 | C46: =C39+C45 -> 170618 | D46: =D39+D45 -> 170618 | E46: 170618 | F46: 177443 | G46: 177443 | H46: 177443 | I46: 188089.58 | J46: 196553.6111 | K46: 205398.5236
A48: Households receiving Free Basic Service | B48: 7
A49: Water (6 kilolitres per household per month) | C49: ='SA9'!E263 -> 0 | D49: ='SA9'!F263 -> 0 | E49: ='SA9'!G263 -> 0 | F49: ='SA9'!H263 -> 0 | G49: ='SA9'!I263 -> 0 | H49: ='SA9'!J263 -> 0 | I49: ='SA9'!K263 -> 0 | J49: ='SA9'!L263 -> 0 | K49: ='SA9'!M263 -> 0
A50: Sanitation (free minimum level service) | C50: ='SA9'!E275 -> 0 | D50: ='SA9'!F275 -> 0 | E50: ='SA9'!G275 -> 0 | F50: ='SA9'!H275 -> 0 | G50: ='SA9'!I275 -> 0 | H50: ='SA9'!J275 -> 0 | I50: ='SA9'!K275 -> 0 | J50: ='SA9'!L275 -> 0 | K50: ='SA9'!M275 -> 0
A51: Electricity/other energy (50kwh per household per month) | C51: ='SA9'!E251 -> 0 | D51: ='SA9'!F251 -> 0 | E51: ='SA9'!G251 -> 0 | F51: ='SA9'!H251 -> 0 | G51: ='SA9'!I251 -> 0 | H51: ='SA9'!J251 -> 0 | I51: ='SA9'!K251 -> 0 | J51: ='SA9'!L251 -> 0 | K51: ='SA9'!M251 -> 0
A52: Refuse (removed at least once a week) | C52: ='SA9'!E287 -> 0 | D52: ='SA9'!F287 -> 0 | E52: ='SA9'!G287 -> 0 | F52: ='SA9'!H287 -> 0 | G52: ='SA9'!I287 -> 0 | H52: ='SA9'!J287 -> 0 | I52: ='SA9'!K287 -> 0 | J52: ='SA9'!L287 -> 0 | K52: ='SA9'!M287 -> 0
